Workbook

Sheet Options
B1: =Berechnung!B4 -> KOREA
B2: Datum:
B3: Počet zápasů:
B4: LineUP Home:
B5: Pos 1 | C5: Pos 2 | D5: Pos 3 | E5: Pos 4 | F5: Pos 5 | G5: Pos 6 | H5: L | I5: starting
I6: alternativ
B7: LineUp: | R7: Settercall: | S7: K1 | T7: Rychlík | V7: Positions: | W7: z | X7: Setter | Y7: Set | Z7: S | AB7: Serve: | AC7: SH | AD7: Float
B8: Pos 1 | C8: Pos 2 | D8: Pos 3 | E8: Pos 4 | F8: Pos 5 | G8: Pos 6 | H8: L | S8: K2 | T8: Rychlík za | W8: d | X8: Opposite | Y8: Opp | Z8: Op | AC8: SM | AD8: Jumpfloat
B9: 6 | C9: 1 | D9: 11 | E9: 17 | F9: 9 | G9: 4 | H9: 19 | I9: starting | S9: K7 | T9: Čtverka | W9: a | X9: Outside | Y9: Out | Z9: Ou | AC9: SQ | AD9: Jumpserve
B10: 22 | D10: 8 | F10: 14 | H10: 25 | I10: alternativ | S10: KD | T10: Jednonoha | W10: m | X10: Middleblock | Y10: MB | Z10: MB | AC10: ST | AD10: Jumpfloat
B11: =IF(B10="",B9,B9&"/"&B10) -> 6/22 | C11: =IF(C10="",C9,C9&"/"&C10) -> 1 | D11: =IF(D10="",D9,D9&"/"&D10) -> 11/8 | E11: 17 | F11: =IF(F10="",F9,F9&"/"&F10) -> 9/14 | G11: =IF(G10="",G9,G9&"/"&G10) -> 4 | H11: 19/25 | I11: nebeneinander | W11: l | X11: Libero | Y11: Lib | Z11: L | AC11: Sx | AD11: unknown
W12: u | X12: Universal | Y12: Uni | Z12: U
B13: Startrotation:
B14: Serve | D14: 6 | E14: Reception | G14: 6
B17: Rooster:
B18: excl | C18: Pos | L18: Serve
C19: a | D19: =IF(B19="",Berechnung!B5,"") -> 1 | E19: =IF(B19="",Berechnung!C5,"") -> SONG | J19: =IF(D19="","",IF(LOWER(C19)=$W$7,$X$7,IF(LOWER(C19)=$W$8,$X$8,IF(LOWER(C19)=$W$9,$X$9,IF(LOWER(C19)=$W$10,$X$10,IF(LOWER(C19)=$W$11,$X$11,IF(LOWER(C19)=$W$12,$X$12,""))))))) -> Outside | K19: =IF(D19="","",IF(LOWER(C19)=$W$7,$Y$7,IF(LOWER(C19)=$W$8,$Y$8,IF(LOWER(C19)=$W$9,$Y$9,IF(LOWER(C19)=$W$10,$Y$10,IF(LOWER(C19)=$W$11,$Y$11,IF(LOWER(C19)=$W$12,$Y$12,""))))))) -> Out | L19: =IF(D19="","",'Berechnung S'!W4) -> SQ | N19: =IF(D19="","",'Berechnung S'!AA4) -> S6
C20: m | D20: =IF(B20="",Berechnung!B6,"") -> 4 | E20: =IF(B20="",Berechnung!C6,"") -> SHIN | J20: Middleblock | K20: MB | L20: =IF(D20="","",'Berechnung S'!W5) -> SM | N20: =IF(D20="","",'Berechnung S'!AA5) -> S5
C21: z | D21: =IF(B21="",Berechnung!B7,"") -> 6 | E21: =IF(B21="",Berechnung!C7,"") -> LEE | J21: Setter | K21: Set | L21: =IF(D21="","",'Berechnung S'!W6) -> SM | N21: =IF(D21="","",'Berechnung S'!AA6) -> S1
C22: m | D22: =IF(B22="",Berechnung!B8,"") -> 8 | E22: =IF(B22="",Berechnung!C8,"") -> PARK | J22: Middleblock | K22: MB | L22: =IF(D22="","",'Berechnung S'!W7) -> SM | N22: =IF(D22="","",'Berechnung S'!AA7) -> S6
C23: a | D23: =IF(B23="",Berechnung!B9,"") -> 9 | E23: =IF(B23="",Berechnung!C9,"") -> KWAK | J23: Outside | K23: Out | L23: =IF(D23="","",'Berechnung S'!W8) -> SM | N23: =IF(D23="","",'Berechnung S'!AA8) -> S1
C24: m | D24: =IF(B24="",Berechnung!B10,"") -> 11 | E24: =IF(B24="",Berechnung!C10,"") -> CHOI | J24: Middleblock | K24: MB | L24: =IF(D24="","",'Berechnung S'!W9) -> SM | N24: =IF(D24="","",'Berechnung S'!AA9) -> S5
C25: a | D25: =IF(B25="",Berechnung!B11,"") -> 12 | E25: =IF(B25="",Berechnung!C11,"") -> JEON | J25: Outside | K25: Out | L25: =IF(D25="","",'Berechnung S'!W10) -> SH | N25: =IF(D25="","",'Berechnung S'!AA10) -> S5
C26: a | D26: =IF(B26="",Berechnung!B12,"") -> 14 | E26: =IF(B26="",Berechnung!C12,"") -> SONG | J26: Outside | K26: Out | L26: =IF(D26="","",'Berechnung S'!W11) -> SQ | N26: =IF(D26="","",'Berechnung S'!AA11) -> S6
C27: d | D27: =IF(B27="",Berechnung!B13,"") -> 16 | E27: =IF(B27="",Berechnung!C13,"") -> CHOI | J27: Opposite | K27: Opp | L27: =IF(D27="","",'Berechnung S'!W12) -> SM | N27: =IF(D27="","",'Berechnung S'!AA12) -> S1
C28: d | D28: =IF(B28="",Berechnung!B14,"") -> 17 | E28: =IF(B28="",Berechnung!C14,"") -> SEO | J28: Opposite | K28: Opp | L28: =IF(D28="","",'Berechnung S'!W13) -> SQ | N28: =IF(D28="","",'Berechnung S'!AA13) -> S5
C29: l | D29: =IF(B29="",Berechnung!B15,"") -> 19 | E29: =IF(B29="",Berechnung!C15,"") -> JEONG | J29: Libero | K29: Lib | L29: =IF(D29="","",'Berechnung S'!W14) -> SH | N29: =IF(D29="","",'Berechnung S'!AA14) -> S5
C30: m | D30: =IF(B30="",Berechnung!B16,"") -> 20 | E30: =IF(B30="",Berechnung!C16,"") -> JI | J30: Middleblock | K30: MB | L30: =IF(D30="","",'Berechnung S'!W15) -> SH | N30: =IF(D30="","",'Berechnung S'!AA15) -> S5
C31: z | D31: =IF(B31="",Berechnung!B17,"") -> 22 | E31: =IF(B31="",Berechnung!C17,"") -> YOU | J31: Setter | K31: Set | L31: =IF(D31="","",'Berechnung S'!W16) -> SM | N31: =IF(D31="","",'Berechnung S'!AA16) -> S1
C32: l | D32: =IF(B32="",Berechnung!B18,"") -> 25 | E32: =IF(B32="",Berechnung!C18,"") -> OH | J32: Libero | K32: Lib | L32: =IF(D32="","",'Berechnung S'!W17) -> SH | N32: =IF(D32="","",'Berechnung S'!AA17) -> S5
B33: x | C33: m | D33: =IF(B33="",Berechnung!B19,"") ->  | E33: =IF(B33="",Berechnung!C19,"") ->  | L33: =IF(D33="","",'Berechnung S'!W18) ->  | N33: =IF(D33="","",'Berechnung S'!AA18) -> 
B34: x | C34: m | D34: =IF(B34="",Berechnung!B20,"") ->  | E34: =IF(B34="",Berechnung!C20,"") ->  | L34: =IF(D34="","",'Berechnung S'!W19) ->  | N34: =IF(D34="","",'Berechnung S'!AA19) -> 
B35: x | C35: z | D35: =IF(B35="",Berechnung!B21,"") ->  | E35: =IF(B35="",Berechnung!C21,"") ->  | L35: =IF(D35="","",'Berechnung S'!W19) ->  | N35: =IF(D35="","",'Berechnung S'!AA19) -> 
B36: x | D36: =IF(B36="",Berechnung!B22,"") ->  | E36: =IF(B36="",Berechnung!C22,"") ->  | L36: =IF(D36="","",'Berechnung S'!W20) ->  | N36: =IF(D36="","",'Berechnung S'!AA20) -> 
B37: x | D37: =IF(B37="",Berechnung!B23,"") ->  | E37: =IF(B37="",Berechnung!C23,"") ->  | L37: =IF(D37="","",'Berechnung S'!W21) ->  | N37: =IF(D37="","",'Berechnung S'!AA21) -> 
B38: x | C38: a | D38: =IF(B38="",Berechnung!B24,"") ->  | E38: =IF(B38="",Berechnung!C24,"") ->  | L38: =IF(D38="","",'Berechnung S'!W22) ->  | N38: =IF(D38="","",'Berechnung S'!AA22) -> 

Sheet Eingabe
B10: Rotation 1 | J10: Rotation 6 | R10: Rotation 5
B21: Rotation 2 | J21: Rotation 3 | R21: Rotation 4

Sheet Matchplan
B2: Roster | I2: =Options!B1&" "&AZ3&" - "&TEXT(AZ4,"tt.MM.jjjj") -> KOREA - | AZ2: =Options!B1 -> KOREA | BH2: Serve:
B3: =Berechnung!I27 -> 1 | C3: =Berechnung!J27 -> SONG | G3: =Berechnung!L27 -> Out | I3: =IF(AZ9="","",AZ9 & ": "&AZ15) -> 22: Jumpfloat at Position 1 | T3: =IF(BA9="","",BA9 & ": "&BA15) ->  | AE3: =IF(BB9="","",BB9 & ": "&BB15) -> 8: Jumpfloat at Position 6 | AZ3: =IF(Options!D3="","",Options!D3) ->  | BH3: =TEXT('Berechnung S'!#REF!,"##") ->  | BI3: ='Berechnung S'!#REF! ->  | BJ3: =IF(BH3="","",IF(BI3=Options!$AC$7,Options!$AD$7,IF(BI3=Options!$AC$8,Options!$AD$8,IF(BI3=Options!$AC$9,Options!$AD$9,IF(BI3=Options!$AC$10,Options!$AD$10,IF(BI3=Options!$AC$11,Options!$AD$11,"unknown")))))) ->  | BK3: ='Berechnung S'!#REF! ->  | BL3: =IF(BH3="","",IF(BK3="S1","Position 1",IF(BK3="S6","Position 6",IF(BK3="S5","Position 5","")))) ->  | BM3: =IF(BH3="","",BJ3&" at "&BL3) ->  | BP3: K1 after R all
B4: =Berechnung!I28 -> 4 | C4: =Berechnung!J28 -> SHIN | G4: =Berechnung!L28 -> MB | I4: =IF(AZ8="","",AZ8 & ": "&AZ14) -> 6: Jumpfloat at Position 1 | T4: =IF(BA8="","",BA8 & ": "&BA14) -> 1: Jumpserve at Position 6 | AE4: =IF(BB8="","",BB8 & ": "&BB14) -> 11: Jumpfloat at Position 5 | AZ4: =IF(Options!D2="","",Options!D2) ->  | BH4: =TEXT('Berechnung S'!AE4,"##") -> 1 | BI4: ='Berechnung S'!Y4 -> SQ | BJ4: =IF(BH4="","",IF(BI4=Options!$AC$7,Options!$AD$7,IF(BI4=Options!$AC$8,Options!$AD$8,IF(BI4=Options!$AC$9,Options!$AD$9,IF(BI4=Options!$AC$10,Options!$AD$10,IF(BI4=Options!$AC$11,Options!$AD$11,"unknown")))))) -> Jumpserve | BK4: ='Berechnung S'!AC4 -> S6 | BL4: Position 6 | BM4: Jumpserve at Position 6 | BP4: r | BQ4: rE | BR4: r# | BS4: r#% | BT4: r2 | BU4: r2% | BV4: r2E | BW4: r2# | BX4: r2#% | BY4: r3 | BZ4: r3% | CA4: r3E | CB4: r3# | CC4: r3#% | CD4: r4 | CE4: r4% | CF4: r4E | CG4: r4# | CH4: r4#% | CI4: r9 | CJ4: r9% | CK4: r9E | CL4: r9# | CM4: r9#% | CN4: r8 | CO4: r8% | CP4: r8E | CQ4: r8# | CR4: r8#% | CS4: r7 | CT4: r7% | CU4: r7E | CV4: r7# | CW4: r7#% | CX4: rS | CY4: rS% | CZ4: rSE | DA4: rS# | DB4: rS#%
B5: =Berechnung!I29 -> 6 | C5: =Berechnung!J29 -> LEE | G5: =Berechnung!L29 -> Set | I5: =CONCATENATE('Daten AfR'!$D$4,'Daten AfR'!$C$8,'Daten AfR'!$E$4) -> 100%/3 | L5: =CONCATENATE('Daten AfR'!$D$6,'Daten AfR'!$C$8,'Daten AfR'!$E$6) -> 100%/3 | O5: =CONCATENATE('Daten AfR'!$D$5,'Daten AfR'!$C$8,'Daten AfR'!$E$5) -> 0%/0 | T5: =CONCATENATE('Daten AfR'!$F$4,'Daten AfR'!$C$8,'Daten AfR'!$G$4) -> 0%/3 | W5: =CONCATENATE('Daten AfR'!$F$6,'Daten AfR'!$C$8,'Daten AfR'!$G$6) -> 40%/10 | Z5: =CONCATENATE('Daten AfR'!$F$5,'Daten AfR'!$C$8,'Daten AfR'!$G$5) -> 50%/4 | AE5: =CONCATENATE('Daten AfR'!$H$6,'Daten AfR'!$C$8,'Daten AfR'!$I$6) -> 62%/8 | AH5: =CONCATENATE('Daten AfR'!$H$4,'Daten AfR'!$C$8,'Daten AfR'!$I$4) -> 0%/0 | AK5: =CONCATENATE('Daten AfR'!$H$5,'Daten AfR'!$C$8,'Daten AfR'!$I$5) -> 100%/1 | BH5: =TEXT('Berechnung S'!AE5,"##") -> 4 | BI5: ='Berechnung S'!Y5 -> SM | BJ5: =IF(BH5="","",IF(BI5=Options!$AC$7,Options!$AD$7,IF(BI5=Options!$AC$8,Options!$AD$8,IF(BI5=Options!$AC$9,Options!$AD$9,IF(BI5=Options!$AC$10,Options!$AD$10,IF(BI5=Options!$AC$11,Options!$AD$11,"unknown")))))) -> Jumpfloat | BK5: ='Berechnung S'!AC5 -> S5 | BL5: Position 5 | BM5: Jumpfloat at Position 5 | BO5: S1 | BP5: =Daten!B84 -> 10 | BQ5: =Daten!C84 -> 20% | BR5: =Daten!D84 -> 4 | BS5: =IF(BP5=0,"",BR5/BP5) -> 0.4 | BT5: =Daten!E84 -> 2 | BU5: =IF(OR($BP5=0,BT5=0),"",BT5/$BP5) -> 0.2 | BV5: =IF(BT5=0,"",Daten!F84) -> -50% | BW5: =IF(BT5=0,"",Daten!G84) -> 0 | BX5: =IF(OR($BP5=0,BT5=0),"",BW5/$BT5) -> 0 | BY5: =Daten!H84 -> 2 | BZ5: =IF(OR($BP5=0,BY5=0),"",BY5/$BP5) -> 0.2 | CA5: =IF(BY5=0,"",Daten!I84) -> 0% | CB5: =IF(BY5=0,"",Daten!J84) -> 0 | CC5: =IF(OR($BP5=0,BY5=0),"",CB5/BY5) -> 0 | CD5: =Daten!K84 -> 4 | CE5: =IF(OR($BP5=0,CD5=0),"",CD5/$BP5) -> 0.4 | CF5: =IF(CD5=0,"",Daten!L84) -> 75% | CG5: =IF(CD5=0,"",Daten!M84) -> 3 | CH5: =IF(OR($BP5=0,CD5=0),"",CG5/CD5) -> 0.75 | CI5: =Daten!N84 -> 0 | CJ5: =IF(OR($BP5=0,CI5=0),"",CI5/$BP5) ->  | CK5: =IF(CI5=0,"",Daten!O84) ->  | CL5: =IF(CI5=0,"",Daten!P84) ->  | CM5: =IF(OR($BP5=0,CI5=0),"",CL5/CI5) ->  | CN5: =Daten!Q84 -> 2 | CO5: =IF(OR($BP5=0,CN5=0),"",CN5/$BP5) -> 0.2 | CP5: =IF(CN5=0,"",Daten!R84) -> 0% | CQ5: =IF(CN5=0,"",Daten!S84) -> 1 | CR5: =IF(OR($BP5=0,CN5=0),"",CQ5/CN5) -> 0.5 | CS5: =Daten!T84 -> 0 | CT5: =IF(OR($BP5=0,CS5=0),"",CS5/$BP5) ->  | CU5: =IF(CS5=0,"",Daten!U84) ->  | CV5: =IF(CS5=0,"",Daten!V84) ->  | CW5: =IF(OR($BP5=0,CS5=0),"",CV5/CS5) ->  | CX5: =Daten!W84 -> 0 | CY5: =IF(OR($BP5=0,CX5=0),"",CX5/$BP5) ->  | CZ5: =IF(CX5=0,"",Daten!X84) ->  | DA5: =IF(CX5=0,"",Daten!Y84) ->  | DB5: =IF(OR($BP5=0,CX5=0),"",DA5/CX5) -> 
B6: =Berechnung!I30 -> 8 | C6: =Berechnung!J30 -> PARK | G6: =Berechnung!L30 -> MB | AZ6: LineUp: | BH6: =TEXT('Berechnung S'!AE6,"##") -> 6 | BI6: ='Berechnung S'!Y6 -> SM | BJ6: =IF(BH6="","",IF(BI6=Options!$AC$7,Options!$AD$7,IF(BI6=Options!$AC$8,Options!$AD$8,IF(BI6=Options!$AC$9,Options!$AD$9,IF(BI6=Options!$AC$10,Options!$AD$10,IF(BI6=Options!$AC$11,Options!$AD$11,"unknown")))))) -> Jumpfloat | BK6: ='Berechnung S'!AC6 -> S1 | BL6: Position 1 | BM6: Jumpfloat at Position 1 | BO6: S6 | BP6: =Daten!B85 -> 19 | BQ6: =Daten!C85 -> 47% | BR6: =Daten!D85 -> 11 | BS6: 0.5789473684 | BT6: =Daten!E85 -> 7 | BU6: 0.3684210526 | BV6: =IF(BT6=0,"",Daten!F85) -> 86% | BW6: =IF(BT6=0,"",Daten!G85) -> 6 | BX6: 0.8571428571 | BY6: =Daten!H85 -> 6 | BZ6: 0.3157894737 | CA6: =IF(BY6=0,"",Daten!I85) -> 33% | CB6: =IF(BY6=0,"",Daten!J85) -> 3 | CC6: 0.5 | CD6: =Daten!K85 -> 4 | CE6: 0.2105263158 | CF6: =IF(CD6=0,"",Daten!L85) -> 0% | CG6: =IF(CD6=0,"",Daten!M85) -> 1 | CH6: 0.25 | CI6: =Daten!N85 -> 0 | CK6: =IF(CI6=0,"",Daten!O85) ->  | CL6: =IF(CI6=0,"",Daten!P85) ->  | CN6: =Daten!Q85 -> 2 | CO6: 0.1052631579 | CP6: =IF(CN6=0,"",Daten!R85) -> 50% | CQ6: =IF(CN6=0,"",Daten!S85) -> 1 | CR6: 0.5 | CS6: =Daten!T85 -> 0 | CU6: =IF(CS6=0,"",Daten!U85) ->  | CV6: =IF(CS6=0,"",Daten!V85) ->  | CX6: =Daten!W85 -> 0 | CZ6: =IF(CX6=0,"",Daten!X85) ->  | DA6: =IF(CX6=0,"",Daten!Y85) -> 
B7: =Berechnung!I31 -> 9 | C7: =Berechnung!J31 -> KWAK | G7: =Berechnung!L31 -> Out | AZ7: Pos 1 | BA7: Pos 2 | BB7: Pos 3 | BC7: Pos 4 | BD7: Pos 5 | BE7: Pos 6 | BF7: L | BH7: =TEXT('Berechnung S'!AE7,"##") -> 8 | BI7: ='Berechnung S'!Y7 -> SM | BJ7: =IF(BH7="","",IF(BI7=Options!$AC$7,Options!$AD$7,IF(BI7=Options!$AC$8,Options!$AD$8,IF(BI7=Options!$AC$9,Options!$AD$9,IF(BI7=Options!$AC$10,Options!$AD$10,IF(BI7=Options!$AC$11,Options!$AD$11,"unknown")))))) -> Jumpfloat | BK7: ='Berechnung S'!AC7 -> S6 | BL7: Position 6 | BM7: Jumpfloat at Position 6 | BO7: S5 | BP7: =Daten!B86 -> 12 | BQ7: =Daten!C86 -> 33% | BR7: =Daten!D86 -> 6 | BS7: 0.5 | BT7: =Daten!E86 -> 3 | BU7: 0.25 | BV7: =IF(BT7=0,"",Daten!F86) -> 67% | BW7: =IF(BT7=0,"",Daten!G86) -> 2 | BX7: 0.6666666667 | BY7: =Daten!H86 -> 3 | BZ7: 0.25 | CA7: =IF(BY7=0,"",Daten!I86) -> 33% | CB7: =IF(BY7=0,"",Daten!J86) -> 1 | CC7: 0.3333333333 | CD7: =Daten!K86 -> 0 | CF7: =IF(CD7=0,"",Daten!L86) ->  | CG7: =IF(CD7=0,"",Daten!M86) ->  | CI7: =Daten!N86 -> 0 | CK7: =IF(CI7=0,"",Daten!O86) ->  | CL7: =IF(CI7=0,"",Daten!P86) ->  | CN7: =Daten!Q86 -> 6 | CO7: 0.5 | CP7: =IF(CN7=0,"",Daten!R86) -> 17% | CQ7: =IF(CN7=0,"",Daten!S86) -> 3 | CR7: 0.5 | CS7: =Daten!T86 -> 0 | CU7: =IF(CS7=0,"",Daten!U86) ->  | CV7: =IF(CS7=0,"",Daten!V86) ->  | CX7: =Daten!W86 -> 0 | CZ7: =IF(CX7=0,"",Daten!X86) ->  | DA7: =IF(CX7=0,"",Daten!Y86) -> 
B8: =Berechnung!I32 -> 11 | C8: =Berechnung!J32 -> CHOI | G8: =Berechnung!L32 -> MB | AY8: 1. | AZ8: =IF(Options!B9="","",TEXT(Options!B9,"##")) -> 6 | BA8: =IF(Options!C9="","",TEXT(Options!C9,"##")) -> 1 | BB8: =IF(Options!D9="","",TEXT(Options!D9,"##")) -> 11 | BC8: =IF(Options!E9="","",TEXT(Options!E9,"##")) -> 17 | BD8: =IF(Options!F9="","",TEXT(Options!F9,"##")) -> 9 | BE8: =IF(Options!G9="","",TEXT(Options!G9,"##")) -> 4 | BF8: =IF(Options!H9="","",TEXT(Options!H9,"##")) -> 19 | BH8: =TEXT('Berechnung S'!AE8,"##") -> 9 | BI8: ='Berechnung S'!Y8 -> SM | BJ8: =IF(BH8="","",IF(BI8=Options!$AC$7,Options!$AD$7,IF(BI8=Options!$AC$8,Options!$AD$8,IF(BI8=Options!$AC$9,Options!$AD$9,IF(BI8=Options!$AC$10,Options!$AD$10,IF(BI8=Options!$AC$11,Options!$AD$11,"unknown")))))) -> Jumpfloat | BK8: ='Berechnung S'!AC8 -> S1 | BL8: Position 1 | BM8: Jumpfloat at Position 1 | BO8: S4 | BP8: =Daten!B87 -> 9 | BQ8: =Daten!C87 -> 33% | BR8: =Daten!D87 -> 5 | BS8: 0.5555555556 | BT8: =Daten!E87 -> 0 | BV8: =IF(BT8=0,"",Daten!F87) ->  | BW8: =IF(BT8=0,"",Daten!G87) ->  | BY8: =Daten!H87 -> 2 | BZ8: 0.2222222222 | CA8: =IF(BY8=0,"",Daten!I87) -> 100% | CB8: =IF(BY8=0,"",Daten!J87) -> 2 | CC8: 1 | CD8: =Daten!K87 -> 2 | CE8: 0.2222222222 | CF8: =IF(CD8=0,"",Daten!L87) -> 50% | CG8: =IF(CD8=0,"",Daten!M87) -> 1 | CH8: 0.5 | CI8: =Daten!N87 -> 3 | CJ8: 0.3333333333 | CK8: =IF(CI8=0,"",Daten!O87) -> -33% | CL8: =IF(CI8=0,"",Daten!P87) -> 1 | CM8: 0.3333333333 | CN8: =Daten!Q87 -> 2 | CO8: 0.2222222222 | CP8: =IF(CN8=0,"",Daten!R87) -> 50% | CQ8: =IF(CN8=0,"",Daten!S87) -> 1 | CR8: 0.5 | CS8: =Daten!T87 -> 0 | CU8: =IF(CS8=0,"",Daten!U87) ->  | CV8: =IF(CS8=0,"",Daten!V87) ->  | CX8: =Daten!W87 -> 0 | CZ8: =IF(CX8=0,"",Daten!X87) ->  | DA8: =IF(CX8=0,"",Daten!Y87) -> 
B9: =Berechnung!I33 -> 12 | C9: =Berechnung!J33 -> JEON | G9: =Berechnung!L33 -> Out | I9: =IF(OR(BP31=0,BQ31=0),"",CONCATENATE(BP31,$BN$26,BQ31)) ->  | L9: =IF(OR(BP30=0,BQ30=0),"",CONCATENATE(BP30,$BN$26,BQ30)) -> 25% / 1 | T9: =IF(OR(BR31=0,BS31=0),"",CONCATENATE(BR31,$BN$26,BS31)) ->  | W9: =IF(OR(BR30=0,BS30=0),"",CONCATENATE(BR30,$BN$26,BS30)) -> 20% / 1 | AE9: =IF(OR(BT31=0,BU31=0),"",CONCATENATE(BT31,$BN$26,BU31)) ->  | AH9: =IF(OR(BT30=0,BU30=0),"",CONCATENATE(BT30,$BN$26,BU30)) -> 62% / 5 | AR9: S1 | AY9: 2. | AZ9: =IF(Options!B10="","",TEXT(Options!B10,"##")) -> 22 | BA9: =IF(Options!C10="","",TEXT(Options!C10,"##")) ->  | BB9: =IF(Options!D10="","",TEXT(Options!D10,"##")) -> 8 | BC9: =IF(Options!E10="","",TEXT(Options!E10,"##")) ->  | BD9: =IF(Options!F10="","",TEXT(Options!F10,"##")) -> 14 | BE9: =IF(Options!G10="","",TEXT(Options!G10,"##")) ->  | BF9: =IF(Options!H10="","",TEXT(Options!H10,"##")) -> 25 | BH9: =TEXT('Berechnung S'!AE9,"##") -> 11 | BI9: ='Berechnung S'!Y9 -> SM | BJ9: =IF(BH9="","",IF(BI9=Options!$AC$7,Options!$AD$7,IF(BI9=Options!$AC$8,Options!$AD$8,IF(BI9=Options!$AC$9,Options!$AD$9,IF(BI9=Options!$AC$10,Options!$AD$10,IF(BI9=Options!$AC$11,Options!$AD$11,"unknown")))))) -> Jumpfloat | BK9: ='Berechnung S'!AC9 -> S5 | BL9: Position 5 | BM9: Jumpfloat at Position 5 | BO9: S3 | BP9: =Daten!B88 -> 8 | BQ9: =Daten!C88 -> 38% | BR9: =Daten!D88 -> 5 | BS9: 0.625 | BT9: =Daten!E88 -> 0 | BV9: =IF(BT9=0,"",Daten!F88) ->  | BW9: =IF(BT9=0,"",Daten!G88) ->  | BY9: =Daten!H88 -> 4 | BZ9: 0.5 | CA9: =IF(BY9=0,"",Daten!I88) -> 75% | CB9: =IF(BY9=0,"",Daten!J88) -> 3 | CC9: 0.75 | CD9: =Daten!K88 -> 1 | CE9: 0.125 | CF9: =IF(CD9=0,"",Daten!L88) -> -100% | CG9: =IF(CD9=0,"",Daten!M88) -> 0 | CH9: 0 | CI9: =Daten!N88 -> 3 | CJ9: 0.375 | CK9: =IF(CI9=0,"",Daten!O88) -> 33% | CL9: =IF(CI9=0,"",Daten!P88) -> 2 | CM9: 0.6666666667 | CN9: =Daten!Q88 -> 0 | CP9: =IF(CN9=0,"",Daten!R88) ->  | CQ9: =IF(CN9=0,"",Daten!S88) ->  | CS9: =Daten!T88 -> 0 | CU9: =IF(CS9=0,"",Daten!U88) ->  | CV9: =IF(CS9=0,"",Daten!V88) ->  | CX9: =Daten!W88 -> 0 | CZ9: =IF(CX9=0,"",Daten!X88) ->  | DA9: =IF(CX9=0,"",Daten!Y88) -> 
B10: =Berechnung!I34 -> 14 | C10: =Berechnung!J34 -> SONG | G10: =Berechnung!L34 -> Out | I10: =IF(OR(BP31=0,BQ31=0),"",CONCATENATE(BP38,$BN$26,BQ38)) ->  | L10: =IF(OR(BP30=0,BQ30=0),"",CONCATENATE(BP37,$BN$26,BQ37)) -> -100% / 0% | T10: =IF(OR(BR31=0,BS31=0),"",CONCATENATE(BR38,$BN$26,BS38)) ->  | W10: =IF(OR(BR30=0,BS30=0),"",CONCATENATE(BR31,$BN$26,BS31)) -> 0% / 0 | AE10: =IF(OR(BT31=0,BU31=0),"",CONCATENATE(BT38,$BN$26,BU38)) ->  | AH10: =IF(OR(BT30=0,BU30=0),"",CONCATENATE(BT37,$BN$26,BU37)) -> 40% / 60% | AY10: ∑ | AZ10: =IF(Options!B11="","",Options!B11) -> 6/22 | BA10: =IF(Options!C11="","",Options!C11) -> 1 | BB10: =IF(Options!D11="","",Options!D11) -> 11/8 | BC10: =IF(Options!E11="","",Options!E11) -> 17 | BD10: =IF(Options!F11="","",Options!F11) -> 9/14 | BE10: =IF(Options!G11="","",Options!G11) -> 4 | BF10: =IF(Options!H11="","",Options!H11) -> 19/25 | BH10: =TEXT('Berechnung S'!AE10,"##") -> 12 | BI10: ='Berechnung S'!Y10 -> SH | BJ10: =IF(BH10="","",IF(BI10=Options!$AC$7,Options!$AD$7,IF(BI10=Options!$AC$8,Options!$AD$8,IF(BI10=Options!$AC$9,Options!$AD$9,IF(BI10=Options!$AC$10,Options!$AD$10,IF(BI10=Options!$AC$11,Options!$AD$11,"unknown")))))) -> Float | BK10: ='Berechnung S'!AC10 -> S5 | BL10: Position 5 | BM10: Float at Position 5 | BO10: S2 | BP10: =Daten!B89 -> 16 | BQ10: =Daten!C89 -> 6% | BR10: =Daten!D89 -> 8 | BS10: 0.5 | BT10: =Daten!E89 -> 0 | BV10: =IF(BT10=0,"",Daten!F89) ->  | BW10: =IF(BT10=0,"",Daten!G89) ->  | BY10: =Daten!H89 -> 4 | BZ10: 0.25 | CA10: =IF(BY10=0,"",Daten!I89) -> 50% | CB10: =IF(BY10=0,"",Daten!J89) -> 3 | CC10: 0.75 | CD10: =Daten!K89 -> 7 | CE10: 0.4375 | CF10: =IF(CD10=0,"",Daten!L89) -> -14% | CG10: =IF(CD10=0,"",Daten!M89) -> 3 | CH10: 0.4285714286 | CI10: =Daten!N89 -> 5 | CJ10: 0.3125 | CK10: =IF(CI10=0,"",Daten!O89) -> 0% | CL10: =IF(CI10=0,"",Daten!P89) -> 2 | CM10: 0.4 | CN10: =Daten!Q89 -> 0 | CP10: =IF(CN10=0,"",Daten!R89) ->  | CQ10: =IF(CN10=0,"",Daten!S89) ->  | CS10: =Daten!T89 -> 0 | CU10: =IF(CS10=0,"",Daten!U89) ->  | CV10: =IF(CS10=0,"",Daten!V89) ->  | CX10: =Daten!W89 -> 0 | CZ10: =IF(CX10=0,"",Daten!X89) ->  | DA10: =IF(CX10=0,"",Daten!Y89) -> 
B11: =Berechnung!I35 -> 16 | C11: =Berechnung!J35 -> CHOI | G11: =Berechnung!L35 -> Opp | BH11: =TEXT('Berechnung S'!AE11,"##") -> 14 | BI11: ='Berechnung S'!Y11 -> SQ | BJ11: =IF(BH11="","",IF(BI11=Options!$AC$7,Options!$AD$7,IF(BI11=Options!$AC$8,Options!$AD$8,IF(BI11=Options!$AC$9,Options!$AD$9,IF(BI11=Options!$AC$10,Options!$AD$10,IF(BI11=Options!$AC$11,Options!$AD$11,"unknown")))))) -> Jumpserve | BK11: ='Berechnung S'!AC11 -> S6 | BL11: Position 6 | BM11: Jumpserve at Position 6
B12: =Berechnung!I36 -> 17 | C12: =Berechnung!J36 -> SEO | G12: =Berechnung!L36 -> Opp | BH12: =TEXT('Berechnung S'!AE12,"##") -> 16 | BI12: ='Berechnung S'!Y12 -> SM | BJ12: =IF(BH12="","",IF(BI12=Options!$AC$7,Options!$AD$7,IF(BI12=Options!$AC$8,Options!$AD$8,IF(BI12=Options!$AC$9,Options!$AD$9,IF(BI12=Options!$AC$10,Options!$AD$10,IF(BI12=Options!$AC$11,Options!$AD$11,"unknown")))))) -> Jumpfloat | BK12: ='Berechnung S'!AC12 -> S1 | BL12: Position 1 | BM12: Jumpfloat at Position 1
B13: =Berechnung!I37 -> 19 | C13: =Berechnung!J37 -> JEONG | G13: =Berechnung!L37 -> Lib | AZ13: Serve: | BH13: =TEXT('Berechnung S'!AE13,"##") -> 17 | BI13: ='Berechnung S'!Y13 -> SQ | BJ13: =IF(BH13="","",IF(BI13=Options!$AC$7,Options!$AD$7,IF(BI13=Options!$AC$8,Options!$AD$8,IF(BI13=Options!$AC$9,Options!$AD$9,IF(BI13=Options!$AC$10,Options!$AD$10,IF(BI13=Options!$AC$11,Options!$AD$11,"unknown")))))) -> Jumpserve | BK13: ='Berechnung S'!AC13 -> S5 | BL13: Position 5 | BM13: Jumpserve at Position 5 | BP13: K1 after R#+
B14: =Berechnung!I38 -> 20 | C14: =Berechnung!J38 -> JI | G14: =Berechnung!L38 -> MB | I14: =IF(OR(BP27=0,BQ27=0),"",CONCATENATE(BP27,$BN$26,BQ27)) -> 25% / 1 | L14: =IF(OR(BP28=0,BQ28=0),"",CONCATENATE(BP28,$BN$26,BQ28)) ->  | O14: =IF(OR(BP29=0,BQ29=0),"",CONCATENATE(BP29,$BN$26,BQ29)) -> 50% / 2 | T14: =IF(OR(BR27=0,BS27=0),"",CONCATENATE(BR27,$BN$26,BS27)) -> 20% / 1 | W14: =IF(OR(BR28=0,BS28=0),"",CONCATENATE(BR28,$BN$26,BS28)) -> 60% / 3 | Z14: =IF(OR(BR29=0,BS29=0),"",CONCATENATE(BR29,$BN$26,BS29)) ->  | AE14: =IF(OR(BT27=0,BU27=0),"",CONCATENATE(BT27,$BN$26,BU27)) -> 12% / 1 | AH14: =IF(OR(BT28=0,BU28=0),"",CONCATENATE(BT28,$BN$26,BU28)) -> 25% / 2 | AK14: =IF(OR(BT29=0,BU29=0),"",CONCATENATE(BT29,$BN$26,BU29)) ->  | AZ14: =OFFSET($BM$3,MATCH(AZ8,$BH$3:$BH$22,0)-1,0,1,1) -> Jumpfloat at Position 1 | BA14: Jumpserve at Position 6 | BB14: Jumpfloat at Position 5 | BC14: Jumpserve at Position 5 | BD14: Jumpfloat at Position 1 | BE14: Jumpfloat at Position 5 | BH14: =TEXT('Berechnung S'!AE14,"##") -> 19 | BI14: ='Berechnung S'!Y14 -> SH | BJ14: =IF(BH14="","",IF(BI14=Options!$AC$7,Options!$AD$7,IF(BI14=Options!$AC$8,Options!$AD$8,IF(BI14=Options!$AC$9,Options!$AD$9,IF(BI14=Options!$AC$10,Options!$AD$10,IF(BI14=Options!$AC$11,Options!$AD$11,"unknown")))))) -> Float | BK14: ='Berechnung S'!AC14 -> S5 | BL14: Position 5 | BM14: Float at Position 5 | BP14: r | BQ14: rE | BR14: r# | BS14: r#% | BT14: r2 | BU14: r2% | BV14: r2E | BW14: r2# | BX14: r2#% | BY14: r3 | BZ14: r3% | CA14: r3E | CB14: r3# | CC14: r3#% | CD14: r4 | CE14: r4% | CF14: r4E | CG14: r4# | CH14: r4#% | CI14: r9 | CJ14: r9% | CK14: r9E | CL14: r9# | CM14: r9#% | CN14: r8 | CO14: r8% | CP14: r8E | CQ14: r8# | CR14: r8#% | CS14: r7 | CT14: r7% | CU14: r7E | CV14: r7# | CW14: r7#% | CX14: rS | CY14: rS% | CZ14: rSE | DA14: rS# | DB14: rS#%
B15: =Berechnung!I39 -> 22 | C15: =Berechnung!J39 -> YOU | G15: =Berechnung!L39 -> Set | I15: =IF(OR(BP27=0,BQ27=0),"",CONCATENATE(BP34,$BN$26,BQ34)) -> -100% / 0% | L15: =IF(OR(BP28=0,BQ28=0),"",CONCATENATE(BP35,$BN$26,BQ35)) ->  | O15: =IF(OR(BP29=0,BQ29=0),"",CONCATENATE(BP36,$BN$26,BQ36)) -> 50% / 50% | T15: =IF(OR(BR27=0,BS27=0),"",CONCATENATE(BR34,$BN$26,BS34)) -> 100% / 100% | W15: =IF(OR(BR28=0,BS28=0),"",CONCATENATE(BR35,$BN$26,BS35)) -> 67% / 67% | Z15: =IF(OR(BR29=0,BS29=0),"",CONCATENATE(BR36,$BN$26,BS36)) ->  | AE15: =IF(OR(BT27=0,BU27=0),"",CONCATENATE(BT34,$BN$26,BU34)) -> 100% / 100% | AH15: =IF(OR(BT28=0,BU28=0),"",CONCATENATE(BT35,$BN$26,BU35)) -> 0% / 0% | AK15: =IF(OR(BT29=0,BU29=0),"",CONCATENATE(BT36,$BN$26,BU36)) ->  | AZ15: Jumpfloat at Position 1 | BB15: Jumpfloat at Position 6 | BD15: Jumpserve at Position 6 | BH15: =TEXT('Berechnung S'!AE15,"##") -> 20 | BI15: ='Berechnung S'!Y15 -> SH | BJ15: =IF(BH15="","",IF(BI15=Options!$AC$7,Options!$AD$7,IF(BI15=Options!$AC$8,Options!$AD$8,IF(BI15=Options!$AC$9,Options!$AD$9,IF(BI15=Options!$AC$10,Options!$AD$10,IF(BI15=Options!$AC$11,Options!$AD$11,"unknown")))))) -> Float | BK15: ='Berechnung S'!AC15 -> S5 | BL15: Position 5 | BM15: Float at Position 5 | BO15: S1 | BP15: =Daten!B104 -> 9 | BQ15: =Daten!C104 -> 22% | BR15: =Daten!D104 -> 4 | BS15: =IF(BP15=0,"",BR15/BP15) -> 0.4444444444 | BT15: =Daten!E104 -> 1 | BU15: =IF(OR($BP15=0,BT15=0),"",BT15/$BP15) -> 0.1111111111 | BV15: =IF(BT15=0,"",Daten!F104) -> -100% | BW15: =IF(BT15=0,"",Daten!G104) -> 0 | BX15: =IF(OR($BP15=0,BT15=0),"",BW15/BT15) -> 0 | BY15: =Daten!H104 -> 2 | BZ15: =IF(OR($BP15=0,BY15=0),"",BY15/$BP15) -> 0.2222222222 | CA15: =IF(BY15=0,"",Daten!I104) -> 0% | CB15: =IF(BY15=0,"",Daten!J104) -> 0 | CC15: =IF(OR($BP15=0,BY15=0),"",CB15/BY15) -> 0 | CD15: =Daten!K104 -> 4 | CE15: =IF(OR($BP15=0,CD15=0),"",CD15/$BP15) -> 0.4444444444 | CF15: =IF(CD15=0,"",Daten!L104) -> 75% | CG15: =IF(CD15=0,"",Daten!M104) -> 3 | CH15: =IF(OR($BP15=0,CD15=0),"",CG15/CD15) -> 0.75 | CI15: =Daten!N104 -> 0 | CJ15: =IF(OR($BP15=0,CI15=0),"",CI15/$BP15) ->  | CK15: =IF(CI15=0,"",Daten!O104) ->  | CL15: =IF(CI15=0,"",Daten!P104) ->  | CM15: =IF(OR($BP15=0,CI15=0),"",CL15/CI15) ->  | CN15: =Daten!Q104 -> 2 | CO15: =IF(OR($BP15=0,CN15=0),"",CN15/$BP15) -> 0.2222222222 | CP15: =IF(CN15=0,"",Daten!R104) -> 0% | CQ15: =IF(CN15=0,"",Daten!S104) -> 1 | CR15: =IF(OR($BP15=0,CN15=0),"",CQ15/CN15) -> 0.5 | CS15: =Daten!T104 -> 0 | CT15: =IF(OR($BP15=0,CS15=0),"",CS15/$BP15) ->  | CU15: =IF(CS15=0,"",Daten!U104) ->  | CV15: =IF(CS15=0,"",Daten!V104) ->  | CW15: =IF(OR($BP15=0,CS15=0),"",CV15/CS15) ->  | CX15: =Daten!W104 -> 0 | CY15: =IF(OR($BP15=0,CX15=0),"",CX15/$BP15) ->  | CZ15: =IF(CX15=0,"",Daten!X104) ->  | DA15: =IF(CX15=0,"",Daten!Y104) ->  | DB15: =IF(OR($BP15=0,CX15=0),"",DA15/CX15) -> 
B16: =Berechnung!I40 -> 25 | C16: =Berechnung!J40 -> OH | G16: =Berechnung!L40 -> Lib | AR16: S6 | BH16: =TEXT('Berechnung S'!AE16,"##") -> 22 | BI16: ='Berechnung S'!Y16 -> SM | BJ16: =IF(BH16="","",IF(BI16=Options!$AC$7,Options!$AD$7,IF(BI16=Options!$AC$8,Options!$AD$8,IF(BI16=Options!$AC$9,Options!$AD$9,IF(BI16=Options!$AC$10,Options!$AD$10,IF(BI16=Options!$AC$11,Options!$AD$11,"unknown")))))) -> Jumpfloat | BK16: ='Berechnung S'!AC16 -> S1 | BL16: Position 1 | BM16: Jumpfloat at Position 1 | BO16: S6 | BP16: =Daten!B105 -> 8 | BQ16: =Daten!C105 -> 38% | BR16: =Daten!D105 -> 4 | BS16: 0.5 | BT16: =Daten!E105 -> 2 | BU16: 0.25 | BV16: =IF(BT16=0,"",Daten!F105) -> 50% | BW16: =IF(BT16=0,"",Daten!G105) -> 1 | BX16: 0.5 | BY16: =Daten!H105 -> 3 | BZ16: 0.375 | CA16: =IF(BY16=0,"",Daten!I105) -> 67% | CB16: =IF(BY16=0,"",Daten!J105) -> 2 | CC16: 0.6666666667 | CD16: =Daten!K105 -> 1 | CE16: 0.125 | CF16: =IF(CD16=0,"",Daten!L105) -> -100% | CG16: =IF(CD16=0,"",Daten!M105) -> 0 | CH16: 0 | CI16: =Daten!N105 -> 0 | CK16: =IF(CI16=0,"",Daten!O105) ->  | CL16: =IF(CI16=0,"",Daten!P105) ->  | CN16: =Daten!Q105 -> 2 | CO16: 0.25 | CP16: =IF(CN16=0,"",Daten!R105) -> 50% | CQ16: =IF(CN16=0,"",Daten!S105) -> 1 | CR16: 0.5 | CS16: =Daten!T105 -> 0 | CU16: =IF(CS16=0,"",Daten!U105) ->  | CV16: =IF(CS16=0,"",Daten!V105) ->  | CX16: =Daten!W105 -> 0 | CZ16: =IF(CX16=0,"",Daten!X105) ->  | DA16: =IF(CX16=0,"",Daten!Y105) -> 
B17: =Berechnung!I41 ->  | C17: =Berechnung!J41 ->  | G17: =Berechnung!L41 ->  | I17: =IF($BA$35="x",BE28,"") -> 0 | L17: =IF($BA$35="x",BB28,"") -> 0.6666666667 | T17: =IF($BA$35="x",BE29,"") -> 0 | W17: =IF($BA$35="x",BB29,"") -> 0.5 | AE17: =IF($BA$35="x",BE30,"") -> 0 | AH17: =IF($BA$35="x",BB30,"") -> 0.5 | BA17: ∑ K | BB17: K1 | BC17: K2 | BD17: K7 | BE17: KD | BH17: =TEXT('Berechnung S'!AE17,"##") -> 25 | BI17: ='Berechnung S'!Y17 -> SH | BJ17: =IF(BH17="","",IF(BI17=Options!$AC$7,Options!$AD$7,IF(BI17=Options!$AC$8,Options!$AD$8,IF(BI17=Options!$AC$9,Options!$AD$9,IF(BI17=Options!$AC$10,Options!$AD$10,IF(BI17=Options!$AC$11,Options!$AD$11,"unknown")))))) -> Float | BK17: ='Berechnung S'!AC17 -> S5 | BL17: Position 5 | BM17: Float at Position 5 | BO17: S5 | BP17: =Daten!B106 -> 10 | BQ17: =Daten!C106 -> 50% | BR17: =Daten!D106 -> 6 | BS17: 0.6 | BT17: =Daten!E106 -> 2 | BU17: 0.2 | BV17: =IF(BT17=0,"",Daten!F106) -> 100% | BW17: =IF(BT17=0,"",Daten!G106) -> 2 | BX17: 1 | BY17: =Daten!H106 -> 3 | BZ17: 0.3 | CA17: =IF(BY17=0,"",Daten!I106) -> 33% | CB17: =IF(BY17=0,"",Daten!J106) -> 1 | CC17: 0.3333333333 | CD17: =Daten!K106 -> 0 | CF17: =IF(CD17=0,"",Daten!L106) ->  | CG17: =IF(CD17=0,"",Daten!M106) ->  | CI17: =Daten!N106 -> 0 | CK17: =IF(CI17=0,"",Daten!O106) ->  | CL17: =IF(CI17=0,"",Daten!P106) ->  | CN17: =Daten!Q106 -> 5 | CO17: 0.5 | CP17: =IF(CN17=0,"",Daten!R106) -> 40% | CQ17: =IF(CN17=0,"",Daten!S106) -> 3 | CR17: 0.6 | CS17: =Daten!T106 -> 0 | CU17: =IF(CS17=0,"",Daten!U106) ->  | CV17: =IF(CS17=0,"",Daten!V106) ->  | CX17: =Daten!W106 -> 0 | CZ17: =IF(CX17=0,"",Daten!X106) ->  | DA17: =IF(CX17=0,"",Daten!Y106) -> 
B18: =Berechnung!I42 ->  | C18: =Berechnung!J42 ->  | G18: =Berechnung!L42 ->  | J18: =IF($BA$35="x",BC28,"") -> 0.1111111111 | M18: =IF($BA$35="x",BD28,"") -> 0.2222222222 | U18: =IF($BA$35="x",BC29,"") -> 0.5 | X18: =IF($BA$35="x",BD29,"") -> 0 | AF18: =IF($BA$35="x",BC30,"") -> 0 | AI18: =IF($BA$35="x",BD30,"") -> 0.5 | AZ18: S1 | BA18: =SUM(BB18:BE18) -> 9 | BB18: ='R 1'!BL9 -> 6 | BC18: ='R 1'!BL15 -> 1 | BD18: ='R 1'!BL21 -> 2 | BE18: ='R 1'!BL27 -> 0 | BH18: =TEXT('Berechnung S'!AE18,"##") ->  | BI18: ='Berechnung S'!Y18 ->  | BJ18: =IF(BH18="","",IF(BI18=Options!$AC$7,Options!$AD$7,IF(BI18=Options!$AC$8,Options!$AD$8,IF(BI18=Options!$AC$9,Options!$AD$9,IF(BI18=Options!$AC$10,Options!$AD$10,IF(BI18=Options!$AC$11,Options!$AD$11,"unknown")))))) ->  | BK18: ='Berechnung S'!AC18 ->  | BO18: S4 | BP18: =Daten!B107 -> 6 | BQ18: =Daten!C107 -> 83% | BR18: =Daten!D107 -> 5 | BS18: 0.8333333333 | BT18: =Daten!E107 -> 0 | BV18: =IF(BT18=0,"",Daten!F107) ->  | BW18: =IF(BT18=0,"",Daten!G107) ->  | BY18: =Daten!H107 -> 2 | BZ18: 0.3333333333 | CA18: =IF(BY18=0,"",Daten!I107) -> 100% | CB18: =IF(BY18=0,"",Daten!J107) -> 2 | CC18: 1 | CD18: =Daten!K107 -> 2 | CE18: 0.3333333333 | CF18: =IF(CD18=0,"",Daten!L107) -> 50% | CG18: =IF(CD18=0,"",Daten!M107) -> 1 | CH18: 0.5 | CI18: =Daten!N107 -> 1 | CJ18: 0.1666666667 | CK18: =IF(CI18=0,"",Daten!O107) -> 100% | CL18: =IF(CI18=0,"",Daten!P107) -> 1 | CM18: 1 | CN18: =Daten!Q107 -> 1 | CO18: 0.1666666667 | CP18: =IF(CN18=0,"",Daten!R107) -> 100% | CQ18: =IF(CN18=0,"",Daten!S107) -> 1 | CR18: 1 | CS18: =Daten!T107 -> 0 | CU18: =IF(CS18=0,"",Daten!U107) ->  | CV18: =IF(CS18=0,"",Daten!V107) ->  | CX18: =Daten!W107 -> 0 | CZ18: =IF(CX18=0,"",Daten!X107) ->  | DA18: =IF(CX18=0,"",Daten!Y107) -> 
B19: =Berechnung!I43 ->  | C19: =Berechnung!J43 ->  | G19: =Berechnung!L43 ->  | AZ19: S6 | BA19: 8 | BB19: ='R 6'!BL9 -> 4 | BC19: ='R 6'!BL15 -> 4 | BD19: ='R 6'!BL21 -> 0 | BE19: ='R 6'!BL27 -> 0 | BH19: =TEXT('Berechnung S'!AE19,"##") ->  | BI19: ='Berechnung S'!Y19 ->  | BJ19: =IF(BH19="","",IF(BI19=Options!$AC$7,Options!$AD$7,IF(BI19=Options!$AC$8,Options!$AD$8,IF(BI19=Options!$AC$9,Options!$AD$9,IF(BI19=Options!$AC$10,Options!$AD$10,IF(BI19=Options!$AC$11,Options!$AD$11,"unknown")))))) ->  | BK19: ='Berechnung S'!AC19 ->  | BO19: S3 | BP19: =Daten!B108 -> 6 | BQ19: =Daten!C108 -> 50% | BR19: =Daten!D108 -> 4 | BS19: 0.6666666667 | BT19: =Daten!E108 -> 0 | BV19: =IF(BT19=0,"",Daten!F108) ->  | BW19: =IF(BT19=0,"",Daten!G108) ->  | BY19: =Daten!H108 -> 4 | BZ19: 0.6666666667 | CA19: =IF(BY19=0,"",Daten!I108) -> 75% | CB19: =IF(BY19=0,"",Daten!J108) -> 3 | CC19: 0.75 | CD19: =Daten!K108 -> 1 | CE19: 0.1666666667 | CF19: =IF(CD19=0,"",Daten!L108) -> -100% | CG19: =IF(CD19=0,"",Daten!M108) -> 0 | CH19: 0 | CI19: =Daten!N108 -> 1 | CJ19: 0.1666666667 | CK19: =IF(CI19=0,"",Daten!O108) -> 100% | CL19: =IF(CI19=0,"",Daten!P108) -> 1 | CM19: 1 | CN19: =Daten!Q108 -> 0 | CP19: =IF(CN19=0,"",Daten!R108) ->  | CQ19: =IF(CN19=0,"",Daten!S108) ->  | CS19: =Daten!T108 -> 0 | CU19: =IF(CS19=0,"",Daten!U108) ->  | CV19: =IF(CS19=0,"",Daten!V108) ->  | CX19: =Daten!W108 -> 0 | CZ19: =IF(CX19=0,"",Daten!X108) ->  | DA19: =IF(CX19=0,"",Daten!Y108) -> 
B20: =Berechnung!I44 ->  | C20: =Berechnung!J44 ->  | G20: =Berechnung!L44 ->  | AZ20: S5 | BA20: 10 | BB20: ='R 5'!BL9 -> 5 | BC20: ='R 5'!BL15 -> 0 | BD20: ='R 5'!BL21 -> 5 | BE20: ='R 5'!BL27 -> 0 | BH20: =TEXT('Berechnung S'!AE20,"##") ->  | BI20: ='Berechnung S'!Y20 ->  | BJ20: =IF(BH20="","",IF(BI20=Options!$AC$7,Options!$AD$7,IF(BI20=Options!$AC$8,Options!$AD$8,IF(BI20=Options!$AC$9,Options!$AD$9,IF(BI20=Options!$AC$10,Options!$AD$10,IF(BI20=Options!$AC$11,Options!$AD$11,"unknown")))))) ->  | BK20: ='Berechnung S'!AC20 ->  | BO20: S2 | BP20: =Daten!B109 -> 11 | BQ20: =Daten!C109 -> 9% | BR20: =Daten!D109 -> 6 | BS20: 0.5454545455 | BT20: =Daten!E109 -> 0 | BV20: =IF(BT20=0,"",Daten!F109) ->  | BW20: =IF(BT20=0,"",Daten!G109) ->  | BY20: =Daten!H109 -> 4 | BZ20: 0.3636363636 | CA20: =IF(BY20=0,"",Daten!I109) -> 50% | CB20: =IF(BY20=0,"",Daten!J109) -> 3 | CC20: 0.75 | CD20: =Daten!K109 -> 3 | CE20: 0.2727272727 | CF20: =IF(CD20=0,"",Daten!L109) -> -33% | CG20: =IF(CD20=0,"",Daten!M109) -> 1 | CH20: 0.3333333333 | CI20: =Daten!N109 -> 4 | CJ20: 0.3636363636 | CK20: =IF(CI20=0,"",Daten!O109) -> 0% | CL20: =IF(CI20=0,"",Daten!P109) -> 2 | CM20: 0.5 | CN20: =Daten!Q109 -> 0 | CP20: =IF(CN20=0,"",Daten!R109) ->  | CQ20: =IF(CN20=0,"",Daten!S109) ->  | CS20: =Daten!T109 -> 0 | CU20: =IF(CS20=0,"",Daten!U109) ->  | CV20: =IF(CS20=0,"",Daten!V109) ->  | CX20: =Daten!W109 -> 0 | CZ20: =IF(CX20=0,"",Daten!X109) ->  | DA20: =IF(CX20=0,"",Daten!Y109) -> 
B21: =Berechnung!I45 ->  | C21: =Berechnung!J45 ->  | G21: =Berechnung!L45 ->  | AZ21: S4 | BA21: 6 | BB21: ='R 4'!BL9 -> 5 | BC21: ='R 4'!BL15 -> 0 | BD21: ='R 4'!BL21 -> 1 | BE21: ='R 4'!BL27 -> 0 | BH21: =TEXT('Berechnung S'!AE21,"##") ->  | BI21: ='Berechnung S'!Y21 ->  | BJ21: =IF(BH21="","",IF(BI21=Options!$AC$7,Options!$AD$7,IF(BI21=Options!$AC$8,Options!$AD$8,IF(BI21=Options!$AC$9,Options!$AD$9,IF(BI21=Options!$AC$10,Options!$AD$10,IF(BI21=Options!$AC$11,Options!$AD$11,"unknown")))))) ->  | BK21: ='Berechnung S'!AC21 -> 
B22: =Berechnung!I46 ->  | C22: =Berechnung!J46 ->  | G22: =Berechnung!L46 ->  | AZ22: S3 | BA22: 7 | BB22: ='R 3'!BL9 -> 2 | BC22: ='R 3'!BL15 -> 5 | BD22: ='R 3'!BL21 -> 0 | BE22: ='R 3'!BL27 -> 0 | BH22: =TEXT('Berechnung S'!AE22,"##") ->  | BI22: ='Berechnung S'!Y22 ->  | BJ22: =IF(BH22="","",IF(BI22=Options!$AC$7,Options!$AD$7,IF(BI22=Options!$AC$8,Options!$AD$8,IF(BI22=Options!$AC$9,Options!$AD$9,IF(BI22=Options!$AC$10,Options!$AD$10,IF(BI22=Options!$AC$11,Options!$AD$11,"unknown")))))) ->  | BK22: ='Berechnung S'!AC22 -> 
I23: S1 | T23: S6 | AE23: S5 | AR23: S5 | AZ23: S2 | BA23: 11 | BB23: ='R 2'!BL9 -> 10 | BC23: ='R 2'!BL15 -> 0 | BD23: ='R 2'!BL21 -> 1 | BE23: ='R 2'!BL27 -> 0
C25: Starting Lineup: | F25: =IF(AND(Options!D14="",Options!G14=""),"","Rotation:") -> Rotation: | I25: =IF(BE9="","",BE9 & ": "&BE15) ->  | T25: =IF(BD9="","",BD9 & ": "&BD15) -> 14: Jumpserve at Position 6 | AE25: =IF(BC9="","",BC9 & ": "&BC15) ->  | BG25: Critical | BN25: Distribution in rot by setter
I26: =IF(BE8="","",BE8 & ": "&BE14) -> 4: Jumpfloat at Position 5 | T26: =IF(BD8="","",BD8 & ": "&BD14) -> 9: Jumpfloat at Position 1 | AE26: =IF(BC8="","",BC8 & ": "&BC14) -> 17: Jumpserve at Position 5 | BG26: 0.05 | BN26: / | BP26: S 1 | BR26: S 6 | BT26: S 5 | BV26: S 4 | BX26: S 3 | BZ26: S 2
C27: =AZ10 -> 6/22 | D27: =BE10 -> 4 | E27: =BD10 -> 9/14 | I27: =CONCATENATE('Daten AfR'!$N$6,'Daten AfR'!$C$8,'Daten AfR'!$O$6) -> 100%/3 | L27: =CONCATENATE('Daten AfR'!$N$5,'Daten AfR'!$C$8,'Daten AfR'!$O$5) -> 75%/4 | O27: =CONCATENATE('Daten AfR'!$N$4,'Daten AfR'!$C$8,'Daten AfR'!$O$4) -> 0%/0 | T27: =CONCATENATE('Daten AfR'!$L$5,'Daten AfR'!$C$8,'Daten AfR'!$M$5) -> 0%/0 | W27: =CONCATENATE('Daten AfR'!$L$6,'Daten AfR'!$C$8,'Daten AfR'!$M$6) -> 100%/5 | Z27: =CONCATENATE('Daten AfR'!$L$4,'Daten AfR'!$C$8,'Daten AfR'!$M$4) -> 0%/0 | AE27: =CONCATENATE('Daten AfR'!$J$6,'Daten AfR'!$C$8,'Daten AfR'!$K$6) -> 25%/4 | AH27: =CONCATENATE('Daten AfR'!$J$4,'Daten AfR'!$C$8,'Daten AfR'!$K$4) -> 50%/2 | AK27: =CONCATENATE('Daten AfR'!$J$5,'Daten AfR'!$C$8,'Daten AfR'!$K$5) -> 100%/1 | BB27: K1 | BC27: K2 | BD27: K7 | BE27: KD | BN27: Pos 2 | BP27: =IF(Options!$B$9=1,'Daten A3'!$C$4,IF(Options!$B$9=2,'Daten A3'!$C$10,IF(Options!$B$9=3,'Daten A3'!$C$16,IF(Options!$B$9=4,'Daten A3'!$C$22,IF(Options!$B$9=5,'Daten A3'!$C$28,IF(Options!$B$9=6,'Daten A3'!$C$34,IF(Options!$B$9=7,'Daten A3'!$C$40,IF(Options!$B$9=8,'Daten A3'!$C$46,IF(Options!$B$9=9,'Daten A3'!$C$52,IF(Options!$B$9=10,'Daten A3'!$C$58,IF(Options!$B$9=11,'Daten A3'!$C$64,IF(Options!$B$9=12,'Daten A3'!$C$70,IF(Options!$B$9=13,'Daten A3'!$C$76,IF(Options!$B$9=14,'Daten A3'!$C$82,IF(Options!$B$9=15,'Daten A3'!$C$88,IF(Options!$B$9=16,'Daten A3'!$C$94,IF(Options!$B$9=17,'Daten A3'!$C$100,IF(Options!$B$9=18,'Daten A3'!$C$106,IF(Options!$B$9=19,'Daten A3'!R4,IF(Options!$B$9=20,'Daten A3'!R10,IF(Options!$B$9=21,'Daten A3'!R16,IF(Options!$B$9=22,'Daten A3'!R22,IF(Options!$B$9=23,'Daten A3'!R28,IF(Options!$B$9=24,'Daten A3'!R34,)))))))))))))))))))))))) -> 25% | BQ27: =IF(Options!$B$9=1,'Daten A3'!$D$4,IF(Options!$B$9=2,'Daten A3'!$D$10,IF(Options!$B$9=3,'Daten A3'!$D$16,IF(Options!$B$9=4,'Daten A3'!$D$22,IF(Options!$B$9=5,'Daten A3'!$D$28,IF(Options!$B$9=6,'Daten A3'!$D$34,IF(Options!$B$9=7,'Daten A3'!$D$40,IF(Options!$B$9=8,'Daten A3'!$D$46,IF(Options!$B$9=9,'Daten A3'!$D$52,IF(Options!$B$9=10,'Daten A3'!$D$58,IF(Options!$B$9=11,'Daten A3'!$D$64,IF(Options!$B$9=12,'Daten A3'!$D$70,IF(Options!$B$9=13,'Daten A3'!$D$76,IF(Options!$B$9=14,'Daten A3'!$D$82,IF(Options!$B$9=15,'Daten A3'!$D$88,IF(Options!$B$9=16,'Daten A3'!$D$94,IF(Options!$B$9=17,'Daten A3'!$D$100,IF(Options!$B$9=18,'Daten A3'!$D$106,IF(Options!$B$9=19,'Daten A3'!S4,IF(Options!$B$9=20,'Daten A3'!S10,IF(Options!$B$9=21,'Daten A3'!S16,IF(Options!$B$9=22,'Daten A3'!S22,IF(Options!$B$9=23,'Daten A3'!S28,IF(Options!$B$9=24,'Daten A3'!S34,)))))))))))))))))))))))) -> 1 | BR27: =IF(Options!$B$9=1,'Daten A3'!$E$4,IF(Options!$B$9=2,'Daten A3'!$E$10,IF(Options!$B$9=3,'Daten A3'!$E$16,IF(Options!$B$9=4,'Daten A3'!$E$22,IF(Options!$B$9=5,'Daten A3'!$E$28,IF(Options!$B$9=6,'Daten A3'!$E$34,IF(Options!$B$9=7,'Daten A3'!$E$40,IF(Options!$B$9=8,'Daten A3'!$E$46,IF(Options!$B$9=9,'Daten A3'!$E$52,IF(Options!$B$9=10,'Daten A3'!$E$58,IF(Options!$B$9=11,'Daten A3'!$E$64,IF(Options!$B$9=12,'Daten A3'!$E$70,IF(Options!$B$9=13,'Daten A3'!$E$76,IF(Options!$B$9=14,'Daten A3'!$E$82,IF(Options!$B$9=15,'Daten A3'!$E$88,IF(Options!$B$9=16,'Daten A3'!$E$94,IF(Options!$B$9=17,'Daten A3'!$E$100,IF(Options!$B$9=18,'Daten A3'!$E$106,IF(Options!$B$9=19,'Daten A3'!T4,IF(Options!$B$9=20,'Daten A3'!T10,IF(Options!$B$9=21,'Daten A3'!T16,IF(Options!$B$9=22,'Daten A3'!T22,IF(Options!$B$9=23,'Daten A3'!T28,IF(Options!$B$9=24,'Daten A3'!T34,)))))))))))))))))))))))) -> 20% | BS27: =IF(Options!$B$9=1,'Daten A3'!$F$4,IF(Options!$B$9=2,'Daten A3'!$F$10,IF(Options!$B$9=3,'Daten A3'!$F$16,IF(Options!$B$9=4,'Daten A3'!$F$22,IF(Options!$B$9=5,'Daten A3'!$F$28,IF(Options!$B$9=6,'Daten A3'!$F$34,IF(Options!$B$9=7,'Daten A3'!$F$40,IF(Options!$B$9=8,'Daten A3'!$F$46,IF(Options!$B$9=9,'Daten A3'!$F$52,IF(Options!$B$9=10,'Daten A3'!$F$58,IF(Options!$B$9=11,'Daten A3'!$F$64,IF(Options!$B$9=12,'Daten A3'!$F$70,IF(Options!$B$9=13,'Daten A3'!$F$76,IF(Options!$B$9=14,'Daten A3'!$F$82,IF(Options!$B$9=15,'Daten A3'!$F$88,IF(Options!$B$9=16,'Daten A3'!$F$94,IF(Options!$B$9=17,'Daten A3'!$F$100,IF(Options!$B$9=18,'Daten A3'!$F$106,IF(Options!$B$9=19,'Daten A3'!U4,IF(Options!$B$9=20,'Daten A3'!U10,IF(Options!$B$9=21,'Daten A3'!U16,IF(Options!$B$9=22,'Daten A3'!U22,IF(Options!$B$9=23,'Daten A3'!U28,IF(Options!$B$9=24,'Daten A3'!U34,)))))))))))))))))))))))) -> 1 | BT27: =IF(Options!$B$9=1,'Daten A3'!$G$4,IF(Options!$B$9=2,'Daten A3'!$G$10,IF(Options!$B$9=3,'Daten A3'!$G$16,IF(Options!$B$9=4,'Daten A3'!$G$22,IF(Options!$B$9=5,'Daten A3'!$G$28,IF(Options!$B$9=6,'Daten A3'!$G$34,IF(Options!$B$9=7,'Daten A3'!$G$40,IF(Options!$B$9=8,'Daten A3'!$G$46,IF(Options!$B$9=9,'Daten A3'!$G$52,IF(Options!$B$9=10,'Daten A3'!$G$58,IF(Options!$B$9=11,'Daten A3'!$G$64,IF(Options!$B$9=12,'Daten A3'!$G$70,IF(Options!$B$9=13,'Daten A3'!$G$76,IF(Options!$B$9=14,'Daten A3'!$G$82,IF(Options!$B$9=15,'Daten A3'!$G$88,IF(Options!$B$9=16,'Daten A3'!$G$94,IF(Options!$B$9=17,'Daten A3'!$G$100,IF(Options!$B$9=18,'Daten A3'!$G$106,IF(Options!$B$9=19,'Daten A3'!V4,IF(Options!$B$9=20,'Daten A3'!V10,IF(Options!$B$9=21,'Daten A3'!V16,IF(Options!$B$9=22,'Daten A3'!V22,IF(Options!$B$9=23,'Daten A3'!V28,IF(Options!$B$9=24,'Daten A3'!V34,)))))))))))))))))))))))) -> 12% | BU27: =IF(Options!$B$9=1,'Daten A3'!$H$4,IF(Options!$B$9=2,'Daten A3'!$H$10,IF(Options!$B$9=3,'Daten A3'!$H$16,IF(Options!$B$9=4,'Daten A3'!$H$22,IF(Options!$B$9=5,'Daten A3'!$H$28,IF(Options!$B$9=6,'Daten A3'!$H$34,IF(Options!$B$9=7,'Daten A3'!$H$40,IF(Options!$B$9=8,'Daten A3'!$H$46,IF(Options!$B$9=9,'Daten A3'!$H$52,IF(Options!$B$9=10,'Daten A3'!$H$58,IF(Options!$B$9=11,'Daten A3'!$H$64,IF(Options!$B$9=12,'Daten A3'!$H$70,IF(Options!$B$9=13,'Daten A3'!$H$76,IF(Options!$B$9=14,'Daten A3'!$H$82,IF(Options!$B$9=15,'Daten A3'!$H$88,IF(Options!$B$9=16,'Daten A3'!$H$94,IF(Options!$B$9=17,'Daten A3'!$H$100,IF(Options!$B$9=18,'Daten A3'!$H$106,IF(Options!$B$9=19,'Daten A3'!W4,IF(Options!$B$9=20,'Daten A3'!W10,IF(Options!$B$9=21,'Daten A3'!W16,IF(Options!$B$9=22,'Daten A3'!W22,IF(Options!$B$9=23,'Daten A3'!W28,IF(Options!$B$9=24,'Daten A3'!W34,)))))))))))))))))))))))) -> 1 | BV27: =IF(Options!$B$9=1,'Daten A3'!$I$4,IF(Options!$B$9=2,'Daten A3'!$I$10,IF(Options!$B$9=3,'Daten A3'!$I$16,IF(Options!$B$9=4,'Daten A3'!$I$22,IF(Options!$B$9=5,'Daten A3'!$I$28,IF(Options!$B$9=6,'Daten A3'!$I$34,IF(Options!$B$9=7,'Daten A3'!$I$40,IF(Options!$B$9=8,'Daten A3'!$I$46,IF(Options!$B$9=9,'Daten A3'!$I$52,IF(Options!$B$9=10,'Daten A3'!$I$58,IF(Options!$B$9=11,'Daten A3'!$I$64,IF(Options!$B$9=12,'Daten A3'!$I$70,IF(Options!$B$9=13,'Daten A3'!$I$76,IF(Options!$B$9=14,'Daten A3'!$I$82,IF(Options!$B$9=15,'Daten A3'!$I$88,IF(Options!$B$9=16,'Daten A3'!$I$94,IF(Options!$B$9=17,'Daten A3'!$I$100,IF(Options!$B$9=18,'Daten A3'!$I$106,IF(Options!$B$9=19,'Daten A3'!X4,IF(Options!$B$9=20,'Daten A3'!X10,IF(Options!$B$9=21,'Daten A3'!X16,IF(Options!$B$9=22,'Daten A3'!X22,IF(Options!$B$9=23,'Daten A3'!X28,IF(Options!$B$9=24,'Daten A3'!X34,)))))))))))))))))))))))) -> 0% | BW27: =IF(Options!$B$9=1,'Daten A3'!$J$4,IF(Options!$B$9=2,'Daten A3'!$J$10,IF(Options!$B$9=3,'Daten A3'!$J$16,IF(Options!$B$9=4,'Daten A3'!$J$22,IF(Options!$B$9=5,'Daten A3'!$J$28,IF(Options!$B$9=6,'Daten A3'!$J$34,IF(Options!$B$9=7,'Daten A3'!$J$40,IF(Options!$B$9=8,'Daten A3'!$J$46,IF(Options!$B$9=9,'Daten A3'!$J$52,IF(Options!$B$9=10,'Daten A3'!$J$58,IF(Options!$B$9=11,'Daten A3'!$J$64,IF(Options!$B$9=12,'Daten A3'!$J$70,IF(Options!$B$9=13,'Daten A3'!$J$76,IF(Options!$B$9=14,'Daten A3'!$J$82,IF(Options!$B$9=15,'Daten A3'!$J$88,IF(Options!$B$9=16,'Daten A3'!$J$94,IF(Options!$B$9=17,'Daten A3'!$J$100,IF(Options!$B$9=18,'Daten A3'!$J$106,IF(Options!$B$9=19,'Daten A3'!Y4,IF(Options!$B$9=20,'Daten A3'!Y10,IF(Options!$B$9=21,'Daten A3'!Y16,IF(Options!$B$9=22,'Daten A3'!Y22,IF(Options!$B$9=23,'Daten A3'!Y28,IF(Options!$B$9=24,'Daten A3'!Y34,)))))))))))))))))))))))) -> 0 | BX27: =IF(Options!$B$9=1,'Daten A3'!$K$4,IF(Options!$B$9=2,'Daten A3'!$K$10,IF(Options!$B$9=3,'Daten A3'!$K$16,IF(Options!$B$9=4,'Daten A3'!$K$22,IF(Options!$B$9=5,'Daten A3'!$K$28,IF(Options!$B$9=6,'Daten A3'!$K$34,IF(Options!$B$9=7,'Daten A3'!$K$40,IF(Options!$B$9=8,'Daten A3'!$K$46,IF(Options!$B$9=9,'Daten A3'!$K$52,IF(Options!$B$9=10,'Daten A3'!$K$58,IF(Options!$B$9=11,'Daten A3'!$K$64,IF(Options!$B$9=12,'Daten A3'!$K$70,IF(Options!$B$9=13,'Daten A3'!$K$76,IF(Options!$B$9=14,'Daten A3'!$K$82,IF(Options!$B$9=15,'Daten A3'!$K$88,IF(Options!$B$9=16,'Daten A3'!$K$94,IF(Options!$B$9=17,'Daten A3'!$K$100,IF(Options!$B$9=18,'Daten A3'!$K$106,IF(Options!$B$9=19,'Daten A3'!Z4,IF(Options!$B$9=20,'Daten A3'!Z10,IF(Options!$B$9=21,'Daten A3'!Z16,IF(Options!$B$9=22,'Daten A3'!Z22,IF(Options!$B$9=23,'Daten A3'!Z28,IF(Options!$B$9=24,'Daten A3'!Z34,)))))))))))))))))))))))) -> 0% | BY27: =IF(Options!$B$9=1,'Daten A3'!$L$4,IF(Options!$B$9=2,'Daten A3'!$L$10,IF(Options!$B$9=3,'Daten A3'!$L$16,IF(Options!$B$9=4,'Daten A3'!$L$22,IF(Options!$B$9=5,'Daten A3'!$L$28,IF(Options!$B$9=6,'Daten A3'!$L$34,IF(Options!$B$9=7,'Daten A3'!$L$40,IF(Options!$B$9=8,'Daten A3'!$L$46,IF(Options!$B$9=9,'Daten A3'!$L$52,IF(Options!$B$9=10,'Daten A3'!$L$58,IF(Options!$B$9=11,'Daten A3'!$L$64,IF(Options!$B$9=12,'Daten A3'!$L$70,IF(Options!$B$9=13,'Daten A3'!$L$76,IF(Options!$B$9=14,'Daten A3'!$L$82,IF(Options!$B$9=15,'Daten A3'!$L$88,IF(Options!$B$9=16,'Daten A3'!$L$94,IF(Options!$B$9=17,'Daten A3'!$L$100,IF(Options!$B$9=18,'Daten A3'!$L$106,IF(Options!$B$9=19,'Daten A3'!AA4,IF(Options!$B$9=20,'Daten A3'!AA10,IF(Options!$B$9=21,'Daten A3'!AA16,IF(Options!$B$9=22,'Daten A3'!AA22,IF(Options!$B$9=23,'Daten A3'!AA28,IF(Options!$B$9=24,'Daten A3'!AA34,)))))))))))))))))))))))) -> 0 | BZ27: =IF(Options!$B$9=1,'Daten A3'!$M$4,IF(Options!$B$9=2,'Daten A3'!$M$10,IF(Options!$B$9=3,'Daten A3'!$M$16,IF(Options!$B$9=4,'Daten A3'!$M$22,IF(Options!$B$9=5,'Daten A3'!$M$28,IF(Options!$B$9=6,'Daten A3'!$M$34,IF(Options!$B$9=7,'Daten A3'!$M$40,IF(Options!$B$9=8,'Daten A3'!$M$46,IF(Options!$B$9=9,'Daten A3'!$M$52,IF(Options!$B$9=10,'Daten A3'!$M$58,IF(Options!$B$9=11,'Daten A3'!$M$64,IF(Options!$B$9=12,'Daten A3'!$M$70,IF(Options!$B$9=13,'Daten A3'!$M$76,IF(Options!$B$9=14,'Daten A3'!$M$82,IF(Options!$B$9=15,'Daten A3'!$M$88,IF(Options!$B$9=16,'Daten A3'!$M$94,IF(Options!$B$9=17,'Daten A3'!$M$100,IF(Options!$B$9=18,'Daten A3'!$M$106,IF(Options!$B$9=19,'Daten A3'!AB4,IF(Options!$B$9=20,'Daten A3'!AB10,IF(Options!$B$9=21,'Daten A3'!AB16,IF(Options!$B$9=22,'Daten A3'!AB22,IF(Options!$B$9=23,'Daten A3'!AB28,IF(Options!$B$9=24,'Daten A3'!AB34,)))))))))))))))))))))))) -> 0% | CA27: =IF(Options!$B$9=1,'Daten A3'!$N$4,IF(Options!$B$9=2,'Daten A3'!$N$10,IF(Options!$B$9=3,'Daten A3'!$N$16,IF(Options!$B$9=4,'Daten A3'!$N$22,IF(Options!$B$9=5,'Daten A3'!$N$28,IF(Options!$B$9=6,'Daten A3'!$N$34,IF(Options!$B$9=7,'Daten A3'!$N$40,IF(Options!$B$9=8,'Daten A3'!$N$46,IF(Options!$B$9=9,'Daten A3'!$N$52,IF(Options!$B$9=10,'Daten A3'!$N$58,IF(Options!$B$9=11,'Daten A3'!$N$64,IF(Options!$B$9=12,'Daten A3'!$N$70,IF(Options!$B$9=13,'Daten A3'!$N$76,IF(Options!$B$9=14,'Daten A3'!$N$82,IF(Options!$B$9=15,'Daten A3'!$N$88,IF(Options!$B$9=16,'Daten A3'!$N$94,IF(Options!$B$9=17,'Daten A3'!$N$100,IF(Options!$B$9=18,'Daten A3'!$N$106,IF(Options!$B$9=19,'Daten A3'!AC4,IF(Options!$B$9=20,'Daten A3'!AC10,IF(Options!$B$9=21,'Daten A3'!AC16,IF(Options!$B$9=22,'Daten A3'!AC22,IF(Options!$B$9=23,'Daten A3'!AC28,IF(Options!$B$9=24,'Daten A3'!AC34,)))))))))))))))))))))))) -> 0
F28: =IF(Options!$D$14="","","Ser: S"&Options!$D$14) -> Ser: S6 | AZ28: S1 | BB28: ='R 1'!BL9/BA18 -> 0.6666666667 | BC28: ='R 1'!BL15/BA18 -> 0.1111111111 | BD28: ='R 1'!BL21/BA18 -> 0.2222222222 | BE28: ='R 1'!BL27/BA18 -> 0 | BN28: Pos 3 | BP28: =IF(Options!$B$9=1,'Daten A3'!$C$5,IF(Options!$B$9=2,'Daten A3'!$C$11,IF(Options!$B$9=3,'Daten A3'!$C$17,IF(Options!$B$9=4,'Daten A3'!$C$23,IF(Options!$B$9=5,'Daten A3'!$C$29,IF(Options!$B$9=6,'Daten A3'!$C$35,IF(Options!$B$9=7,'Daten A3'!$C$41,IF(Options!$B$9=8,'Daten A3'!$C$47,IF(Options!$B$9=9,'Daten A3'!$C$53,IF(Options!$B$9=10,'Daten A3'!$C$59,IF(Options!$B$9=11,'Daten A3'!$C$65,IF(Options!$B$9=12,'Daten A3'!$C$71,IF(Options!$B$9=13,'Daten A3'!$C$77,IF(Options!$B$9=14,'Daten A3'!$C$83,IF(Options!$B$9=15,'Daten A3'!$C$89,IF(Options!$B$9=16,'Daten A3'!$C$95,IF(Options!$B$9=17,'Daten A3'!$C$101,IF(Options!$B$9=18,'Daten A3'!$C$107,IF(Options!$B$9=19,'Daten A3'!R5,IF(Options!$B$9=20,'Daten A3'!R11,IF(Options!$B$9=21,'Daten A3'!R17,IF(Options!$B$9=22,'Daten A3'!R23,IF(Options!$B$9=23,'Daten A3'!R29,IF(Options!$B$9=24,'Daten A3'!R35,)))))))))))))))))))))))) -> 0% | BQ28: =IF(Options!$B$9=1,'Daten A3'!$D$5,IF(Options!$B$9=2,'Daten A3'!$D$11,IF(Options!$B$9=3,'Daten A3'!$D$17,IF(Options!$B$9=4,'Daten A3'!$D$23,IF(Options!$B$9=5,'Daten A3'!$D$29,IF(Options!$B$9=6,'Daten A3'!$D$35,IF(Options!$B$9=7,'Daten A3'!$D$41,IF(Options!$B$9=8,'Daten A3'!$D$47,IF(Options!$B$9=9,'Daten A3'!$D$53,IF(Options!$B$9=10,'Daten A3'!$D$59,IF(Options!$B$9=11,'Daten A3'!$D$65,IF(Options!$B$9=12,'Daten A3'!$D$71,IF(Options!$B$9=13,'Daten A3'!$D$77,IF(Options!$B$9=14,'Daten A3'!$D$83,IF(Options!$B$9=15,'Daten A3'!$D$89,IF(Options!$B$9=16,'Daten A3'!$D$95,IF(Options!$B$9=17,'Daten A3'!$D$101,IF(Options!$B$9=18,'Daten A3'!$D$107,IF(Options!$B$9=19,'Daten A3'!S5,IF(Options!$B$9=20,'Daten A3'!S11,IF(Options!$B$9=21,'Daten A3'!S17,IF(Options!$B$9=22,'Daten A3'!S23,IF(Options!$B$9=23,'Daten A3'!S29,IF(Options!$B$9=24,'Daten A3'!S35,)))))))))))))))))))))))) -> 0 | BR28: =IF(Options!$B$9=1,'Daten A3'!$E$5,IF(Options!$B$9=2,'Daten A3'!$E$11,IF(Options!$B$9=3,'Daten A3'!$E$17,IF(Options!$B$9=4,'Daten A3'!$E$23,IF(Options!$B$9=5,'Daten A3'!$E$29,IF(Options!$B$9=6,'Daten A3'!$E$35,IF(Options!$B$9=7,'Daten A3'!$E$41,IF(Options!$B$9=8,'Daten A3'!$E$47,IF(Options!$B$9=9,'Daten A3'!$E$53,IF(Options!$B$9=10,'Daten A3'!$E$59,IF(Options!$B$9=11,'Daten A3'!$E$65,IF(Options!$B$9=12,'Daten A3'!$E$71,IF(Options!$B$9=13,'Daten A3'!$E$77,IF(Options!$B$9=14,'Daten A3'!$E$83,IF(Options!$B$9=15,'Daten A3'!$E$89,IF(Options!$B$9=16,'Daten A3'!$E$95,IF(Options!$B$9=17,'Daten A3'!$E$101,IF(Options!$B$9=18,'Daten A3'!$E$107,IF(Options!$B$9=19,'Daten A3'!T5,IF(Options!$B$9=20,'Daten A3'!T11,IF(Options!$B$9=21,'Daten A3'!T17,IF(Options!$B$9=22,'Daten A3'!T23,IF(Options!$B$9=23,'Daten A3'!T29,IF(Options!$B$9=24,'Daten A3'!T35,)))))))))))))))))))))))) -> 60% | BS28: =IF(Options!$B$9=1,'Daten A3'!$F$5,IF(Options!$B$9=2,'Daten A3'!$F$11,IF(Options!$B$9=3,'Daten A3'!$F$17,IF(Options!$B$9=4,'Daten A3'!$F$23,IF(Options!$B$9=5,'Daten A3'!$F$29,IF(Options!$B$9=6,'Daten A3'!$F$35,IF(Options!$B$9=7,'Daten A3'!$F$41,IF(Options!$B$9=8,'Daten A3'!$F$47,IF(Options!$B$9=9,'Daten A3'!$F$53,IF(Options!$B$9=10,'Daten A3'!$F$59,IF(Options!$B$9=11,'Daten A3'!$F$65,IF(Options!$B$9=12,'Daten A3'!$F$71,IF(Options!$B$9=13,'Daten A3'!$F$77,IF(Options!$B$9=14,'Daten A3'!$F$83,IF(Options!$B$9=15,'Daten A3'!$F$89,IF(Options!$B$9=16,'Daten A3'!$F$95,IF(Options!$B$9=17,'Daten A3'!$F$101,IF(Options!$B$9=18,'Daten A3'!$F$107,IF(Options!$B$9=19,'Daten A3'!U5,IF(Options!$B$9=20,'Daten A3'!U11,IF(Options!$B$9=21,'Daten A3'!U17,IF(Options!$B$9=22,'Daten A3'!U23,IF(Options!$B$9=23,'Daten A3'!U29,IF(Options!$B$9=24,'Daten A3'!U35,)))))))))))))))))))))))) -> 3 | BT28: =IF(Options!$B$9=1,'Daten A3'!$G$5,IF(Options!$B$9=2,'Daten A3'!$G$11,IF(Options!$B$9=3,'Daten A3'!$G$17,IF(Options!$B$9=4,'Daten A3'!$G$23,IF(Options!$B$9=5,'Daten A3'!$G$29,IF(Options!$B$9=6,'Daten A3'!$G$35,IF(Options!$B$9=7,'Daten A3'!$G$41,IF(Options!$B$9=8,'Daten A3'!$G$47,IF(Options!$B$9=9,'Daten A3'!$G$53,IF(Options!$B$9=10,'Daten A3'!$G$59,IF(Options!$B$9=11,'Daten A3'!$G$65,IF(Options!$B$9=12,'Daten A3'!$G$71,IF(Options!$B$9=13,'Daten A3'!$G$77,IF(Options!$B$9=14,'Daten A3'!$G$83,IF(Options!$B$9=15,'Daten A3'!$G$89,IF(Options!$B$9=16,'Daten A3'!$G$95,IF(Options!$B$9=17,'Daten A3'!$G$101,IF(Options!$B$9=18,'Daten A3'!$G$107,IF(Options!$B$9=19,'Daten A3'!V5,IF(Options!$B$9=20,'Daten A3'!V11,IF(Options!$B$9=21,'Daten A3'!V17,IF(Options!$B$9=22,'Daten A3'!V23,IF(Options!$B$9=23,'Daten A3'!V29,IF(Options!$B$9=24,'Daten A3'!V35,)))))))))))))))))))))))) -> 25% | BU28: =IF(Options!$B$9=1,'Daten A3'!$H$5,IF(Options!$B$9=2,'Daten A3'!$H$11,IF(Options!$B$9=3,'Daten A3'!$H$17,IF(Options!$B$9=4,'Daten A3'!$H$23,IF(Options!$B$9=5,'Daten A3'!$H$29,IF(Options!$B$9=6,'Daten A3'!$H$35,IF(Options!$B$9=7,'Daten A3'!$H$41,IF(Options!$B$9=8,'Daten A3'!$H$47,IF(Options!$B$9=9,'Daten A3'!$H$53,IF(Options!$B$9=10,'Daten A3'!$H$59,IF(Options!$B$9=11,'Daten A3'!$H$65,IF(Options!$B$9=12,'Daten A3'!$H$71,IF(Options!$B$9=13,'Daten A3'!$H$77,IF(Options!$B$9=14,'Daten A3'!$H$83,IF(Options!$B$9=15,'Daten A3'!$H$89,IF(Options!$B$9=16,'Daten A3'!$H$95,IF(Options!$B$9=17,'Daten A3'!$H$101,IF(Options!$B$9=18,'Daten A3'!$H$107,IF(Options!$B$9=19,'Daten A3'!W5,IF(Options!$B$9=20,'Daten A3'!W11,IF(Options!$B$9=21,'Daten A3'!W17,IF(Options!$B$9=22,'Daten A3'!W23,IF(Options!$B$9=23,'Daten A3'!W29,IF(Options!$B$9=24,'Daten A3'!W35,)))))))))))))))))))))))) -> 2 | BV28: =IF(Options!$B$9=1,'Daten A3'!$I$5,IF(Options!$B$9=2,'Daten A3'!$I$11,IF(Options!$B$9=3,'Daten A3'!$I$17,IF(Options!$B$9=4,'Daten A3'!$I$23,IF(Options!$B$9=5,'Daten A3'!$I$29,IF(Options!$B$9=6,'Daten A3'!$I$35,IF(Options!$B$9=7,'Daten A3'!$I$41,IF(Options!$B$9=8,'Daten A3'!$I$47,IF(Options!$B$9=9,'Daten A3'!$I$53,IF(Options!$B$9=10,'Daten A3'!$I$59,IF(Options!$B$9=11,'Daten A3'!$I$65,IF(Options!$B$9=12,'Daten A3'!$I$71,IF(Options!$B$9=13,'Daten A3'!$I$77,IF(Options!$B$9=14,'Daten A3'!$I$83,IF(Options!$B$9=15,'Daten A3'!$I$89,IF(Options!$B$9=16,'Daten A3'!$I$95,IF(Options!$B$9=17,'Daten A3'!$I$101,IF(Options!$B$9=18,'Daten A3'!$I$107,IF(Options!$B$9=19,'Daten A3'!X5,IF(Options!$B$9=20,'Daten A3'!X11,IF(Options!$B$9=21,'Daten A3'!X17,IF(Options!$B$9=22,'Daten A3'!X23,IF(Options!$B$9=23,'Daten A3'!X29,IF(Options!$B$9=24,'Daten A3'!X35,)))))))))))))))))))))))) -> 50% | BW28: =IF(Options!$B$9=1,'Daten A3'!$J$5,IF(Options!$B$9=2,'Daten A3'!$J$11,IF(Options!$B$9=3,'Daten A3'!$J$17,IF(Options!$B$9=4,'Daten A3'!$J$23,IF(Options!$B$9=5,'Daten A3'!$J$29,IF(Options!$B$9=6,'Daten A3'!$J$35,IF(Options!$B$9=7,'Daten A3'!$J$41,IF(Options!$B$9=8,'Daten A3'!$J$47,IF(Options!$B$9=9,'Daten A3'!$J$53,IF(Options!$B$9=10,'Daten A3'!$J$59,IF(Options!$B$9=11,'Daten A3'!$J$65,IF(Options!$B$9=12,'Daten A3'!$J$71,IF(Options!$B$9=13,'Daten A3'!$J$77,IF(Options!$B$9=14,'Daten A3'!$J$83,IF(Options!$B$9=15,'Daten A3'!$J$89,IF(Options!$B$9=16,'Daten A3'!$J$95,IF(Options!$B$9=17,'Daten A3'!$J$101,IF(Options!$B$9=18,'Daten A3'!$J$107,IF(Options!$B$9=19,'Daten A3'!Y5,IF(Options!$B$9=20,'Daten A3'!Y11,IF(Options!$B$9=21,'Daten A3'!Y17,IF(Options!$B$9=22,'Daten A3'!Y23,IF(Options!$B$9=23,'Daten A3'!Y29,IF(Options!$B$9=24,'Daten A3'!Y35,)))))))))))))))))))))))) -> 2 | BX28: =IF(Options!$B$9=1,'Daten A3'!$K$5,IF(Options!$B$9=2,'Daten A3'!$K$11,IF(Options!$B$9=3,'Daten A3'!$K$17,IF(Options!$B$9=4,'Daten A3'!$K$23,IF(Options!$B$9=5,'Daten A3'!$K$29,IF(Options!$B$9=6,'Daten A3'!$K$35,IF(Options!$B$9=7,'Daten A3'!$K$41,IF(Options!$B$9=8,'Daten A3'!$K$47,IF(Options!$B$9=9,'Daten A3'!$K$53,IF(Options!$B$9=10,'Daten A3'!$K$59,IF(Options!$B$9=11,'Daten A3'!$K$65,IF(Options!$B$9=12,'Daten A3'!$K$71,IF(Options!$B$9=13,'Daten A3'!$K$77,IF(Options!$B$9=14,'Daten A3'!$K$83,IF(Options!$B$9=15,'Daten A3'!$K$89,IF(Options!$B$9=16,'Daten A3'!$K$95,IF(Options!$B$9=17,'Daten A3'!$K$101,IF(Options!$B$9=18,'Daten A3'!$K$107,IF(Options!$B$9=19,'Daten A3'!Z5,IF(Options!$B$9=20,'Daten A3'!Z11,IF(Options!$B$9=21,'Daten A3'!Z17,IF(Options!$B$9=22,'Daten A3'!Z23,IF(Options!$B$9=23,'Daten A3'!Z29,IF(Options!$B$9=24,'Daten A3'!Z35,)))))))))))))))))))))))) -> 83% | BY28: =IF(Options!$B$9=1,'Daten A3'!$L$5,IF(Options!$B$9=2,'Daten A3'!$L$11,IF(Options!$B$9=3,'Daten A3'!$L$17,IF(Options!$B$9=4,'Daten A3'!$L$23,IF(Options!$B$9=5,'Daten A3'!$L$29,IF(Options!$B$9=6,'Daten A3'!$L$35,IF(Options!$B$9=7,'Daten A3'!$L$41,IF(Options!$B$9=8,'Daten A3'!$L$47,IF(Options!$B$9=9,'Daten A3'!$L$53,IF(Options!$B$9=10,'Daten A3'!$L$59,IF(Options!$B$9=11,'Daten A3'!$L$65,IF(Options!$B$9=12,'Daten A3'!$L$71,IF(Options!$B$9=13,'Daten A3'!$L$77,IF(Options!$B$9=14,'Daten A3'!$L$83,IF(Options!$B$9=15,'Daten A3'!$L$89,IF(Options!$B$9=16,'Daten A3'!$L$95,IF(Options!$B$9=17,'Daten A3'!$L$101,IF(Options!$B$9=18,'Daten A3'!$L$107,IF(Options!$B$9=19,'Daten A3'!AA5,IF(Options!$B$9=20,'Daten A3'!AA11,IF(Options!$B$9=21,'Daten A3'!AA17,IF(Options!$B$9=22,'Daten A3'!AA23,IF(Options!$B$9=23,'Daten A3'!AA29,IF(Options!$B$9=24,'Daten A3'!AA35,)))))))))))))))))))))))) -> 5 | BZ28: =IF(Options!$B$9=1,'Daten A3'!$M$5,IF(Options!$B$9=2,'Daten A3'!$M$11,IF(Options!$B$9=3,'Daten A3'!$M$17,IF(Options!$B$9=4,'Daten A3'!$M$23,IF(Options!$B$9=5,'Daten A3'!$M$29,IF(Options!$B$9=6,'Daten A3'!$M$35,IF(Options!$B$9=7,'Daten A3'!$M$41,IF(Options!$B$9=8,'Daten A3'!$M$47,IF(Options!$B$9=9,'Daten A3'!$M$53,IF(Options!$B$9=10,'Daten A3'!$M$59,IF(Options!$B$9=11,'Daten A3'!$M$65,IF(Options!$B$9=12,'Daten A3'!$M$71,IF(Options!$B$9=13,'Daten A3'!$M$77,IF(Options!$B$9=14,'Daten A3'!$M$83,IF(Options!$B$9=15,'Daten A3'!$M$89,IF(Options!$B$9=16,'Daten A3'!$M$95,IF(Options!$B$9=17,'Daten A3'!$M$101,IF(Options!$B$9=18,'Daten A3'!$M$107,IF(Options!$B$9=19,'Daten A3'!AB5,IF(Options!$B$9=20,'Daten A3'!AB11,IF(Options!$B$9=21,'Daten A3'!AB17,IF(Options!$B$9=22,'Daten A3'!AB23,IF(Options!$B$9=23,'Daten A3'!AB29,IF(Options!$B$9=24,'Daten A3'!AB35,)))))))))))))))))))))))) -> 30% | CA28: =IF(Options!$B$9=1,'Daten A3'!$N$5,IF(Options!$B$9=2,'Daten A3'!$N$11,IF(Options!$B$9=3,'Daten A3'!$N$17,IF(Options!$B$9=4,'Daten A3'!$N$23,IF(Options!$B$9=5,'Daten A3'!$N$29,IF(Options!$B$9=6,'Daten A3'!$N$35,IF(Options!$B$9=7,'Daten A3'!$N$41,IF(Options!$B$9=8,'Daten A3'!$N$47,IF(Options!$B$9=9,'Daten A3'!$N$53,IF(Options!$B$9=10,'Daten A3'!$N$59,IF(Options!$B$9=11,'Daten A3'!$N$65,IF(Options!$B$9=12,'Daten A3'!$N$71,IF(Options!$B$9=13,'Daten A3'!$N$77,IF(Options!$B$9=14,'Daten A3'!$N$83,IF(Options!$B$9=15,'Daten A3'!$N$89,IF(Options!$B$9=16,'Daten A3'!$N$95,IF(Options!$B$9=17,'Daten A3'!$N$101,IF(Options!$B$9=18,'Daten A3'!$N$107,IF(Options!$B$9=19,'Daten A3'!AC5,IF(Options!$B$9=20,'Daten A3'!AC11,IF(Options!$B$9=21,'Daten A3'!AC17,IF(Options!$B$9=22,'Daten A3'!AC23,IF(Options!$B$9=23,'Daten A3'!AC29,IF(Options!$B$9=24,'Daten A3'!AC35,)))))))))))))))))))))))) -> 3
D29: ="L: "&BF10 -> L: 19/25 | F29: =IF(Options!$G$14="","","Rec: S"&Options!$G$14) -> Rec: S6 | AZ29: S6 | BB29: ='R 6'!BL9/BA19 -> 0.5 | BC29: ='R 6'!BL15/BA19 -> 0.5 | BD29: ='R 6'!BL21/BA19 -> 0 | BE29: ='R 6'!BL27/BA19 -> 0 | BN29: Pos 4 | BP29: =IF(Options!$B$9=1,'Daten A3'!$C$6,IF(Options!$B$9=2,'Daten A3'!$C$12,IF(Options!$B$9=3,'Daten A3'!$C$18,IF(Options!$B$9=4,'Daten A3'!$C$24,IF(Options!$B$9=5,'Daten A3'!$C$30,IF(Options!$B$9=6,'Daten A3'!$C$36,IF(Options!$B$9=7,'Daten A3'!$C$42,IF(Options!$B$9=8,'Daten A3'!$C$48,IF(Options!$B$9=9,'Daten A3'!$C$54,IF(Options!$B$9=10,'Daten A3'!$C$60,IF(Options!$B$9=11,'Daten A3'!$C$66,IF(Options!$B$9=12,'Daten A3'!$C$72,IF(Options!$B$9=13,'Daten A3'!$C$78,IF(Options!$B$9=14,'Daten A3'!$C$84,IF(Options!$B$9=15,'Daten A3'!$C$90,IF(Options!$B$9=16,'Daten A3'!$C$96,IF(Options!$B$9=17,'Daten A3'!$C$102,IF(Options!$B$9=18,'Daten A3'!$C$108,IF(Options!$B$9=19,'Daten A3'!R6,IF(Options!$B$9=20,'Daten A3'!R12,IF(Options!$B$9=21,'Daten A3'!R18,IF(Options!$B$9=22,'Daten A3'!R24,IF(Options!$B$9=23,'Daten A3'!R30,IF(Options!$B$9=24,'Daten A3'!R36,)))))))))))))))))))))))) -> 50% | BQ29: =IF(Options!$B$9=1,'Daten A3'!$D$6,IF(Options!$B$9=2,'Daten A3'!$D$12,IF(Options!$B$9=3,'Daten A3'!$D$18,IF(Options!$B$9=4,'Daten A3'!$D$24,IF(Options!$B$9=5,'Daten A3'!$D$30,IF(Options!$B$9=6,'Daten A3'!$D$36,IF(Options!$B$9=7,'Daten A3'!$D$42,IF(Options!$B$9=8,'Daten A3'!$D$48,IF(Options!$B$9=9,'Daten A3'!$D$54,IF(Options!$B$9=10,'Daten A3'!$D$60,IF(Options!$B$9=11,'Daten A3'!$D$66,IF(Options!$B$9=12,'Daten A3'!$D$72,IF(Options!$B$9=13,'Daten A3'!$D$78,IF(Options!$B$9=14,'Daten A3'!$D$84,IF(Options!$B$9=15,'Daten A3'!$D$90,IF(Options!$B$9=16,'Daten A3'!$D$96,IF(Options!$B$9=17,'Daten A3'!$D$102,IF(Options!$B$9=18,'Daten A3'!$D$108,IF(Options!$B$9=19,'Daten A3'!S6,IF(Options!$B$9=20,'Daten A3'!S12,IF(Options!$B$9=21,'Daten A3'!S18,IF(Options!$B$9=22,'Daten A3'!S24,IF(Options!$B$9=23,'Daten A3'!S30,IF(Options!$B$9=24,'Daten A3'!S36,)))))))))))))))))))))))) -> 2 | BR29: =IF(Options!$B$9=1,'Daten A3'!$E$6,IF(Options!$B$9=2,'Daten A3'!$E$12,IF(Options!$B$9=3,'Daten A3'!$E$18,IF(Options!$B$9=4,'Daten A3'!$E$24,IF(Options!$B$9=5,'Daten A3'!$E$30,IF(Options!$B$9=6,'Daten A3'!$E$36,IF(Options!$B$9=7,'Daten A3'!$E$42,IF(Options!$B$9=8,'Daten A3'!$E$48,IF(Options!$B$9=9,'Daten A3'!$E$54,IF(Options!$B$9=10,'Daten A3'!$E$60,IF(Options!$B$9=11,'Daten A3'!$E$66,IF(Options!$B$9=12,'Daten A3'!$E$72,IF(Options!$B$9=13,'Daten A3'!$E$78,IF(Options!$B$9=14,'Daten A3'!$E$84,IF(Options!$B$9=15,'Daten A3'!$E$90,IF(Options!$B$9=16,'Daten A3'!$E$96,IF(Options!$B$9=17,'Daten A3'!$E$102,IF(Options!$B$9=18,'Daten A3'!$E$108,IF(Options!$B$9=19,'Daten A3'!T6,IF(Options!$B$9=20,'Daten A3'!T12,IF(Options!$B$9=21,'Daten A3'!T18,IF(Options!$B$9=22,'Daten A3'!T24,IF(Options!$B$9=23,'Daten A3'!T30,IF(Options!$B$9=24,'Daten A3'!T36,)))))))))))))))))))))))) -> 0% | BS29: =IF(Options!$B$9=1,'Daten A3'!$F$6,IF(Options!$B$9=2,'Daten A3'!$F$12,IF(Options!$B$9=3,'Daten A3'!$F$18,IF(Options!$B$9=4,'Daten A3'!$F$24,IF(Options!$B$9=5,'Daten A3'!$F$30,IF(Options!$B$9=6,'Daten A3'!$F$36,IF(Options!$B$9=7,'Daten A3'!$F$42,IF(Options!$B$9=8,'Daten A3'!$F$48,IF(Options!$B$9=9,'Daten A3'!$F$54,IF(Options!$B$9=10,'Daten A3'!$F$60,IF(Options!$B$9=11,'Daten A3'!$F$66,IF(Options!$B$9=12,'Daten A3'!$F$72,IF(Options!$B$9=13,'Daten A3'!$F$78,IF(Options!$B$9=14,'Daten A3'!$F$84,IF(Options!$B$9=15,'Daten A3'!$F$90,IF(Options!$B$9=16,'Daten A3'!$F$96,IF(Options!$B$9=17,'Daten A3'!$F$102,IF(Options!$B$9=18,'Daten A3'!$F$108,IF(Options!$B$9=19,'Daten A3'!U6,IF(Options!$B$9=20,'Daten A3'!U12,IF(Options!$B$9=21,'Daten A3'!U18,IF(Options!$B$9=22,'Daten A3'!U24,IF(Options!$B$9=23,'Daten A3'!U30,IF(Options!$B$9=24,'Daten A3'!U36,)))))))))))))))))))))))) -> 0 | BT29: =IF(Options!$B$9=1,'Daten A3'!$G$6,IF(Options!$B$9=2,'Daten A3'!$G$12,IF(Options!$B$9=3,'Daten A3'!$G$18,IF(Options!$B$9=4,'Daten A3'!$G$24,IF(Options!$B$9=5,'Daten A3'!$G$30,IF(Options!$B$9=6,'Daten A3'!$G$36,IF(Options!$B$9=7,'Daten A3'!$G$42,IF(Options!$B$9=8,'Daten A3'!$G$48,IF(Options!$B$9=9,'Daten A3'!$G$54,IF(Options!$B$9=10,'Daten A3'!$G$60,IF(Options!$B$9=11,'Daten A3'!$G$66,IF(Options!$B$9=12,'Daten A3'!$G$72,IF(Options!$B$9=13,'Daten A3'!$G$78,IF(Options!$B$9=14,'Daten A3'!$G$84,IF(Options!$B$9=15,'Daten A3'!$G$90,IF(Options!$B$9=16,'Daten A3'!$G$96,IF(Options!$B$9=17,'Daten A3'!$G$102,IF(Options!$B$9=18,'Daten A3'!$G$108,IF(Options!$B$9=19,'Daten A3'!V6,IF(Options!$B$9=20,'Daten A3'!V12,IF(Options!$B$9=21,'Daten A3'!V18,IF(Options!$B$9=22,'Daten A3'!V24,IF(Options!$B$9=23,'Daten A3'!V30,IF(Options!$B$9=24,'Daten A3'!V36,)))))))))))))))))))))))) -> 0% | BU29: =IF(Options!$B$9=1,'Daten A3'!$H$6,IF(Options!$B$9=2,'Daten A3'!$H$12,IF(Options!$B$9=3,'Daten A3'!$H$18,IF(Options!$B$9=4,'Daten A3'!$H$24,IF(Options!$B$9=5,'Daten A3'!$H$30,IF(Options!$B$9=6,'Daten A3'!$H$36,IF(Options!$B$9=7,'Daten A3'!$H$42,IF(Options!$B$9=8,'Daten A3'!$H$48,IF(Options!$B$9=9,'Daten A3'!$H$54,IF(Options!$B$9=10,'Daten A3'!$H$60,IF(Options!$B$9=11,'Daten A3'!$H$66,IF(Options!$B$9=12,'Daten A3'!$H$72,IF(Options!$B$9=13,'Daten A3'!$H$78,IF(Options!$B$9=14,'Daten A3'!$H$84,IF(Options!$B$9=15,'Daten A3'!$H$90,IF(Options!$B$9=16,'Daten A3'!$H$96,IF(Options!$B$9=17,'Daten A3'!$H$102,IF(Options!$B$9=18,'Daten A3'!$H$108,IF(Options!$B$9=19,'Daten A3'!W6,IF(Options!$B$9=20,'Daten A3'!W12,IF(Options!$B$9=21,'Daten A3'!W18,IF(Options!$B$9=22,'Daten A3'!W24,IF(Options!$B$9=23,'Daten A3'!W30,IF(Options!$B$9=24,'Daten A3'!W36,)))))))))))))))))))))))) -> 0 | BV29: =IF(Options!$B$9=1,'Daten A3'!$I$6,IF(Options!$B$9=2,'Daten A3'!$I$12,IF(Options!$B$9=3,'Daten A3'!$I$18,IF(Options!$B$9=4,'Daten A3'!$I$24,IF(Options!$B$9=5,'Daten A3'!$I$30,IF(Options!$B$9=6,'Daten A3'!$I$36,IF(Options!$B$9=7,'Daten A3'!$I$42,IF(Options!$B$9=8,'Daten A3'!$I$48,IF(Options!$B$9=9,'Daten A3'!$I$54,IF(Options!$B$9=10,'Daten A3'!$I$60,IF(Options!$B$9=11,'Daten A3'!$I$66,IF(Options!$B$9=12,'Daten A3'!$I$72,IF(Options!$B$9=13,'Daten A3'!$I$78,IF(Options!$B$9=14,'Daten A3'!$I$84,IF(Options!$B$9=15,'Daten A3'!$I$90,IF(Options!$B$9=16,'Daten A3'!$I$96,IF(Options!$B$9=17,'Daten A3'!$I$102,IF(Options!$B$9=18,'Daten A3'!$I$108,IF(Options!$B$9=19,'Daten A3'!X6,IF(Options!$B$9=20,'Daten A3'!X12,IF(Options!$B$9=21,'Daten A3'!X18,IF(Options!$B$9=22,'Daten A3'!X24,IF(Options!$B$9=23,'Daten A3'!X30,IF(Options!$B$9=24,'Daten A3'!X36,)))))))))))))))))))))))) -> 25% | BW29: =IF(Options!$B$9=1,'Daten A3'!$J$6,IF(Options!$B$9=2,'Daten A3'!$J$12,IF(Options!$B$9=3,'Daten A3'!$J$18,IF(Options!$B$9=4,'Daten A3'!$J$24,IF(Options!$B$9=5,'Daten A3'!$J$30,IF(Options!$B$9=6,'Daten A3'!$J$36,IF(Options!$B$9=7,'Daten A3'!$J$42,IF(Options!$B$9=8,'Daten A3'!$J$48,IF(Options!$B$9=9,'Daten A3'!$J$54,IF(Options!$B$9=10,'Daten A3'!$J$60,IF(Options!$B$9=11,'Daten A3'!$J$66,IF(Options!$B$9=12,'Daten A3'!$J$72,IF(Options!$B$9=13,'Daten A3'!$J$78,IF(Options!$B$9=14,'Daten A3'!$J$84,IF(Options!$B$9=15,'Daten A3'!$J$90,IF(Options!$B$9=16,'Daten A3'!$J$96,IF(Options!$B$9=17,'Daten A3'!$J$102,IF(Options!$B$9=18,'Daten A3'!$J$108,IF(Options!$B$9=19,'Daten A3'!Y6,IF(Options!$B$9=20,'Daten A3'!Y12,IF(Options!$B$9=21,'Daten A3'!Y18,IF(Options!$B$9=22,'Daten A3'!Y24,IF(Options!$B$9=23,'Daten A3'!Y30,IF(Options!$B$9=24,'Daten A3'!Y36,)))))))))))))))))))))))) -> 1 | BX29: =IF(Options!$B$9=1,'Daten A3'!$K$6,IF(Options!$B$9=2,'Daten A3'!$K$12,IF(Options!$B$9=3,'Daten A3'!$K$18,IF(Options!$B$9=4,'Daten A3'!$K$24,IF(Options!$B$9=5,'Daten A3'!$K$30,IF(Options!$B$9=6,'Daten A3'!$K$36,IF(Options!$B$9=7,'Daten A3'!$K$42,IF(Options!$B$9=8,'Daten A3'!$K$48,IF(Options!$B$9=9,'Daten A3'!$K$54,IF(Options!$B$9=10,'Daten A3'!$K$60,IF(Options!$B$9=11,'Daten A3'!$K$66,IF(Options!$B$9=12,'Daten A3'!$K$72,IF(Options!$B$9=13,'Daten A3'!$K$78,IF(Options!$B$9=14,'Daten A3'!$K$84,IF(Options!$B$9=15,'Daten A3'!$K$90,IF(Options!$B$9=16,'Daten A3'!$K$96,IF(Options!$B$9=17,'Daten A3'!$K$102,IF(Options!$B$9=18,'Daten A3'!$K$108,IF(Options!$B$9=19,'Daten A3'!Z6,IF(Options!$B$9=20,'Daten A3'!Z12,IF(Options!$B$9=21,'Daten A3'!Z18,IF(Options!$B$9=22,'Daten A3'!Z24,IF(Options!$B$9=23,'Daten A3'!Z30,IF(Options!$B$9=24,'Daten A3'!Z36,)))))))))))))))))))))))) -> 0% | BY29: =IF(Options!$B$9=1,'Daten A3'!$L$6,IF(Options!$B$9=2,'Daten A3'!$L$12,IF(Options!$B$9=3,'Daten A3'!$L$18,IF(Options!$B$9=4,'Daten A3'!$L$24,IF(Options!$B$9=5,'Daten A3'!$L$30,IF(Options!$B$9=6,'Daten A3'!$L$36,IF(Options!$B$9=7,'Daten A3'!$L$42,IF(Options!$B$9=8,'Daten A3'!$L$48,IF(Options!$B$9=9,'Daten A3'!$L$54,IF(Options!$B$9=10,'Daten A3'!$L$60,IF(Options!$B$9=11,'Daten A3'!$L$66,IF(Options!$B$9=12,'Daten A3'!$L$72,IF(Options!$B$9=13,'Daten A3'!$L$78,IF(Options!$B$9=14,'Daten A3'!$L$84,IF(Options!$B$9=15,'Daten A3'!$L$90,IF(Options!$B$9=16,'Daten A3'!$L$96,IF(Options!$B$9=17,'Daten A3'!$L$102,IF(Options!$B$9=18,'Daten A3'!$L$108,IF(Options!$B$9=19,'Daten A3'!AA6,IF(Options!$B$9=20,'Daten A3'!AA12,IF(Options!$B$9=21,'Daten A3'!AA18,IF(Options!$B$9=22,'Daten A3'!AA24,IF(Options!$B$9=23,'Daten A3'!AA30,IF(Options!$B$9=24,'Daten A3'!AA36,)))))))))))))))))))))))) -> 0 | BZ29: =IF(Options!$B$9=1,'Daten A3'!$M$6,IF(Options!$B$9=2,'Daten A3'!$M$12,IF(Options!$B$9=3,'Daten A3'!$M$18,IF(Options!$B$9=4,'Daten A3'!$M$24,IF(Options!$B$9=5,'Daten A3'!$M$30,IF(Options!$B$9=6,'Daten A3'!$M$36,IF(Options!$B$9=7,'Daten A3'!$M$42,IF(Options!$B$9=8,'Daten A3'!$M$48,IF(Options!$B$9=9,'Daten A3'!$M$54,IF(Options!$B$9=10,'Daten A3'!$M$60,IF(Options!$B$9=11,'Daten A3'!$M$66,IF(Options!$B$9=12,'Daten A3'!$M$72,IF(Options!$B$9=13,'Daten A3'!$M$78,IF(Options!$B$9=14,'Daten A3'!$M$84,IF(Options!$B$9=15,'Daten A3'!$M$90,IF(Options!$B$9=16,'Daten A3'!$M$96,IF(Options!$B$9=17,'Daten A3'!$M$102,IF(Options!$B$9=18,'Daten A3'!$M$108,IF(Options!$B$9=19,'Daten A3'!AB6,IF(Options!$B$9=20,'Daten A3'!AB12,IF(Options!$B$9=21,'Daten A3'!AB18,IF(Options!$B$9=22,'Daten A3'!AB24,IF(Options!$B$9=23,'Daten A3'!AB30,IF(Options!$B$9=24,'Daten A3'!AB36,)))))))))))))))))))))))) -> 30% | CA29: =IF(Options!$B$9=1,'Daten A3'!$N$6,IF(Options!$B$9=2,'Daten A3'!$N$12,IF(Options!$B$9=3,'Daten A3'!$N$18,IF(Options!$B$9=4,'Daten A3'!$N$24,IF(Options!$B$9=5,'Daten A3'!$N$30,IF(Options!$B$9=6,'Daten A3'!$N$36,IF(Options!$B$9=7,'Daten A3'!$N$42,IF(Options!$B$9=8,'Daten A3'!$N$48,IF(Options!$B$9=9,'Daten A3'!$N$54,IF(Options!$B$9=10,'Daten A3'!$N$60,IF(Options!$B$9=11,'Daten A3'!$N$66,IF(Options!$B$9=12,'Daten A3'!$N$72,IF(Options!$B$9=13,'Daten A3'!$N$78,IF(Options!$B$9=14,'Daten A3'!$N$84,IF(Options!$B$9=15,'Daten A3'!$N$90,IF(Options!$B$9=16,'Daten A3'!$N$96,IF(Options!$B$9=17,'Daten A3'!$N$102,IF(Options!$B$9=18,'Daten A3'!$N$108,IF(Options!$B$9=19,'Daten A3'!AC6,IF(Options!$B$9=20,'Daten A3'!AC12,IF(Options!$B$9=21,'Daten A3'!AC18,IF(Options!$B$9=22,'Daten A3'!AC24,IF(Options!$B$9=23,'Daten A3'!AC30,IF(Options!$B$9=24,'Daten A3'!AC36,)))))))))))))))))))))))) -> 3
AZ30: S5 | BB30: ='R 5'!BL9/BA20 -> 0.5 | BC30: ='R 5'!BL15/BA20 -> 0 | BD30: ='R 5'!BL21/BA20 -> 0.5 | BE30: ='R 5'!BL27/BA20 -> 0 | BN30: Pos 8 | BP30: =IF(Options!$B$9=1,'Daten A3'!$C$7,IF(Options!$B$9=2,'Daten A3'!$C$13,IF(Options!$B$9=3,'Daten A3'!$C$19,IF(Options!$B$9=4,'Daten A3'!$C$25,IF(Options!$B$9=5,'Daten A3'!$C$31,IF(Options!$B$9=6,'Daten A3'!$C$37,IF(Options!$B$9=7,'Daten A3'!$C$43,IF(Options!$B$9=8,'Daten A3'!$C$49,IF(Options!$B$9=9,'Daten A3'!$C$55,IF(Options!$B$9=10,'Daten A3'!$C$61,IF(Options!$B$9=11,'Daten A3'!$C$67,IF(Options!$B$9=12,'Daten A3'!$C$73,IF(Options!$B$9=13,'Daten A3'!$C$79,IF(Options!$B$9=14,'Daten A3'!$C$85,IF(Options!$B$9=15,'Daten A3'!$C$91,IF(Options!$B$9=16,'Daten A3'!$C$97,IF(Options!$B$9=17,'Daten A3'!$C$103,IF(Options!$B$9=18,'Daten A3'!$C$109,IF(Options!$B$9=19,'Daten A3'!R7,IF(Options!$B$9=20,'Daten A3'!R13,IF(Options!$B$9=21,'Daten A3'!R19,IF(Options!$B$9=22,'Daten A3'!R25,IF(Options!$B$9=23,'Daten A3'!R31,IF(Options!$B$9=24,'Daten A3'!R37,)))))))))))))))))))))))) -> 25% | BQ30: =IF(Options!$B$9=1,'Daten A3'!$D$7,IF(Options!$B$9=2,'Daten A3'!$D$13,IF(Options!$B$9=3,'Daten A3'!$D$19,IF(Options!$B$9=4,'Daten A3'!$D$25,IF(Options!$B$9=5,'Daten A3'!$D$31,IF(Options!$B$9=6,'Daten A3'!$D$37,IF(Options!$B$9=7,'Daten A3'!$D$43,IF(Options!$B$9=8,'Daten A3'!$D$49,IF(Options!$B$9=9,'Daten A3'!$D$55,IF(Options!$B$9=10,'Daten A3'!$D$61,IF(Options!$B$9=11,'Daten A3'!$D$67,IF(Options!$B$9=12,'Daten A3'!$D$73,IF(Options!$B$9=13,'Daten A3'!$D$79,IF(Options!$B$9=14,'Daten A3'!$D$85,IF(Options!$B$9=15,'Daten A3'!$D$91,IF(Options!$B$9=16,'Daten A3'!$D$97,IF(Options!$B$9=17,'Daten A3'!$D$103,IF(Options!$B$9=18,'Daten A3'!$D$109,IF(Options!$B$9=19,'Daten A3'!S7,IF(Options!$B$9=20,'Daten A3'!S13,IF(Options!$B$9=21,'Daten A3'!S19,IF(Options!$B$9=22,'Daten A3'!S25,IF(Options!$B$9=23,'Daten A3'!S31,IF(Options!$B$9=24,'Daten A3'!S37,)))))))))))))))))))))))) -> 1 | BR30: =IF(Options!$B$9=1,'Daten A3'!$E$7,IF(Options!$B$9=2,'Daten A3'!$E$13,IF(Options!$B$9=3,'Daten A3'!$E$19,IF(Options!$B$9=4,'Daten A3'!$E$25,IF(Options!$B$9=5,'Daten A3'!$E$31,IF(Options!$B$9=6,'Daten A3'!$E$37,IF(Options!$B$9=7,'Daten A3'!$E$43,IF(Options!$B$9=8,'Daten A3'!$E$49,IF(Options!$B$9=9,'Daten A3'!$E$55,IF(Options!$B$9=10,'Daten A3'!$E$61,IF(Options!$B$9=11,'Daten A3'!$E$67,IF(Options!$B$9=12,'Daten A3'!$E$73,IF(Options!$B$9=13,'Daten A3'!$E$79,IF(Options!$B$9=14,'Daten A3'!$E$85,IF(Options!$B$9=15,'Daten A3'!$E$91,IF(Options!$B$9=16,'Daten A3'!$E$97,IF(Options!$B$9=17,'Daten A3'!$E$103,IF(Options!$B$9=18,'Daten A3'!$E$109,IF(Options!$B$9=19,'Daten A3'!T7,IF(Options!$B$9=20,'Daten A3'!T13,IF(Options!$B$9=21,'Daten A3'!T19,IF(Options!$B$9=22,'Daten A3'!T25,IF(Options!$B$9=23,'Daten A3'!T31,IF(Options!$B$9=24,'Daten A3'!T37,)))))))))))))))))))))))) -> 20% | BS30: =IF(Options!$B$9=1,'Daten A3'!$F$7,IF(Options!$B$9=2,'Daten A3'!$F$13,IF(Options!$B$9=3,'Daten A3'!$F$19,IF(Options!$B$9=4,'Daten A3'!$F$25,IF(Options!$B$9=5,'Daten A3'!$F$31,IF(Options!$B$9=6,'Daten A3'!$F$37,IF(Options!$B$9=7,'Daten A3'!$F$43,IF(Options!$B$9=8,'Daten A3'!$F$49,IF(Options!$B$9=9,'Daten A3'!$F$55,IF(Options!$B$9=10,'Daten A3'!$F$61,IF(Options!$B$9=11,'Daten A3'!$F$67,IF(Options!$B$9=12,'Daten A3'!$F$73,IF(Options!$B$9=13,'Daten A3'!$F$79,IF(Options!$B$9=14,'Daten A3'!$F$85,IF(Options!$B$9=15,'Daten A3'!$F$91,IF(Options!$B$9=16,'Daten A3'!$F$97,IF(Options!$B$9=17,'Daten A3'!$F$103,IF(Options!$B$9=18,'Daten A3'!$F$109,IF(Options!$B$9=19,'Daten A3'!U7,IF(Options!$B$9=20,'Daten A3'!U13,IF(Options!$B$9=21,'Daten A3'!U19,IF(Options!$B$9=22,'Daten A3'!U25,IF(Options!$B$9=23,'Daten A3'!U31,IF(Options!$B$9=24,'Daten A3'!U37,)))))))))))))))))))))))) -> 1 | BT30: =IF(Options!$B$9=1,'Daten A3'!$G$7,IF(Options!$B$9=2,'Daten A3'!$G$13,IF(Options!$B$9=3,'Daten A3'!$G$19,IF(Options!$B$9=4,'Daten A3'!$G$25,IF(Options!$B$9=5,'Daten A3'!$G$31,IF(Options!$B$9=6,'Daten A3'!$G$37,IF(Options!$B$9=7,'Daten A3'!$G$43,IF(Options!$B$9=8,'Daten A3'!$G$49,IF(Options!$B$9=9,'Daten A3'!$G$55,IF(Options!$B$9=10,'Daten A3'!$G$61,IF(Options!$B$9=11,'Daten A3'!$G$67,IF(Options!$B$9=12,'Daten A3'!$G$73,IF(Options!$B$9=13,'Daten A3'!$G$79,IF(Options!$B$9=14,'Daten A3'!$G$85,IF(Options!$B$9=15,'Daten A3'!$G$91,IF(Options!$B$9=16,'Daten A3'!$G$97,IF(Options!$B$9=17,'Daten A3'!$G$103,IF(Options!$B$9=18,'Daten A3'!$G$109,IF(Options!$B$9=19,'Daten A3'!V7,IF(Options!$B$9=20,'Daten A3'!V13,IF(Options!$B$9=21,'Daten A3'!V19,IF(Options!$B$9=22,'Daten A3'!V25,IF(Options!$B$9=23,'Daten A3'!V31,IF(Options!$B$9=24,'Daten A3'!V37,)))))))))))))))))))))))) -> 62% | BU30: =IF(Options!$B$9=1,'Daten A3'!$H$7,IF(Options!$B$9=2,'Daten A3'!$H$13,IF(Options!$B$9=3,'Daten A3'!$H$19,IF(Options!$B$9=4,'Daten A3'!$H$25,IF(Options!$B$9=5,'Daten A3'!$H$31,IF(Options!$B$9=6,'Daten A3'!$H$37,IF(Options!$B$9=7,'Daten A3'!$H$43,IF(Options!$B$9=8,'Daten A3'!$H$49,IF(Options!$B$9=9,'Daten A3'!$H$55,IF(Options!$B$9=10,'Daten A3'!$H$61,IF(Options!$B$9=11,'Daten A3'!$H$67,IF(Options!$B$9=12,'Daten A3'!$H$73,IF(Options!$B$9=13,'Daten A3'!$H$79,IF(Options!$B$9=14,'Daten A3'!$H$85,IF(Options!$B$9=15,'Daten A3'!$H$91,IF(Options!$B$9=16,'Daten A3'!$H$97,IF(Options!$B$9=17,'Daten A3'!$H$103,IF(Options!$B$9=18,'Daten A3'!$H$109,IF(Options!$B$9=19,'Daten A3'!W7,IF(Options!$B$9=20,'Daten A3'!W13,IF(Options!$B$9=21,'Daten A3'!W19,IF(Options!$B$9=22,'Daten A3'!W25,IF(Options!$B$9=23,'Daten A3'!W31,IF(Options!$B$9=24,'Daten A3'!W37,)))))))))))))))))))))))) -> 5 | BV30: =IF(Options!$B$9=1,'Daten A3'!$I$7,IF(Options!$B$9=2,'Daten A3'!$I$13,IF(Options!$B$9=3,'Daten A3'!$I$19,IF(Options!$B$9=4,'Daten A3'!$I$25,IF(Options!$B$9=5,'Daten A3'!$I$31,IF(Options!$B$9=6,'Daten A3'!$I$37,IF(Options!$B$9=7,'Daten A3'!$I$43,IF(Options!$B$9=8,'Daten A3'!$I$49,IF(Options!$B$9=9,'Daten A3'!$I$55,IF(Options!$B$9=10,'Daten A3'!$I$61,IF(Options!$B$9=11,'Daten A3'!$I$67,IF(Options!$B$9=12,'Daten A3'!$I$73,IF(Options!$B$9=13,'Daten A3'!$I$79,IF(Options!$B$9=14,'Daten A3'!$I$85,IF(Options!$B$9=15,'Daten A3'!$I$91,IF(Options!$B$9=16,'Daten A3'!$I$97,IF(Options!$B$9=17,'Daten A3'!$I$103,IF(Options!$B$9=18,'Daten A3'!$I$109,IF(Options!$B$9=19,'Daten A3'!X7,IF(Options!$B$9=20,'Daten A3'!X13,IF(Options!$B$9=21,'Daten A3'!X19,IF(Options!$B$9=22,'Daten A3'!X25,IF(Options!$B$9=23,'Daten A3'!X31,IF(Options!$B$9=24,'Daten A3'!X37,)))))))))))))))))))))))) -> 0% | BW30: =IF(Options!$B$9=1,'Daten A3'!$J$7,IF(Options!$B$9=2,'Daten A3'!$J$13,IF(Options!$B$9=3,'Daten A3'!$J$19,IF(Options!$B$9=4,'Daten A3'!$J$25,IF(Options!$B$9=5,'Daten A3'!$J$31,IF(Options!$B$9=6,'Daten A3'!$J$37,IF(Options!$B$9=7,'Daten A3'!$J$43,IF(Options!$B$9=8,'Daten A3'!$J$49,IF(Options!$B$9=9,'Daten A3'!$J$55,IF(Options!$B$9=10,'Daten A3'!$J$61,IF(Options!$B$9=11,'Daten A3'!$J$67,IF(Options!$B$9=12,'Daten A3'!$J$73,IF(Options!$B$9=13,'Daten A3'!$J$79,IF(Options!$B$9=14,'Daten A3'!$J$85,IF(Options!$B$9=15,'Daten A3'!$J$91,IF(Options!$B$9=16,'Daten A3'!$J$97,IF(Options!$B$9=17,'Daten A3'!$J$103,IF(Options!$B$9=18,'Daten A3'!$J$109,IF(Options!$B$9=19,'Daten A3'!Y7,IF(Options!$B$9=20,'Daten A3'!Y13,IF(Options!$B$9=21,'Daten A3'!Y19,IF(Options!$B$9=22,'Daten A3'!Y25,IF(Options!$B$9=23,'Daten A3'!Y31,IF(Options!$B$9=24,'Daten A3'!Y37,)))))))))))))))))))))))) -> 0 | BX30: =IF(Options!$B$9=1,'Daten A3'!$K$7,IF(Options!$B$9=2,'Daten A3'!$K$13,IF(Options!$B$9=3,'Daten A3'!$K$19,IF(Options!$B$9=4,'Daten A3'!$K$25,IF(Options!$B$9=5,'Daten A3'!$K$31,IF(Options!$B$9=6,'Daten A3'!$K$37,IF(Options!$B$9=7,'Daten A3'!$K$43,IF(Options!$B$9=8,'Daten A3'!$K$49,IF(Options!$B$9=9,'Daten A3'!$K$55,IF(Options!$B$9=10,'Daten A3'!$K$61,IF(Options!$B$9=11,'Daten A3'!$K$67,IF(Options!$B$9=12,'Daten A3'!$K$73,IF(Options!$B$9=13,'Daten A3'!$K$79,IF(Options!$B$9=14,'Daten A3'!$K$85,IF(Options!$B$9=15,'Daten A3'!$K$91,IF(Options!$B$9=16,'Daten A3'!$K$97,IF(Options!$B$9=17,'Daten A3'!$K$103,IF(Options!$B$9=18,'Daten A3'!$K$109,IF(Options!$B$9=19,'Daten A3'!Z7,IF(Options!$B$9=20,'Daten A3'!Z13,IF(Options!$B$9=21,'Daten A3'!Z19,IF(Options!$B$9=22,'Daten A3'!Z25,IF(Options!$B$9=23,'Daten A3'!Z31,IF(Options!$B$9=24,'Daten A3'!Z37,)))))))))))))))))))))))) -> 0% | BY30: =IF(Options!$B$9=1,'Daten A3'!$L$7,IF(Options!$B$9=2,'Daten A3'!$L$13,IF(Options!$B$9=3,'Daten A3'!$L$19,IF(Options!$B$9=4,'Daten A3'!$L$25,IF(Options!$B$9=5,'Daten A3'!$L$31,IF(Options!$B$9=6,'Daten A3'!$L$37,IF(Options!$B$9=7,'Daten A3'!$L$43,IF(Options!$B$9=8,'Daten A3'!$L$49,IF(Options!$B$9=9,'Daten A3'!$L$55,IF(Options!$B$9=10,'Daten A3'!$L$61,IF(Options!$B$9=11,'Daten A3'!$L$67,IF(Options!$B$9=12,'Daten A3'!$L$73,IF(Options!$B$9=13,'Daten A3'!$L$79,IF(Options!$B$9=14,'Daten A3'!$L$85,IF(Options!$B$9=15,'Daten A3'!$L$91,IF(Options!$B$9=16,'Daten A3'!$L$97,IF(Options!$B$9=17,'Daten A3'!$L$103,IF(Options!$B$9=18,'Daten A3'!$L$109,IF(Options!$B$9=19,'Daten A3'!AA7,IF(Options!$B$9=20,'Daten A3'!AA13,IF(Options!$B$9=21,'Daten A3'!AA19,IF(Options!$B$9=22,'Daten A3'!AA25,IF(Options!$B$9=23,'Daten A3'!AA31,IF(Options!$B$9=24,'Daten A3'!AA37,)))))))))))))))))))))))) -> 0 | BZ30: =IF(Options!$B$9=1,'Daten A3'!$M$7,IF(Options!$B$9=2,'Daten A3'!$M$13,IF(Options!$B$9=3,'Daten A3'!$M$19,IF(Options!$B$9=4,'Daten A3'!$M$25,IF(Options!$B$9=5,'Daten A3'!$M$31,IF(Options!$B$9=6,'Daten A3'!$M$37,IF(Options!$B$9=7,'Daten A3'!$M$43,IF(Options!$B$9=8,'Daten A3'!$M$49,IF(Options!$B$9=9,'Daten A3'!$M$55,IF(Options!$B$9=10,'Daten A3'!$M$61,IF(Options!$B$9=11,'Daten A3'!$M$67,IF(Options!$B$9=12,'Daten A3'!$M$73,IF(Options!$B$9=13,'Daten A3'!$M$79,IF(Options!$B$9=14,'Daten A3'!$M$85,IF(Options!$B$9=15,'Daten A3'!$M$91,IF(Options!$B$9=16,'Daten A3'!$M$97,IF(Options!$B$9=17,'Daten A3'!$M$103,IF(Options!$B$9=18,'Daten A3'!$M$109,IF(Options!$B$9=19,'Daten A3'!AB7,IF(Options!$B$9=20,'Daten A3'!AB13,IF(Options!$B$9=21,'Daten A3'!AB19,IF(Options!$B$9=22,'Daten A3'!AB25,IF(Options!$B$9=23,'Daten A3'!AB31,IF(Options!$B$9=24,'Daten A3'!AB37,)))))))))))))))))))))))) -> 0% | CA30: =IF(Options!$B$9=1,'Daten A3'!$N$7,IF(Options!$B$9=2,'Daten A3'!$N$13,IF(Options!$B$9=3,'Daten A3'!$N$19,IF(Options!$B$9=4,'Daten A3'!$N$25,IF(Options!$B$9=5,'Daten A3'!$N$31,IF(Options!$B$9=6,'Daten A3'!$N$37,IF(Options!$B$9=7,'Daten A3'!$N$43,IF(Options!$B$9=8,'Daten A3'!$N$49,IF(Options!$B$9=9,'Daten A3'!$N$55,IF(Options!$B$9=10,'Daten A3'!$N$61,IF(Options!$B$9=11,'Daten A3'!$N$67,IF(Options!$B$9=12,'Daten A3'!$N$73,IF(Options!$B$9=13,'Daten A3'!$N$79,IF(Options!$B$9=14,'Daten A3'!$N$85,IF(Options!$B$9=15,'Daten A3'!$N$91,IF(Options!$B$9=16,'Daten A3'!$N$97,IF(Options!$B$9=17,'Daten A3'!$N$103,IF(Options!$B$9=18,'Daten A3'!$N$109,IF(Options!$B$9=19,'Daten A3'!AC7,IF(Options!$B$9=20,'Daten A3'!AC13,IF(Options!$B$9=21,'Daten A3'!AC19,IF(Options!$B$9=22,'Daten A3'!AC25,IF(Options!$B$9=23,'Daten A3'!AC31,IF(Options!$B$9=24,'Daten A3'!AC37,)))))))))))))))))))))))) -> 0
C31: =BA10 -> 1 | D31: =BB10 -> 11/8 | E31: =BC10 -> 17 | I31: =IF(OR($BZ$31=0,$CA$31=0),"",CONCATENATE($BZ$31,$BN$26,$CA$31)) -> 40% / 4 | L31: =IF(OR($BZ$30=0,$CA$30=0),"",CONCATENATE($BZ$30,$BN$26,$CA$30)) ->  | T31: =IF(OR($BX$31=0,$BY$31=0),"",CONCATENATE($BX$31,$BN$26,$BY$31)) -> 17% / 1 | W31: =IF(OR($BX$30=0,$BY$30=0),"",CONCATENATE($BX$30,$BN$26,$BY$30)) ->  | AE31: =IF(OR($BV$31=0,$BW$31=0),"",CONCATENATE($BV$31,$BN$26,$BW$31)) -> 25% / 1 | AH31: =IF(OR($BV$30=0,$BW$30=0),"",CONCATENATE($BV$30,$BN$26,$BW$30)) ->  | AR31: S4 | AZ31: S4 | BB31: ='R 4'!BL9/BA21 -> 0.8333333333 | BC31: ='R 4'!BL15/BA21 -> 0 | BD31: ='R 4'!BL21/BA21 -> 0.1666666667 | BE31: ='R 4'!BL27/BA21 -> 0 | BN31: Pos 9 | BP31: =IF(Options!$B$9=1,'Daten A3'!$C$8,IF(Options!$B$9=2,'Daten A3'!$C$14,IF(Options!$B$9=3,'Daten A3'!$C$20,IF(Options!$B$9=4,'Daten A3'!$C$26,IF(Options!$B$9=5,'Daten A3'!$C$32,IF(Options!$B$9=6,'Daten A3'!$C$38,IF(Options!$B$9=7,'Daten A3'!$C$44,IF(Options!$B$9=8,'Daten A3'!$C$50,IF(Options!$B$9=9,'Daten A3'!$C$56,IF(Options!$B$9=10,'Daten A3'!$C$62,IF(Options!$B$9=11,'Daten A3'!$C$68,IF(Options!$B$9=12,'Daten A3'!$C$74,IF(Options!$B$9=13,'Daten A3'!$C$80,IF(Options!$B$9=14,'Daten A3'!$C$86,IF(Options!$B$9=15,'Daten A3'!$C$92,IF(Options!$B$9=16,'Daten A3'!$C$98,IF(Options!$B$9=17,'Daten A3'!$C$104,IF(Options!$B$9=18,'Daten A3'!$C$110,IF(Options!$B$9=19,'Daten A3'!R8,IF(Options!$B$9=20,'Daten A3'!R14,IF(Options!$B$9=21,'Daten A3'!R20,IF(Options!$B$9=22,'Daten A3'!R26,IF(Options!$B$9=23,'Daten A3'!R32,IF(Options!$B$9=24,'Daten A3'!R38,)))))))))))))))))))))))) -> 0% | BQ31: =IF(Options!$B$9=1,'Daten A3'!$D$8,IF(Options!$B$9=2,'Daten A3'!$D$14,IF(Options!$B$9=3,'Daten A3'!$D$20,IF(Options!$B$9=4,'Daten A3'!$D$26,IF(Options!$B$9=5,'Daten A3'!$D$32,IF(Options!$B$9=6,'Daten A3'!$D$38,IF(Options!$B$9=7,'Daten A3'!$D$44,IF(Options!$B$9=8,'Daten A3'!$D$50,IF(Options!$B$9=9,'Daten A3'!$D$56,IF(Options!$B$9=10,'Daten A3'!$D$62,IF(Options!$B$9=11,'Daten A3'!$D$68,IF(Options!$B$9=12,'Daten A3'!$D$74,IF(Options!$B$9=13,'Daten A3'!$D$80,IF(Options!$B$9=14,'Daten A3'!$D$86,IF(Options!$B$9=15,'Daten A3'!$D$92,IF(Options!$B$9=16,'Daten A3'!$D$98,IF(Options!$B$9=17,'Daten A3'!$D$104,IF(Options!$B$9=18,'Daten A3'!$D$110,IF(Options!$B$9=19,'Daten A3'!S8,IF(Options!$B$9=20,'Daten A3'!S14,IF(Options!$B$9=21,'Daten A3'!S20,IF(Options!$B$9=22,'Daten A3'!S26,IF(Options!$B$9=23,'Daten A3'!S32,IF(Options!$B$9=24,'Daten A3'!S38,)))))))))))))))))))))))) -> 0 | BR31: =IF(Options!$B$9=1,'Daten A3'!$E$8,IF(Options!$B$9=2,'Daten A3'!$E$14,IF(Options!$B$9=3,'Daten A3'!$E$20,IF(Options!$B$9=4,'Daten A3'!$E$26,IF(Options!$B$9=5,'Daten A3'!$E$32,IF(Options!$B$9=6,'Daten A3'!$E$38,IF(Options!$B$9=7,'Daten A3'!$E$44,IF(Options!$B$9=8,'Daten A3'!$E$50,IF(Options!$B$9=9,'Daten A3'!$E$56,IF(Options!$B$9=10,'Daten A3'!$E$62,IF(Options!$B$9=11,'Daten A3'!$E$68,IF(Options!$B$9=12,'Daten A3'!$E$74,IF(Options!$B$9=13,'Daten A3'!$E$80,IF(Options!$B$9=14,'Daten A3'!$E$86,IF(Options!$B$9=15,'Daten A3'!$E$92,IF(Options!$B$9=16,'Daten A3'!$E$98,IF(Options!$B$9=17,'Daten A3'!$E$104,IF(Options!$B$9=18,'Daten A3'!$E$110,IF(Options!$B$9=19,'Daten A3'!T8,IF(Options!$B$9=20,'Daten A3'!T14,IF(Options!$B$9=21,'Daten A3'!T20,IF(Options!$B$9=22,'Daten A3'!T26,IF(Options!$B$9=23,'Daten A3'!T32,IF(Options!$B$9=24,'Daten A3'!T38,)))))))))))))))))))))))) -> 0% | BS31: =IF(Options!$B$9=1,'Daten A3'!$F$8,IF(Options!$B$9=2,'Daten A3'!$F$14,IF(Options!$B$9=3,'Daten A3'!$F$20,IF(Options!$B$9=4,'Daten A3'!$F$26,IF(Options!$B$9=5,'Daten A3'!$F$32,IF(Options!$B$9=6,'Daten A3'!$F$38,IF(Options!$B$9=7,'Daten A3'!$F$44,IF(Options!$B$9=8,'Daten A3'!$F$50,IF(Options!$B$9=9,'Daten A3'!$F$56,IF(Options!$B$9=10,'Daten A3'!$F$62,IF(Options!$B$9=11,'Daten A3'!$F$68,IF(Options!$B$9=12,'Daten A3'!$F$74,IF(Options!$B$9=13,'Daten A3'!$F$80,IF(Options!$B$9=14,'Daten A3'!$F$86,IF(Options!$B$9=15,'Daten A3'!$F$92,IF(Options!$B$9=16,'Daten A3'!$F$98,IF(Options!$B$9=17,'Daten A3'!$F$104,IF(Options!$B$9=18,'Daten A3'!$F$110,IF(Options!$B$9=19,'Daten A3'!U8,IF(Options!$B$9=20,'Daten A3'!U14,IF(Options!$B$9=21,'Daten A3'!U20,IF(Options!$B$9=22,'Daten A3'!U26,IF(Options!$B$9=23,'Daten A3'!U32,IF(Options!$B$9=24,'Daten A3'!U38,)))))))))))))))))))))))) -> 0 | BT31: =IF(Options!$B$9=1,'Daten A3'!$G$8,IF(Options!$B$9=2,'Daten A3'!$G$14,IF(Options!$B$9=3,'Daten A3'!$G$20,IF(Options!$B$9=4,'Daten A3'!$G$26,IF(Options!$B$9=5,'Daten A3'!$G$32,IF(Options!$B$9=6,'Daten A3'!$G$38,IF(Options!$B$9=7,'Daten A3'!$G$44,IF(Options!$B$9=8,'Daten A3'!$G$50,IF(Options!$B$9=9,'Daten A3'!$G$56,IF(Options!$B$9=10,'Daten A3'!$G$62,IF(Options!$B$9=11,'Daten A3'!$G$68,IF(Options!$B$9=12,'Daten A3'!$G$74,IF(Options!$B$9=13,'Daten A3'!$G$80,IF(Options!$B$9=14,'Daten A3'!$G$86,IF(Options!$B$9=15,'Daten A3'!$G$92,IF(Options!$B$9=16,'Daten A3'!$G$98,IF(Options!$B$9=17,'Daten A3'!$G$104,IF(Options!$B$9=18,'Daten A3'!$G$110,IF(Options!$B$9=19,'Daten A3'!V8,IF(Options!$B$9=20,'Daten A3'!V14,IF(Options!$B$9=21,'Daten A3'!V20,IF(Options!$B$9=22,'Daten A3'!V26,IF(Options!$B$9=23,'Daten A3'!V32,IF(Options!$B$9=24,'Daten A3'!V38,)))))))))))))))))))))))) -> 0% | BU31: =IF(Options!$B$9=1,'Daten A3'!$H$8,IF(Options!$B$9=2,'Daten A3'!$H$14,IF(Options!$B$9=3,'Daten A3'!$H$20,IF(Options!$B$9=4,'Daten A3'!$H$26,IF(Options!$B$9=5,'Daten A3'!$H$32,IF(Options!$B$9=6,'Daten A3'!$H$38,IF(Options!$B$9=7,'Daten A3'!$H$44,IF(Options!$B$9=8,'Daten A3'!$H$50,IF(Options!$B$9=9,'Daten A3'!$H$56,IF(Options!$B$9=10,'Daten A3'!$H$62,IF(Options!$B$9=11,'Daten A3'!$H$68,IF(Options!$B$9=12,'Daten A3'!$H$74,IF(Options!$B$9=13,'Daten A3'!$H$80,IF(Options!$B$9=14,'Daten A3'!$H$86,IF(Options!$B$9=15,'Daten A3'!$H$92,IF(Options!$B$9=16,'Daten A3'!$H$98,IF(Options!$B$9=17,'Daten A3'!$H$104,IF(Options!$B$9=18,'Daten A3'!$H$110,IF(Options!$B$9=19,'Daten A3'!W8,IF(Options!$B$9=20,'Daten A3'!W14,IF(Options!$B$9=21,'Daten A3'!W20,IF(Options!$B$9=22,'Daten A3'!W26,IF(Options!$B$9=23,'Daten A3'!W32,IF(Options!$B$9=24,'Daten A3'!W38,)))))))))))))))))))))))) -> 0 | BV31: =IF(Options!$B$9=1,'Daten A3'!$I$8,IF(Options!$B$9=2,'Daten A3'!$I$14,IF(Options!$B$9=3,'Daten A3'!$I$20,IF(Options!$B$9=4,'Daten A3'!$I$26,IF(Options!$B$9=5,'Daten A3'!$I$32,IF(Options!$B$9=6,'Daten A3'!$I$38,IF(Options!$B$9=7,'Daten A3'!$I$44,IF(Options!$B$9=8,'Daten A3'!$I$50,IF(Options!$B$9=9,'Daten A3'!$I$56,IF(Options!$B$9=10,'Daten A3'!$I$62,IF(Options!$B$9=11,'Daten A3'!$I$68,IF(Options!$B$9=12,'Daten A3'!$I$74,IF(Options!$B$9=13,'Daten A3'!$I$80,IF(Options!$B$9=14,'Daten A3'!$I$86,IF(Options!$B$9=15,'Daten A3'!$I$92,IF(Options!$B$9=16,'Daten A3'!$I$98,IF(Options!$B$9=17,'Daten A3'!$I$104,IF(Options!$B$9=18,'Daten A3'!$I$110,IF(Options!$B$9=19,'Daten A3'!X8,IF(Options!$B$9=20,'Daten A3'!X14,IF(Options!$B$9=21,'Daten A3'!X20,IF(Options!$B$9=22,'Daten A3'!X26,IF(Options!$B$9=23,'Daten A3'!X32,IF(Options!$B$9=24,'Daten A3'!X38,)))))))))))))))))))))))) -> 25% | BW31: =IF(Options!$B$9=1,'Daten A3'!$J$8,IF(Options!$B$9=2,'Daten A3'!$J$14,IF(Options!$B$9=3,'Daten A3'!$J$20,IF(Options!$B$9=4,'Daten A3'!$J$26,IF(Options!$B$9=5,'Daten A3'!$J$32,IF(Options!$B$9=6,'Daten A3'!$J$38,IF(Options!$B$9=7,'Daten A3'!$J$44,IF(Options!$B$9=8,'Daten A3'!$J$50,IF(Options!$B$9=9,'Daten A3'!$J$56,IF(Options!$B$9=10,'Daten A3'!$J$62,IF(Options!$B$9=11,'Daten A3'!$J$68,IF(Options!$B$9=12,'Daten A3'!$J$74,IF(Options!$B$9=13,'Daten A3'!$J$80,IF(Options!$B$9=14,'Daten A3'!$J$86,IF(Options!$B$9=15,'Daten A3'!$J$92,IF(Options!$B$9=16,'Daten A3'!$J$98,IF(Options!$B$9=17,'Daten A3'!$J$104,IF(Options!$B$9=18,'Daten A3'!$J$110,IF(Options!$B$9=19,'Daten A3'!Y8,IF(Options!$B$9=20,'Daten A3'!Y14,IF(Options!$B$9=21,'Daten A3'!Y20,IF(Options!$B$9=22,'Daten A3'!Y26,IF(Options!$B$9=23,'Daten A3'!Y32,IF(Options!$B$9=24,'Daten A3'!Y38,)))))))))))))))))))))))) -> 1 | BX31: =IF(Options!$B$9=1,'Daten A3'!$K$8,IF(Options!$B$9=2,'Daten A3'!$K$14,IF(Options!$B$9=3,'Daten A3'!$K$20,IF(Options!$B$9=4,'Daten A3'!$K$26,IF(Options!$B$9=5,'Daten A3'!$K$32,IF(Options!$B$9=6,'Daten A3'!$K$38,IF(Options!$B$9=7,'Daten A3'!$K$44,IF(Options!$B$9=8,'Daten A3'!$K$50,IF(Options!$B$9=9,'Daten A3'!$K$56,IF(Options!$B$9=10,'Daten A3'!$K$62,IF(Options!$B$9=11,'Daten A3'!$K$68,IF(Options!$B$9=12,'Daten A3'!$K$74,IF(Options!$B$9=13,'Daten A3'!$K$80,IF(Options!$B$9=14,'Daten A3'!$K$86,IF(Options!$B$9=15,'Daten A3'!$K$92,IF(Options!$B$9=16,'Daten A3'!$K$98,IF(Options!$B$9=17,'Daten A3'!$K$104,IF(Options!$B$9=18,'Daten A3'!$K$110,IF(Options!$B$9=19,'Daten A3'!Z8,IF(Options!$B$9=20,'Daten A3'!Z14,IF(Options!$B$9=21,'Daten A3'!Z20,IF(Options!$B$9=22,'Daten A3'!Z26,IF(Options!$B$9=23,'Daten A3'!Z32,IF(Options!$B$9=24,'Daten A3'!Z38,)))))))))))))))))))))))) -> 17% | BY31: =IF(Options!$B$9=1,'Daten A3'!$L$8,IF(Options!$B$9=2,'Daten A3'!$L$14,IF(Options!$B$9=3,'Daten A3'!$L$20,IF(Options!$B$9=4,'Daten A3'!$L$26,IF(Options!$B$9=5,'Daten A3'!$L$32,IF(Options!$B$9=6,'Daten A3'!$L$38,IF(Options!$B$9=7,'Daten A3'!$L$44,IF(Options!$B$9=8,'Daten A3'!$L$50,IF(Options!$B$9=9,'Daten A3'!$L$56,IF(Options!$B$9=10,'Daten A3'!$L$62,IF(Options!$B$9=11,'Daten A3'!$L$68,IF(Options!$B$9=12,'Daten A3'!$L$74,IF(Options!$B$9=13,'Daten A3'!$L$80,IF(Options!$B$9=14,'Daten A3'!$L$86,IF(Options!$B$9=15,'Daten A3'!$L$92,IF(Options!$B$9=16,'Daten A3'!$L$98,IF(Options!$B$9=17,'Daten A3'!$L$104,IF(Options!$B$9=18,'Daten A3'!$L$110,IF(Options!$B$9=19,'Daten A3'!AA8,IF(Options!$B$9=20,'Daten A3'!AA14,IF(Options!$B$9=21,'Daten A3'!AA20,IF(Options!$B$9=22,'Daten A3'!AA26,IF(Options!$B$9=23,'Daten A3'!AA32,IF(Options!$B$9=24,'Daten A3'!AA38,)))))))))))))))))))))))) -> 1 | BZ31: =IF(Options!$B$9=1,'Daten A3'!$M$8,IF(Options!$B$9=2,'Daten A3'!$M$14,IF(Options!$B$9=3,'Daten A3'!$M$20,IF(Options!$B$9=4,'Daten A3'!$M$26,IF(Options!$B$9=5,'Daten A3'!$M$32,IF(Options!$B$9=6,'Daten A3'!$M$38,IF(Options!$B$9=7,'Daten A3'!$M$44,IF(Options!$B$9=8,'Daten A3'!$M$50,IF(Options!$B$9=9,'Daten A3'!$M$56,IF(Options!$B$9=10,'Daten A3'!$M$62,IF(Options!$B$9=11,'Daten A3'!$M$68,IF(Options!$B$9=12,'Daten A3'!$M$74,IF(Options!$B$9=13,'Daten A3'!$M$80,IF(Options!$B$9=14,'Daten A3'!$M$86,IF(Options!$B$9=15,'Daten A3'!$M$92,IF(Options!$B$9=16,'Daten A3'!$M$98,IF(Options!$B$9=17,'Daten A3'!$M$104,IF(Options!$B$9=18,'Daten A3'!$M$110,IF(Options!$B$9=19,'Daten A3'!AB8,IF(Options!$B$9=20,'Daten A3'!AB14,IF(Options!$B$9=21,'Daten A3'!AB20,IF(Options!$B$9=22,'Daten A3'!AB26,IF(Options!$B$9=23,'Daten A3'!AB32,IF(Options!$B$9=24,'Daten A3'!AB38,)))))))))))))))))))))))) -> 40% | CA31: =IF(Options!$B$9=1,'Daten A3'!$N$8,IF(Options!$B$9=2,'Daten A3'!$N$14,IF(Options!$B$9=3,'Daten A3'!$N$20,IF(Options!$B$9=4,'Daten A3'!$N$26,IF(Options!$B$9=5,'Daten A3'!$N$32,IF(Options!$B$9=6,'Daten A3'!$N$38,IF(Options!$B$9=7,'Daten A3'!$N$44,IF(Options!$B$9=8,'Daten A3'!$N$50,IF(Options!$B$9=9,'Daten A3'!$N$56,IF(Options!$B$9=10,'Daten A3'!$N$62,IF(Options!$B$9=11,'Daten A3'!$N$68,IF(Options!$B$9=12,'Daten A3'!$N$74,IF(Options!$B$9=13,'Daten A3'!$N$80,IF(Options!$B$9=14,'Daten A3'!$N$86,IF(Options!$B$9=15,'Daten A3'!$N$92,IF(Options!$B$9=16,'Daten A3'!$N$98,IF(Options!$B$9=17,'Daten A3'!$N$104,IF(Options!$B$9=18,'Daten A3'!$N$110,IF(Options!$B$9=19,'Daten A3'!AC8,IF(Options!$B$9=20,'Daten A3'!AC14,IF(Options!$B$9=21,'Daten A3'!AC20,IF(Options!$B$9=22,'Daten A3'!AC26,IF(Options!$B$9=23,'Daten A3'!AC32,IF(Options!$B$9=24,'Daten A3'!AC38,)))))))))))))))))))))))) -> 4
I32: =IF(OR($BZ$31=0,$CA$31=0),"",CONCATENATE($BZ$38,$BN$26,$CA$38)) -> 0% / 50% | L32: =IF(OR($BZ$30=0,$CA$30=0),"",CONCATENATE($BZ$37,$BN$26,$CA$37)) ->  | T32: =IF(OR($BX$31=0,$BY$31=0),"",CONCATENATE($BX$38,$BN$26,$BY$38)) -> 100% / 100% | W32: =IF(OR($BX$30=0,$BY$30=0),"",CONCATENATE($BX$37,$BN$26,$BY$37)) ->  | AE32: =IF(OR($BV$31=0,$BW$31=0),"",CONCATENATE($BV$38,$BN$26,$BW$38)) -> 100% / 100% | AH32: =IF(OR($BV$30=0,$BW$30=0),"",CONCATENATE($BV$37,$BN$26,$BW$37)) ->  | AZ32: S3 | BB32: ='R 3'!BL9/BA22 -> 0.2857142857 | BC32: ='R 3'!BL15/BA22 -> 0.7142857143 | BD32: ='R 3'!BL21/BA22 -> 0 | BE32: ='R 3'!BL27/BA22 -> 0 | BN32: Eff & #% in rot by setter
AZ33: S2 | BB33: ='R 2'!BL9/BA23 -> 0.9090909091 | BC33: ='R 2'!BL15/BA23 -> 0 | BD33: ='R 2'!BL21/BA23 -> 0.09090909091 | BE33: ='R 2'!BL27/BA23 -> 0 | BP33: S 1 | BR33: S 6 | BT33: S 5 | BV33: S 4 | BX33: S 3 | BZ33: S 2
BN34: Pos 2 | BP34: =IF(Options!$B$9=1,'Daten A4'!$C$4,IF(Options!$B$9=2,'Daten A4'!$C$10,IF(Options!$B$9=3,'Daten A4'!$C$16,IF(Options!$B$9=4,'Daten A4'!$C$22,IF(Options!$B$9=5,'Daten A4'!$C$28,IF(Options!$B$9=6,'Daten A4'!$C$34,IF(Options!$B$9=7,'Daten A4'!$C$40,IF(Options!$B$9=8,'Daten A4'!$C$46,IF(Options!$B$9=9,'Daten A4'!$C$52,IF(Options!$B$9=10,'Daten A4'!$C$58,IF(Options!$B$9=11,'Daten A4'!$C$64,IF(Options!$B$9=12,'Daten A4'!$C$70,IF(Options!$B$9=13,'Daten A4'!$C$76,IF(Options!$B$9=14,'Daten A4'!$C$82,IF(Options!$B$9=15,'Daten A4'!$C$88,IF(Options!$B$9=16,'Daten A4'!$C$94,IF(Options!$B$9=17,'Daten A4'!$C$100,IF(Options!$B$9=18,'Daten A4'!$C$106,IF(Options!$B$9=19,'Daten A4'!R11,IF(Options!$B$9=20,'Daten A4'!R17,IF(Options!$B$9=21,'Daten A4'!R23,IF(Options!$B$9=22,'Daten A4'!R29,IF(Options!$B$9=23,'Daten A4'!R35,IF(Options!$B$9=24,'Daten A4'!R41,)))))))))))))))))))))))) -> -100% | BQ34: =IF(Options!$B$9=1,'Daten A4'!$D$4,IF(Options!$B$9=2,'Daten A4'!$D$10,IF(Options!$B$9=3,'Daten A4'!$D$16,IF(Options!$B$9=4,'Daten A4'!$D$22,IF(Options!$B$9=5,'Daten A4'!$D$28,IF(Options!$B$9=6,'Daten A4'!$D$34,IF(Options!$B$9=7,'Daten A4'!$D$40,IF(Options!$B$9=8,'Daten A4'!$D$46,IF(Options!$B$9=9,'Daten A4'!$D$52,IF(Options!$B$9=10,'Daten A4'!$D$58,IF(Options!$B$9=11,'Daten A4'!$D$64,IF(Options!$B$9=12,'Daten A4'!$D$70,IF(Options!$B$9=13,'Daten A4'!$D$76,IF(Options!$B$9=14,'Daten A4'!$D$82,IF(Options!$B$9=15,'Daten A4'!$D$88,IF(Options!$B$9=16,'Daten A4'!$D$94,IF(Options!$B$9=17,'Daten A4'!$D$100,IF(Options!$B$9=18,'Daten A4'!$D$106,IF(Options!$B$9=19,'Daten A4'!S11,IF(Options!$B$9=20,'Daten A4'!S17,IF(Options!$B$9=21,'Daten A4'!S23,IF(Options!$B$9=22,'Daten A4'!S29,IF(Options!$B$9=23,'Daten A4'!S35,IF(Options!$B$9=24,'Daten A4'!S41,)))))))))))))))))))))))) -> 0% | BR34: =IF(Options!$B$9=1,'Daten A4'!$E$4,IF(Options!$B$9=2,'Daten A4'!$E$10,IF(Options!$B$9=3,'Daten A4'!$E$16,IF(Options!$B$9=4,'Daten A4'!$E$22,IF(Options!$B$9=5,'Daten A4'!$E$28,IF(Options!$B$9=6,'Daten A4'!$E$34,IF(Options!$B$9=7,'Daten A4'!$E$40,IF(Options!$B$9=8,'Daten A4'!$E$46,IF(Options!$B$9=9,'Daten A4'!$E$52,IF(Options!$B$9=10,'Daten A4'!$E$58,IF(Options!$B$9=11,'Daten A4'!$E$64,IF(Options!$B$9=12,'Daten A4'!$E$70,IF(Options!$B$9=13,'Daten A4'!$E$76,IF(Options!$B$9=14,'Daten A4'!$E$82,IF(Options!$B$9=15,'Daten A4'!$E$88,IF(Options!$B$9=16,'Daten A4'!$E$94,IF(Options!$B$9=17,'Daten A4'!$E$100,IF(Options!$B$9=18,'Daten A4'!$E$106,IF(Options!$B$9=19,'Daten A4'!T11,IF(Options!$B$9=20,'Daten A4'!T17,IF(Options!$B$9=21,'Daten A4'!T23,IF(Options!$B$9=22,'Daten A4'!T29,IF(Options!$B$9=23,'Daten A4'!T35,IF(Options!$B$9=24,'Daten A4'!T41,)))))))))))))))))))))))) -> 100% | BS34: =IF(Options!$B$9=1,'Daten A4'!$F$4,IF(Options!$B$9=2,'Daten A4'!$F$10,IF(Options!$B$9=3,'Daten A4'!$F$16,IF(Options!$B$9=4,'Daten A4'!$F$22,IF(Options!$B$9=5,'Daten A4'!$F$28,IF(Options!$B$9=6,'Daten A4'!$F$34,IF(Options!$B$9=7,'Daten A4'!$F$40,IF(Options!$B$9=8,'Daten A4'!$F$46,IF(Options!$B$9=9,'Daten A4'!$F$52,IF(Options!$B$9=10,'Daten A4'!$F$58,IF(Options!$B$9=11,'Daten A4'!$F$64,IF(Options!$B$9=12,'Daten A4'!$F$70,IF(Options!$B$9=13,'Daten A4'!$F$76,IF(Options!$B$9=14,'Daten A4'!$F$82,IF(Options!$B$9=15,'Daten A4'!$F$88,IF(Options!$B$9=16,'Daten A4'!$F$94,IF(Options!$B$9=17,'Daten A4'!$F$100,IF(Options!$B$9=18,'Daten A4'!$F$106,IF(Options!$B$9=19,'Daten A4'!U11,IF(Options!$B$9=20,'Daten A4'!U17,IF(Options!$B$9=21,'Daten A4'!U23,IF(Options!$B$9=22,'Daten A4'!U29,IF(Options!$B$9=23,'Daten A4'!U35,IF(Options!$B$9=24,'Daten A4'!U41,)))))))))))))))))))))))) -> 100% | BT34: =IF(Options!$B$9=1,'Daten A4'!$G$4,IF(Options!$B$9=2,'Daten A4'!$G$10,IF(Options!$B$9=3,'Daten A4'!$G$16,IF(Options!$B$9=4,'Daten A4'!$G$22,IF(Options!$B$9=5,'Daten A4'!$G$28,IF(Options!$B$9=6,'Daten A4'!$G$34,IF(Options!$B$9=7,'Daten A4'!$G$40,IF(Options!$B$9=8,'Daten A4'!$G$46,IF(Options!$B$9=9,'Daten A4'!$G$52,IF(Options!$B$9=10,'Daten A4'!$G$58,IF(Options!$B$9=11,'Daten A4'!$G$64,IF(Options!$B$9=12,'Daten A4'!$G$70,IF(Options!$B$9=13,'Daten A4'!$G$76,IF(Options!$B$9=14,'Daten A4'!$G$82,IF(Options!$B$9=15,'Daten A4'!$G$88,IF(Options!$B$9=16,'Daten A4'!$G$94,IF(Options!$B$9=17,'Daten A4'!$G$100,IF(Options!$B$9=18,'Daten A4'!$G$106,IF(Options!$B$9=19,'Daten A4'!V11,IF(Options!$B$9=20,'Daten A4'!V17,IF(Options!$B$9=21,'Daten A4'!V23,IF(Options!$B$9=22,'Daten A4'!V29,IF(Options!$B$9=23,'Daten A4'!V35,IF(Options!$B$9=24,'Daten A4'!V41,)))))))))))))))))))))))) -> 100% | BU34: =IF(Options!$B$9=1,'Daten A4'!$H$4,IF(Options!$B$9=2,'Daten A4'!$H$10,IF(Options!$B$9=3,'Daten A4'!$H$16,IF(Options!$B$9=4,'Daten A4'!$H$22,IF(Options!$B$9=5,'Daten A4'!$H$28,IF(Options!$B$9=6,'Daten A4'!$H$34,IF(Options!$B$9=7,'Daten A4'!$H$40,IF(Options!$B$9=8,'Daten A4'!$H$46,IF(Options!$B$9=9,'Daten A4'!$H$52,IF(Options!$B$9=10,'Daten A4'!$H$58,IF(Options!$B$9=11,'Daten A4'!$H$64,IF(Options!$B$9=12,'Daten A4'!$H$70,IF(Options!$B$9=13,'Daten A4'!$H$76,IF(Options!$B$9=14,'Daten A4'!$H$82,IF(Options!$B$9=15,'Daten A4'!$H$88,IF(Options!$B$9=16,'Daten A4'!$H$94,IF(Options!$B$9=17,'Daten A4'!$H$100,IF(Options!$B$9=18,'Daten A4'!$H$106,IF(Options!$B$9=19,'Daten A4'!W11,IF(Options!$B$9=20,'Daten A4'!W17,IF(Options!$B$9=21,'Daten A4'!W23,IF(Options!$B$9=22,'Daten A4'!W29,IF(Options!$B$9=23,'Daten A4'!W35,IF(Options!$B$9=24,'Daten A4'!W41,)))))))))))))))))))))))) -> 100% | BV34: =IF(Options!$B$9=1,'Daten A4'!$I$4,IF(Options!$B$9=2,'Daten A4'!$I$10,IF(Options!$B$9=3,'Daten A4'!$I$16,IF(Options!$B$9=4,'Daten A4'!$I$22,IF(Options!$B$9=5,'Daten A4'!$I$28,IF(Options!$B$9=6,'Daten A4'!$I$34,IF(Options!$B$9=7,'Daten A4'!$I$40,IF(Options!$B$9=8,'Daten A4'!$I$46,IF(Options!$B$9=9,'Daten A4'!$I$52,IF(Options!$B$9=10,'Daten A4'!$I$58,IF(Options!$B$9=11,'Daten A4'!$I$64,IF(Options!$B$9=12,'Daten A4'!$I$70,IF(Options!$B$9=13,'Daten A4'!$I$76,IF(Options!$B$9=14,'Daten A4'!$I$82,IF(Options!$B$9=15,'Daten A4'!$I$88,IF(Options!$B$9=16,'Daten A4'!$I$94,IF(Options!$B$9=17,'Daten A4'!$I$100,IF(Options!$B$9=18,'Daten A4'!$I$106,IF(Options!$B$9=19,'Daten A4'!X11,IF(Options!$B$9=20,'Daten A4'!X17,IF(Options!$B$9=21,'Daten A4'!X23,IF(Options!$B$9=22,'Daten A4'!X29,IF(Options!$B$9=23,'Daten A4'!X35,IF(Options!$B$9=24,'Daten A4'!X41,)))))))))))))))))))))))) -> 0% | BW34: =IF(Options!$B$9=1,'Daten A4'!$J$4,IF(Options!$B$9=2,'Daten A4'!$J$10,IF(Options!$B$9=3,'Daten A4'!$J$16,IF(Options!$B$9=4,'Daten A4'!$J$22,IF(Options!$B$9=5,'Daten A4'!$J$28,IF(Options!$B$9=6,'Daten A4'!$J$34,IF(Options!$B$9=7,'Daten A4'!$J$40,IF(Options!$B$9=8,'Daten A4'!$J$46,IF(Options!$B$9=9,'Daten A4'!$J$52,IF(Options!$B$9=10,'Daten A4'!$J$58,IF(Options!$B$9=11,'Daten A4'!$J$64,IF(Options!$B$9=12,'Daten A4'!$J$70,IF(Options!$B$9=13,'Daten A4'!$J$76,IF(Options!$B$9=14,'Daten A4'!$J$82,IF(Options!$B$9=15,'Daten A4'!$J$88,IF(Options!$B$9=16,'Daten A4'!$J$94,IF(Options!$B$9=17,'Daten A4'!$J$100,IF(Options!$B$9=18,'Daten A4'!$J$106,IF(Options!$B$9=19,'Daten A4'!Y11,IF(Options!$B$9=20,'Daten A4'!Y17,IF(Options!$B$9=21,'Daten A4'!Y23,IF(Options!$B$9=22,'Daten A4'!Y29,IF(Options!$B$9=23,'Daten A4'!Y35,IF(Options!$B$9=24,'Daten A4'!Y41,)))))))))))))))))))))))) -> ---- | BX34: =IF(Options!$B$9=1,'Daten A4'!$K$4,IF(Options!$B$9=2,'Daten A4'!$K$10,IF(Options!$B$9=3,'Daten A4'!$K$16,IF(Options!$B$9=4,'Daten A4'!$K$22,IF(Options!$B$9=5,'Daten A4'!$K$28,IF(Options!$B$9=6,'Daten A4'!$K$34,IF(Options!$B$9=7,'Daten A4'!$K$40,IF(Options!$B$9=8,'Daten A4'!$K$46,IF(Options!$B$9=9,'Daten A4'!$K$52,IF(Options!$B$9=10,'Daten A4'!$K$58,IF(Options!$B$9=11,'Daten A4'!$K$64,IF(Options!$B$9=12,'Daten A4'!$K$70,IF(Options!$B$9=13,'Daten A4'!$K$76,IF(Options!$B$9=14,'Daten A4'!$K$82,IF(Options!$B$9=15,'Daten A4'!$K$88,IF(Options!$B$9=16,'Daten A4'!$K$94,IF(Options!$B$9=17,'Daten A4'!$K$100,IF(Options!$B$9=18,'Daten A4'!$K$106,IF(Options!$B$9=19,'Daten A4'!Z11,IF(Options!$B$9=20,'Daten A4'!Z17,IF(Options!$B$9=21,'Daten A4'!Z23,IF(Options!$B$9=22,'Daten A4'!Z29,IF(Options!$B$9=23,'Daten A4'!Z35,IF(Options!$B$9=24,'Daten A4'!Z41,)))))))))))))))))))))))) -> 0% | BY34: =IF(Options!$B$9=1,'Daten A4'!$L$4,IF(Options!$B$9=2,'Daten A4'!$L$10,IF(Options!$B$9=3,'Daten A4'!$L$16,IF(Options!$B$9=4,'Daten A4'!$L$22,IF(Options!$B$9=5,'Daten A4'!$L$28,IF(Options!$B$9=6,'Daten A4'!$L$34,IF(Options!$B$9=7,'Daten A4'!$L$40,IF(Options!$B$9=8,'Daten A4'!$L$46,IF(Options!$B$9=9,'Daten A4'!$L$52,IF(Options!$B$9=10,'Daten A4'!$L$58,IF(Options!$B$9=11,'Daten A4'!$L$64,IF(Options!$B$9=12,'Daten A4'!$L$70,IF(Options!$B$9=13,'Daten A4'!$L$76,IF(Options!$B$9=14,'Daten A4'!$L$82,IF(Options!$B$9=15,'Daten A4'!$L$88,IF(Options!$B$9=16,'Daten A4'!$L$94,IF(Options!$B$9=17,'Daten A4'!$L$100,IF(Options!$B$9=18,'Daten A4'!$L$106,IF(Options!$B$9=19,'Daten A4'!AA11,IF(Options!$B$9=20,'Daten A4'!AA17,IF(Options!$B$9=21,'Daten A4'!AA23,IF(Options!$B$9=22,'Daten A4'!AA29,IF(Options!$B$9=23,'Daten A4'!AA35,IF(Options!$B$9=24,'Daten A4'!AA41,)))))))))))))))))))))))) -> ---- | BZ34: =IF(Options!$B$9=1,'Daten A4'!$M$4,IF(Options!$B$9=2,'Daten A4'!$M$10,IF(Options!$B$9=3,'Daten A4'!$M$16,IF(Options!$B$9=4,'Daten A4'!$M$22,IF(Options!$B$9=5,'Daten A4'!$M$28,IF(Options!$B$9=6,'Daten A4'!$M$34,IF(Options!$B$9=7,'Daten A4'!$M$40,IF(Options!$B$9=8,'Daten A4'!$M$46,IF(Options!$B$9=9,'Daten A4'!$M$52,IF(Options!$B$9=10,'Daten A4'!$M$58,IF(Options!$B$9=11,'Daten A4'!$M$64,IF(Options!$B$9=12,'Daten A4'!$M$70,IF(Options!$B$9=13,'Daten A4'!$M$76,IF(Options!$B$9=14,'Daten A4'!$M$82,IF(Options!$B$9=15,'Daten A4'!$M$88,IF(Options!$B$9=16,'Daten A4'!$M$94,IF(Options!$B$9=17,'Daten A4'!$M$100,IF(Options!$B$9=18,'Daten A4'!$M$106,IF(Options!$B$9=19,'Daten A4'!AB11,IF(Options!$B$9=20,'Daten A4'!AB17,IF(Options!$B$9=21,'Daten A4'!AB23,IF(Options!$B$9=22,'Daten A4'!AB29,IF(Options!$B$9=23,'Daten A4'!AB35,IF(Options!$B$9=24,'Daten A4'!AB41,)))))))))))))))))))))))) -> 0% | CA34: =IF(Options!$B$9=1,'Daten A4'!$N$4,IF(Options!$B$9=2,'Daten A4'!$N$10,IF(Options!$B$9=3,'Daten A4'!$N$16,IF(Options!$B$9=4,'Daten A4'!$N$22,IF(Options!$B$9=5,'Daten A4'!$N$28,IF(Options!$B$9=6,'Daten A4'!$N$34,IF(Options!$B$9=7,'Daten A4'!$N$40,IF(Options!$B$9=8,'Daten A4'!$N$46,IF(Options!$B$9=9,'Daten A4'!$N$52,IF(Options!$B$9=10,'Daten A4'!$N$58,IF(Options!$B$9=11,'Daten A4'!$N$64,IF(Options!$B$9=12,'Daten A4'!$N$70,IF(Options!$B$9=13,'Daten A4'!$N$76,IF(Options!$B$9=14,'Daten A4'!$N$82,IF(Options!$B$9=15,'Daten A4'!$N$88,IF(Options!$B$9=16,'Daten A4'!$N$94,IF(Options!$B$9=17,'Daten A4'!$N$100,IF(Options!$B$9=18,'Daten A4'!$N$106,IF(Options!$B$9=19,'Daten A4'!AC11,IF(Options!$B$9=20,'Daten A4'!AC17,IF(Options!$B$9=21,'Daten A4'!AC23,IF(Options!$B$9=22,'Daten A4'!AC29,IF(Options!$B$9=23,'Daten A4'!AC35,IF(Options!$B$9=24,'Daten A4'!AC41,)))))))))))))))))))))))) -> ----
BA35: x | BB35: if x then settercall in match schedule | BN35: Pos 3 | BP35: =IF(Options!$B$9=1,'Daten A4'!$C$5,IF(Options!$B$9=2,'Daten A4'!$C$11,IF(Options!$B$9=3,'Daten A4'!$C$17,IF(Options!$B$9=4,'Daten A4'!$C$23,IF(Options!$B$9=5,'Daten A4'!$C$29,IF(Options!$B$9=6,'Daten A4'!$C$35,IF(Options!$B$9=7,'Daten A4'!$C$41,IF(Options!$B$9=8,'Daten A4'!$C$47,IF(Options!$B$9=9,'Daten A4'!$C$53,IF(Options!$B$9=10,'Daten A4'!$C$59,IF(Options!$B$9=11,'Daten A4'!$C$65,IF(Options!$B$9=12,'Daten A4'!$C$71,IF(Options!$B$9=13,'Daten A4'!$C$77,IF(Options!$B$9=14,'Daten A4'!$C$83,IF(Options!$B$9=15,'Daten A4'!$C$89,IF(Options!$B$9=16,'Daten A4'!$C$95,IF(Options!$B$9=17,'Daten A4'!$C$101,IF(Options!$B$9=18,'Daten A4'!$C$107,IF(Options!$B$9=19,'Daten A4'!R12,IF(Options!$B$9=20,'Daten A4'!R18,IF(Options!$B$9=21,'Daten A4'!R24,IF(Options!$B$9=22,'Daten A4'!R30,IF(Options!$B$9=23,'Daten A4'!R36,IF(Options!$B$9=24,'Daten A4'!R42,)))))))))))))))))))))))) -> 0% | BQ35: =IF(Options!$B$9=1,'Daten A4'!$D$5,IF(Options!$B$9=2,'Daten A4'!$D$11,IF(Options!$B$9=3,'Daten A4'!$D$17,IF(Options!$B$9=4,'Daten A4'!$D$23,IF(Options!$B$9=5,'Daten A4'!$D$29,IF(Options!$B$9=6,'Daten A4'!$D$35,IF(Options!$B$9=7,'Daten A4'!$D$41,IF(Options!$B$9=8,'Daten A4'!$D$47,IF(Options!$B$9=9,'Daten A4'!$D$53,IF(Options!$B$9=10,'Daten A4'!$D$59,IF(Options!$B$9=11,'Daten A4'!$D$65,IF(Options!$B$9=12,'Daten A4'!$D$71,IF(Options!$B$9=13,'Daten A4'!$D$77,IF(Options!$B$9=14,'Daten A4'!$D$83,IF(Options!$B$9=15,'Daten A4'!$D$89,IF(Options!$B$9=16,'Daten A4'!$D$95,IF(Options!$B$9=17,'Daten A4'!$D$101,IF(Options!$B$9=18,'Daten A4'!$D$107,IF(Options!$B$9=19,'Daten A4'!S12,IF(Options!$B$9=20,'Daten A4'!S18,IF(Options!$B$9=21,'Daten A4'!S24,IF(Options!$B$9=22,'Daten A4'!S30,IF(Options!$B$9=23,'Daten A4'!S36,IF(Options!$B$9=24,'Daten A4'!S42,)))))))))))))))))))))))) -> ---- | BR35: =IF(Options!$B$9=1,'Daten A4'!$E$5,IF(Options!$B$9=2,'Daten A4'!$E$11,IF(Options!$B$9=3,'Daten A4'!$E$17,IF(Options!$B$9=4,'Daten A4'!$E$23,IF(Options!$B$9=5,'Daten A4'!$E$29,IF(Options!$B$9=6,'Daten A4'!$E$35,IF(Options!$B$9=7,'Daten A4'!$E$41,IF(Options!$B$9=8,'Daten A4'!$E$47,IF(Options!$B$9=9,'Daten A4'!$E$53,IF(Options!$B$9=10,'Daten A4'!$E$59,IF(Options!$B$9=11,'Daten A4'!$E$65,IF(Options!$B$9=12,'Daten A4'!$E$71,IF(Options!$B$9=13,'Daten A4'!$E$77,IF(Options!$B$9=14,'Daten A4'!$E$83,IF(Options!$B$9=15,'Daten A4'!$E$89,IF(Options!$B$9=16,'Daten A4'!$E$95,IF(Options!$B$9=17,'Daten A4'!$E$101,IF(Options!$B$9=18,'Daten A4'!$E$107,IF(Options!$B$9=19,'Daten A4'!T12,IF(Options!$B$9=20,'Daten A4'!T18,IF(Options!$B$9=21,'Daten A4'!T24,IF(Options!$B$9=22,'Daten A4'!T30,IF(Options!$B$9=23,'Daten A4'!T36,IF(Options!$B$9=24,'Daten A4'!T42,)))))))))))))))))))))))) -> 67% | BS35: =IF(Options!$B$9=1,'Daten A4'!$F$5,IF(Options!$B$9=2,'Daten A4'!$F$11,IF(Options!$B$9=3,'Daten A4'!$F$17,IF(Options!$B$9=4,'Daten A4'!$F$23,IF(Options!$B$9=5,'Daten A4'!$F$29,IF(Options!$B$9=6,'Daten A4'!$F$35,IF(Options!$B$9=7,'Daten A4'!$F$41,IF(Options!$B$9=8,'Daten A4'!$F$47,IF(Options!$B$9=9,'Daten A4'!$F$53,IF(Options!$B$9=10,'Daten A4'!$F$59,IF(Options!$B$9=11,'Daten A4'!$F$65,IF(Options!$B$9=12,'Daten A4'!$F$71,IF(Options!$B$9=13,'Daten A4'!$F$77,IF(Options!$B$9=14,'Daten A4'!$F$83,IF(Options!$B$9=15,'Daten A4'!$F$89,IF(Options!$B$9=16,'Daten A4'!$F$95,IF(Options!$B$9=17,'Daten A4'!$F$101,IF(Options!$B$9=18,'Daten A4'!$F$107,IF(Options!$B$9=19,'Daten A4'!U12,IF(Options!$B$9=20,'Daten A4'!U18,IF(Options!$B$9=21,'Daten A4'!U24,IF(Options!$B$9=22,'Daten A4'!U30,IF(Options!$B$9=23,'Daten A4'!U36,IF(Options!$B$9=24,'Daten A4'!U42,)))))))))))))))))))))))) -> 67% | BT35: =IF(Options!$B$9=1,'Daten A4'!$G$5,IF(Options!$B$9=2,'Daten A4'!$G$11,IF(Options!$B$9=3,'Daten A4'!$G$17,IF(Options!$B$9=4,'Daten A4'!$G$23,IF(Options!$B$9=5,'Daten A4'!$G$29,IF(Options!$B$9=6,'Daten A4'!$G$35,IF(Options!$B$9=7,'Daten A4'!$G$41,IF(Options!$B$9=8,'Daten A4'!$G$47,IF(Options!$B$9=9,'Daten A4'!$G$53,IF(Options!$B$9=10,'Daten A4'!$G$59,IF(Options!$B$9=11,'Daten A4'!$G$65,IF(Options!$B$9=12,'Daten A4'!$G$71,IF(Options!$B$9=13,'Daten A4'!$G$77,IF(Options!$B$9=14,'Daten A4'!$G$83,IF(Options!$B$9=15,'Daten A4'!$G$89,IF(Options!$B$9=16,'Daten A4'!$G$95,IF(Options!$B$9=17,'Daten A4'!$G$101,IF(Options!$B$9=18,'Daten A4'!$G$107,IF(Options!$B$9=19,'Daten A4'!V12,IF(Options!$B$9=20,'Daten A4'!V18,IF(Options!$B$9=21,'Daten A4'!V24,IF(Options!$B$9=22,'Daten A4'!V30,IF(Options!$B$9=23,'Daten A4'!V36,IF(Options!$B$9=24,'Daten A4'!V42,)))))))))))))))))))))))) -> 0% | BU35: =IF(Options!$B$9=1,'Daten A4'!$H$5,IF(Options!$B$9=2,'Daten A4'!$H$11,IF(Options!$B$9=3,'Daten A4'!$H$17,IF(Options!$B$9=4,'Daten A4'!$H$23,IF(Options!$B$9=5,'Daten A4'!$H$29,IF(Options!$B$9=6,'Daten A4'!$H$35,IF(Options!$B$9=7,'Daten A4'!$H$41,IF(Options!$B$9=8,'Daten A4'!$H$47,IF(Options!$B$9=9,'Daten A4'!$H$53,IF(Options!$B$9=10,'Daten A4'!$H$59,IF(Options!$B$9=11,'Daten A4'!$H$65,IF(Options!$B$9=12,'Daten A4'!$H$71,IF(Options!$B$9=13,'Daten A4'!$H$77,IF(Options!$B$9=14,'Daten A4'!$H$83,IF(Options!$B$9=15,'Daten A4'!$H$89,IF(Options!$B$9=16,'Daten A4'!$H$95,IF(Options!$B$9=17,'Daten A4'!$H$101,IF(Options!$B$9=18,'Daten A4'!$H$107,IF(Options!$B$9=19,'Daten A4'!W12,IF(Options!$B$9=20,'Daten A4'!W18,IF(Options!$B$9=21,'Daten A4'!W24,IF(Options!$B$9=22,'Daten A4'!W30,IF(Options!$B$9=23,'Daten A4'!W36,IF(Options!$B$9=24,'Daten A4'!W42,)))))))))))))))))))))))) -> 0% | BV35: =IF(Options!$B$9=1,'Daten A4'!$I$5,IF(Options!$B$9=2,'Daten A4'!$I$11,IF(Options!$B$9=3,'Daten A4'!$I$17,IF(Options!$B$9=4,'Daten A4'!$I$23,IF(Options!$B$9=5,'Daten A4'!$I$29,IF(Options!$B$9=6,'Daten A4'!$I$35,IF(Options!$B$9=7,'Daten A4'!$I$41,IF(Options!$B$9=8,'Daten A4'!$I$47,IF(Options!$B$9=9,'Daten A4'!$I$53,IF(Options!$B$9=10,'Daten A4'!$I$59,IF(Options!$B$9=11,'Daten A4'!$I$65,IF(Options!$B$9=12,'Daten A4'!$I$71,IF(Options!$B$9=13,'Daten A4'!$I$77,IF(Options!$B$9=14,'Daten A4'!$I$83,IF(Options!$B$9=15,'Daten A4'!$I$89,IF(Options!$B$9=16,'Daten A4'!$I$95,IF(Options!$B$9=17,'Daten A4'!$I$101,IF(Options!$B$9=18,'Daten A4'!$I$107,IF(Options!$B$9=19,'Daten A4'!X12,IF(Options!$B$9=20,'Daten A4'!X18,IF(Options!$B$9=21,'Daten A4'!X24,IF(Options!$B$9=22,'Daten A4'!X30,IF(Options!$B$9=23,'Daten A4'!X36,IF(Options!$B$9=24,'Daten A4'!X42,)))))))))))))))))))))))) -> 100% | BW35: =IF(Options!$B$9=1,'Daten A4'!$J$5,IF(Options!$B$9=2,'Daten A4'!$J$11,IF(Options!$B$9=3,'Daten A4'!$J$17,IF(Options!$B$9=4,'Daten A4'!$J$23,IF(Options!$B$9=5,'Daten A4'!$J$29,IF(Options!$B$9=6,'Daten A4'!$J$35,IF(Options!$B$9=7,'Daten A4'!$J$41,IF(Options!$B$9=8,'Daten A4'!$J$47,IF(Options!$B$9=9,'Daten A4'!$J$53,IF(Options!$B$9=10,'Daten A4'!$J$59,IF(Options!$B$9=11,'Daten A4'!$J$65,IF(Options!$B$9=12,'Daten A4'!$J$71,IF(Options!$B$9=13,'Daten A4'!$J$77,IF(Options!$B$9=14,'Daten A4'!$J$83,IF(Options!$B$9=15,'Daten A4'!$J$89,IF(Options!$B$9=16,'Daten A4'!$J$95,IF(Options!$B$9=17,'Daten A4'!$J$101,IF(Options!$B$9=18,'Daten A4'!$J$107,IF(Options!$B$9=19,'Daten A4'!Y12,IF(Options!$B$9=20,'Daten A4'!Y18,IF(Options!$B$9=21,'Daten A4'!Y24,IF(Options!$B$9=22,'Daten A4'!Y30,IF(Options!$B$9=23,'Daten A4'!Y36,IF(Options!$B$9=24,'Daten A4'!Y42,)))))))))))))))))))))))) -> 100% | BX35: =IF(Options!$B$9=1,'Daten A4'!$K$5,IF(Options!$B$9=2,'Daten A4'!$K$11,IF(Options!$B$9=3,'Daten A4'!$K$17,IF(Options!$B$9=4,'Daten A4'!$K$23,IF(Options!$B$9=5,'Daten A4'!$K$29,IF(Options!$B$9=6,'Daten A4'!$K$35,IF(Options!$B$9=7,'Daten A4'!$K$41,IF(Options!$B$9=8,'Daten A4'!$K$47,IF(Options!$B$9=9,'Daten A4'!$K$53,IF(Options!$B$9=10,'Daten A4'!$K$59,IF(Options!$B$9=11,'Daten A4'!$K$65,IF(Options!$B$9=12,'Daten A4'!$K$71,IF(Options!$B$9=13,'Daten A4'!$K$77,IF(Options!$B$9=14,'Daten A4'!$K$83,IF(Options!$B$9=15,'Daten A4'!$K$89,IF(Options!$B$9=16,'Daten A4'!$K$95,IF(Options!$B$9=17,'Daten A4'!$K$101,IF(Options!$B$9=18,'Daten A4'!$K$107,IF(Options!$B$9=19,'Daten A4'!Z12,IF(Options!$B$9=20,'Daten A4'!Z18,IF(Options!$B$9=21,'Daten A4'!Z24,IF(Options!$B$9=22,'Daten A4'!Z30,IF(Options!$B$9=23,'Daten A4'!Z36,IF(Options!$B$9=24,'Daten A4'!Z42,)))))))))))))))))))))))) -> 80% | BY35: =IF(Options!$B$9=1,'Daten A4'!$L$5,IF(Options!$B$9=2,'Daten A4'!$L$11,IF(Options!$B$9=3,'Daten A4'!$L$17,IF(Options!$B$9=4,'Daten A4'!$L$23,IF(Options!$B$9=5,'Daten A4'!$L$29,IF(Options!$B$9=6,'Daten A4'!$L$35,IF(Options!$B$9=7,'Daten A4'!$L$41,IF(Options!$B$9=8,'Daten A4'!$L$47,IF(Options!$B$9=9,'Daten A4'!$L$53,IF(Options!$B$9=10,'Daten A4'!$L$59,IF(Options!$B$9=11,'Daten A4'!$L$65,IF(Options!$B$9=12,'Daten A4'!$L$71,IF(Options!$B$9=13,'Daten A4'!$L$77,IF(Options!$B$9=14,'Daten A4'!$L$83,IF(Options!$B$9=15,'Daten A4'!$L$89,IF(Options!$B$9=16,'Daten A4'!$L$95,IF(Options!$B$9=17,'Daten A4'!$L$101,IF(Options!$B$9=18,'Daten A4'!$L$107,IF(Options!$B$9=19,'Daten A4'!AA12,IF(Options!$B$9=20,'Daten A4'!AA18,IF(Options!$B$9=21,'Daten A4'!AA24,IF(Options!$B$9=22,'Daten A4'!AA30,IF(Options!$B$9=23,'Daten A4'!AA36,IF(Options!$B$9=24,'Daten A4'!AA42,)))))))))))))))))))))))) -> 80% | BZ35: =IF(Options!$B$9=1,'Daten A4'!$M$5,IF(Options!$B$9=2,'Daten A4'!$M$11,IF(Options!$B$9=3,'Daten A4'!$M$17,IF(Options!$B$9=4,'Daten A4'!$M$23,IF(Options!$B$9=5,'Daten A4'!$M$29,IF(Options!$B$9=6,'Daten A4'!$M$35,IF(Options!$B$9=7,'Daten A4'!$M$41,IF(Options!$B$9=8,'Daten A4'!$M$47,IF(Options!$B$9=9,'Daten A4'!$M$53,IF(Options!$B$9=10,'Daten A4'!$M$59,IF(Options!$B$9=11,'Daten A4'!$M$65,IF(Options!$B$9=12,'Daten A4'!$M$71,IF(Options!$B$9=13,'Daten A4'!$M$77,IF(Options!$B$9=14,'Daten A4'!$M$83,IF(Options!$B$9=15,'Daten A4'!$M$89,IF(Options!$B$9=16,'Daten A4'!$M$95,IF(Options!$B$9=17,'Daten A4'!$M$101,IF(Options!$B$9=18,'Daten A4'!$M$107,IF(Options!$B$9=19,'Daten A4'!AB12,IF(Options!$B$9=20,'Daten A4'!AB18,IF(Options!$B$9=21,'Daten A4'!AB24,IF(Options!$B$9=22,'Daten A4'!AB30,IF(Options!$B$9=23,'Daten A4'!AB36,IF(Options!$B$9=24,'Daten A4'!AB42,)))))))))))))))))))))))) -> 33% | CA35: =IF(Options!$B$9=1,'Daten A4'!$N$5,IF(Options!$B$9=2,'Daten A4'!$N$11,IF(Options!$B$9=3,'Daten A4'!$N$17,IF(Options!$B$9=4,'Daten A4'!$N$23,IF(Options!$B$9=5,'Daten A4'!$N$29,IF(Options!$B$9=6,'Daten A4'!$N$35,IF(Options!$B$9=7,'Daten A4'!$N$41,IF(Options!$B$9=8,'Daten A4'!$N$47,IF(Options!$B$9=9,'Daten A4'!$N$53,IF(Options!$B$9=10,'Daten A4'!$N$59,IF(Options!$B$9=11,'Daten A4'!$N$65,IF(Options!$B$9=12,'Daten A4'!$N$71,IF(Options!$B$9=13,'Daten A4'!$N$77,IF(Options!$B$9=14,'Daten A4'!$N$83,IF(Options!$B$9=15,'Daten A4'!$N$89,IF(Options!$B$9=16,'Daten A4'!$N$95,IF(Options!$B$9=17,'Daten A4'!$N$101,IF(Options!$B$9=18,'Daten A4'!$N$107,IF(Options!$B$9=19,'Daten A4'!AC12,IF(Options!$B$9=20,'Daten A4'!AC18,IF(Options!$B$9=21,'Daten A4'!AC24,IF(Options!$B$9=22,'Daten A4'!AC30,IF(Options!$B$9=23,'Daten A4'!AC36,IF(Options!$B$9=24,'Daten A4'!AC42,)))))))))))))))))))))))) -> 67%
I36: =IF(OR($BZ$27=0,$CA$27=0),"",CONCATENATE($BZ$27,$BN$26,$CA$27)) ->  | L36: =IF(OR($BZ$28=0,$CA$28=0),"",CONCATENATE($BZ$28,$BN$26,$CA$28)) -> 30% / 3 | O36: =IF(OR($BZ$29=0,$CA$29=0),"",CONCATENATE($BZ$29,$BN$26,$CA$29)) -> 30% / 3 | T36: =IF(OR($BX$27=0,$BY$27=0),"",CONCATENATE($BX$27,$BN$26,$BY$27)) ->  | W36: =IF(OR($BX$28=0,$BY$28=0),"",CONCATENATE($BX$28,$BN$26,$BY$28)) -> 83% / 5 | Z36: =IF(OR($BX$29=0,$BY$29=0),"",CONCATENATE($BX$29,$BN$26,$BY$29)) ->  | AE36: =IF(OR($BV$27=0,$BW$27=0),"",CONCATENATE($BV$27,$BN$26,$BW$27)) ->  | AH36: =IF(OR($BV$28=0,$BW$28=0),"",CONCATENATE($BV$28,$BN$26,$BW$28)) -> 50% / 2 | AK36: =IF(OR($BV$29=0,$BW$29=0),"",CONCATENATE($BV$29,$BN$26,$BW$29)) -> 25% / 1 | BN36: Pos 4 | BP36: =IF(Options!$B$9=1,'Daten A4'!$C$6,IF(Options!$B$9=2,'Daten A4'!$C$12,IF(Options!$B$9=3,'Daten A4'!$C$18,IF(Options!$B$9=4,'Daten A4'!$C$24,IF(Options!$B$9=5,'Daten A4'!$C$30,IF(Options!$B$9=6,'Daten A4'!$C$36,IF(Options!$B$9=7,'Daten A4'!$C$42,IF(Options!$B$9=8,'Daten A4'!$C$48,IF(Options!$B$9=9,'Daten A4'!$C$54,IF(Options!$B$9=10,'Daten A4'!$C$60,IF(Options!$B$9=11,'Daten A4'!$C$66,IF(Options!$B$9=12,'Daten A4'!$C$72,IF(Options!$B$9=13,'Daten A4'!$C$78,IF(Options!$B$9=14,'Daten A4'!$C$84,IF(Options!$B$9=15,'Daten A4'!$C$90,IF(Options!$B$9=16,'Daten A4'!$C$96,IF(Options!$B$9=17,'Daten A4'!$C$102,IF(Options!$B$9=18,'Daten A4'!$C$108,IF(Options!$B$9=19,'Daten A4'!R13,IF(Options!$B$9=20,'Daten A4'!R19,IF(Options!$B$9=21,'Daten A4'!R25,IF(Options!$B$9=22,'Daten A4'!R31,IF(Options!$B$9=23,'Daten A4'!R37,IF(Options!$B$9=24,'Daten A4'!R43,)))))))))))))))))))))))) -> 50% | BQ36: =IF(Options!$B$9=1,'Daten A4'!$D$6,IF(Options!$B$9=2,'Daten A4'!$D$12,IF(Options!$B$9=3,'Daten A4'!$D$18,IF(Options!$B$9=4,'Daten A4'!$D$24,IF(Options!$B$9=5,'Daten A4'!$D$30,IF(Options!$B$9=6,'Daten A4'!$D$36,IF(Options!$B$9=7,'Daten A4'!$D$42,IF(Options!$B$9=8,'Daten A4'!$D$48,IF(Options!$B$9=9,'Daten A4'!$D$54,IF(Options!$B$9=10,'Daten A4'!$D$60,IF(Options!$B$9=11,'Daten A4'!$D$66,IF(Options!$B$9=12,'Daten A4'!$D$72,IF(Options!$B$9=13,'Daten A4'!$D$78,IF(Options!$B$9=14,'Daten A4'!$D$84,IF(Options!$B$9=15,'Daten A4'!$D$90,IF(Options!$B$9=16,'Daten A4'!$D$96,IF(Options!$B$9=17,'Daten A4'!$D$102,IF(Options!$B$9=18,'Daten A4'!$D$108,IF(Options!$B$9=19,'Daten A4'!S13,IF(Options!$B$9=20,'Daten A4'!S19,IF(Options!$B$9=21,'Daten A4'!S25,IF(Options!$B$9=22,'Daten A4'!S31,IF(Options!$B$9=23,'Daten A4'!S37,IF(Options!$B$9=24,'Daten A4'!S43,)))))))))))))))))))))))) -> 50% | BR36: =IF(Options!$B$9=1,'Daten A4'!$E$6,IF(Options!$B$9=2,'Daten A4'!$E$12,IF(Options!$B$9=3,'Daten A4'!$E$18,IF(Options!$B$9=4,'Daten A4'!$E$24,IF(Options!$B$9=5,'Daten A4'!$E$30,IF(Options!$B$9=6,'Daten A4'!$E$36,IF(Options!$B$9=7,'Daten A4'!$E$42,IF(Options!$B$9=8,'Daten A4'!$E$48,IF(Options!$B$9=9,'Daten A4'!$E$54,IF(Options!$B$9=10,'Daten A4'!$E$60,IF(Options!$B$9=11,'Daten A4'!$E$66,IF(Options!$B$9=12,'Daten A4'!$E$72,IF(Options!$B$9=13,'Daten A4'!$E$78,IF(Options!$B$9=14,'Daten A4'!$E$84,IF(Options!$B$9=15,'Daten A4'!$E$90,IF(Options!$B$9=16,'Daten A4'!$E$96,IF(Options!$B$9=17,'Daten A4'!$E$102,IF(Options!$B$9=18,'Daten A4'!$E$108,IF(Options!$B$9=19,'Daten A4'!T13,IF(Options!$B$9=20,'Daten A4'!T19,IF(Options!$B$9=21,'Daten A4'!T25,IF(Options!$B$9=22,'Daten A4'!T31,IF(Options!$B$9=23,'Daten A4'!T37,IF(Options!$B$9=24,'Daten A4'!T43,)))))))))))))))))))))))) -> 0% | BS36: =IF(Options!$B$9=1,'Daten A4'!$F$6,IF(Options!$B$9=2,'Daten A4'!$F$12,IF(Options!$B$9=3,'Daten A4'!$F$18,IF(Options!$B$9=4,'Daten A4'!$F$24,IF(Options!$B$9=5,'Daten A4'!$F$30,IF(Options!$B$9=6,'Daten A4'!$F$36,IF(Options!$B$9=7,'Daten A4'!$F$42,IF(Options!$B$9=8,'Daten A4'!$F$48,IF(Options!$B$9=9,'Daten A4'!$F$54,IF(Options!$B$9=10,'Daten A4'!$F$60,IF(Options!$B$9=11,'Daten A4'!$F$66,IF(Options!$B$9=12,'Daten A4'!$F$72,IF(Options!$B$9=13,'Daten A4'!$F$78,IF(Options!$B$9=14,'Daten A4'!$F$84,IF(Options!$B$9=15,'Daten A4'!$F$90,IF(Options!$B$9=16,'Daten A4'!$F$96,IF(Options!$B$9=17,'Daten A4'!$F$102,IF(Options!$B$9=18,'Daten A4'!$F$108,IF(Options!$B$9=19,'Daten A4'!U13,IF(Options!$B$9=20,'Daten A4'!U19,IF(Options!$B$9=21,'Daten A4'!U25,IF(Options!$B$9=22,'Daten A4'!U31,IF(Options!$B$9=23,'Daten A4'!U37,IF(Options!$B$9=24,'Daten A4'!U43,)))))))))))))))))))))))) -> ---- | BT36: =IF(Options!$B$9=1,'Daten A4'!$G$6,IF(Options!$B$9=2,'Daten A4'!$G$12,IF(Options!$B$9=3,'Daten A4'!$G$18,IF(Options!$B$9=4,'Daten A4'!$G$24,IF(Options!$B$9=5,'Daten A4'!$G$30,IF(Options!$B$9=6,'Daten A4'!$G$36,IF(Options!$B$9=7,'Daten A4'!$G$42,IF(Options!$B$9=8,'Daten A4'!$G$48,IF(Options!$B$9=9,'Daten A4'!$G$54,IF(Options!$B$9=10,'Daten A4'!$G$60,IF(Options!$B$9=11,'Daten A4'!$G$66,IF(Options!$B$9=12,'Daten A4'!$G$72,IF(Options!$B$9=13,'Daten A4'!$G$78,IF(Options!$B$9=14,'Daten A4'!$G$84,IF(Options!$B$9=15,'Daten A4'!$G$90,IF(Options!$B$9=16,'Daten A4'!$G$96,IF(Options!$B$9=17,'Daten A4'!$G$102,IF(Options!$B$9=18,'Daten A4'!$G$108,IF(Options!$B$9=19,'Daten A4'!V13,IF(Options!$B$9=20,'Daten A4'!V19,IF(Options!$B$9=21,'Daten A4'!V25,IF(Options!$B$9=22,'Daten A4'!V31,IF(Options!$B$9=23,'Daten A4'!V37,IF(Options!$B$9=24,'Daten A4'!V43,)))))))))))))))))))))))) -> 0% | BU36: =IF(Options!$B$9=1,'Daten A4'!$H$6,IF(Options!$B$9=2,'Daten A4'!$H$12,IF(Options!$B$9=3,'Daten A4'!$H$18,IF(Options!$B$9=4,'Daten A4'!$H$24,IF(Options!$B$9=5,'Daten A4'!$H$30,IF(Options!$B$9=6,'Daten A4'!$H$36,IF(Options!$B$9=7,'Daten A4'!$H$42,IF(Options!$B$9=8,'Daten A4'!$H$48,IF(Options!$B$9=9,'Daten A4'!$H$54,IF(Options!$B$9=10,'Daten A4'!$H$60,IF(Options!$B$9=11,'Daten A4'!$H$66,IF(Options!$B$9=12,'Daten A4'!$H$72,IF(Options!$B$9=13,'Daten A4'!$H$78,IF(Options!$B$9=14,'Daten A4'!$H$84,IF(Options!$B$9=15,'Daten A4'!$H$90,IF(Options!$B$9=16,'Daten A4'!$H$96,IF(Options!$B$9=17,'Daten A4'!$H$102,IF(Options!$B$9=18,'Daten A4'!$H$108,IF(Options!$B$9=19,'Daten A4'!W13,IF(Options!$B$9=20,'Daten A4'!W19,IF(Options!$B$9=21,'Daten A4'!W25,IF(Options!$B$9=22,'Daten A4'!W31,IF(Options!$B$9=23,'Daten A4'!W37,IF(Options!$B$9=24,'Daten A4'!W43,)))))))))))))))))))))))) -> ---- | BV36: =IF(Options!$B$9=1,'Daten A4'!$I$6,IF(Options!$B$9=2,'Daten A4'!$I$12,IF(Options!$B$9=3,'Daten A4'!$I$18,IF(Options!$B$9=4,'Daten A4'!$I$24,IF(Options!$B$9=5,'Daten A4'!$I$30,IF(Options!$B$9=6,'Daten A4'!$I$36,IF(Options!$B$9=7,'Daten A4'!$I$42,IF(Options!$B$9=8,'Daten A4'!$I$48,IF(Options!$B$9=9,'Daten A4'!$I$54,IF(Options!$B$9=10,'Daten A4'!$I$60,IF(Options!$B$9=11,'Daten A4'!$I$66,IF(Options!$B$9=12,'Daten A4'!$I$72,IF(Options!$B$9=13,'Daten A4'!$I$78,IF(Options!$B$9=14,'Daten A4'!$I$84,IF(Options!$B$9=15,'Daten A4'!$I$90,IF(Options!$B$9=16,'Daten A4'!$I$96,IF(Options!$B$9=17,'Daten A4'!$I$102,IF(Options!$B$9=18,'Daten A4'!$I$108,IF(Options!$B$9=19,'Daten A4'!X13,IF(Options!$B$9=20,'Daten A4'!X19,IF(Options!$B$9=21,'Daten A4'!X25,IF(Options!$B$9=22,'Daten A4'!X31,IF(Options!$B$9=23,'Daten A4'!X37,IF(Options!$B$9=24,'Daten A4'!X43,)))))))))))))))))))))))) -> 100% | BW36: =IF(Options!$B$9=1,'Daten A4'!$J$6,IF(Options!$B$9=2,'Daten A4'!$J$12,IF(Options!$B$9=3,'Daten A4'!$J$18,IF(Options!$B$9=4,'Daten A4'!$J$24,IF(Options!$B$9=5,'Daten A4'!$J$30,IF(Options!$B$9=6,'Daten A4'!$J$36,IF(Options!$B$9=7,'Daten A4'!$J$42,IF(Options!$B$9=8,'Daten A4'!$J$48,IF(Options!$B$9=9,'Daten A4'!$J$54,IF(Options!$B$9=10,'Daten A4'!$J$60,IF(Options!$B$9=11,'Daten A4'!$J$66,IF(Options!$B$9=12,'Daten A4'!$J$72,IF(Options!$B$9=13,'Daten A4'!$J$78,IF(Options!$B$9=14,'Daten A4'!$J$84,IF(Options!$B$9=15,'Daten A4'!$J$90,IF(Options!$B$9=16,'Daten A4'!$J$96,IF(Options!$B$9=17,'Daten A4'!$J$102,IF(Options!$B$9=18,'Daten A4'!$J$108,IF(Options!$B$9=19,'Daten A4'!Y13,IF(Options!$B$9=20,'Daten A4'!Y19,IF(Options!$B$9=21,'Daten A4'!Y25,IF(Options!$B$9=22,'Daten A4'!Y31,IF(Options!$B$9=23,'Daten A4'!Y37,IF(Options!$B$9=24,'Daten A4'!Y43,)))))))))))))))))))))))) -> 100% | BX36: =IF(Options!$B$9=1,'Daten A4'!$K$6,IF(Options!$B$9=2,'Daten A4'!$K$12,IF(Options!$B$9=3,'Daten A4'!$K$18,IF(Options!$B$9=4,'Daten A4'!$K$24,IF(Options!$B$9=5,'Daten A4'!$K$30,IF(Options!$B$9=6,'Daten A4'!$K$36,IF(Options!$B$9=7,'Daten A4'!$K$42,IF(Options!$B$9=8,'Daten A4'!$K$48,IF(Options!$B$9=9,'Daten A4'!$K$54,IF(Options!$B$9=10,'Daten A4'!$K$60,IF(Options!$B$9=11,'Daten A4'!$K$66,IF(Options!$B$9=12,'Daten A4'!$K$72,IF(Options!$B$9=13,'Daten A4'!$K$78,IF(Options!$B$9=14,'Daten A4'!$K$84,IF(Options!$B$9=15,'Daten A4'!$K$90,IF(Options!$B$9=16,'Daten A4'!$K$96,IF(Options!$B$9=17,'Daten A4'!$K$102,IF(Options!$B$9=18,'Daten A4'!$K$108,IF(Options!$B$9=19,'Daten A4'!Z13,IF(Options!$B$9=20,'Daten A4'!Z19,IF(Options!$B$9=21,'Daten A4'!Z25,IF(Options!$B$9=22,'Daten A4'!Z31,IF(Options!$B$9=23,'Daten A4'!Z37,IF(Options!$B$9=24,'Daten A4'!Z43,)))))))))))))))))))))))) -> 0% | BY36: =IF(Options!$B$9=1,'Daten A4'!$L$6,IF(Options!$B$9=2,'Daten A4'!$L$12,IF(Options!$B$9=3,'Daten A4'!$L$18,IF(Options!$B$9=4,'Daten A4'!$L$24,IF(Options!$B$9=5,'Daten A4'!$L$30,IF(Options!$B$9=6,'Daten A4'!$L$36,IF(Options!$B$9=7,'Daten A4'!$L$42,IF(Options!$B$9=8,'Daten A4'!$L$48,IF(Options!$B$9=9,'Daten A4'!$L$54,IF(Options!$B$9=10,'Daten A4'!$L$60,IF(Options!$B$9=11,'Daten A4'!$L$66,IF(Options!$B$9=12,'Daten A4'!$L$72,IF(Options!$B$9=13,'Daten A4'!$L$78,IF(Options!$B$9=14,'Daten A4'!$L$84,IF(Options!$B$9=15,'Daten A4'!$L$90,IF(Options!$B$9=16,'Daten A4'!$L$96,IF(Options!$B$9=17,'Daten A4'!$L$102,IF(Options!$B$9=18,'Daten A4'!$L$108,IF(Options!$B$9=19,'Daten A4'!AA13,IF(Options!$B$9=20,'Daten A4'!AA19,IF(Options!$B$9=21,'Daten A4'!AA25,IF(Options!$B$9=22,'Daten A4'!AA31,IF(Options!$B$9=23,'Daten A4'!AA37,IF(Options!$B$9=24,'Daten A4'!AA43,)))))))))))))))))))))))) -> ---- | BZ36: =IF(Options!$B$9=1,'Daten A4'!$M$6,IF(Options!$B$9=2,'Daten A4'!$M$12,IF(Options!$B$9=3,'Daten A4'!$M$18,IF(Options!$B$9=4,'Daten A4'!$M$24,IF(Options!$B$9=5,'Daten A4'!$M$30,IF(Options!$B$9=6,'Daten A4'!$M$36,IF(Options!$B$9=7,'Daten A4'!$M$42,IF(Options!$B$9=8,'Daten A4'!$M$48,IF(Options!$B$9=9,'Daten A4'!$M$54,IF(Options!$B$9=10,'Daten A4'!$M$60,IF(Options!$B$9=11,'Daten A4'!$M$66,IF(Options!$B$9=12,'Daten A4'!$M$72,IF(Options!$B$9=13,'Daten A4'!$M$78,IF(Options!$B$9=14,'Daten A4'!$M$84,IF(Options!$B$9=15,'Daten A4'!$M$90,IF(Options!$B$9=16,'Daten A4'!$M$96,IF(Options!$B$9=17,'Daten A4'!$M$102,IF(Options!$B$9=18,'Daten A4'!$M$108,IF(Options!$B$9=19,'Daten A4'!AB13,IF(Options!$B$9=20,'Daten A4'!AB19,IF(Options!$B$9=21,'Daten A4'!AB25,IF(Options!$B$9=22,'Daten A4'!AB31,IF(Options!$B$9=23,'Daten A4'!AB37,IF(Options!$B$9=24,'Daten A4'!AB43,)))))))))))))))))))))))) -> -33% | CA36: =IF(Options!$B$9=1,'Daten A4'!$N$6,IF(Options!$B$9=2,'Daten A4'!$N$12,IF(Options!$B$9=3,'Daten A4'!$N$18,IF(Options!$B$9=4,'Daten A4'!$N$24,IF(Options!$B$9=5,'Daten A4'!$N$30,IF(Options!$B$9=6,'Daten A4'!$N$36,IF(Options!$B$9=7,'Daten A4'!$N$42,IF(Options!$B$9=8,'Daten A4'!$N$48,IF(Options!$B$9=9,'Daten A4'!$N$54,IF(Options!$B$9=10,'Daten A4'!$N$60,IF(Options!$B$9=11,'Daten A4'!$N$66,IF(Options!$B$9=12,'Daten A4'!$N$72,IF(Options!$B$9=13,'Daten A4'!$N$78,IF(Options!$B$9=14,'Daten A4'!$N$84,IF(Options!$B$9=15,'Daten A4'!$N$90,IF(Options!$B$9=16,'Daten A4'!$N$96,IF(Options!$B$9=17,'Daten A4'!$N$102,IF(Options!$B$9=18,'Daten A4'!$N$108,IF(Options!$B$9=19,'Daten A4'!AC13,IF(Options!$B$9=20,'Daten A4'!AC19,IF(Options!$B$9=21,'Daten A4'!AC25,IF(Options!$B$9=22,'Daten A4'!AC31,IF(Options!$B$9=23,'Daten A4'!AC37,IF(Options!$B$9=24,'Daten A4'!AC43,)))))))))))))))))))))))) -> 33%
I37: =IF(OR($BZ$27=0,$CA$27=0),"",CONCATENATE($BZ$34,$BN$26,$CA$34)) ->  | L37: =IF(OR($BZ$28=0,$CA$28=0),"",CONCATENATE($BZ$35,$BN$26,$CA$35)) -> 33% / 67% | O37: =IF(OR($BZ$29=0,$CA$29=0),"",CONCATENATE($BZ$36,$BN$26,$CA$36)) -> -33% / 33% | T37: =IF(OR($BX$27=0,$BY$27=0),"",CONCATENATE($BX$34,$BN$26,$BY$34)) ->  | W37: =IF(OR($BX$28=0,$BY$28=0),"",CONCATENATE($BX$35,$BN$26,$BY$35)) -> 80% / 80% | Z37: =IF(OR($BX$29=0,$BY$29=0),"",CONCATENATE($BX$36,$BN$26,$BY$36)) ->  | AE37: =IF(OR($BV$27=0,$BW$27=0),"",CONCATENATE($BV$34,$BN$26,$BW$34)) ->  | AH37: =IF(OR($BV$28=0,$BW$28=0),"",CONCATENATE($BV$35,$BN$26,$BW$35)) -> 100% / 100% | AK37: =IF(OR($BV$29=0,$BW$29=0),"",CONCATENATE($BV$36,$BN$26,$BW$36)) -> 100% / 100% | BN37: Pos 8 | BP37: =IF(Options!$B$9=1,'Daten A4'!$C$7,IF(Options!$B$9=2,'Daten A4'!$C$13,IF(Options!$B$9=3,'Daten A4'!$C$19,IF(Options!$B$9=4,'Daten A4'!$C$25,IF(Options!$B$9=5,'Daten A4'!$C$31,IF(Options!$B$9=6,'Daten A4'!$C$37,IF(Options!$B$9=7,'Daten A4'!$C$43,IF(Options!$B$9=8,'Daten A4'!$C$49,IF(Options!$B$9=9,'Daten A4'!$C$55,IF(Options!$B$9=10,'Daten A4'!$C$61,IF(Options!$B$9=11,'Daten A4'!$C$67,IF(Options!$B$9=12,'Daten A4'!$C$73,IF(Options!$B$9=13,'Daten A4'!$C$79,IF(Options!$B$9=14,'Daten A4'!$C$85,IF(Options!$B$9=15,'Daten A4'!$C$91,IF(Options!$B$9=16,'Daten A4'!$C$97,IF(Options!$B$9=17,'Daten A4'!$C$103,IF(Options!$B$9=18,'Daten A4'!$C$109,IF(Options!$B$9=19,'Daten A4'!R14,IF(Options!$B$9=20,'Daten A4'!R20,IF(Options!$B$9=21,'Daten A4'!R26,IF(Options!$B$9=22,'Daten A4'!R32,IF(Options!$B$9=23,'Daten A4'!R38,IF(Options!$B$9=24,'Daten A4'!R44,)))))))))))))))))))))))) -> -100% | BQ37: =IF(Options!$B$9=1,'Daten A4'!$D$7,IF(Options!$B$9=2,'Daten A4'!$D$13,IF(Options!$B$9=3,'Daten A4'!$D$19,IF(Options!$B$9=4,'Daten A4'!$D$25,IF(Options!$B$9=5,'Daten A4'!$D$31,IF(Options!$B$9=6,'Daten A4'!$D$37,IF(Options!$B$9=7,'Daten A4'!$D$43,IF(Options!$B$9=8,'Daten A4'!$D$49,IF(Options!$B$9=9,'Daten A4'!$D$55,IF(Options!$B$9=10,'Daten A4'!$D$61,IF(Options!$B$9=11,'Daten A4'!$D$67,IF(Options!$B$9=12,'Daten A4'!$D$73,IF(Options!$B$9=13,'Daten A4'!$D$79,IF(Options!$B$9=14,'Daten A4'!$D$85,IF(Options!$B$9=15,'Daten A4'!$D$91,IF(Options!$B$9=16,'Daten A4'!$D$97,IF(Options!$B$9=17,'Daten A4'!$D$103,IF(Options!$B$9=18,'Daten A4'!$D$109,IF(Options!$B$9=19,'Daten A4'!S14,IF(Options!$B$9=20,'Daten A4'!S20,IF(Options!$B$9=21,'Daten A4'!S26,IF(Options!$B$9=22,'Daten A4'!S32,IF(Options!$B$9=23,'Daten A4'!S38,IF(Options!$B$9=24,'Daten A4'!S44,)))))))))))))))))))))))) -> 0% | BR37: =IF(Options!$B$9=1,'Daten A4'!$E$7,IF(Options!$B$9=2,'Daten A4'!$E$13,IF(Options!$B$9=3,'Daten A4'!$E$19,IF(Options!$B$9=4,'Daten A4'!$E$25,IF(Options!$B$9=5,'Daten A4'!$E$31,IF(Options!$B$9=6,'Daten A4'!$E$37,IF(Options!$B$9=7,'Daten A4'!$E$43,IF(Options!$B$9=8,'Daten A4'!$E$49,IF(Options!$B$9=9,'Daten A4'!$E$55,IF(Options!$B$9=10,'Daten A4'!$E$61,IF(Options!$B$9=11,'Daten A4'!$E$67,IF(Options!$B$9=12,'Daten A4'!$E$73,IF(Options!$B$9=13,'Daten A4'!$E$79,IF(Options!$B$9=14,'Daten A4'!$E$85,IF(Options!$B$9=15,'Daten A4'!$E$91,IF(Options!$B$9=16,'Daten A4'!$E$97,IF(Options!$B$9=17,'Daten A4'!$E$103,IF(Options!$B$9=18,'Daten A4'!$E$109,IF(Options!$B$9=19,'Daten A4'!T14,IF(Options!$B$9=20,'Daten A4'!T20,IF(Options!$B$9=21,'Daten A4'!T26,IF(Options!$B$9=22,'Daten A4'!T32,IF(Options!$B$9=23,'Daten A4'!T38,IF(Options!$B$9=24,'Daten A4'!T44,)))))))))))))))))))))))) -> 0% | BS37: =IF(Options!$B$9=1,'Daten A4'!$F$7,IF(Options!$B$9=2,'Daten A4'!$F$13,IF(Options!$B$9=3,'Daten A4'!$F$19,IF(Options!$B$9=4,'Daten A4'!$F$25,IF(Options!$B$9=5,'Daten A4'!$F$31,IF(Options!$B$9=6,'Daten A4'!$F$37,IF(Options!$B$9=7,'Daten A4'!$F$43,IF(Options!$B$9=8,'Daten A4'!$F$49,IF(Options!$B$9=9,'Daten A4'!$F$55,IF(Options!$B$9=10,'Daten A4'!$F$61,IF(Options!$B$9=11,'Daten A4'!$F$67,IF(Options!$B$9=12,'Daten A4'!$F$73,IF(Options!$B$9=13,'Daten A4'!$F$79,IF(Options!$B$9=14,'Daten A4'!$F$85,IF(Options!$B$9=15,'Daten A4'!$F$91,IF(Options!$B$9=16,'Daten A4'!$F$97,IF(Options!$B$9=17,'Daten A4'!$F$103,IF(Options!$B$9=18,'Daten A4'!$F$109,IF(Options!$B$9=19,'Daten A4'!U14,IF(Options!$B$9=20,'Daten A4'!U20,IF(Options!$B$9=21,'Daten A4'!U26,IF(Options!$B$9=22,'Daten A4'!U32,IF(Options!$B$9=23,'Daten A4'!U38,IF(Options!$B$9=24,'Daten A4'!U44,)))))))))))))))))))))))) -> 0% | BT37: =IF(Options!$B$9=1,'Daten A4'!$G$7,IF(Options!$B$9=2,'Daten A4'!$G$13,IF(Options!$B$9=3,'Daten A4'!$G$19,IF(Options!$B$9=4,'Daten A4'!$G$25,IF(Options!$B$9=5,'Daten A4'!$G$31,IF(Options!$B$9=6,'Daten A4'!$G$37,IF(Options!$B$9=7,'Daten A4'!$G$43,IF(Options!$B$9=8,'Daten A4'!$G$49,IF(Options!$B$9=9,'Daten A4'!$G$55,IF(Options!$B$9=10,'Daten A4'!$G$61,IF(Options!$B$9=11,'Daten A4'!$G$67,IF(Options!$B$9=12,'Daten A4'!$G$73,IF(Options!$B$9=13,'Daten A4'!$G$79,IF(Options!$B$9=14,'Daten A4'!$G$85,IF(Options!$B$9=15,'Daten A4'!$G$91,IF(Options!$B$9=16,'Daten A4'!$G$97,IF(Options!$B$9=17,'Daten A4'!$G$103,IF(Options!$B$9=18,'Daten A4'!$G$109,IF(Options!$B$9=19,'Daten A4'!V14,IF(Options!$B$9=20,'Daten A4'!V20,IF(Options!$B$9=21,'Daten A4'!V26,IF(Options!$B$9=22,'Daten A4'!V32,IF(Options!$B$9=23,'Daten A4'!V38,IF(Options!$B$9=24,'Daten A4'!V44,)))))))))))))))))))))))) -> 40% | BU37: =IF(Options!$B$9=1,'Daten A4'!$H$7,IF(Options!$B$9=2,'Daten A4'!$H$13,IF(Options!$B$9=3,'Daten A4'!$H$19,IF(Options!$B$9=4,'Daten A4'!$H$25,IF(Options!$B$9=5,'Daten A4'!$H$31,IF(Options!$B$9=6,'Daten A4'!$H$37,IF(Options!$B$9=7,'Daten A4'!$H$43,IF(Options!$B$9=8,'Daten A4'!$H$49,IF(Options!$B$9=9,'Daten A4'!$H$55,IF(Options!$B$9=10,'Daten A4'!$H$61,IF(Options!$B$9=11,'Daten A4'!$H$67,IF(Options!$B$9=12,'Daten A4'!$H$73,IF(Options!$B$9=13,'Daten A4'!$H$79,IF(Options!$B$9=14,'Daten A4'!$H$85,IF(Options!$B$9=15,'Daten A4'!$H$91,IF(Options!$B$9=16,'Daten A4'!$H$97,IF(Options!$B$9=17,'Daten A4'!$H$103,IF(Options!$B$9=18,'Daten A4'!$H$109,IF(Options!$B$9=19,'Daten A4'!W14,IF(Options!$B$9=20,'Daten A4'!W20,IF(Options!$B$9=21,'Daten A4'!W26,IF(Options!$B$9=22,'Daten A4'!W32,IF(Options!$B$9=23,'Daten A4'!W38,IF(Options!$B$9=24,'Daten A4'!W44,)))))))))))))))))))))))) -> 60% | BV37: =IF(Options!$B$9=1,'Daten A4'!$I$7,IF(Options!$B$9=2,'Daten A4'!$I$13,IF(Options!$B$9=3,'Daten A4'!$I$19,IF(Options!$B$9=4,'Daten A4'!$I$25,IF(Options!$B$9=5,'Daten A4'!$I$31,IF(Options!$B$9=6,'Daten A4'!$I$37,IF(Options!$B$9=7,'Daten A4'!$I$43,IF(Options!$B$9=8,'Daten A4'!$I$49,IF(Options!$B$9=9,'Daten A4'!$I$55,IF(Options!$B$9=10,'Daten A4'!$I$61,IF(Options!$B$9=11,'Daten A4'!$I$67,IF(Options!$B$9=12,'Daten A4'!$I$73,IF(Options!$B$9=13,'Daten A4'!$I$79,IF(Options!$B$9=14,'Daten A4'!$I$85,IF(Options!$B$9=15,'Daten A4'!$I$91,IF(Options!$B$9=16,'Daten A4'!$I$97,IF(Options!$B$9=17,'Daten A4'!$I$103,IF(Options!$B$9=18,'Daten A4'!$I$109,IF(Options!$B$9=19,'Daten A4'!X14,IF(Options!$B$9=20,'Daten A4'!X20,IF(Options!$B$9=21,'Daten A4'!X26,IF(Options!$B$9=22,'Daten A4'!X32,IF(Options!$B$9=23,'Daten A4'!X38,IF(Options!$B$9=24,'Daten A4'!X44,)))))))))))))))))))))))) -> 0% | BW37: =IF(Options!$B$9=1,'Daten A4'!$J$7,IF(Options!$B$9=2,'Daten A4'!$J$13,IF(Options!$B$9=3,'Daten A4'!$J$19,IF(Options!$B$9=4,'Daten A4'!$J$25,IF(Options!$B$9=5,'Daten A4'!$J$31,IF(Options!$B$9=6,'Daten A4'!$J$37,IF(Options!$B$9=7,'Daten A4'!$J$43,IF(Options!$B$9=8,'Daten A4'!$J$49,IF(Options!$B$9=9,'Daten A4'!$J$55,IF(Options!$B$9=10,'Daten A4'!$J$61,IF(Options!$B$9=11,'Daten A4'!$J$67,IF(Options!$B$9=12,'Daten A4'!$J$73,IF(Options!$B$9=13,'Daten A4'!$J$79,IF(Options!$B$9=14,'Daten A4'!$J$85,IF(Options!$B$9=15,'Daten A4'!$J$91,IF(Options!$B$9=16,'Daten A4'!$J$97,IF(Options!$B$9=17,'Daten A4'!$J$103,IF(Options!$B$9=18,'Daten A4'!$J$109,IF(Options!$B$9=19,'Daten A4'!Y14,IF(Options!$B$9=20,'Daten A4'!Y20,IF(Options!$B$9=21,'Daten A4'!Y26,IF(Options!$B$9=22,'Daten A4'!Y32,IF(Options!$B$9=23,'Daten A4'!Y38,IF(Options!$B$9=24,'Daten A4'!Y44,)))))))))))))))))))))))) -> ---- | BX37: =IF(Options!$B$9=1,'Daten A4'!$K$7,IF(Options!$B$9=2,'Daten A4'!$K$13,IF(Options!$B$9=3,'Daten A4'!$K$19,IF(Options!$B$9=4,'Daten A4'!$K$25,IF(Options!$B$9=5,'Daten A4'!$K$31,IF(Options!$B$9=6,'Daten A4'!$K$37,IF(Options!$B$9=7,'Daten A4'!$K$43,IF(Options!$B$9=8,'Daten A4'!$K$49,IF(Options!$B$9=9,'Daten A4'!$K$55,IF(Options!$B$9=10,'Daten A4'!$K$61,IF(Options!$B$9=11,'Daten A4'!$K$67,IF(Options!$B$9=12,'Daten A4'!$K$73,IF(Options!$B$9=13,'Daten A4'!$K$79,IF(Options!$B$9=14,'Daten A4'!$K$85,IF(Options!$B$9=15,'Daten A4'!$K$91,IF(Options!$B$9=16,'Daten A4'!$K$97,IF(Options!$B$9=17,'Daten A4'!$K$103,IF(Options!$B$9=18,'Daten A4'!$K$109,IF(Options!$B$9=19,'Daten A4'!Z14,IF(Options!$B$9=20,'Daten A4'!Z20,IF(Options!$B$9=21,'Daten A4'!Z26,IF(Options!$B$9=22,'Daten A4'!Z32,IF(Options!$B$9=23,'Daten A4'!Z38,IF(Options!$B$9=24,'Daten A4'!Z44,)))))))))))))))))))))))) -> 0% | BY37: =IF(Options!$B$9=1,'Daten A4'!$L$7,IF(Options!$B$9=2,'Daten A4'!$L$13,IF(Options!$B$9=3,'Daten A4'!$L$19,IF(Options!$B$9=4,'Daten A4'!$L$25,IF(Options!$B$9=5,'Daten A4'!$L$31,IF(Options!$B$9=6,'Daten A4'!$L$37,IF(Options!$B$9=7,'Daten A4'!$L$43,IF(Options!$B$9=8,'Daten A4'!$L$49,IF(Options!$B$9=9,'Daten A4'!$L$55,IF(Options!$B$9=10,'Daten A4'!$L$61,IF(Options!$B$9=11,'Daten A4'!$L$67,IF(Options!$B$9=12,'Daten A4'!$L$73,IF(Options!$B$9=13,'Daten A4'!$L$79,IF(Options!$B$9=14,'Daten A4'!$L$85,IF(Options!$B$9=15,'Daten A4'!$L$91,IF(Options!$B$9=16,'Daten A4'!$L$97,IF(Options!$B$9=17,'Daten A4'!$L$103,IF(Options!$B$9=18,'Daten A4'!$L$109,IF(Options!$B$9=19,'Daten A4'!AA14,IF(Options!$B$9=20,'Daten A4'!AA20,IF(Options!$B$9=21,'Daten A4'!AA26,IF(Options!$B$9=22,'Daten A4'!AA32,IF(Options!$B$9=23,'Daten A4'!AA38,IF(Options!$B$9=24,'Daten A4'!AA44,)))))))))))))))))))))))) -> ---- | BZ37: =IF(Options!$B$9=1,'Daten A4'!$M$7,IF(Options!$B$9=2,'Daten A4'!$M$13,IF(Options!$B$9=3,'Daten A4'!$M$19,IF(Options!$B$9=4,'Daten A4'!$M$25,IF(Options!$B$9=5,'Daten A4'!$M$31,IF(Options!$B$9=6,'Daten A4'!$M$37,IF(Options!$B$9=7,'Daten A4'!$M$43,IF(Options!$B$9=8,'Daten A4'!$M$49,IF(Options!$B$9=9,'Daten A4'!$M$55,IF(Options!$B$9=10,'Daten A4'!$M$61,IF(Options!$B$9=11,'Daten A4'!$M$67,IF(Options!$B$9=12,'Daten A4'!$M$73,IF(Options!$B$9=13,'Daten A4'!$M$79,IF(Options!$B$9=14,'Daten A4'!$M$85,IF(Options!$B$9=15,'Daten A4'!$M$91,IF(Options!$B$9=16,'Daten A4'!$M$97,IF(Options!$B$9=17,'Daten A4'!$M$103,IF(Options!$B$9=18,'Daten A4'!$M$109,IF(Options!$B$9=19,'Daten A4'!AB14,IF(Options!$B$9=20,'Daten A4'!AB20,IF(Options!$B$9=21,'Daten A4'!AB26,IF(Options!$B$9=22,'Daten A4'!AB32,IF(Options!$B$9=23,'Daten A4'!AB38,IF(Options!$B$9=24,'Daten A4'!AB44,)))))))))))))))))))))))) -> 0% | CA37: =IF(Options!$B$9=1,'Daten A4'!$N$7,IF(Options!$B$9=2,'Daten A4'!$N$13,IF(Options!$B$9=3,'Daten A4'!$N$19,IF(Options!$B$9=4,'Daten A4'!$N$25,IF(Options!$B$9=5,'Daten A4'!$N$31,IF(Options!$B$9=6,'Daten A4'!$N$37,IF(Options!$B$9=7,'Daten A4'!$N$43,IF(Options!$B$9=8,'Daten A4'!$N$49,IF(Options!$B$9=9,'Daten A4'!$N$55,IF(Options!$B$9=10,'Daten A4'!$N$61,IF(Options!$B$9=11,'Daten A4'!$N$67,IF(Options!$B$9=12,'Daten A4'!$N$73,IF(Options!$B$9=13,'Daten A4'!$N$79,IF(Options!$B$9=14,'Daten A4'!$N$85,IF(Options!$B$9=15,'Daten A4'!$N$91,IF(Options!$B$9=16,'Daten A4'!$N$97,IF(Options!$B$9=17,'Daten A4'!$N$103,IF(Options!$B$9=18,'Daten A4'!$N$109,IF(Options!$B$9=19,'Daten A4'!AC14,IF(Options!$B$9=20,'Daten A4'!AC20,IF(Options!$B$9=21,'Daten A4'!AC26,IF(Options!$B$9=22,'Daten A4'!AC32,IF(Options!$B$9=23,'Daten A4'!AC38,IF(Options!$B$9=24,'Daten A4'!AC44,)))))))))))))))))))))))) -> ----
AR38: S3 | BN38: Pos 9 | BP38: =IF(Options!$B$9=1,'Daten A4'!$C$8,IF(Options!$B$9=2,'Daten A4'!$C$14,IF(Options!$B$9=3,'Daten A4'!$C$20,IF(Options!$B$9=4,'Daten A4'!$C$26,IF(Options!$B$9=5,'Daten A4'!$C$32,IF(Options!$B$9=6,'Daten A4'!$C$38,IF(Options!$B$9=7,'Daten A4'!$C$44,IF(Options!$B$9=8,'Daten A4'!$C$50,IF(Options!$B$9=9,'Daten A4'!$C$56,IF(Options!$B$9=10,'Daten A4'!$C$62,IF(Options!$B$9=11,'Daten A4'!$C$68,IF(Options!$B$9=12,'Daten A4'!$C$74,IF(Options!$B$9=13,'Daten A4'!$C$80,IF(Options!$B$9=14,'Daten A4'!$C$86,IF(Options!$B$9=15,'Daten A4'!$C$92,IF(Options!$B$9=16,'Daten A4'!$C$98,IF(Options!$B$9=17,'Daten A4'!$C$104,IF(Options!$B$9=18,'Daten A4'!$C$110,IF(Options!$B$9=19,'Daten A4'!R15,IF(Options!$B$9=20,'Daten A4'!R21,IF(Options!$B$9=21,'Daten A4'!R27,IF(Options!$B$9=22,'Daten A4'!R33,IF(Options!$B$9=23,'Daten A4'!R39,IF(Options!$B$9=24,'Daten A4'!R45,)))))))))))))))))))))))) -> 0% | BQ38: =IF(Options!$B$9=1,'Daten A4'!$D$8,IF(Options!$B$9=2,'Daten A4'!$D$14,IF(Options!$B$9=3,'Daten A4'!$D$20,IF(Options!$B$9=4,'Daten A4'!$D$26,IF(Options!$B$9=5,'Daten A4'!$D$32,IF(Options!$B$9=6,'Daten A4'!$D$38,IF(Options!$B$9=7,'Daten A4'!$D$44,IF(Options!$B$9=8,'Daten A4'!$D$50,IF(Options!$B$9=9,'Daten A4'!$D$56,IF(Options!$B$9=10,'Daten A4'!$D$62,IF(Options!$B$9=11,'Daten A4'!$D$68,IF(Options!$B$9=12,'Daten A4'!$D$74,IF(Options!$B$9=13,'Daten A4'!$D$80,IF(Options!$B$9=14,'Daten A4'!$D$86,IF(Options!$B$9=15,'Daten A4'!$D$92,IF(Options!$B$9=16,'Daten A4'!$D$98,IF(Options!$B$9=17,'Daten A4'!$D$104,IF(Options!$B$9=18,'Daten A4'!$D$110,IF(Options!$B$9=19,'Daten A4'!S15,IF(Options!$B$9=20,'Daten A4'!S21,IF(Options!$B$9=21,'Daten A4'!S27,IF(Options!$B$9=22,'Daten A4'!S33,IF(Options!$B$9=23,'Daten A4'!S39,IF(Options!$B$9=24,'Daten A4'!S45,)))))))))))))))))))))))) -> ---- | BR38: =IF(Options!$B$9=1,'Daten A4'!$E$8,IF(Options!$B$9=2,'Daten A4'!$E$14,IF(Options!$B$9=3,'Daten A4'!$E$20,IF(Options!$B$9=4,'Daten A4'!$E$26,IF(Options!$B$9=5,'Daten A4'!$E$32,IF(Options!$B$9=6,'Daten A4'!$E$38,IF(Options!$B$9=7,'Daten A4'!$E$44,IF(Options!$B$9=8,'Daten A4'!$E$50,IF(Options!$B$9=9,'Daten A4'!$E$56,IF(Options!$B$9=10,'Daten A4'!$E$62,IF(Options!$B$9=11,'Daten A4'!$E$68,IF(Options!$B$9=12,'Daten A4'!$E$74,IF(Options!$B$9=13,'Daten A4'!$E$80,IF(Options!$B$9=14,'Daten A4'!$E$86,IF(Options!$B$9=15,'Daten A4'!$E$92,IF(Options!$B$9=16,'Daten A4'!$E$98,IF(Options!$B$9=17,'Daten A4'!$E$104,IF(Options!$B$9=18,'Daten A4'!$E$110,IF(Options!$B$9=19,'Daten A4'!T15,IF(Options!$B$9=20,'Daten A4'!T21,IF(Options!$B$9=21,'Daten A4'!T27,IF(Options!$B$9=22,'Daten A4'!T33,IF(Options!$B$9=23,'Daten A4'!T39,IF(Options!$B$9=24,'Daten A4'!T45,)))))))))))))))))))))))) -> 0% | BS38: =IF(Options!$B$9=1,'Daten A4'!$F$8,IF(Options!$B$9=2,'Daten A4'!$F$14,IF(Options!$B$9=3,'Daten A4'!$F$20,IF(Options!$B$9=4,'Daten A4'!$F$26,IF(Options!$B$9=5,'Daten A4'!$F$32,IF(Options!$B$9=6,'Daten A4'!$F$38,IF(Options!$B$9=7,'Daten A4'!$F$44,IF(Options!$B$9=8,'Daten A4'!$F$50,IF(Options!$B$9=9,'Daten A4'!$F$56,IF(Options!$B$9=10,'Daten A4'!$F$62,IF(Options!$B$9=11,'Daten A4'!$F$68,IF(Options!$B$9=12,'Daten A4'!$F$74,IF(Options!$B$9=13,'Daten A4'!$F$80,IF(Options!$B$9=14,'Daten A4'!$F$86,IF(Options!$B$9=15,'Daten A4'!$F$92,IF(Options!$B$9=16,'Daten A4'!$F$98,IF(Options!$B$9=17,'Daten A4'!$F$104,IF(Options!$B$9=18,'Daten A4'!$F$110,IF(Options!$B$9=19,'Daten A4'!U15,IF(Options!$B$9=20,'Daten A4'!U21,IF(Options!$B$9=21,'Daten A4'!U27,IF(Options!$B$9=22,'Daten A4'!U33,IF(Options!$B$9=23,'Daten A4'!U39,IF(Options!$B$9=24,'Daten A4'!U45,)))))))))))))))))))))))) -> ---- | BT38: =IF(Options!$B$9=1,'Daten A4'!$G$8,IF(Options!$B$9=2,'Daten A4'!$G$14,IF(Options!$B$9=3,'Daten A4'!$G$20,IF(Options!$B$9=4,'Daten A4'!$G$26,IF(Options!$B$9=5,'Daten A4'!$G$32,IF(Options!$B$9=6,'Daten A4'!$G$38,IF(Options!$B$9=7,'Daten A4'!$G$44,IF(Options!$B$9=8,'Daten A4'!$G$50,IF(Options!$B$9=9,'Daten A4'!$G$56,IF(Options!$B$9=10,'Daten A4'!$G$62,IF(Options!$B$9=11,'Daten A4'!$G$68,IF(Options!$B$9=12,'Daten A4'!$G$74,IF(Options!$B$9=13,'Daten A4'!$G$80,IF(Options!$B$9=14,'Daten A4'!$G$86,IF(Options!$B$9=15,'Daten A4'!$G$92,IF(Options!$B$9=16,'Daten A4'!$G$98,IF(Options!$B$9=17,'Daten A4'!$G$104,IF(Options!$B$9=18,'Daten A4'!$G$110,IF(Options!$B$9=19,'Daten A4'!V15,IF(Options!$B$9=20,'Daten A4'!V21,IF(Options!$B$9=21,'Daten A4'!V27,IF(Options!$B$9=22,'Daten A4'!V33,IF(Options!$B$9=23,'Daten A4'!V39,IF(Options!$B$9=24,'Daten A4'!V45,)))))))))))))))))))))))) -> 0% | BU38: =IF(Options!$B$9=1,'Daten A4'!$H$8,IF(Options!$B$9=2,'Daten A4'!$H$14,IF(Options!$B$9=3,'Daten A4'!$H$20,IF(Options!$B$9=4,'Daten A4'!$H$26,IF(Options!$B$9=5,'Daten A4'!$H$32,IF(Options!$B$9=6,'Daten A4'!$H$38,IF(Options!$B$9=7,'Daten A4'!$H$44,IF(Options!$B$9=8,'Daten A4'!$H$50,IF(Options!$B$9=9,'Daten A4'!$H$56,IF(Options!$B$9=10,'Daten A4'!$H$62,IF(Options!$B$9=11,'Daten A4'!$H$68,IF(Options!$B$9=12,'Daten A4'!$H$74,IF(Options!$B$9=13,'Daten A4'!$H$80,IF(Options!$B$9=14,'Daten A4'!$H$86,IF(Options!$B$9=15,'Daten A4'!$H$92,IF(Options!$B$9=16,'Daten A4'!$H$98,IF(Options!$B$9=17,'Daten A4'!$H$104,IF(Options!$B$9=18,'Daten A4'!$H$110,IF(Options!$B$9=19,'Daten A4'!W15,IF(Options!$B$9=20,'Daten A4'!W21,IF(Options!$B$9=21,'Daten A4'!W27,IF(Options!$B$9=22,'Daten A4'!W33,IF(Options!$B$9=23,'Daten A4'!W39,IF(Options!$B$9=24,'Daten A4'!W45,)))))))))))))))))))))))) -> ---- | BV38: =IF(Options!$B$9=1,'Daten A4'!$I$8,IF(Options!$B$9=2,'Daten A4'!$I$14,IF(Options!$B$9=3,'Daten A4'!$I$20,IF(Options!$B$9=4,'Daten A4'!$I$26,IF(Options!$B$9=5,'Daten A4'!$I$32,IF(Options!$B$9=6,'Daten A4'!$I$38,IF(Options!$B$9=7,'Daten A4'!$I$44,IF(Options!$B$9=8,'Daten A4'!$I$50,IF(Options!$B$9=9,'Daten A4'!$I$56,IF(Options!$B$9=10,'Daten A4'!$I$62,IF(Options!$B$9=11,'Daten A4'!$I$68,IF(Options!$B$9=12,'Daten A4'!$I$74,IF(Options!$B$9=13,'Daten A4'!$I$80,IF(Options!$B$9=14,'Daten A4'!$I$86,IF(Options!$B$9=15,'Daten A4'!$I$92,IF(Options!$B$9=16,'Daten A4'!$I$98,IF(Options!$B$9=17,'Daten A4'!$I$104,IF(Options!$B$9=18,'Daten A4'!$I$110,IF(Options!$B$9=19,'Daten A4'!X15,IF(Options!$B$9=20,'Daten A4'!X21,IF(Options!$B$9=21,'Daten A4'!X27,IF(Options!$B$9=22,'Daten A4'!X33,IF(Options!$B$9=23,'Daten A4'!X39,IF(Options!$B$9=24,'Daten A4'!X45,)))))))))))))))))))))))) -> 100% | BW38: =IF(Options!$B$9=1,'Daten A4'!$J$8,IF(Options!$B$9=2,'Daten A4'!$J$14,IF(Options!$B$9=3,'Daten A4'!$J$20,IF(Options!$B$9=4,'Daten A4'!$J$26,IF(Options!$B$9=5,'Daten A4'!$J$32,IF(Options!$B$9=6,'Daten A4'!$J$38,IF(Options!$B$9=7,'Daten A4'!$J$44,IF(Options!$B$9=8,'Daten A4'!$J$50,IF(Options!$B$9=9,'Daten A4'!$J$56,IF(Options!$B$9=10,'Daten A4'!$J$62,IF(Options!$B$9=11,'Daten A4'!$J$68,IF(Options!$B$9=12,'Daten A4'!$J$74,IF(Options!$B$9=13,'Daten A4'!$J$80,IF(Options!$B$9=14,'Daten A4'!$J$86,IF(Options!$B$9=15,'Daten A4'!$J$92,IF(Options!$B$9=16,'Daten A4'!$J$98,IF(Options!$B$9=17,'Daten A4'!$J$104,IF(Options!$B$9=18,'Daten A4'!$J$110,IF(Options!$B$9=19,'Daten A4'!Y15,IF(Options!$B$9=20,'Daten A4'!Y21,IF(Options!$B$9=21,'Daten A4'!Y27,IF(Options!$B$9=22,'Daten A4'!Y33,IF(Options!$B$9=23,'Daten A4'!Y39,IF(Options!$B$9=24,'Daten A4'!Y45,)))))))))))))))))))))))) -> 100% | BX38: =IF(Options!$B$9=1,'Daten A4'!$K$8,IF(Options!$B$9=2,'Daten A4'!$K$14,IF(Options!$B$9=3,'Daten A4'!$K$20,IF(Options!$B$9=4,'Daten A4'!$K$26,IF(Options!$B$9=5,'Daten A4'!$K$32,IF(Options!$B$9=6,'Daten A4'!$K$38,IF(Options!$B$9=7,'Daten A4'!$K$44,IF(Options!$B$9=8,'Daten A4'!$K$50,IF(Options!$B$9=9,'Daten A4'!$K$56,IF(Options!$B$9=10,'Daten A4'!$K$62,IF(Options!$B$9=11,'Daten A4'!$K$68,IF(Options!$B$9=12,'Daten A4'!$K$74,IF(Options!$B$9=13,'Daten A4'!$K$80,IF(Options!$B$9=14,'Daten A4'!$K$86,IF(Options!$B$9=15,'Daten A4'!$K$92,IF(Options!$B$9=16,'Daten A4'!$K$98,IF(Options!$B$9=17,'Daten A4'!$K$104,IF(Options!$B$9=18,'Daten A4'!$K$110,IF(Options!$B$9=19,'Daten A4'!Z15,IF(Options!$B$9=20,'Daten A4'!Z21,IF(Options!$B$9=21,'Daten A4'!Z27,IF(Options!$B$9=22,'Daten A4'!Z33,IF(Options!$B$9=23,'Daten A4'!Z39,IF(Options!$B$9=24,'Daten A4'!Z45,)))))))))))))))))))))))) -> 100% | BY38: =IF(Options!$B$9=1,'Daten A4'!$L$8,IF(Options!$B$9=2,'Daten A4'!$L$14,IF(Options!$B$9=3,'Daten A4'!$L$20,IF(Options!$B$9=4,'Daten A4'!$L$26,IF(Options!$B$9=5,'Daten A4'!$L$32,IF(Options!$B$9=6,'Daten A4'!$L$38,IF(Options!$B$9=7,'Daten A4'!$L$44,IF(Options!$B$9=8,'Daten A4'!$L$50,IF(Options!$B$9=9,'Daten A4'!$L$56,IF(Options!$B$9=10,'Daten A4'!$L$62,IF(Options!$B$9=11,'Daten A4'!$L$68,IF(Options!$B$9=12,'Daten A4'!$L$74,IF(Options!$B$9=13,'Daten A4'!$L$80,IF(Options!$B$9=14,'Daten A4'!$L$86,IF(Options!$B$9=15,'Daten A4'!$L$92,IF(Options!$B$9=16,'Daten A4'!$L$98,IF(Options!$B$9=17,'Daten A4'!$L$104,IF(Options!$B$9=18,'Daten A4'!$L$110,IF(Options!$B$9=19,'Daten A4'!AA15,IF(Options!$B$9=20,'Daten A4'!AA21,IF(Options!$B$9=21,'Daten A4'!AA27,IF(Options!$B$9=22,'Daten A4'!AA33,IF(Options!$B$9=23,'Daten A4'!AA39,IF(Options!$B$9=24,'Daten A4'!AA45,)))))))))))))))))))))))) -> 100% | BZ38: =IF(Options!$B$9=1,'Daten A4'!$M$8,IF(Options!$B$9=2,'Daten A4'!$M$14,IF(Options!$B$9=3,'Daten A4'!$M$20,IF(Options!$B$9=4,'Daten A4'!$M$26,IF(Options!$B$9=5,'Daten A4'!$M$32,IF(Options!$B$9=6,'Daten A4'!$M$38,IF(Options!$B$9=7,'Daten A4'!$M$44,IF(Options!$B$9=8,'Daten A4'!$M$50,IF(Options!$B$9=9,'Daten A4'!$M$56,IF(Options!$B$9=10,'Daten A4'!$M$62,IF(Options!$B$9=11,'Daten A4'!$M$68,IF(Options!$B$9=12,'Daten A4'!$M$74,IF(Options!$B$9=13,'Daten A4'!$M$80,IF(Options!$B$9=14,'Daten A4'!$M$86,IF(Options!$B$9=15,'Daten A4'!$M$92,IF(Options!$B$9=16,'Daten A4'!$M$98,IF(Options!$B$9=17,'Daten A4'!$M$104,IF(Options!$B$9=18,'Daten A4'!$M$110,IF(Options!$B$9=19,'Daten A4'!AB15,IF(Options!$B$9=20,'Daten A4'!AB21,IF(Options!$B$9=21,'Daten A4'!AB27,IF(Options!$B$9=22,'Daten A4'!AB33,IF(Options!$B$9=23,'Daten A4'!AB39,IF(Options!$B$9=24,'Daten A4'!AB45,)))))))))))))))))))))))) -> 0% | CA38: =IF(Options!$B$9=1,'Daten A4'!$N$8,IF(Options!$B$9=2,'Daten A4'!$N$14,IF(Options!$B$9=3,'Daten A4'!$N$20,IF(Options!$B$9=4,'Daten A4'!$N$26,IF(Options!$B$9=5,'Daten A4'!$N$32,IF(Options!$B$9=6,'Daten A4'!$N$38,IF(Options!$B$9=7,'Daten A4'!$N$44,IF(Options!$B$9=8,'Daten A4'!$N$50,IF(Options!$B$9=9,'Daten A4'!$N$56,IF(Options!$B$9=10,'Daten A4'!$N$62,IF(Options!$B$9=11,'Daten A4'!$N$68,IF(Options!$B$9=12,'Daten A4'!$N$74,IF(Options!$B$9=13,'Daten A4'!$N$80,IF(Options!$B$9=14,'Daten A4'!$N$86,IF(Options!$B$9=15,'Daten A4'!$N$92,IF(Options!$B$9=16,'Daten A4'!$N$98,IF(Options!$B$9=17,'Daten A4'!$N$104,IF(Options!$B$9=18,'Daten A4'!$N$110,IF(Options!$B$9=19,'Daten A4'!AC15,IF(Options!$B$9=20,'Daten A4'!AC21,IF(Options!$B$9=21,'Daten A4'!AC27,IF(Options!$B$9=22,'Daten A4'!AC33,IF(Options!$B$9=23,'Daten A4'!AC39,IF(Options!$B$9=24,'Daten A4'!AC45,)))))))))))))))))))))))) -> 50%
I39: =IF($BA$35="x",BE33,"") -> 0 | L39: =IF($BA$35="x",BB33,"") -> 0.9090909091 | T39: =IF($BA$35="x",BE32,"") -> 0 | W39: =IF($BA$35="x",BB32,"") -> 0.2857142857 | AE39: =IF($BA$35="x",BE31,"") -> 0 | AH39: =IF($BA$35="x",BB31,"") -> 0.8333333333
J40: =IF($BA$35="x",BC33,"") -> 0 | M40: =IF($BA$35="x",BD33,"") -> 0.09090909091 | U40: =IF($BA$35="x",BC32,"") -> 0.7142857143 | X40: =IF($BA$35="x",BD32,"") -> 0 | AF40: =IF($BA$35="x",BC31,"") -> 0 | AI40: =IF($BA$35="x",BD31,"") -> 0.1666666667
I45: S2 | T45: S3 | AE45: S4 | AR45: S2

Sheet Matchplan T
B2: =Options!B1&" "&AV3&" - "&TEXT(AV4,"tt.MM.jjjj") -> KOREA - | AV2: =Options!B1 -> KOREA
AV3: =IF(Options!D3="","",Options!D3) -> 
AV4: =IF(Options!D2="","",Options!D2) -> 
AV6: LineUp:
AV7: Pos 1 | AW7: Pos 2 | AX7: Pos 3 | AY7: Pos 4 | AZ7: Pos 5 | BA7: Pos 6 | BB7: L
AU8: 1. | AV8: =IF(Options!B9="","",TEXT(Options!B9,"##")) -> 6 | AW8: =IF(Options!C9="","",TEXT(Options!C9,"##")) -> 1 | AX8: =IF(Options!D9="","",TEXT(Options!D9,"##")) -> 11 | AY8: =IF(Options!E9="","",TEXT(Options!E9,"##")) -> 17 | AZ8: =IF(Options!F9="","",TEXT(Options!F9,"##")) -> 9 | BA8: =IF(Options!G9="","",TEXT(Options!G9,"##")) -> 4 | BB8: =IF(Options!H9="","",TEXT(Options!H9,"##")) -> 19
B9: =IF(OR(BF31=0,BG31=0),"",CONCATENATE(BF31,$BD$26,BG31)) ->  | E9: =IF(OR(BF30=0,BG30=0),"",CONCATENATE(BF30,$BD$26,BG30)) ->  | M9: =IF(OR(BH31=0,BI31=0),"",CONCATENATE(BH31,$BD$26,BI31)) ->  | P9: =IF(OR(BF30=0,BG30=0),"",CONCATENATE(BF30,$BD$26,BG30)) ->  | X9: =IF(OR(BJ31=0,BK31=0),"",CONCATENATE(BJ31,$BD$26,BK31)) ->  | AA9: =IF(OR(BJ30=0,BK30=0),"",CONCATENATE(BJ30,$BD$26,BK30)) -> 20% / 1 | AU9: 2. | AV9: =IF(Options!B10="","",TEXT(Options!B10,"##")) -> 22 | AW9: =IF(Options!C10="","",TEXT(Options!C10,"##")) ->  | AX9: =IF(Options!D10="","",TEXT(Options!D10,"##")) -> 8 | AY9: =IF(Options!E10="","",TEXT(Options!E10,"##")) ->  | AZ9: =IF(Options!F10="","",TEXT(Options!F10,"##")) -> 14 | BA9: =IF(Options!G10="","",TEXT(Options!G10,"##")) ->  | BB9: =IF(Options!H10="","",TEXT(Options!H10,"##")) -> 25
B10: =IF(OR(BF31=0,BG31=0),"",CONCATENATE(BF38,$BD$26,BG38)) ->  | E10: =IF(OR(BF30=0,BG30=0),"",CONCATENATE(BF37,$BD$26,BG37)) ->  | M10: =IF(OR(BH31=0,BI31=0),"",CONCATENATE(BH38,$BD$26,BI38)) ->  | P10: =IF(OR(BF30=0,BG30=0),"",CONCATENATE(BF31,$BD$26,BG31)) ->  | X10: =IF(OR(BJ31=0,BK31=0),"",CONCATENATE(BJ38,$BD$26,BK38)) ->  | AA10: =IF(OR(BJ30=0,BK30=0),"",CONCATENATE(BJ37,$BD$26,BK37)) -> 100% / 100% | AU10: ∑ | AV10: =IF(Options!B11="","",Options!B11) -> 6/22 | AW10: =IF(Options!C11="","",Options!C11) -> 1 | AX10: =IF(Options!D11="","",Options!D11) -> 11/8 | AY10: =IF(Options!E11="","",Options!E11) -> 17 | AZ10: =IF(Options!F11="","",Options!F11) -> 9/14 | BA10: =IF(Options!G11="","",Options!G11) -> 4 | BB10: =IF(Options!H11="","",Options!H11) -> 19/25
B14: =IF(OR(BF27=0,BG27=0),"",CONCATENATE(BF27,$BD$26,BG27)) ->  | E14: =IF(OR(BF28=0,BG28=0),"",CONCATENATE(BF28,$BD$26,BG28)) ->  | H14: =IF(OR(BF29=0,BG29=0),"",CONCATENATE(BF29,$BD$26,BG29)) -> 100% / 4 | M14: =IF(OR(BH27=0,BI27=0),"",CONCATENATE(BH27,$BD$26,BI27)) -> 50% / 2 | P14: =IF(OR(BH28=0,BI28=0),"",CONCATENATE(BH28,$BD$26,BI28)) -> 25% / 1 | S14: =IF(OR(BH29=0,BI29=0),"",CONCATENATE(BH29,$BD$26,BI29)) -> 25% / 1 | X14: =IF(OR(BJ27=0,BK27=0),"",CONCATENATE(BJ27,$BD$26,BK27)) -> 40% / 2 | AA14: =IF(OR(BJ28=0,BK28=0),"",CONCATENATE(BJ28,$BD$26,BK28)) ->  | AD14: =IF(OR(BJ29=0,BK29=0),"",CONCATENATE(BJ29,$BD$26,BK29)) -> 40% / 2
B15: =IF(OR(BF27=0,BG27=0),"",CONCATENATE(BF34,$BD$26,BG34)) ->  | E15: =IF(OR(BF28=0,BG28=0),"",CONCATENATE(BF35,$BD$26,BG35)) ->  | H15: =IF(OR(BF29=0,BG29=0),"",CONCATENATE(BF36,$BD$26,BG36)) -> -25% / 25% | M15: =IF(OR(BH27=0,BI27=0),"",CONCATENATE(BH34,$BD$26,BI34)) -> -100% / 0% | P15: =IF(OR(BH28=0,BI28=0),"",CONCATENATE(BH35,$BD$26,BI35)) -> 100% / 100% | S15: =IF(OR(BH29=0,BI29=0),"",CONCATENATE(BH36,$BD$26,BI36)) -> -100% / 0% | X15: =IF(OR(BJ27=0,BK27=0),"",CONCATENATE(BJ34,$BD$26,BK34)) -> 100% / 100% | AA15: =IF(OR(BJ28=0,BK28=0),"",CONCATENATE(BJ35,$BD$26,BK35)) ->  | AD15: =IF(OR(BJ29=0,BK29=0),"",CONCATENATE(BJ36,$BD$26,BK36)) -> 50% / 50%
B17: =IF($AW$35="x",BA28,"") ->  | E17: =IF($AW$35="x",AX28,"") ->  | M17: =IF($AW$35="x",BA29,"") ->  | P17: =IF($AW$35="x",AX29,"") ->  | X17: =IF($AW$35="x",BA30,"") ->  | AA17: =IF($AW$35="x",AX30,"") ->  | AW17: ∑ K | AX17: K1 | AY17: K2 | AZ17: K7 | BA17: KD
C18: =IF($AW$35="x",AY28,"") ->  | F18: =IF($AW$35="x",AZ28,"") ->  | N18: =IF($AW$35="x",AY29,"") ->  | Q18: =IF($AW$35="x",AZ29,"") ->  | Y18: =IF($AW$35="x",AY30,"") ->  | AB18: =IF($AW$35="x",AZ30,"") ->  | AV18: S1 | AW18: =SUM(AX18:BB18) -> 0 | AX18: ='Daten AfR'!D9 -> 0 | AY18: ='Daten AfR'!E9 -> 0 | AZ18: ='Daten AfR'!F9 -> 0 | BA18: ='Daten AfR'!G9 -> 0 | BB18: ='Daten AfR'!H9 -> 0
AV19: S6 | AW19: =SUM(AX19:BB19) -> 0 | AX19: ='Daten AfR'!D10 -> 0 | AY19: ='Daten AfR'!E10 -> 0 | AZ19: ='Daten AfR'!F10 -> 0 | BA19: ='Daten AfR'!G10 -> 0 | BB19: ='Daten AfR'!H10 -> 0
AV20: S5 | AW20: 0 | AX20: ='Daten AfR'!D11 -> 0 | AY20: ='Daten AfR'!E11 -> 0 | AZ20: ='Daten AfR'!F11 -> 0 | BA20: ='Daten AfR'!G11 -> 0 | BB20: ='Daten AfR'!H11 -> 0
AV21: S4 | AW21: 0 | AX21: ='Daten AfR'!D12 -> 0 | AY21: ='Daten AfR'!E12 -> 0 | AZ21: ='Daten AfR'!F12 -> 0 | BA21: ='Daten AfR'!G12 -> 0 | BB21: ='Daten AfR'!H12 -> 0
AV22: S3 | AW22: 0 | AX22: ='Daten AfR'!D13 -> 0 | AY22: ='Daten AfR'!E13 -> 0 | AZ22: ='Daten AfR'!F13 -> 0 | BA22: ='Daten AfR'!G13 -> 0 | BB22: ='Daten AfR'!H13 -> 0
B23: S1 | M23: S6 | X23: S5 | AV23: S2 | AW23: 0 | AX23: ='Daten AfR'!D14 -> 0 | AY23: ='Daten AfR'!E14 -> 0 | AZ23: ='Daten AfR'!F14 -> 0 | BA23: ='Daten AfR'!G14 -> 0 | BB23: ='Daten AfR'!H14 -> 0
BD25: Distribution in rot by setter
BD26: / | BF26: S 1 | BH26: S 6 | BJ26: S 5 | BL26: S 4 | BN26: S 3 | BP26: S 2
AX27: K1 | AY27: K2 | AZ27: K7 | BA27: KD | BD27: Pos 2 | BF27: =IF(Options!$B$9=1,'Daten A5'!$C$4,IF(Options!$B$9=2,'Daten A5'!$C$10,IF(Options!$B$9=3,'Daten A5'!$C$16,IF(Options!$B$9=4,'Daten A5'!$C$22,IF(Options!$B$9=5,'Daten A5'!$C$28,IF(Options!$B$9=6,'Daten A5'!$C$34,IF(Options!$B$9=7,'Daten A5'!$C$40,IF(Options!$B$9=8,'Daten A5'!$C$46,IF(Options!$B$9=9,'Daten A5'!$C$52,IF(Options!$B$9=10,'Daten A5'!$C$58,IF(Options!$B$9=11,'Daten A5'!$C$64,IF(Options!$B$9=12,'Daten A5'!$C$70,IF(Options!$B$9=13,'Daten A5'!$C$76,IF(Options!$B$9=14,'Daten A5'!$C$82,IF(Options!$B$9=15,'Daten A5'!$C$88,IF(Options!$B$9=16,'Daten A5'!$C$94,IF(Options!$B$9=17,'Daten A5'!$C$100,IF(Options!$B$9=18,'Daten A5'!$C$106,IF(Options!$B$9=19,'Daten A5'!R4,IF(Options!$B$9=20,'Daten A5'!R10,IF(Options!$B$9=21,'Daten A5'!R16,IF(Options!$B$9=22,'Daten A5'!R22,IF(Options!$B$9=23,'Daten A5'!R28,IF(Options!$B$9=24,'Daten A5'!R34,)))))))))))))))))))))))) -> 0% | BG27: =IF(Options!$B$9=1,'Daten A5'!$D$4,IF(Options!$B$9=2,'Daten A5'!$D$10,IF(Options!$B$9=3,'Daten A5'!$D$16,IF(Options!$B$9=4,'Daten A5'!$D$22,IF(Options!$B$9=5,'Daten A5'!$D$28,IF(Options!$B$9=6,'Daten A5'!$D$34,IF(Options!$B$9=7,'Daten A5'!$D$40,IF(Options!$B$9=8,'Daten A5'!$D$46,IF(Options!$B$9=9,'Daten A5'!$D$52,IF(Options!$B$9=10,'Daten A5'!$D$58,IF(Options!$B$9=11,'Daten A5'!$D$64,IF(Options!$B$9=12,'Daten A5'!$D$70,IF(Options!$B$9=13,'Daten A5'!$D$76,IF(Options!$B$9=14,'Daten A5'!$D$82,IF(Options!$B$9=15,'Daten A5'!$D$88,IF(Options!$B$9=16,'Daten A5'!$D$94,IF(Options!$B$9=17,'Daten A5'!$D$100,IF(Options!$B$9=18,'Daten A5'!$D$106,IF(Options!$B$9=19,'Daten A5'!S4,IF(Options!$B$9=20,'Daten A5'!S10,IF(Options!$B$9=21,'Daten A5'!S16,IF(Options!$B$9=22,'Daten A5'!S22,IF(Options!$B$9=23,'Daten A5'!S28,IF(Options!$B$9=24,'Daten A5'!S34,)))))))))))))))))))))))) -> 0 | BH27: =IF(Options!$B$9=1,'Daten A5'!$E$4,IF(Options!$B$9=2,'Daten A5'!$E$10,IF(Options!$B$9=3,'Daten A5'!$E$16,IF(Options!$B$9=4,'Daten A5'!$E$22,IF(Options!$B$9=5,'Daten A5'!$E$28,IF(Options!$B$9=6,'Daten A5'!$E$34,IF(Options!$B$9=7,'Daten A5'!$E$40,IF(Options!$B$9=8,'Daten A5'!$E$46,IF(Options!$B$9=9,'Daten A5'!$E$52,IF(Options!$B$9=10,'Daten A5'!$E$58,IF(Options!$B$9=11,'Daten A5'!$E$64,IF(Options!$B$9=12,'Daten A5'!$E$70,IF(Options!$B$9=13,'Daten A5'!$E$76,IF(Options!$B$9=14,'Daten A5'!$E$82,IF(Options!$B$9=15,'Daten A5'!$E$88,IF(Options!$B$9=16,'Daten A5'!$E$94,IF(Options!$B$9=17,'Daten A5'!$E$100,IF(Options!$B$9=18,'Daten A5'!$E$106,IF(Options!$B$9=19,'Daten A5'!T4,IF(Options!$B$9=20,'Daten A5'!T10,IF(Options!$B$9=21,'Daten A5'!T16,IF(Options!$B$9=22,'Daten A5'!T22,IF(Options!$B$9=23,'Daten A5'!T28,IF(Options!$B$9=24,'Daten A5'!T34,)))))))))))))))))))))))) -> 50% | BI27: =IF(Options!$B$9=1,'Daten A5'!$F$4,IF(Options!$B$9=2,'Daten A5'!$F$10,IF(Options!$B$9=3,'Daten A5'!$F$16,IF(Options!$B$9=4,'Daten A5'!$F$22,IF(Options!$B$9=5,'Daten A5'!$F$28,IF(Options!$B$9=6,'Daten A5'!$F$34,IF(Options!$B$9=7,'Daten A5'!$F$40,IF(Options!$B$9=8,'Daten A5'!$F$46,IF(Options!$B$9=9,'Daten A5'!$F$52,IF(Options!$B$9=10,'Daten A5'!$F$58,IF(Options!$B$9=11,'Daten A5'!$F$64,IF(Options!$B$9=12,'Daten A5'!$F$70,IF(Options!$B$9=13,'Daten A5'!$F$76,IF(Options!$B$9=14,'Daten A5'!$F$82,IF(Options!$B$9=15,'Daten A5'!$F$88,IF(Options!$B$9=16,'Daten A5'!$F$94,IF(Options!$B$9=17,'Daten A5'!$F$100,IF(Options!$B$9=18,'Daten A5'!$F$106,IF(Options!$B$9=19,'Daten A5'!U4,IF(Options!$B$9=20,'Daten A5'!U10,IF(Options!$B$9=21,'Daten A5'!U16,IF(Options!$B$9=22,'Daten A5'!U22,IF(Options!$B$9=23,'Daten A5'!U28,IF(Options!$B$9=24,'Daten A5'!U34,)))))))))))))))))))))))) -> 2 | BJ27: =IF(Options!$B$9=1,'Daten A5'!$G$4,IF(Options!$B$9=2,'Daten A5'!$G$10,IF(Options!$B$9=3,'Daten A5'!$G$16,IF(Options!$B$9=4,'Daten A5'!$G$22,IF(Options!$B$9=5,'Daten A5'!$G$28,IF(Options!$B$9=6,'Daten A5'!$G$34,IF(Options!$B$9=7,'Daten A5'!$G$40,IF(Options!$B$9=8,'Daten A5'!$G$46,IF(Options!$B$9=9,'Daten A5'!$G$52,IF(Options!$B$9=10,'Daten A5'!$G$58,IF(Options!$B$9=11,'Daten A5'!$G$64,IF(Options!$B$9=12,'Daten A5'!$G$70,IF(Options!$B$9=13,'Daten A5'!$G$76,IF(Options!$B$9=14,'Daten A5'!$G$82,IF(Options!$B$9=15,'Daten A5'!$G$88,IF(Options!$B$9=16,'Daten A5'!$G$94,IF(Options!$B$9=17,'Daten A5'!$G$100,IF(Options!$B$9=18,'Daten A5'!$G$106,IF(Options!$B$9=19,'Daten A5'!V4,IF(Options!$B$9=20,'Daten A5'!V10,IF(Options!$B$9=21,'Daten A5'!V16,IF(Options!$B$9=22,'Daten A5'!V22,IF(Options!$B$9=23,'Daten A5'!V28,IF(Options!$B$9=24,'Daten A5'!V34,)))))))))))))))))))))))) -> 40% | BK27: =IF(Options!$B$9=1,'Daten A5'!$H$4,IF(Options!$B$9=2,'Daten A5'!$H$10,IF(Options!$B$9=3,'Daten A5'!$H$16,IF(Options!$B$9=4,'Daten A5'!$H$22,IF(Options!$B$9=5,'Daten A5'!$H$28,IF(Options!$B$9=6,'Daten A5'!$H$34,IF(Options!$B$9=7,'Daten A5'!$H$40,IF(Options!$B$9=8,'Daten A5'!$H$46,IF(Options!$B$9=9,'Daten A5'!$H$52,IF(Options!$B$9=10,'Daten A5'!$H$58,IF(Options!$B$9=11,'Daten A5'!$H$64,IF(Options!$B$9=12,'Daten A5'!$H$70,IF(Options!$B$9=13,'Daten A5'!$H$76,IF(Options!$B$9=14,'Daten A5'!$H$82,IF(Options!$B$9=15,'Daten A5'!$H$88,IF(Options!$B$9=16,'Daten A5'!$H$94,IF(Options!$B$9=17,'Daten A5'!$H$100,IF(Options!$B$9=18,'Daten A5'!$H$106,IF(Options!$B$9=19,'Daten A5'!W4,IF(Options!$B$9=20,'Daten A5'!W10,IF(Options!$B$9=21,'Daten A5'!W16,IF(Options!$B$9=22,'Daten A5'!W22,IF(Options!$B$9=23,'Daten A5'!W28,IF(Options!$B$9=24,'Daten A5'!W34,)))))))))))))))))))))))) -> 2 | BL27: =IF(Options!$B$9=1,'Daten A5'!$I$4,IF(Options!$B$9=2,'Daten A5'!$I$10,IF(Options!$B$9=3,'Daten A5'!$I$16,IF(Options!$B$9=4,'Daten A5'!$I$22,IF(Options!$B$9=5,'Daten A5'!$I$28,IF(Options!$B$9=6,'Daten A5'!$I$34,IF(Options!$B$9=7,'Daten A5'!$I$40,IF(Options!$B$9=8,'Daten A5'!$I$46,IF(Options!$B$9=9,'Daten A5'!$I$52,IF(Options!$B$9=10,'Daten A5'!$I$58,IF(Options!$B$9=11,'Daten A5'!$I$64,IF(Options!$B$9=12,'Daten A5'!$I$70,IF(Options!$B$9=13,'Daten A5'!$I$76,IF(Options!$B$9=14,'Daten A5'!$I$82,IF(Options!$B$9=15,'Daten A5'!$I$88,IF(Options!$B$9=16,'Daten A5'!$I$94,IF(Options!$B$9=17,'Daten A5'!$I$100,IF(Options!$B$9=18,'Daten A5'!$I$106,IF(Options!$B$9=19,'Daten A5'!X4,IF(Options!$B$9=20,'Daten A5'!X10,IF(Options!$B$9=21,'Daten A5'!X16,IF(Options!$B$9=22,'Daten A5'!X22,IF(Options!$B$9=23,'Daten A5'!X28,IF(Options!$B$9=24,'Daten A5'!X34,)))))))))))))))))))))))) -> 0% | BM27: =IF(Options!$B$9=1,'Daten A5'!$J$4,IF(Options!$B$9=2,'Daten A5'!$J$10,IF(Options!$B$9=3,'Daten A5'!$J$16,IF(Options!$B$9=4,'Daten A5'!$J$22,IF(Options!$B$9=5,'Daten A5'!$J$28,IF(Options!$B$9=6,'Daten A5'!$J$34,IF(Options!$B$9=7,'Daten A5'!$J$40,IF(Options!$B$9=8,'Daten A5'!$J$46,IF(Options!$B$9=9,'Daten A5'!$J$52,IF(Options!$B$9=10,'Daten A5'!$J$58,IF(Options!$B$9=11,'Daten A5'!$J$64,IF(Options!$B$9=12,'Daten A5'!$J$70,IF(Options!$B$9=13,'Daten A5'!$J$76,IF(Options!$B$9=14,'Daten A5'!$J$82,IF(Options!$B$9=15,'Daten A5'!$J$88,IF(Options!$B$9=16,'Daten A5'!$J$94,IF(Options!$B$9=17,'Daten A5'!$J$100,IF(Options!$B$9=18,'Daten A5'!$J$106,IF(Options!$B$9=19,'Daten A5'!Y4,IF(Options!$B$9=20,'Daten A5'!Y10,IF(Options!$B$9=21,'Daten A5'!Y16,IF(Options!$B$9=22,'Daten A5'!Y22,IF(Options!$B$9=23,'Daten A5'!Y28,IF(Options!$B$9=24,'Daten A5'!Y34,)))))))))))))))))))))))) -> 0 | BN27: =IF(Options!$B$9=1,'Daten A5'!$K$4,IF(Options!$B$9=2,'Daten A5'!$K$10,IF(Options!$B$9=3,'Daten A5'!$K$16,IF(Options!$B$9=4,'Daten A5'!$K$22,IF(Options!$B$9=5,'Daten A5'!$K$28,IF(Options!$B$9=6,'Daten A5'!$K$34,IF(Options!$B$9=7,'Daten A5'!$K$40,IF(Options!$B$9=8,'Daten A5'!$K$46,IF(Options!$B$9=9,'Daten A5'!$K$52,IF(Options!$B$9=10,'Daten A5'!$K$58,IF(Options!$B$9=11,'Daten A5'!$K$64,IF(Options!$B$9=12,'Daten A5'!$K$70,IF(Options!$B$9=13,'Daten A5'!$K$76,IF(Options!$B$9=14,'Daten A5'!$K$82,IF(Options!$B$9=15,'Daten A5'!$K$88,IF(Options!$B$9=16,'Daten A5'!$K$94,IF(Options!$B$9=17,'Daten A5'!$K$100,IF(Options!$B$9=18,'Daten A5'!$K$106,IF(Options!$B$9=19,'Daten A5'!Z4,IF(Options!$B$9=20,'Daten A5'!Z10,IF(Options!$B$9=21,'Daten A5'!Z16,IF(Options!$B$9=22,'Daten A5'!Z22,IF(Options!$B$9=23,'Daten A5'!Z28,IF(Options!$B$9=24,'Daten A5'!Z34,)))))))))))))))))))))))) -> ---- | BO27: =IF(Options!$B$9=1,'Daten A5'!$L$4,IF(Options!$B$9=2,'Daten A5'!$L$10,IF(Options!$B$9=3,'Daten A5'!$L$16,IF(Options!$B$9=4,'Daten A5'!$L$22,IF(Options!$B$9=5,'Daten A5'!$L$28,IF(Options!$B$9=6,'Daten A5'!$L$34,IF(Options!$B$9=7,'Daten A5'!$L$40,IF(Options!$B$9=8,'Daten A5'!$L$46,IF(Options!$B$9=9,'Daten A5'!$L$52,IF(Options!$B$9=10,'Daten A5'!$L$58,IF(Options!$B$9=11,'Daten A5'!$L$64,IF(Options!$B$9=12,'Daten A5'!$L$70,IF(Options!$B$9=13,'Daten A5'!$L$76,IF(Options!$B$9=14,'Daten A5'!$L$82,IF(Options!$B$9=15,'Daten A5'!$L$88,IF(Options!$B$9=16,'Daten A5'!$L$94,IF(Options!$B$9=17,'Daten A5'!$L$100,IF(Options!$B$9=18,'Daten A5'!$L$106,IF(Options!$B$9=19,'Daten A5'!AA4,IF(Options!$B$9=20,'Daten A5'!AA10,IF(Options!$B$9=21,'Daten A5'!AA16,IF(Options!$B$9=22,'Daten A5'!AA22,IF(Options!$B$9=23,'Daten A5'!AA28,IF(Options!$B$9=24,'Daten A5'!AA34,)))))))))))))))))))))))) -> 0 | BP27: =IF(Options!$B$9=1,'Daten A5'!$M$4,IF(Options!$B$9=2,'Daten A5'!$M$10,IF(Options!$B$9=3,'Daten A5'!$M$16,IF(Options!$B$9=4,'Daten A5'!$M$22,IF(Options!$B$9=5,'Daten A5'!$M$28,IF(Options!$B$9=6,'Daten A5'!$M$34,IF(Options!$B$9=7,'Daten A5'!$M$40,IF(Options!$B$9=8,'Daten A5'!$M$46,IF(Options!$B$9=9,'Daten A5'!$M$52,IF(Options!$B$9=10,'Daten A5'!$M$58,IF(Options!$B$9=11,'Daten A5'!$M$64,IF(Options!$B$9=12,'Daten A5'!$M$70,IF(Options!$B$9=13,'Daten A5'!$M$76,IF(Options!$B$9=14,'Daten A5'!$M$82,IF(Options!$B$9=15,'Daten A5'!$M$88,IF(Options!$B$9=16,'Daten A5'!$M$94,IF(Options!$B$9=17,'Daten A5'!$M$100,IF(Options!$B$9=18,'Daten A5'!$M$106,IF(Options!$B$9=19,'Daten A5'!AB4,IF(Options!$B$9=20,'Daten A5'!AB10,IF(Options!$B$9=21,'Daten A5'!AB16,IF(Options!$B$9=22,'Daten A5'!AB22,IF(Options!$B$9=23,'Daten A5'!AB28,IF(Options!$B$9=24,'Daten A5'!AB34,)))))))))))))))))))))))) -> 0% | BQ27: =IF(Options!$B$9=1,'Daten A5'!$N$4,IF(Options!$B$9=2,'Daten A5'!$N$10,IF(Options!$B$9=3,'Daten A5'!$N$16,IF(Options!$B$9=4,'Daten A5'!$N$22,IF(Options!$B$9=5,'Daten A5'!$N$28,IF(Options!$B$9=6,'Daten A5'!$N$34,IF(Options!$B$9=7,'Daten A5'!$N$40,IF(Options!$B$9=8,'Daten A5'!$N$46,IF(Options!$B$9=9,'Daten A5'!$N$52,IF(Options!$B$9=10,'Daten A5'!$N$58,IF(Options!$B$9=11,'Daten A5'!$N$64,IF(Options!$B$9=12,'Daten A5'!$N$70,IF(Options!$B$9=13,'Daten A5'!$N$76,IF(Options!$B$9=14,'Daten A5'!$N$82,IF(Options!$B$9=15,'Daten A5'!$N$88,IF(Options!$B$9=16,'Daten A5'!$N$94,IF(Options!$B$9=17,'Daten A5'!$N$100,IF(Options!$B$9=18,'Daten A5'!$N$106,IF(Options!$B$9=19,'Daten A5'!AC4,IF(Options!$B$9=20,'Daten A5'!AC10,IF(Options!$B$9=21,'Daten A5'!AC16,IF(Options!$B$9=22,'Daten A5'!AC22,IF(Options!$B$9=23,'Daten A5'!AC28,IF(Options!$B$9=24,'Daten A5'!AC34,)))))))))))))))))))))))) -> 0
AV28: S1 | AX28: =AX18/$AW$18 ->  | AY28: =AY18/$AW$18 ->  | BD28: Pos 3 | BF28: =IF(Options!$B$9=1,'Daten A5'!$C$5,IF(Options!$B$9=2,'Daten A5'!$C$11,IF(Options!$B$9=3,'Daten A5'!$C$17,IF(Options!$B$9=4,'Daten A5'!$C$23,IF(Options!$B$9=5,'Daten A5'!$C$29,IF(Options!$B$9=6,'Daten A5'!$C$35,IF(Options!$B$9=7,'Daten A5'!$C$41,IF(Options!$B$9=8,'Daten A5'!$C$47,IF(Options!$B$9=9,'Daten A5'!$C$53,IF(Options!$B$9=10,'Daten A5'!$C$59,IF(Options!$B$9=11,'Daten A5'!$C$65,IF(Options!$B$9=12,'Daten A5'!$C$71,IF(Options!$B$9=13,'Daten A5'!$C$77,IF(Options!$B$9=14,'Daten A5'!$C$83,IF(Options!$B$9=15,'Daten A5'!$C$89,IF(Options!$B$9=16,'Daten A5'!$C$95,IF(Options!$B$9=17,'Daten A5'!$C$101,IF(Options!$B$9=18,'Daten A5'!$C$107,IF(Options!$B$9=19,'Daten A5'!R5,IF(Options!$B$9=20,'Daten A5'!R11,IF(Options!$B$9=21,'Daten A5'!R17,IF(Options!$B$9=22,'Daten A5'!R23,IF(Options!$B$9=23,'Daten A5'!R29,IF(Options!$B$9=24,'Daten A5'!R35,)))))))))))))))))))))))) -> 0% | BG28: =IF(Options!$B$9=1,'Daten A5'!$D$5,IF(Options!$B$9=2,'Daten A5'!$D$11,IF(Options!$B$9=3,'Daten A5'!$D$17,IF(Options!$B$9=4,'Daten A5'!$D$23,IF(Options!$B$9=5,'Daten A5'!$D$29,IF(Options!$B$9=6,'Daten A5'!$D$35,IF(Options!$B$9=7,'Daten A5'!$D$41,IF(Options!$B$9=8,'Daten A5'!$D$47,IF(Options!$B$9=9,'Daten A5'!$D$53,IF(Options!$B$9=10,'Daten A5'!$D$59,IF(Options!$B$9=11,'Daten A5'!$D$65,IF(Options!$B$9=12,'Daten A5'!$D$71,IF(Options!$B$9=13,'Daten A5'!$D$77,IF(Options!$B$9=14,'Daten A5'!$D$83,IF(Options!$B$9=15,'Daten A5'!$D$89,IF(Options!$B$9=16,'Daten A5'!$D$95,IF(Options!$B$9=17,'Daten A5'!$D$101,IF(Options!$B$9=18,'Daten A5'!$D$107,IF(Options!$B$9=19,'Daten A5'!S5,IF(Options!$B$9=20,'Daten A5'!S11,IF(Options!$B$9=21,'Daten A5'!S17,IF(Options!$B$9=22,'Daten A5'!S23,IF(Options!$B$9=23,'Daten A5'!S29,IF(Options!$B$9=24,'Daten A5'!S35,)))))))))))))))))))))))) -> 0 | BH28: =IF(Options!$B$9=1,'Daten A5'!$E$5,IF(Options!$B$9=2,'Daten A5'!$E$11,IF(Options!$B$9=3,'Daten A5'!$E$17,IF(Options!$B$9=4,'Daten A5'!$E$23,IF(Options!$B$9=5,'Daten A5'!$E$29,IF(Options!$B$9=6,'Daten A5'!$E$35,IF(Options!$B$9=7,'Daten A5'!$E$41,IF(Options!$B$9=8,'Daten A5'!$E$47,IF(Options!$B$9=9,'Daten A5'!$E$53,IF(Options!$B$9=10,'Daten A5'!$E$59,IF(Options!$B$9=11,'Daten A5'!$E$65,IF(Options!$B$9=12,'Daten A5'!$E$71,IF(Options!$B$9=13,'Daten A5'!$E$77,IF(Options!$B$9=14,'Daten A5'!$E$83,IF(Options!$B$9=15,'Daten A5'!$E$89,IF(Options!$B$9=16,'Daten A5'!$E$95,IF(Options!$B$9=17,'Daten A5'!$E$101,IF(Options!$B$9=18,'Daten A5'!$E$107,IF(Options!$B$9=19,'Daten A5'!T5,IF(Options!$B$9=20,'Daten A5'!T11,IF(Options!$B$9=21,'Daten A5'!T17,IF(Options!$B$9=22,'Daten A5'!T23,IF(Options!$B$9=23,'Daten A5'!T29,IF(Options!$B$9=24,'Daten A5'!T35,)))))))))))))))))))))))) -> 25% | BI28: =IF(Options!$B$9=1,'Daten A5'!$F$5,IF(Options!$B$9=2,'Daten A5'!$F$11,IF(Options!$B$9=3,'Daten A5'!$F$17,IF(Options!$B$9=4,'Daten A5'!$F$23,IF(Options!$B$9=5,'Daten A5'!$F$29,IF(Options!$B$9=6,'Daten A5'!$F$35,IF(Options!$B$9=7,'Daten A5'!$F$41,IF(Options!$B$9=8,'Daten A5'!$F$47,IF(Options!$B$9=9,'Daten A5'!$F$53,IF(Options!$B$9=10,'Daten A5'!$F$59,IF(Options!$B$9=11,'Daten A5'!$F$65,IF(Options!$B$9=12,'Daten A5'!$F$71,IF(Options!$B$9=13,'Daten A5'!$F$77,IF(Options!$B$9=14,'Daten A5'!$F$83,IF(Options!$B$9=15,'Daten A5'!$F$89,IF(Options!$B$9=16,'Daten A5'!$F$95,IF(Options!$B$9=17,'Daten A5'!$F$101,IF(Options!$B$9=18,'Daten A5'!$F$107,IF(Options!$B$9=19,'Daten A5'!U5,IF(Options!$B$9=20,'Daten A5'!U11,IF(Options!$B$9=21,'Daten A5'!U17,IF(Options!$B$9=22,'Daten A5'!U23,IF(Options!$B$9=23,'Daten A5'!U29,IF(Options!$B$9=24,'Daten A5'!U35,)))))))))))))))))))))))) -> 1 | BJ28: =IF(Options!$B$9=1,'Daten A5'!$G$5,IF(Options!$B$9=2,'Daten A5'!$G$11,IF(Options!$B$9=3,'Daten A5'!$G$17,IF(Options!$B$9=4,'Daten A5'!$G$23,IF(Options!$B$9=5,'Daten A5'!$G$29,IF(Options!$B$9=6,'Daten A5'!$G$35,IF(Options!$B$9=7,'Daten A5'!$G$41,IF(Options!$B$9=8,'Daten A5'!$G$47,IF(Options!$B$9=9,'Daten A5'!$G$53,IF(Options!$B$9=10,'Daten A5'!$G$59,IF(Options!$B$9=11,'Daten A5'!$G$65,IF(Options!$B$9=12,'Daten A5'!$G$71,IF(Options!$B$9=13,'Daten A5'!$G$77,IF(Options!$B$9=14,'Daten A5'!$G$83,IF(Options!$B$9=15,'Daten A5'!$G$89,IF(Options!$B$9=16,'Daten A5'!$G$95,IF(Options!$B$9=17,'Daten A5'!$G$101,IF(Options!$B$9=18,'Daten A5'!$G$107,IF(Options!$B$9=19,'Daten A5'!V5,IF(Options!$B$9=20,'Daten A5'!V11,IF(Options!$B$9=21,'Daten A5'!V17,IF(Options!$B$9=22,'Daten A5'!V23,IF(Options!$B$9=23,'Daten A5'!V29,IF(Options!$B$9=24,'Daten A5'!V35,)))))))))))))))))))))))) -> 0% | BK28: =IF(Options!$B$9=1,'Daten A5'!$H$5,IF(Options!$B$9=2,'Daten A5'!$H$11,IF(Options!$B$9=3,'Daten A5'!$H$17,IF(Options!$B$9=4,'Daten A5'!$H$23,IF(Options!$B$9=5,'Daten A5'!$H$29,IF(Options!$B$9=6,'Daten A5'!$H$35,IF(Options!$B$9=7,'Daten A5'!$H$41,IF(Options!$B$9=8,'Daten A5'!$H$47,IF(Options!$B$9=9,'Daten A5'!$H$53,IF(Options!$B$9=10,'Daten A5'!$H$59,IF(Options!$B$9=11,'Daten A5'!$H$65,IF(Options!$B$9=12,'Daten A5'!$H$71,IF(Options!$B$9=13,'Daten A5'!$H$77,IF(Options!$B$9=14,'Daten A5'!$H$83,IF(Options!$B$9=15,'Daten A5'!$H$89,IF(Options!$B$9=16,'Daten A5'!$H$95,IF(Options!$B$9=17,'Daten A5'!$H$101,IF(Options!$B$9=18,'Daten A5'!$H$107,IF(Options!$B$9=19,'Daten A5'!W5,IF(Options!$B$9=20,'Daten A5'!W11,IF(Options!$B$9=21,'Daten A5'!W17,IF(Options!$B$9=22,'Daten A5'!W23,IF(Options!$B$9=23,'Daten A5'!W29,IF(Options!$B$9=24,'Daten A5'!W35,)))))))))))))))))))))))) -> 0 | BL28: =IF(Options!$B$9=1,'Daten A5'!$I$5,IF(Options!$B$9=2,'Daten A5'!$I$11,IF(Options!$B$9=3,'Daten A5'!$I$17,IF(Options!$B$9=4,'Daten A5'!$I$23,IF(Options!$B$9=5,'Daten A5'!$I$29,IF(Options!$B$9=6,'Daten A5'!$I$35,IF(Options!$B$9=7,'Daten A5'!$I$41,IF(Options!$B$9=8,'Daten A5'!$I$47,IF(Options!$B$9=9,'Daten A5'!$I$53,IF(Options!$B$9=10,'Daten A5'!$I$59,IF(Options!$B$9=11,'Daten A5'!$I$65,IF(Options!$B$9=12,'Daten A5'!$I$71,IF(Options!$B$9=13,'Daten A5'!$I$77,IF(Options!$B$9=14,'Daten A5'!$I$83,IF(Options!$B$9=15,'Daten A5'!$I$89,IF(Options!$B$9=16,'Daten A5'!$I$95,IF(Options!$B$9=17,'Daten A5'!$I$101,IF(Options!$B$9=18,'Daten A5'!$I$107,IF(Options!$B$9=19,'Daten A5'!X5,IF(Options!$B$9=20,'Daten A5'!X11,IF(Options!$B$9=21,'Daten A5'!X17,IF(Options!$B$9=22,'Daten A5'!X23,IF(Options!$B$9=23,'Daten A5'!X29,IF(Options!$B$9=24,'Daten A5'!X35,)))))))))))))))))))))))) -> 0% | BM28: =IF(Options!$B$9=1,'Daten A5'!$J$5,IF(Options!$B$9=2,'Daten A5'!$J$11,IF(Options!$B$9=3,'Daten A5'!$J$17,IF(Options!$B$9=4,'Daten A5'!$J$23,IF(Options!$B$9=5,'Daten A5'!$J$29,IF(Options!$B$9=6,'Daten A5'!$J$35,IF(Options!$B$9=7,'Daten A5'!$J$41,IF(Options!$B$9=8,'Daten A5'!$J$47,IF(Options!$B$9=9,'Daten A5'!$J$53,IF(Options!$B$9=10,'Daten A5'!$J$59,IF(Options!$B$9=11,'Daten A5'!$J$65,IF(Options!$B$9=12,'Daten A5'!$J$71,IF(Options!$B$9=13,'Daten A5'!$J$77,IF(Options!$B$9=14,'Daten A5'!$J$83,IF(Options!$B$9=15,'Daten A5'!$J$89,IF(Options!$B$9=16,'Daten A5'!$J$95,IF(Options!$B$9=17,'Daten A5'!$J$101,IF(Options!$B$9=18,'Daten A5'!$J$107,IF(Options!$B$9=19,'Daten A5'!Y5,IF(Options!$B$9=20,'Daten A5'!Y11,IF(Options!$B$9=21,'Daten A5'!Y17,IF(Options!$B$9=22,'Daten A5'!Y23,IF(Options!$B$9=23,'Daten A5'!Y29,IF(Options!$B$9=24,'Daten A5'!Y35,)))))))))))))))))))))))) -> 0 | BN28: =IF(Options!$B$9=1,'Daten A5'!$K$5,IF(Options!$B$9=2,'Daten A5'!$K$11,IF(Options!$B$9=3,'Daten A5'!$K$17,IF(Options!$B$9=4,'Daten A5'!$K$23,IF(Options!$B$9=5,'Daten A5'!$K$29,IF(Options!$B$9=6,'Daten A5'!$K$35,IF(Options!$B$9=7,'Daten A5'!$K$41,IF(Options!$B$9=8,'Daten A5'!$K$47,IF(Options!$B$9=9,'Daten A5'!$K$53,IF(Options!$B$9=10,'Daten A5'!$K$59,IF(Options!$B$9=11,'Daten A5'!$K$65,IF(Options!$B$9=12,'Daten A5'!$K$71,IF(Options!$B$9=13,'Daten A5'!$K$77,IF(Options!$B$9=14,'Daten A5'!$K$83,IF(Options!$B$9=15,'Daten A5'!$K$89,IF(Options!$B$9=16,'Daten A5'!$K$95,IF(Options!$B$9=17,'Daten A5'!$K$101,IF(Options!$B$9=18,'Daten A5'!$K$107,IF(Options!$B$9=19,'Daten A5'!Z5,IF(Options!$B$9=20,'Daten A5'!Z11,IF(Options!$B$9=21,'Daten A5'!Z17,IF(Options!$B$9=22,'Daten A5'!Z23,IF(Options!$B$9=23,'Daten A5'!Z29,IF(Options!$B$9=24,'Daten A5'!Z35,)))))))))))))))))))))))) -> ---- | BO28: =IF(Options!$B$9=1,'Daten A5'!$L$5,IF(Options!$B$9=2,'Daten A5'!$L$11,IF(Options!$B$9=3,'Daten A5'!$L$17,IF(Options!$B$9=4,'Daten A5'!$L$23,IF(Options!$B$9=5,'Daten A5'!$L$29,IF(Options!$B$9=6,'Daten A5'!$L$35,IF(Options!$B$9=7,'Daten A5'!$L$41,IF(Options!$B$9=8,'Daten A5'!$L$47,IF(Options!$B$9=9,'Daten A5'!$L$53,IF(Options!$B$9=10,'Daten A5'!$L$59,IF(Options!$B$9=11,'Daten A5'!$L$65,IF(Options!$B$9=12,'Daten A5'!$L$71,IF(Options!$B$9=13,'Daten A5'!$L$77,IF(Options!$B$9=14,'Daten A5'!$L$83,IF(Options!$B$9=15,'Daten A5'!$L$89,IF(Options!$B$9=16,'Daten A5'!$L$95,IF(Options!$B$9=17,'Daten A5'!$L$101,IF(Options!$B$9=18,'Daten A5'!$L$107,IF(Options!$B$9=19,'Daten A5'!AA5,IF(Options!$B$9=20,'Daten A5'!AA11,IF(Options!$B$9=21,'Daten A5'!AA17,IF(Options!$B$9=22,'Daten A5'!AA23,IF(Options!$B$9=23,'Daten A5'!AA29,IF(Options!$B$9=24,'Daten A5'!AA35,)))))))))))))))))))))))) -> 0 | BP28: =IF(Options!$B$9=1,'Daten A5'!$M$5,IF(Options!$B$9=2,'Daten A5'!$M$11,IF(Options!$B$9=3,'Daten A5'!$M$17,IF(Options!$B$9=4,'Daten A5'!$M$23,IF(Options!$B$9=5,'Daten A5'!$M$29,IF(Options!$B$9=6,'Daten A5'!$M$35,IF(Options!$B$9=7,'Daten A5'!$M$41,IF(Options!$B$9=8,'Daten A5'!$M$47,IF(Options!$B$9=9,'Daten A5'!$M$53,IF(Options!$B$9=10,'Daten A5'!$M$59,IF(Options!$B$9=11,'Daten A5'!$M$65,IF(Options!$B$9=12,'Daten A5'!$M$71,IF(Options!$B$9=13,'Daten A5'!$M$77,IF(Options!$B$9=14,'Daten A5'!$M$83,IF(Options!$B$9=15,'Daten A5'!$M$89,IF(Options!$B$9=16,'Daten A5'!$M$95,IF(Options!$B$9=17,'Daten A5'!$M$101,IF(Options!$B$9=18,'Daten A5'!$M$107,IF(Options!$B$9=19,'Daten A5'!AB5,IF(Options!$B$9=20,'Daten A5'!AB11,IF(Options!$B$9=21,'Daten A5'!AB17,IF(Options!$B$9=22,'Daten A5'!AB23,IF(Options!$B$9=23,'Daten A5'!AB29,IF(Options!$B$9=24,'Daten A5'!AB35,)))))))))))))))))))))))) -> 25% | BQ28: =IF(Options!$B$9=1,'Daten A5'!$N$5,IF(Options!$B$9=2,'Daten A5'!$N$11,IF(Options!$B$9=3,'Daten A5'!$N$17,IF(Options!$B$9=4,'Daten A5'!$N$23,IF(Options!$B$9=5,'Daten A5'!$N$29,IF(Options!$B$9=6,'Daten A5'!$N$35,IF(Options!$B$9=7,'Daten A5'!$N$41,IF(Options!$B$9=8,'Daten A5'!$N$47,IF(Options!$B$9=9,'Daten A5'!$N$53,IF(Options!$B$9=10,'Daten A5'!$N$59,IF(Options!$B$9=11,'Daten A5'!$N$65,IF(Options!$B$9=12,'Daten A5'!$N$71,IF(Options!$B$9=13,'Daten A5'!$N$77,IF(Options!$B$9=14,'Daten A5'!$N$83,IF(Options!$B$9=15,'Daten A5'!$N$89,IF(Options!$B$9=16,'Daten A5'!$N$95,IF(Options!$B$9=17,'Daten A5'!$N$101,IF(Options!$B$9=18,'Daten A5'!$N$107,IF(Options!$B$9=19,'Daten A5'!AC5,IF(Options!$B$9=20,'Daten A5'!AC11,IF(Options!$B$9=21,'Daten A5'!AC17,IF(Options!$B$9=22,'Daten A5'!AC23,IF(Options!$B$9=23,'Daten A5'!AC29,IF(Options!$B$9=24,'Daten A5'!AC35,)))))))))))))))))))))))) -> 1
AV29: S6 | AX29: =AX19/$AW$19 ->  | AY29: =AY19/$AW$19 ->  | BB29: =BB19/$AW$18 ->  | BD29: Pos 4 | BF29: =IF(Options!$B$9=1,'Daten A5'!$C$6,IF(Options!$B$9=2,'Daten A5'!$C$12,IF(Options!$B$9=3,'Daten A5'!$C$18,IF(Options!$B$9=4,'Daten A5'!$C$24,IF(Options!$B$9=5,'Daten A5'!$C$30,IF(Options!$B$9=6,'Daten A5'!$C$36,IF(Options!$B$9=7,'Daten A5'!$C$42,IF(Options!$B$9=8,'Daten A5'!$C$48,IF(Options!$B$9=9,'Daten A5'!$C$54,IF(Options!$B$9=10,'Daten A5'!$C$60,IF(Options!$B$9=11,'Daten A5'!$C$66,IF(Options!$B$9=12,'Daten A5'!$C$72,IF(Options!$B$9=13,'Daten A5'!$C$78,IF(Options!$B$9=14,'Daten A5'!$C$84,IF(Options!$B$9=15,'Daten A5'!$C$90,IF(Options!$B$9=16,'Daten A5'!$C$96,IF(Options!$B$9=17,'Daten A5'!$C$102,IF(Options!$B$9=18,'Daten A5'!$C$108,IF(Options!$B$9=19,'Daten A5'!R6,IF(Options!$B$9=20,'Daten A5'!R12,IF(Options!$B$9=21,'Daten A5'!R18,IF(Options!$B$9=22,'Daten A5'!R24,IF(Options!$B$9=23,'Daten A5'!R30,IF(Options!$B$9=24,'Daten A5'!R36,)))))))))))))))))))))))) -> 100% | BG29: =IF(Options!$B$9=1,'Daten A5'!$D$6,IF(Options!$B$9=2,'Daten A5'!$D$12,IF(Options!$B$9=3,'Daten A5'!$D$18,IF(Options!$B$9=4,'Daten A5'!$D$24,IF(Options!$B$9=5,'Daten A5'!$D$30,IF(Options!$B$9=6,'Daten A5'!$D$36,IF(Options!$B$9=7,'Daten A5'!$D$42,IF(Options!$B$9=8,'Daten A5'!$D$48,IF(Options!$B$9=9,'Daten A5'!$D$54,IF(Options!$B$9=10,'Daten A5'!$D$60,IF(Options!$B$9=11,'Daten A5'!$D$66,IF(Options!$B$9=12,'Daten A5'!$D$72,IF(Options!$B$9=13,'Daten A5'!$D$78,IF(Options!$B$9=14,'Daten A5'!$D$84,IF(Options!$B$9=15,'Daten A5'!$D$90,IF(Options!$B$9=16,'Daten A5'!$D$96,IF(Options!$B$9=17,'Daten A5'!$D$102,IF(Options!$B$9=18,'Daten A5'!$D$108,IF(Options!$B$9=19,'Daten A5'!S6,IF(Options!$B$9=20,'Daten A5'!S12,IF(Options!$B$9=21,'Daten A5'!S18,IF(Options!$B$9=22,'Daten A5'!S24,IF(Options!$B$9=23,'Daten A5'!S30,IF(Options!$B$9=24,'Daten A5'!S36,)))))))))))))))))))))))) -> 4 | BH29: =IF(Options!$B$9=1,'Daten A5'!$E$6,IF(Options!$B$9=2,'Daten A5'!$E$12,IF(Options!$B$9=3,'Daten A5'!$E$18,IF(Options!$B$9=4,'Daten A5'!$E$24,IF(Options!$B$9=5,'Daten A5'!$E$30,IF(Options!$B$9=6,'Daten A5'!$E$36,IF(Options!$B$9=7,'Daten A5'!$E$42,IF(Options!$B$9=8,'Daten A5'!$E$48,IF(Options!$B$9=9,'Daten A5'!$E$54,IF(Options!$B$9=10,'Daten A5'!$E$60,IF(Options!$B$9=11,'Daten A5'!$E$66,IF(Options!$B$9=12,'Daten A5'!$E$72,IF(Options!$B$9=13,'Daten A5'!$E$78,IF(Options!$B$9=14,'Daten A5'!$E$84,IF(Options!$B$9=15,'Daten A5'!$E$90,IF(Options!$B$9=16,'Daten A5'!$E$96,IF(Options!$B$9=17,'Daten A5'!$E$102,IF(Options!$B$9=18,'Daten A5'!$E$108,IF(Options!$B$9=19,'Daten A5'!T6,IF(Options!$B$9=20,'Daten A5'!T12,IF(Options!$B$9=21,'Daten A5'!T18,IF(Options!$B$9=22,'Daten A5'!T24,IF(Options!$B$9=23,'Daten A5'!T30,IF(Options!$B$9=24,'Daten A5'!T36,)))))))))))))))))))))))) -> 25% | BI29: =IF(Options!$B$9=1,'Daten A5'!$F$6,IF(Options!$B$9=2,'Daten A5'!$F$12,IF(Options!$B$9=3,'Daten A5'!$F$18,IF(Options!$B$9=4,'Daten A5'!$F$24,IF(Options!$B$9=5,'Daten A5'!$F$30,IF(Options!$B$9=6,'Daten A5'!$F$36,IF(Options!$B$9=7,'Daten A5'!$F$42,IF(Options!$B$9=8,'Daten A5'!$F$48,IF(Options!$B$9=9,'Daten A5'!$F$54,IF(Options!$B$9=10,'Daten A5'!$F$60,IF(Options!$B$9=11,'Daten A5'!$F$66,IF(Options!$B$9=12,'Daten A5'!$F$72,IF(Options!$B$9=13,'Daten A5'!$F$78,IF(Options!$B$9=14,'Daten A5'!$F$84,IF(Options!$B$9=15,'Daten A5'!$F$90,IF(Options!$B$9=16,'Daten A5'!$F$96,IF(Options!$B$9=17,'Daten A5'!$F$102,IF(Options!$B$9=18,'Daten A5'!$F$108,IF(Options!$B$9=19,'Daten A5'!U6,IF(Options!$B$9=20,'Daten A5'!U12,IF(Options!$B$9=21,'Daten A5'!U18,IF(Options!$B$9=22,'Daten A5'!U24,IF(Options!$B$9=23,'Daten A5'!U30,IF(Options!$B$9=24,'Daten A5'!U36,)))))))))))))))))))))))) -> 1 | BJ29: =IF(Options!$B$9=1,'Daten A5'!$G$6,IF(Options!$B$9=2,'Daten A5'!$G$12,IF(Options!$B$9=3,'Daten A5'!$G$18,IF(Options!$B$9=4,'Daten A5'!$G$24,IF(Options!$B$9=5,'Daten A5'!$G$30,IF(Options!$B$9=6,'Daten A5'!$G$36,IF(Options!$B$9=7,'Daten A5'!$G$42,IF(Options!$B$9=8,'Daten A5'!$G$48,IF(Options!$B$9=9,'Daten A5'!$G$54,IF(Options!$B$9=10,'Daten A5'!$G$60,IF(Options!$B$9=11,'Daten A5'!$G$66,IF(Options!$B$9=12,'Daten A5'!$G$72,IF(Options!$B$9=13,'Daten A5'!$G$78,IF(Options!$B$9=14,'Daten A5'!$G$84,IF(Options!$B$9=15,'Daten A5'!$G$90,IF(Options!$B$9=16,'Daten A5'!$G$96,IF(Options!$B$9=17,'Daten A5'!$G$102,IF(Options!$B$9=18,'Daten A5'!$G$108,IF(Options!$B$9=19,'Daten A5'!V6,IF(Options!$B$9=20,'Daten A5'!V12,IF(Options!$B$9=21,'Daten A5'!V18,IF(Options!$B$9=22,'Daten A5'!V24,IF(Options!$B$9=23,'Daten A5'!V30,IF(Options!$B$9=24,'Daten A5'!V36,)))))))))))))))))))))))) -> 40% | BK29: =IF(Options!$B$9=1,'Daten A5'!$H$6,IF(Options!$B$9=2,'Daten A5'!$H$12,IF(Options!$B$9=3,'Daten A5'!$H$18,IF(Options!$B$9=4,'Daten A5'!$H$24,IF(Options!$B$9=5,'Daten A5'!$H$30,IF(Options!$B$9=6,'Daten A5'!$H$36,IF(Options!$B$9=7,'Daten A5'!$H$42,IF(Options!$B$9=8,'Daten A5'!$H$48,IF(Options!$B$9=9,'Daten A5'!$H$54,IF(Options!$B$9=10,'Daten A5'!$H$60,IF(Options!$B$9=11,'Daten A5'!$H$66,IF(Options!$B$9=12,'Daten A5'!$H$72,IF(Options!$B$9=13,'Daten A5'!$H$78,IF(Options!$B$9=14,'Daten A5'!$H$84,IF(Options!$B$9=15,'Daten A5'!$H$90,IF(Options!$B$9=16,'Daten A5'!$H$96,IF(Options!$B$9=17,'Daten A5'!$H$102,IF(Options!$B$9=18,'Daten A5'!$H$108,IF(Options!$B$9=19,'Daten A5'!W6,IF(Options!$B$9=20,'Daten A5'!W12,IF(Options!$B$9=21,'Daten A5'!W18,IF(Options!$B$9=22,'Daten A5'!W24,IF(Options!$B$9=23,'Daten A5'!W30,IF(Options!$B$9=24,'Daten A5'!W36,)))))))))))))))))))))))) -> 2 | BL29: =IF(Options!$B$9=1,'Daten A5'!$I$6,IF(Options!$B$9=2,'Daten A5'!$I$12,IF(Options!$B$9=3,'Daten A5'!$I$18,IF(Options!$B$9=4,'Daten A5'!$I$24,IF(Options!$B$9=5,'Daten A5'!$I$30,IF(Options!$B$9=6,'Daten A5'!$I$36,IF(Options!$B$9=7,'Daten A5'!$I$42,IF(Options!$B$9=8,'Daten A5'!$I$48,IF(Options!$B$9=9,'Daten A5'!$I$54,IF(Options!$B$9=10,'Daten A5'!$I$60,IF(Options!$B$9=11,'Daten A5'!$I$66,IF(Options!$B$9=12,'Daten A5'!$I$72,IF(Options!$B$9=13,'Daten A5'!$I$78,IF(Options!$B$9=14,'Daten A5'!$I$84,IF(Options!$B$9=15,'Daten A5'!$I$90,IF(Options!$B$9=16,'Daten A5'!$I$96,IF(Options!$B$9=17,'Daten A5'!$I$102,IF(Options!$B$9=18,'Daten A5'!$I$108,IF(Options!$B$9=19,'Daten A5'!X6,IF(Options!$B$9=20,'Daten A5'!X12,IF(Options!$B$9=21,'Daten A5'!X18,IF(Options!$B$9=22,'Daten A5'!X24,IF(Options!$B$9=23,'Daten A5'!X30,IF(Options!$B$9=24,'Daten A5'!X36,)))))))))))))))))))))))) -> 100% | BM29: =IF(Options!$B$9=1,'Daten A5'!$J$6,IF(Options!$B$9=2,'Daten A5'!$J$12,IF(Options!$B$9=3,'Daten A5'!$J$18,IF(Options!$B$9=4,'Daten A5'!$J$24,IF(Options!$B$9=5,'Daten A5'!$J$30,IF(Options!$B$9=6,'Daten A5'!$J$36,IF(Options!$B$9=7,'Daten A5'!$J$42,IF(Options!$B$9=8,'Daten A5'!$J$48,IF(Options!$B$9=9,'Daten A5'!$J$54,IF(Options!$B$9=10,'Daten A5'!$J$60,IF(Options!$B$9=11,'Daten A5'!$J$66,IF(Options!$B$9=12,'Daten A5'!$J$72,IF(Options!$B$9=13,'Daten A5'!$J$78,IF(Options!$B$9=14,'Daten A5'!$J$84,IF(Options!$B$9=15,'Daten A5'!$J$90,IF(Options!$B$9=16,'Daten A5'!$J$96,IF(Options!$B$9=17,'Daten A5'!$J$102,IF(Options!$B$9=18,'Daten A5'!$J$108,IF(Options!$B$9=19,'Daten A5'!Y6,IF(Options!$B$9=20,'Daten A5'!Y12,IF(Options!$B$9=21,'Daten A5'!Y18,IF(Options!$B$9=22,'Daten A5'!Y24,IF(Options!$B$9=23,'Daten A5'!Y30,IF(Options!$B$9=24,'Daten A5'!Y36,)))))))))))))))))))))))) -> 1 | BN29: =IF(Options!$B$9=1,'Daten A5'!$K$6,IF(Options!$B$9=2,'Daten A5'!$K$12,IF(Options!$B$9=3,'Daten A5'!$K$18,IF(Options!$B$9=4,'Daten A5'!$K$24,IF(Options!$B$9=5,'Daten A5'!$K$30,IF(Options!$B$9=6,'Daten A5'!$K$36,IF(Options!$B$9=7,'Daten A5'!$K$42,IF(Options!$B$9=8,'Daten A5'!$K$48,IF(Options!$B$9=9,'Daten A5'!$K$54,IF(Options!$B$9=10,'Daten A5'!$K$60,IF(Options!$B$9=11,'Daten A5'!$K$66,IF(Options!$B$9=12,'Daten A5'!$K$72,IF(Options!$B$9=13,'Daten A5'!$K$78,IF(Options!$B$9=14,'Daten A5'!$K$84,IF(Options!$B$9=15,'Daten A5'!$K$90,IF(Options!$B$9=16,'Daten A5'!$K$96,IF(Options!$B$9=17,'Daten A5'!$K$102,IF(Options!$B$9=18,'Daten A5'!$K$108,IF(Options!$B$9=19,'Daten A5'!Z6,IF(Options!$B$9=20,'Daten A5'!Z12,IF(Options!$B$9=21,'Daten A5'!Z18,IF(Options!$B$9=22,'Daten A5'!Z24,IF(Options!$B$9=23,'Daten A5'!Z30,IF(Options!$B$9=24,'Daten A5'!Z36,)))))))))))))))))))))))) -> ---- | BO29: =IF(Options!$B$9=1,'Daten A5'!$L$6,IF(Options!$B$9=2,'Daten A5'!$L$12,IF(Options!$B$9=3,'Daten A5'!$L$18,IF(Options!$B$9=4,'Daten A5'!$L$24,IF(Options!$B$9=5,'Daten A5'!$L$30,IF(Options!$B$9=6,'Daten A5'!$L$36,IF(Options!$B$9=7,'Daten A5'!$L$42,IF(Options!$B$9=8,'Daten A5'!$L$48,IF(Options!$B$9=9,'Daten A5'!$L$54,IF(Options!$B$9=10,'Daten A5'!$L$60,IF(Options!$B$9=11,'Daten A5'!$L$66,IF(Options!$B$9=12,'Daten A5'!$L$72,IF(Options!$B$9=13,'Daten A5'!$L$78,IF(Options!$B$9=14,'Daten A5'!$L$84,IF(Options!$B$9=15,'Daten A5'!$L$90,IF(Options!$B$9=16,'Daten A5'!$L$96,IF(Options!$B$9=17,'Daten A5'!$L$102,IF(Options!$B$9=18,'Daten A5'!$L$108,IF(Options!$B$9=19,'Daten A5'!AA6,IF(Options!$B$9=20,'Daten A5'!AA12,IF(Options!$B$9=21,'Daten A5'!AA18,IF(Options!$B$9=22,'Daten A5'!AA24,IF(Options!$B$9=23,'Daten A5'!AA30,IF(Options!$B$9=24,'Daten A5'!AA36,)))))))))))))))))))))))) -> 0 | BP29: =IF(Options!$B$9=1,'Daten A5'!$M$6,IF(Options!$B$9=2,'Daten A5'!$M$12,IF(Options!$B$9=3,'Daten A5'!$M$18,IF(Options!$B$9=4,'Daten A5'!$M$24,IF(Options!$B$9=5,'Daten A5'!$M$30,IF(Options!$B$9=6,'Daten A5'!$M$36,IF(Options!$B$9=7,'Daten A5'!$M$42,IF(Options!$B$9=8,'Daten A5'!$M$48,IF(Options!$B$9=9,'Daten A5'!$M$54,IF(Options!$B$9=10,'Daten A5'!$M$60,IF(Options!$B$9=11,'Daten A5'!$M$66,IF(Options!$B$9=12,'Daten A5'!$M$72,IF(Options!$B$9=13,'Daten A5'!$M$78,IF(Options!$B$9=14,'Daten A5'!$M$84,IF(Options!$B$9=15,'Daten A5'!$M$90,IF(Options!$B$9=16,'Daten A5'!$M$96,IF(Options!$B$9=17,'Daten A5'!$M$102,IF(Options!$B$9=18,'Daten A5'!$M$108,IF(Options!$B$9=19,'Daten A5'!AB6,IF(Options!$B$9=20,'Daten A5'!AB12,IF(Options!$B$9=21,'Daten A5'!AB18,IF(Options!$B$9=22,'Daten A5'!AB24,IF(Options!$B$9=23,'Daten A5'!AB30,IF(Options!$B$9=24,'Daten A5'!AB36,)))))))))))))))))))))))) -> 75% | BQ29: =IF(Options!$B$9=1,'Daten A5'!$N$6,IF(Options!$B$9=2,'Daten A5'!$N$12,IF(Options!$B$9=3,'Daten A5'!$N$18,IF(Options!$B$9=4,'Daten A5'!$N$24,IF(Options!$B$9=5,'Daten A5'!$N$30,IF(Options!$B$9=6,'Daten A5'!$N$36,IF(Options!$B$9=7,'Daten A5'!$N$42,IF(Options!$B$9=8,'Daten A5'!$N$48,IF(Options!$B$9=9,'Daten A5'!$N$54,IF(Options!$B$9=10,'Daten A5'!$N$60,IF(Options!$B$9=11,'Daten A5'!$N$66,IF(Options!$B$9=12,'Daten A5'!$N$72,IF(Options!$B$9=13,'Daten A5'!$N$78,IF(Options!$B$9=14,'Daten A5'!$N$84,IF(Options!$B$9=15,'Daten A5'!$N$90,IF(Options!$B$9=16,'Daten A5'!$N$96,IF(Options!$B$9=17,'Daten A5'!$N$102,IF(Options!$B$9=18,'Daten A5'!$N$108,IF(Options!$B$9=19,'Daten A5'!AC6,IF(Options!$B$9=20,'Daten A5'!AC12,IF(Options!$B$9=21,'Daten A5'!AC18,IF(Options!$B$9=22,'Daten A5'!AC24,IF(Options!$B$9=23,'Daten A5'!AC30,IF(Options!$B$9=24,'Daten A5'!AC36,)))))))))))))))))))))))) -> 3
AV30: S5 | AX30: =AX20/$AW$20 ->  | AY30: =AY20/$AW$20 ->  | BB30: =BB20/$AW$18 ->  | BD30: Pos 8 | BF30: =IF(Options!$B$9=1,'Daten A5'!$C$7,IF(Options!$B$9=2,'Daten A5'!$C$13,IF(Options!$B$9=3,'Daten A5'!$C$19,IF(Options!$B$9=4,'Daten A5'!$C$25,IF(Options!$B$9=5,'Daten A5'!$C$31,IF(Options!$B$9=6,'Daten A5'!$C$37,IF(Options!$B$9=7,'Daten A5'!$C$43,IF(Options!$B$9=8,'Daten A5'!$C$49,IF(Options!$B$9=9,'Daten A5'!$C$55,IF(Options!$B$9=10,'Daten A5'!$C$61,IF(Options!$B$9=11,'Daten A5'!$C$67,IF(Options!$B$9=12,'Daten A5'!$C$73,IF(Options!$B$9=13,'Daten A5'!$C$79,IF(Options!$B$9=14,'Daten A5'!$C$85,IF(Options!$B$9=15,'Daten A5'!$C$91,IF(Options!$B$9=16,'Daten A5'!$C$97,IF(Options!$B$9=17,'Daten A5'!$C$103,IF(Options!$B$9=18,'Daten A5'!$C$109,IF(Options!$B$9=19,'Daten A5'!R7,IF(Options!$B$9=20,'Daten A5'!R13,IF(Options!$B$9=21,'Daten A5'!R19,IF(Options!$B$9=22,'Daten A5'!R25,IF(Options!$B$9=23,'Daten A5'!R31,IF(Options!$B$9=24,'Daten A5'!R37,)))))))))))))))))))))))) -> 0% | BG30: =IF(Options!$B$9=1,'Daten A5'!$D$7,IF(Options!$B$9=2,'Daten A5'!$D$13,IF(Options!$B$9=3,'Daten A5'!$D$19,IF(Options!$B$9=4,'Daten A5'!$D$25,IF(Options!$B$9=5,'Daten A5'!$D$31,IF(Options!$B$9=6,'Daten A5'!$D$37,IF(Options!$B$9=7,'Daten A5'!$D$43,IF(Options!$B$9=8,'Daten A5'!$D$49,IF(Options!$B$9=9,'Daten A5'!$D$55,IF(Options!$B$9=10,'Daten A5'!$D$61,IF(Options!$B$9=11,'Daten A5'!$D$67,IF(Options!$B$9=12,'Daten A5'!$D$73,IF(Options!$B$9=13,'Daten A5'!$D$79,IF(Options!$B$9=14,'Daten A5'!$D$85,IF(Options!$B$9=15,'Daten A5'!$D$91,IF(Options!$B$9=16,'Daten A5'!$D$97,IF(Options!$B$9=17,'Daten A5'!$D$103,IF(Options!$B$9=18,'Daten A5'!$D$109,IF(Options!$B$9=19,'Daten A5'!S7,IF(Options!$B$9=20,'Daten A5'!S13,IF(Options!$B$9=21,'Daten A5'!S19,IF(Options!$B$9=22,'Daten A5'!S25,IF(Options!$B$9=23,'Daten A5'!S31,IF(Options!$B$9=24,'Daten A5'!S37,)))))))))))))))))))))))) -> 0 | BH30: =IF(Options!$B$9=1,'Daten A5'!$E$7,IF(Options!$B$9=2,'Daten A5'!$E$13,IF(Options!$B$9=3,'Daten A5'!$E$19,IF(Options!$B$9=4,'Daten A5'!$E$25,IF(Options!$B$9=5,'Daten A5'!$E$31,IF(Options!$B$9=6,'Daten A5'!$E$37,IF(Options!$B$9=7,'Daten A5'!$E$43,IF(Options!$B$9=8,'Daten A5'!$E$49,IF(Options!$B$9=9,'Daten A5'!$E$55,IF(Options!$B$9=10,'Daten A5'!$E$61,IF(Options!$B$9=11,'Daten A5'!$E$67,IF(Options!$B$9=12,'Daten A5'!$E$73,IF(Options!$B$9=13,'Daten A5'!$E$79,IF(Options!$B$9=14,'Daten A5'!$E$85,IF(Options!$B$9=15,'Daten A5'!$E$91,IF(Options!$B$9=16,'Daten A5'!$E$97,IF(Options!$B$9=17,'Daten A5'!$E$103,IF(Options!$B$9=18,'Daten A5'!$E$109,IF(Options!$B$9=19,'Daten A5'!T7,IF(Options!$B$9=20,'Daten A5'!T13,IF(Options!$B$9=21,'Daten A5'!T19,IF(Options!$B$9=22,'Daten A5'!T25,IF(Options!$B$9=23,'Daten A5'!T31,IF(Options!$B$9=24,'Daten A5'!T37,)))))))))))))))))))))))) -> 0% | BI30: =IF(Options!$B$9=1,'Daten A5'!$F$7,IF(Options!$B$9=2,'Daten A5'!$F$13,IF(Options!$B$9=3,'Daten A5'!$F$19,IF(Options!$B$9=4,'Daten A5'!$F$25,IF(Options!$B$9=5,'Daten A5'!$F$31,IF(Options!$B$9=6,'Daten A5'!$F$37,IF(Options!$B$9=7,'Daten A5'!$F$43,IF(Options!$B$9=8,'Daten A5'!$F$49,IF(Options!$B$9=9,'Daten A5'!$F$55,IF(Options!$B$9=10,'Daten A5'!$F$61,IF(Options!$B$9=11,'Daten A5'!$F$67,IF(Options!$B$9=12,'Daten A5'!$F$73,IF(Options!$B$9=13,'Daten A5'!$F$79,IF(Options!$B$9=14,'Daten A5'!$F$85,IF(Options!$B$9=15,'Daten A5'!$F$91,IF(Options!$B$9=16,'Daten A5'!$F$97,IF(Options!$B$9=17,'Daten A5'!$F$103,IF(Options!$B$9=18,'Daten A5'!$F$109,IF(Options!$B$9=19,'Daten A5'!U7,IF(Options!$B$9=20,'Daten A5'!U13,IF(Options!$B$9=21,'Daten A5'!U19,IF(Options!$B$9=22,'Daten A5'!U25,IF(Options!$B$9=23,'Daten A5'!U31,IF(Options!$B$9=24,'Daten A5'!U37,)))))))))))))))))))))))) -> 0 | BJ30: =IF(Options!$B$9=1,'Daten A5'!$G$7,IF(Options!$B$9=2,'Daten A5'!$G$13,IF(Options!$B$9=3,'Daten A5'!$G$19,IF(Options!$B$9=4,'Daten A5'!$G$25,IF(Options!$B$9=5,'Daten A5'!$G$31,IF(Options!$B$9=6,'Daten A5'!$G$37,IF(Options!$B$9=7,'Daten A5'!$G$43,IF(Options!$B$9=8,'Daten A5'!$G$49,IF(Options!$B$9=9,'Daten A5'!$G$55,IF(Options!$B$9=10,'Daten A5'!$G$61,IF(Options!$B$9=11,'Daten A5'!$G$67,IF(Options!$B$9=12,'Daten A5'!$G$73,IF(Options!$B$9=13,'Daten A5'!$G$79,IF(Options!$B$9=14,'Daten A5'!$G$85,IF(Options!$B$9=15,'Daten A5'!$G$91,IF(Options!$B$9=16,'Daten A5'!$G$97,IF(Options!$B$9=17,'Daten A5'!$G$103,IF(Options!$B$9=18,'Daten A5'!$G$109,IF(Options!$B$9=19,'Daten A5'!V7,IF(Options!$B$9=20,'Daten A5'!V13,IF(Options!$B$9=21,'Daten A5'!V19,IF(Options!$B$9=22,'Daten A5'!V25,IF(Options!$B$9=23,'Daten A5'!V31,IF(Options!$B$9=24,'Daten A5'!V37,)))))))))))))))))))))))) -> 20% | BK30: =IF(Options!$B$9=1,'Daten A5'!$H$7,IF(Options!$B$9=2,'Daten A5'!$H$13,IF(Options!$B$9=3,'Daten A5'!$H$19,IF(Options!$B$9=4,'Daten A5'!$H$25,IF(Options!$B$9=5,'Daten A5'!$H$31,IF(Options!$B$9=6,'Daten A5'!$H$37,IF(Options!$B$9=7,'Daten A5'!$H$43,IF(Options!$B$9=8,'Daten A5'!$H$49,IF(Options!$B$9=9,'Daten A5'!$H$55,IF(Options!$B$9=10,'Daten A5'!$H$61,IF(Options!$B$9=11,'Daten A5'!$H$67,IF(Options!$B$9=12,'Daten A5'!$H$73,IF(Options!$B$9=13,'Daten A5'!$H$79,IF(Options!$B$9=14,'Daten A5'!$H$85,IF(Options!$B$9=15,'Daten A5'!$H$91,IF(Options!$B$9=16,'Daten A5'!$H$97,IF(Options!$B$9=17,'Daten A5'!$H$103,IF(Options!$B$9=18,'Daten A5'!$H$109,IF(Options!$B$9=19,'Daten A5'!W7,IF(Options!$B$9=20,'Daten A5'!W13,IF(Options!$B$9=21,'Daten A5'!W19,IF(Options!$B$9=22,'Daten A5'!W25,IF(Options!$B$9=23,'Daten A5'!W31,IF(Options!$B$9=24,'Daten A5'!W37,)))))))))))))))))))))))) -> 1 | BL30: =IF(Options!$B$9=1,'Daten A5'!$I$7,IF(Options!$B$9=2,'Daten A5'!$I$13,IF(Options!$B$9=3,'Daten A5'!$I$19,IF(Options!$B$9=4,'Daten A5'!$I$25,IF(Options!$B$9=5,'Daten A5'!$I$31,IF(Options!$B$9=6,'Daten A5'!$I$37,IF(Options!$B$9=7,'Daten A5'!$I$43,IF(Options!$B$9=8,'Daten A5'!$I$49,IF(Options!$B$9=9,'Daten A5'!$I$55,IF(Options!$B$9=10,'Daten A5'!$I$61,IF(Options!$B$9=11,'Daten A5'!$I$67,IF(Options!$B$9=12,'Daten A5'!$I$73,IF(Options!$B$9=13,'Daten A5'!$I$79,IF(Options!$B$9=14,'Daten A5'!$I$85,IF(Options!$B$9=15,'Daten A5'!$I$91,IF(Options!$B$9=16,'Daten A5'!$I$97,IF(Options!$B$9=17,'Daten A5'!$I$103,IF(Options!$B$9=18,'Daten A5'!$I$109,IF(Options!$B$9=19,'Daten A5'!X7,IF(Options!$B$9=20,'Daten A5'!X13,IF(Options!$B$9=21,'Daten A5'!X19,IF(Options!$B$9=22,'Daten A5'!X25,IF(Options!$B$9=23,'Daten A5'!X31,IF(Options!$B$9=24,'Daten A5'!X37,)))))))))))))))))))))))) -> 0% | BM30: =IF(Options!$B$9=1,'Daten A5'!$J$7,IF(Options!$B$9=2,'Daten A5'!$J$13,IF(Options!$B$9=3,'Daten A5'!$J$19,IF(Options!$B$9=4,'Daten A5'!$J$25,IF(Options!$B$9=5,'Daten A5'!$J$31,IF(Options!$B$9=6,'Daten A5'!$J$37,IF(Options!$B$9=7,'Daten A5'!$J$43,IF(Options!$B$9=8,'Daten A5'!$J$49,IF(Options!$B$9=9,'Daten A5'!$J$55,IF(Options!$B$9=10,'Daten A5'!$J$61,IF(Options!$B$9=11,'Daten A5'!$J$67,IF(Options!$B$9=12,'Daten A5'!$J$73,IF(Options!$B$9=13,'Daten A5'!$J$79,IF(Options!$B$9=14,'Daten A5'!$J$85,IF(Options!$B$9=15,'Daten A5'!$J$91,IF(Options!$B$9=16,'Daten A5'!$J$97,IF(Options!$B$9=17,'Daten A5'!$J$103,IF(Options!$B$9=18,'Daten A5'!$J$109,IF(Options!$B$9=19,'Daten A5'!Y7,IF(Options!$B$9=20,'Daten A5'!Y13,IF(Options!$B$9=21,'Daten A5'!Y19,IF(Options!$B$9=22,'Daten A5'!Y25,IF(Options!$B$9=23,'Daten A5'!Y31,IF(Options!$B$9=24,'Daten A5'!Y37,)))))))))))))))))))))))) -> 0 | BN30: =IF(Options!$B$9=1,'Daten A5'!$K$7,IF(Options!$B$9=2,'Daten A5'!$K$13,IF(Options!$B$9=3,'Daten A5'!$K$19,IF(Options!$B$9=4,'Daten A5'!$K$25,IF(Options!$B$9=5,'Daten A5'!$K$31,IF(Options!$B$9=6,'Daten A5'!$K$37,IF(Options!$B$9=7,'Daten A5'!$K$43,IF(Options!$B$9=8,'Daten A5'!$K$49,IF(Options!$B$9=9,'Daten A5'!$K$55,IF(Options!$B$9=10,'Daten A5'!$K$61,IF(Options!$B$9=11,'Daten A5'!$K$67,IF(Options!$B$9=12,'Daten A5'!$K$73,IF(Options!$B$9=13,'Daten A5'!$K$79,IF(Options!$B$9=14,'Daten A5'!$K$85,IF(Options!$B$9=15,'Daten A5'!$K$91,IF(Options!$B$9=16,'Daten A5'!$K$97,IF(Options!$B$9=17,'Daten A5'!$K$103,IF(Options!$B$9=18,'Daten A5'!$K$109,IF(Options!$B$9=19,'Daten A5'!Z7,IF(Options!$B$9=20,'Daten A5'!Z13,IF(Options!$B$9=21,'Daten A5'!Z19,IF(Options!$B$9=22,'Daten A5'!Z25,IF(Options!$B$9=23,'Daten A5'!Z31,IF(Options!$B$9=24,'Daten A5'!Z37,)))))))))))))))))))))))) -> ---- | BO30: =IF(Options!$B$9=1,'Daten A5'!$L$7,IF(Options!$B$9=2,'Daten A5'!$L$13,IF(Options!$B$9=3,'Daten A5'!$L$19,IF(Options!$B$9=4,'Daten A5'!$L$25,IF(Options!$B$9=5,'Daten A5'!$L$31,IF(Options!$B$9=6,'Daten A5'!$L$37,IF(Options!$B$9=7,'Daten A5'!$L$43,IF(Options!$B$9=8,'Daten A5'!$L$49,IF(Options!$B$9=9,'Daten A5'!$L$55,IF(Options!$B$9=10,'Daten A5'!$L$61,IF(Options!$B$9=11,'Daten A5'!$L$67,IF(Options!$B$9=12,'Daten A5'!$L$73,IF(Options!$B$9=13,'Daten A5'!$L$79,IF(Options!$B$9=14,'Daten A5'!$L$85,IF(Options!$B$9=15,'Daten A5'!$L$91,IF(Options!$B$9=16,'Daten A5'!$L$97,IF(Options!$B$9=17,'Daten A5'!$L$103,IF(Options!$B$9=18,'Daten A5'!$L$109,IF(Options!$B$9=19,'Daten A5'!AA7,IF(Options!$B$9=20,'Daten A5'!AA13,IF(Options!$B$9=21,'Daten A5'!AA19,IF(Options!$B$9=22,'Daten A5'!AA25,IF(Options!$B$9=23,'Daten A5'!AA31,IF(Options!$B$9=24,'Daten A5'!AA37,)))))))))))))))))))))))) -> 0 | BP30: =IF(Options!$B$9=1,'Daten A5'!$M$7,IF(Options!$B$9=2,'Daten A5'!$M$13,IF(Options!$B$9=3,'Daten A5'!$M$19,IF(Options!$B$9=4,'Daten A5'!$M$25,IF(Options!$B$9=5,'Daten A5'!$M$31,IF(Options!$B$9=6,'Daten A5'!$M$37,IF(Options!$B$9=7,'Daten A5'!$M$43,IF(Options!$B$9=8,'Daten A5'!$M$49,IF(Options!$B$9=9,'Daten A5'!$M$55,IF(Options!$B$9=10,'Daten A5'!$M$61,IF(Options!$B$9=11,'Daten A5'!$M$67,IF(Options!$B$9=12,'Daten A5'!$M$73,IF(Options!$B$9=13,'Daten A5'!$M$79,IF(Options!$B$9=14,'Daten A5'!$M$85,IF(Options!$B$9=15,'Daten A5'!$M$91,IF(Options!$B$9=16,'Daten A5'!$M$97,IF(Options!$B$9=17,'Daten A5'!$M$103,IF(Options!$B$9=18,'Daten A5'!$M$109,IF(Options!$B$9=19,'Daten A5'!AB7,IF(Options!$B$9=20,'Daten A5'!AB13,IF(Options!$B$9=21,'Daten A5'!AB19,IF(Options!$B$9=22,'Daten A5'!AB25,IF(Options!$B$9=23,'Daten A5'!AB31,IF(Options!$B$9=24,'Daten A5'!AB37,)))))))))))))))))))))))) -> 0% | BQ30: =IF(Options!$B$9=1,'Daten A5'!$N$7,IF(Options!$B$9=2,'Daten A5'!$N$13,IF(Options!$B$9=3,'Daten A5'!$N$19,IF(Options!$B$9=4,'Daten A5'!$N$25,IF(Options!$B$9=5,'Daten A5'!$N$31,IF(Options!$B$9=6,'Daten A5'!$N$37,IF(Options!$B$9=7,'Daten A5'!$N$43,IF(Options!$B$9=8,'Daten A5'!$N$49,IF(Options!$B$9=9,'Daten A5'!$N$55,IF(Options!$B$9=10,'Daten A5'!$N$61,IF(Options!$B$9=11,'Daten A5'!$N$67,IF(Options!$B$9=12,'Daten A5'!$N$73,IF(Options!$B$9=13,'Daten A5'!$N$79,IF(Options!$B$9=14,'Daten A5'!$N$85,IF(Options!$B$9=15,'Daten A5'!$N$91,IF(Options!$B$9=16,'Daten A5'!$N$97,IF(Options!$B$9=17,'Daten A5'!$N$103,IF(Options!$B$9=18,'Daten A5'!$N$109,IF(Options!$B$9=19,'Daten A5'!AC7,IF(Options!$B$9=20,'Daten A5'!AC13,IF(Options!$B$9=21,'Daten A5'!AC19,IF(Options!$B$9=22,'Daten A5'!AC25,IF(Options!$B$9=23,'Daten A5'!AC31,IF(Options!$B$9=24,'Daten A5'!AC37,)))))))))))))))))))))))) -> 0
B31: =IF(OR($BP$31=0,$BQ$31=0),"",CONCATENATE($BP$31,$BD$26,$BQ$31)) ->  | E31: =IF(OR($BP$30=0,$BQ$30=0),"",CONCATENATE($BP$30,$BD$26,$BQ$30)) ->  | M31: =IF(OR($BN$31=0,$BO$31=0),"",CONCATENATE($BN$31,$BD$26,$BO$31)) ->  | P31: =IF(OR($BN$30=0,$BO$30=0),"",CONCATENATE($BN$30,$BD$26,$BO$30)) ->  | X31: =IF(OR($BL$31=0,$BM$31=0),"",CONCATENATE($BL$31,$BD$26,$BM$31)) ->  | AA31: =IF(OR($BL$30=0,$BM$30=0),"",CONCATENATE($BL$30,$BD$26,$BM$30)) ->  | AV31: S4 | AX31: =AX21/$AW$21 ->  | AY31: =AY21/$AW$21 ->  | BB31: =BB21/$AW$18 ->  | BD31: Pos 9 | BF31: =IF(Options!$B$9=1,'Daten A5'!$C$8,IF(Options!$B$9=2,'Daten A5'!$C$14,IF(Options!$B$9=3,'Daten A5'!$C$20,IF(Options!$B$9=4,'Daten A5'!$C$26,IF(Options!$B$9=5,'Daten A5'!$C$32,IF(Options!$B$9=6,'Daten A5'!$C$38,IF(Options!$B$9=7,'Daten A5'!$C$44,IF(Options!$B$9=8,'Daten A5'!$C$50,IF(Options!$B$9=9,'Daten A5'!$C$56,IF(Options!$B$9=10,'Daten A5'!$C$62,IF(Options!$B$9=11,'Daten A5'!$C$68,IF(Options!$B$9=12,'Daten A5'!$C$74,IF(Options!$B$9=13,'Daten A5'!$C$80,IF(Options!$B$9=14,'Daten A5'!$C$86,IF(Options!$B$9=15,'Daten A5'!$C$92,IF(Options!$B$9=16,'Daten A5'!$C$98,IF(Options!$B$9=17,'Daten A5'!$C$104,IF(Options!$B$9=18,'Daten A5'!$C$110,IF(Options!$B$9=19,'Daten A5'!R8,IF(Options!$B$9=20,'Daten A5'!R14,IF(Options!$B$9=21,'Daten A5'!R20,IF(Options!$B$9=22,'Daten A5'!R26,IF(Options!$B$9=23,'Daten A5'!R32,IF(Options!$B$9=24,'Daten A5'!R38,)))))))))))))))))))))))) -> 0% | BG31: =IF(Options!$B$9=1,'Daten A5'!$D$8,IF(Options!$B$9=2,'Daten A5'!$D$14,IF(Options!$B$9=3,'Daten A5'!$D$20,IF(Options!$B$9=4,'Daten A5'!$D$26,IF(Options!$B$9=5,'Daten A5'!$D$32,IF(Options!$B$9=6,'Daten A5'!$D$38,IF(Options!$B$9=7,'Daten A5'!$D$44,IF(Options!$B$9=8,'Daten A5'!$D$50,IF(Options!$B$9=9,'Daten A5'!$D$56,IF(Options!$B$9=10,'Daten A5'!$D$62,IF(Options!$B$9=11,'Daten A5'!$D$68,IF(Options!$B$9=12,'Daten A5'!$D$74,IF(Options!$B$9=13,'Daten A5'!$D$80,IF(Options!$B$9=14,'Daten A5'!$D$86,IF(Options!$B$9=15,'Daten A5'!$D$92,IF(Options!$B$9=16,'Daten A5'!$D$98,IF(Options!$B$9=17,'Daten A5'!$D$104,IF(Options!$B$9=18,'Daten A5'!$D$110,IF(Options!$B$9=19,'Daten A5'!S8,IF(Options!$B$9=20,'Daten A5'!S14,IF(Options!$B$9=21,'Daten A5'!S20,IF(Options!$B$9=22,'Daten A5'!S26,IF(Options!$B$9=23,'Daten A5'!S32,IF(Options!$B$9=24,'Daten A5'!S38,)))))))))))))))))))))))) -> 0 | BH31: =IF(Options!$B$9=1,'Daten A5'!$E$8,IF(Options!$B$9=2,'Daten A5'!$E$14,IF(Options!$B$9=3,'Daten A5'!$E$20,IF(Options!$B$9=4,'Daten A5'!$E$26,IF(Options!$B$9=5,'Daten A5'!$E$32,IF(Options!$B$9=6,'Daten A5'!$E$38,IF(Options!$B$9=7,'Daten A5'!$E$44,IF(Options!$B$9=8,'Daten A5'!$E$50,IF(Options!$B$9=9,'Daten A5'!$E$56,IF(Options!$B$9=10,'Daten A5'!$E$62,IF(Options!$B$9=11,'Daten A5'!$E$68,IF(Options!$B$9=12,'Daten A5'!$E$74,IF(Options!$B$9=13,'Daten A5'!$E$80,IF(Options!$B$9=14,'Daten A5'!$E$86,IF(Options!$B$9=15,'Daten A5'!$E$92,IF(Options!$B$9=16,'Daten A5'!$E$98,IF(Options!$B$9=17,'Daten A5'!$E$104,IF(Options!$B$9=18,'Daten A5'!$E$110,IF(Options!$B$9=19,'Daten A5'!T8,IF(Options!$B$9=20,'Daten A5'!T14,IF(Options!$B$9=21,'Daten A5'!T20,IF(Options!$B$9=22,'Daten A5'!T26,IF(Options!$B$9=23,'Daten A5'!T32,IF(Options!$B$9=24,'Daten A5'!T38,)))))))))))))))))))))))) -> 0% | BI31: =IF(Options!$B$9=1,'Daten A5'!$F$8,IF(Options!$B$9=2,'Daten A5'!$F$14,IF(Options!$B$9=3,'Daten A5'!$F$20,IF(Options!$B$9=4,'Daten A5'!$F$26,IF(Options!$B$9=5,'Daten A5'!$F$32,IF(Options!$B$9=6,'Daten A5'!$F$38,IF(Options!$B$9=7,'Daten A5'!$F$44,IF(Options!$B$9=8,'Daten A5'!$F$50,IF(Options!$B$9=9,'Daten A5'!$F$56,IF(Options!$B$9=10,'Daten A5'!$F$62,IF(Options!$B$9=11,'Daten A5'!$F$68,IF(Options!$B$9=12,'Daten A5'!$F$74,IF(Options!$B$9=13,'Daten A5'!$F$80,IF(Options!$B$9=14,'Daten A5'!$F$86,IF(Options!$B$9=15,'Daten A5'!$F$92,IF(Options!$B$9=16,'Daten A5'!$F$98,IF(Options!$B$9=17,'Daten A5'!$F$104,IF(Options!$B$9=18,'Daten A5'!$F$110,IF(Options!$B$9=19,'Daten A5'!U8,IF(Options!$B$9=20,'Daten A5'!U14,IF(Options!$B$9=21,'Daten A5'!U20,IF(Options!$B$9=22,'Daten A5'!U26,IF(Options!$B$9=23,'Daten A5'!U32,IF(Options!$B$9=24,'Daten A5'!U38,)))))))))))))))))))))))) -> 0 | BJ31: =IF(Options!$B$9=1,'Daten A5'!$G$8,IF(Options!$B$9=2,'Daten A5'!$G$14,IF(Options!$B$9=3,'Daten A5'!$G$20,IF(Options!$B$9=4,'Daten A5'!$G$26,IF(Options!$B$9=5,'Daten A5'!$G$32,IF(Options!$B$9=6,'Daten A5'!$G$38,IF(Options!$B$9=7,'Daten A5'!$G$44,IF(Options!$B$9=8,'Daten A5'!$G$50,IF(Options!$B$9=9,'Daten A5'!$G$56,IF(Options!$B$9=10,'Daten A5'!$G$62,IF(Options!$B$9=11,'Daten A5'!$G$68,IF(Options!$B$9=12,'Daten A5'!$G$74,IF(Options!$B$9=13,'Daten A5'!$G$80,IF(Options!$B$9=14,'Daten A5'!$G$86,IF(Options!$B$9=15,'Daten A5'!$G$92,IF(Options!$B$9=16,'Daten A5'!$G$98,IF(Options!$B$9=17,'Daten A5'!$G$104,IF(Options!$B$9=18,'Daten A5'!$G$110,IF(Options!$B$9=19,'Daten A5'!V8,IF(Options!$B$9=20,'Daten A5'!V14,IF(Options!$B$9=21,'Daten A5'!V20,IF(Options!$B$9=22,'Daten A5'!V26,IF(Options!$B$9=23,'Daten A5'!V32,IF(Options!$B$9=24,'Daten A5'!V38,)))))))))))))))))))))))) -> 0% | BK31: =IF(Options!$B$9=1,'Daten A5'!$H$8,IF(Options!$B$9=2,'Daten A5'!$H$14,IF(Options!$B$9=3,'Daten A5'!$H$20,IF(Options!$B$9=4,'Daten A5'!$H$26,IF(Options!$B$9=5,'Daten A5'!$H$32,IF(Options!$B$9=6,'Daten A5'!$H$38,IF(Options!$B$9=7,'Daten A5'!$H$44,IF(Options!$B$9=8,'Daten A5'!$H$50,IF(Options!$B$9=9,'Daten A5'!$H$56,IF(Options!$B$9=10,'Daten A5'!$H$62,IF(Options!$B$9=11,'Daten A5'!$H$68,IF(Options!$B$9=12,'Daten A5'!$H$74,IF(Options!$B$9=13,'Daten A5'!$H$80,IF(Options!$B$9=14,'Daten A5'!$H$86,IF(Options!$B$9=15,'Daten A5'!$H$92,IF(Options!$B$9=16,'Daten A5'!$H$98,IF(Options!$B$9=17,'Daten A5'!$H$104,IF(Options!$B$9=18,'Daten A5'!$H$110,IF(Options!$B$9=19,'Daten A5'!W8,IF(Options!$B$9=20,'Daten A5'!W14,IF(Options!$B$9=21,'Daten A5'!W20,IF(Options!$B$9=22,'Daten A5'!W26,IF(Options!$B$9=23,'Daten A5'!W32,IF(Options!$B$9=24,'Daten A5'!W38,)))))))))))))))))))))))) -> 0 | BL31: =IF(Options!$B$9=1,'Daten A5'!$I$8,IF(Options!$B$9=2,'Daten A5'!$I$14,IF(Options!$B$9=3,'Daten A5'!$I$20,IF(Options!$B$9=4,'Daten A5'!$I$26,IF(Options!$B$9=5,'Daten A5'!$I$32,IF(Options!$B$9=6,'Daten A5'!$I$38,IF(Options!$B$9=7,'Daten A5'!$I$44,IF(Options!$B$9=8,'Daten A5'!$I$50,IF(Options!$B$9=9,'Daten A5'!$I$56,IF(Options!$B$9=10,'Daten A5'!$I$62,IF(Options!$B$9=11,'Daten A5'!$I$68,IF(Options!$B$9=12,'Daten A5'!$I$74,IF(Options!$B$9=13,'Daten A5'!$I$80,IF(Options!$B$9=14,'Daten A5'!$I$86,IF(Options!$B$9=15,'Daten A5'!$I$92,IF(Options!$B$9=16,'Daten A5'!$I$98,IF(Options!$B$9=17,'Daten A5'!$I$104,IF(Options!$B$9=18,'Daten A5'!$I$110,IF(Options!$B$9=19,'Daten A5'!X8,IF(Options!$B$9=20,'Daten A5'!X14,IF(Options!$B$9=21,'Daten A5'!X20,IF(Options!$B$9=22,'Daten A5'!X26,IF(Options!$B$9=23,'Daten A5'!X32,IF(Options!$B$9=24,'Daten A5'!X38,)))))))))))))))))))))))) -> 0% | BM31: =IF(Options!$B$9=1,'Daten A5'!$J$8,IF(Options!$B$9=2,'Daten A5'!$J$14,IF(Options!$B$9=3,'Daten A5'!$J$20,IF(Options!$B$9=4,'Daten A5'!$J$26,IF(Options!$B$9=5,'Daten A5'!$J$32,IF(Options!$B$9=6,'Daten A5'!$J$38,IF(Options!$B$9=7,'Daten A5'!$J$44,IF(Options!$B$9=8,'Daten A5'!$J$50,IF(Options!$B$9=9,'Daten A5'!$J$56,IF(Options!$B$9=10,'Daten A5'!$J$62,IF(Options!$B$9=11,'Daten A5'!$J$68,IF(Options!$B$9=12,'Daten A5'!$J$74,IF(Options!$B$9=13,'Daten A5'!$J$80,IF(Options!$B$9=14,'Daten A5'!$J$86,IF(Options!$B$9=15,'Daten A5'!$J$92,IF(Options!$B$9=16,'Daten A5'!$J$98,IF(Options!$B$9=17,'Daten A5'!$J$104,IF(Options!$B$9=18,'Daten A5'!$J$110,IF(Options!$B$9=19,'Daten A5'!Y8,IF(Options!$B$9=20,'Daten A5'!Y14,IF(Options!$B$9=21,'Daten A5'!Y20,IF(Options!$B$9=22,'Daten A5'!Y26,IF(Options!$B$9=23,'Daten A5'!Y32,IF(Options!$B$9=24,'Daten A5'!Y38,)))))))))))))))))))))))) -> 0 | BN31: =IF(Options!$B$9=1,'Daten A5'!$K$8,IF(Options!$B$9=2,'Daten A5'!$K$14,IF(Options!$B$9=3,'Daten A5'!$K$20,IF(Options!$B$9=4,'Daten A5'!$K$26,IF(Options!$B$9=5,'Daten A5'!$K$32,IF(Options!$B$9=6,'Daten A5'!$K$38,IF(Options!$B$9=7,'Daten A5'!$K$44,IF(Options!$B$9=8,'Daten A5'!$K$50,IF(Options!$B$9=9,'Daten A5'!$K$56,IF(Options!$B$9=10,'Daten A5'!$K$62,IF(Options!$B$9=11,'Daten A5'!$K$68,IF(Options!$B$9=12,'Daten A5'!$K$74,IF(Options!$B$9=13,'Daten A5'!$K$80,IF(Options!$B$9=14,'Daten A5'!$K$86,IF(Options!$B$9=15,'Daten A5'!$K$92,IF(Options!$B$9=16,'Daten A5'!$K$98,IF(Options!$B$9=17,'Daten A5'!$K$104,IF(Options!$B$9=18,'Daten A5'!$K$110,IF(Options!$B$9=19,'Daten A5'!Z8,IF(Options!$B$9=20,'Daten A5'!Z14,IF(Options!$B$9=21,'Daten A5'!Z20,IF(Options!$B$9=22,'Daten A5'!Z26,IF(Options!$B$9=23,'Daten A5'!Z32,IF(Options!$B$9=24,'Daten A5'!Z38,)))))))))))))))))))))))) -> ---- | BO31: =IF(Options!$B$9=1,'Daten A5'!$L$8,IF(Options!$B$9=2,'Daten A5'!$L$14,IF(Options!$B$9=3,'Daten A5'!$L$20,IF(Options!$B$9=4,'Daten A5'!$L$26,IF(Options!$B$9=5,'Daten A5'!$L$32,IF(Options!$B$9=6,'Daten A5'!$L$38,IF(Options!$B$9=7,'Daten A5'!$L$44,IF(Options!$B$9=8,'Daten A5'!$L$50,IF(Options!$B$9=9,'Daten A5'!$L$56,IF(Options!$B$9=10,'Daten A5'!$L$62,IF(Options!$B$9=11,'Daten A5'!$L$68,IF(Options!$B$9=12,'Daten A5'!$L$74,IF(Options!$B$9=13,'Daten A5'!$L$80,IF(Options!$B$9=14,'Daten A5'!$L$86,IF(Options!$B$9=15,'Daten A5'!$L$92,IF(Options!$B$9=16,'Daten A5'!$L$98,IF(Options!$B$9=17,'Daten A5'!$L$104,IF(Options!$B$9=18,'Daten A5'!$L$110,IF(Options!$B$9=19,'Daten A5'!AA8,IF(Options!$B$9=20,'Daten A5'!AA14,IF(Options!$B$9=21,'Daten A5'!AA20,IF(Options!$B$9=22,'Daten A5'!AA26,IF(Options!$B$9=23,'Daten A5'!AA32,IF(Options!$B$9=24,'Daten A5'!AA38,)))))))))))))))))))))))) -> 0 | BP31: =IF(Options!$B$9=1,'Daten A5'!$M$8,IF(Options!$B$9=2,'Daten A5'!$M$14,IF(Options!$B$9=3,'Daten A5'!$M$20,IF(Options!$B$9=4,'Daten A5'!$M$26,IF(Options!$B$9=5,'Daten A5'!$M$32,IF(Options!$B$9=6,'Daten A5'!$M$38,IF(Options!$B$9=7,'Daten A5'!$M$44,IF(Options!$B$9=8,'Daten A5'!$M$50,IF(Options!$B$9=9,'Daten A5'!$M$56,IF(Options!$B$9=10,'Daten A5'!$M$62,IF(Options!$B$9=11,'Daten A5'!$M$68,IF(Options!$B$9=12,'Daten A5'!$M$74,IF(Options!$B$9=13,'Daten A5'!$M$80,IF(Options!$B$9=14,'Daten A5'!$M$86,IF(Options!$B$9=15,'Daten A5'!$M$92,IF(Options!$B$9=16,'Daten A5'!$M$98,IF(Options!$B$9=17,'Daten A5'!$M$104,IF(Options!$B$9=18,'Daten A5'!$M$110,IF(Options!$B$9=19,'Daten A5'!AB8,IF(Options!$B$9=20,'Daten A5'!AB14,IF(Options!$B$9=21,'Daten A5'!AB20,IF(Options!$B$9=22,'Daten A5'!AB26,IF(Options!$B$9=23,'Daten A5'!AB32,IF(Options!$B$9=24,'Daten A5'!AB38,)))))))))))))))))))))))) -> 0% | BQ31: =IF(Options!$B$9=1,'Daten A5'!$N$8,IF(Options!$B$9=2,'Daten A5'!$N$14,IF(Options!$B$9=3,'Daten A5'!$N$20,IF(Options!$B$9=4,'Daten A5'!$N$26,IF(Options!$B$9=5,'Daten A5'!$N$32,IF(Options!$B$9=6,'Daten A5'!$N$38,IF(Options!$B$9=7,'Daten A5'!$N$44,IF(Options!$B$9=8,'Daten A5'!$N$50,IF(Options!$B$9=9,'Daten A5'!$N$56,IF(Options!$B$9=10,'Daten A5'!$N$62,IF(Options!$B$9=11,'Daten A5'!$N$68,IF(Options!$B$9=12,'Daten A5'!$N$74,IF(Options!$B$9=13,'Daten A5'!$N$80,IF(Options!$B$9=14,'Daten A5'!$N$86,IF(Options!$B$9=15,'Daten A5'!$N$92,IF(Options!$B$9=16,'Daten A5'!$N$98,IF(Options!$B$9=17,'Daten A5'!$N$104,IF(Options!$B$9=18,'Daten A5'!$N$110,IF(Options!$B$9=19,'Daten A5'!AC8,IF(Options!$B$9=20,'Daten A5'!AC14,IF(Options!$B$9=21,'Daten A5'!AC20,IF(Options!$B$9=22,'Daten A5'!AC26,IF(Options!$B$9=23,'Daten A5'!AC32,IF(Options!$B$9=24,'Daten A5'!AC38,)))))))))))))))))))))))) -> 0
B32: =IF(OR($BP$31=0,$BQ$31=0),"",CONCATENATE($BP$38,$BD$26,$BQ$38)) ->  | E32: =IF(OR($BP$30=0,$BQ$30=0),"",CONCATENATE($BP$37,$BD$26,$BQ$37)) ->  | M32: =IF(OR($BN$31=0,$BO$31=0),"",CONCATENATE($BN$38,$BD$26,$BO$38)) ->  | P32: =IF(OR($BN$30=0,$BO$30=0),"",CONCATENATE($BN$37,$BD$26,$BO$37)) ->  | X32: =IF(OR($BL$31=0,$BM$31=0),"",CONCATENATE($BL$38,$BD$26,$BM$38)) ->  | AA32: =IF(OR($BL$30=0,$BM$30=0),"",CONCATENATE($BL$37,$BD$26,$BM$37)) ->  | AV32: S3 | AX32: =AX22/$AW$22 ->  | AY32: =AY22/$AW$22 ->  | BB32: =BB22/$AW$18 ->  | BD32: Eff & #% in rot by setter
AV33: S2 | AX33: =AX23/$AW$23 ->  | AY33: =AY23/$AW$23 ->  | BB33: =BB23/$AW$18 ->  | BF33: S 1 | BH33: S 6 | BJ33: S 5 | BL33: S 4 | BN33: S 3 | BP33: S 2
BD34: Pos 2 | BF34: =IF(Options!$B$9=1,'Daten A6'!$C$4,IF(Options!$B$9=2,'Daten A6'!$C$10,IF(Options!$B$9=3,'Daten A6'!$C$16,IF(Options!$B$9=4,'Daten A6'!$C$22,IF(Options!$B$9=5,'Daten A6'!$C$28,IF(Options!$B$9=6,'Daten A6'!$C$34,IF(Options!$B$9=7,'Daten A6'!$C$40,IF(Options!$B$9=8,'Daten A6'!$C$46,IF(Options!$B$9=9,'Daten A6'!$C$52,IF(Options!$B$9=10,'Daten A6'!$C$58,IF(Options!$B$9=11,'Daten A6'!$C$64,IF(Options!$B$9=12,'Daten A6'!$C$70,IF(Options!$B$9=13,'Daten A6'!$C$76,IF(Options!$B$9=14,'Daten A6'!$C$82,IF(Options!$B$9=15,'Daten A6'!$C$88,IF(Options!$B$9=16,'Daten A6'!$C$94,IF(Options!$B$9=17,'Daten A6'!$C$100,IF(Options!$B$9=18,'Daten A6'!$C$106,IF(Options!$B$9=19,'Daten A6'!R11,IF(Options!$B$9=20,'Daten A6'!R17,IF(Options!$B$9=21,'Daten A6'!R23,IF(Options!$B$9=22,'Daten A6'!R29,IF(Options!$B$9=23,'Daten A6'!R35,IF(Options!$B$9=24,'Daten A6'!R41,)))))))))))))))))))))))) -> 0% | BG34: =IF(Options!$B$9=1,'Daten A6'!$D$4,IF(Options!$B$9=2,'Daten A6'!$D$10,IF(Options!$B$9=3,'Daten A6'!$D$16,IF(Options!$B$9=4,'Daten A6'!$D$22,IF(Options!$B$9=5,'Daten A6'!$D$28,IF(Options!$B$9=6,'Daten A6'!$D$34,IF(Options!$B$9=7,'Daten A6'!$D$40,IF(Options!$B$9=8,'Daten A6'!$D$46,IF(Options!$B$9=9,'Daten A6'!$D$52,IF(Options!$B$9=10,'Daten A6'!$D$58,IF(Options!$B$9=11,'Daten A6'!$D$64,IF(Options!$B$9=12,'Daten A6'!$D$70,IF(Options!$B$9=13,'Daten A6'!$D$76,IF(Options!$B$9=14,'Daten A6'!$D$82,IF(Options!$B$9=15,'Daten A6'!$D$88,IF(Options!$B$9=16,'Daten A6'!$D$94,IF(Options!$B$9=17,'Daten A6'!$D$100,IF(Options!$B$9=18,'Daten A6'!$D$106,IF(Options!$B$9=19,'Daten A6'!S11,IF(Options!$B$9=20,'Daten A6'!S17,IF(Options!$B$9=21,'Daten A6'!S23,IF(Options!$B$9=22,'Daten A6'!S29,IF(Options!$B$9=23,'Daten A6'!S35,IF(Options!$B$9=24,'Daten A6'!S41,)))))))))))))))))))))))) -> ---- | BH34: =IF(Options!$B$9=1,'Daten A6'!$E$4,IF(Options!$B$9=2,'Daten A6'!$E$10,IF(Options!$B$9=3,'Daten A6'!$E$16,IF(Options!$B$9=4,'Daten A6'!$E$22,IF(Options!$B$9=5,'Daten A6'!$E$28,IF(Options!$B$9=6,'Daten A6'!$E$34,IF(Options!$B$9=7,'Daten A6'!$E$40,IF(Options!$B$9=8,'Daten A6'!$E$46,IF(Options!$B$9=9,'Daten A6'!$E$52,IF(Options!$B$9=10,'Daten A6'!$E$58,IF(Options!$B$9=11,'Daten A6'!$E$64,IF(Options!$B$9=12,'Daten A6'!$E$70,IF(Options!$B$9=13,'Daten A6'!$E$76,IF(Options!$B$9=14,'Daten A6'!$E$82,IF(Options!$B$9=15,'Daten A6'!$E$88,IF(Options!$B$9=16,'Daten A6'!$E$94,IF(Options!$B$9=17,'Daten A6'!$E$100,IF(Options!$B$9=18,'Daten A6'!$E$106,IF(Options!$B$9=19,'Daten A6'!T11,IF(Options!$B$9=20,'Daten A6'!T17,IF(Options!$B$9=21,'Daten A6'!T23,IF(Options!$B$9=22,'Daten A6'!T29,IF(Options!$B$9=23,'Daten A6'!T35,IF(Options!$B$9=24,'Daten A6'!T41,)))))))))))))))))))))))) -> -100% | BI34: =IF(Options!$B$9=1,'Daten A6'!$F$4,IF(Options!$B$9=2,'Daten A6'!$F$10,IF(Options!$B$9=3,'Daten A6'!$F$16,IF(Options!$B$9=4,'Daten A6'!$F$22,IF(Options!$B$9=5,'Daten A6'!$F$28,IF(Options!$B$9=6,'Daten A6'!$F$34,IF(Options!$B$9=7,'Daten A6'!$F$40,IF(Options!$B$9=8,'Daten A6'!$F$46,IF(Options!$B$9=9,'Daten A6'!$F$52,IF(Options!$B$9=10,'Daten A6'!$F$58,IF(Options!$B$9=11,'Daten A6'!$F$64,IF(Options!$B$9=12,'Daten A6'!$F$70,IF(Options!$B$9=13,'Daten A6'!$F$76,IF(Options!$B$9=14,'Daten A6'!$F$82,IF(Options!$B$9=15,'Daten A6'!$F$88,IF(Options!$B$9=16,'Daten A6'!$F$94,IF(Options!$B$9=17,'Daten A6'!$F$100,IF(Options!$B$9=18,'Daten A6'!$F$106,IF(Options!$B$9=19,'Daten A6'!U11,IF(Options!$B$9=20,'Daten A6'!U17,IF(Options!$B$9=21,'Daten A6'!U23,IF(Options!$B$9=22,'Daten A6'!U29,IF(Options!$B$9=23,'Daten A6'!U35,IF(Options!$B$9=24,'Daten A6'!U41,)))))))))))))))))))))))) -> 0% | BJ34: =IF(Options!$B$9=1,'Daten A6'!$G$4,IF(Options!$B$9=2,'Daten A6'!$G$10,IF(Options!$B$9=3,'Daten A6'!$G$16,IF(Options!$B$9=4,'Daten A6'!$G$22,IF(Options!$B$9=5,'Daten A6'!$G$28,IF(Options!$B$9=6,'Daten A6'!$G$34,IF(Options!$B$9=7,'Daten A6'!$G$40,IF(Options!$B$9=8,'Daten A6'!$G$46,IF(Options!$B$9=9,'Daten A6'!$G$52,IF(Options!$B$9=10,'Daten A6'!$G$58,IF(Options!$B$9=11,'Daten A6'!$G$64,IF(Options!$B$9=12,'Daten A6'!$G$70,IF(Options!$B$9=13,'Daten A6'!$G$76,IF(Options!$B$9=14,'Daten A6'!$G$82,IF(Options!$B$9=15,'Daten A6'!$G$88,IF(Options!$B$9=16,'Daten A6'!$G$94,IF(Options!$B$9=17,'Daten A6'!$G$100,IF(Options!$B$9=18,'Daten A6'!$G$106,IF(Options!$B$9=19,'Daten A6'!V11,IF(Options!$B$9=20,'Daten A6'!V17,IF(Options!$B$9=21,'Daten A6'!V23,IF(Options!$B$9=22,'Daten A6'!V29,IF(Options!$B$9=23,'Daten A6'!V35,IF(Options!$B$9=24,'Daten A6'!V41,)))))))))))))))))))))))) -> 100% | BK34: =IF(Options!$B$9=1,'Daten A6'!$H$4,IF(Options!$B$9=2,'Daten A6'!$H$10,IF(Options!$B$9=3,'Daten A6'!$H$16,IF(Options!$B$9=4,'Daten A6'!$H$22,IF(Options!$B$9=5,'Daten A6'!$H$28,IF(Options!$B$9=6,'Daten A6'!$H$34,IF(Options!$B$9=7,'Daten A6'!$H$40,IF(Options!$B$9=8,'Daten A6'!$H$46,IF(Options!$B$9=9,'Daten A6'!$H$52,IF(Options!$B$9=10,'Daten A6'!$H$58,IF(Options!$B$9=11,'Daten A6'!$H$64,IF(Options!$B$9=12,'Daten A6'!$H$70,IF(Options!$B$9=13,'Daten A6'!$H$76,IF(Options!$B$9=14,'Daten A6'!$H$82,IF(Options!$B$9=15,'Daten A6'!$H$88,IF(Options!$B$9=16,'Daten A6'!$H$94,IF(Options!$B$9=17,'Daten A6'!$H$100,IF(Options!$B$9=18,'Daten A6'!$H$106,IF(Options!$B$9=19,'Daten A6'!W11,IF(Options!$B$9=20,'Daten A6'!W17,IF(Options!$B$9=21,'Daten A6'!W23,IF(Options!$B$9=22,'Daten A6'!W29,IF(Options!$B$9=23,'Daten A6'!W35,IF(Options!$B$9=24,'Daten A6'!W41,)))))))))))))))))))))))) -> 100% | BL34: =IF(Options!$B$9=1,'Daten A6'!$I$4,IF(Options!$B$9=2,'Daten A6'!$I$10,IF(Options!$B$9=3,'Daten A6'!$I$16,IF(Options!$B$9=4,'Daten A6'!$I$22,IF(Options!$B$9=5,'Daten A6'!$I$28,IF(Options!$B$9=6,'Daten A6'!$I$34,IF(Options!$B$9=7,'Daten A6'!$I$40,IF(Options!$B$9=8,'Daten A6'!$I$46,IF(Options!$B$9=9,'Daten A6'!$I$52,IF(Options!$B$9=10,'Daten A6'!$I$58,IF(Options!$B$9=11,'Daten A6'!$I$64,IF(Options!$B$9=12,'Daten A6'!$I$70,IF(Options!$B$9=13,'Daten A6'!$I$76,IF(Options!$B$9=14,'Daten A6'!$I$82,IF(Options!$B$9=15,'Daten A6'!$I$88,IF(Options!$B$9=16,'Daten A6'!$I$94,IF(Options!$B$9=17,'Daten A6'!$I$100,IF(Options!$B$9=18,'Daten A6'!$I$106,IF(Options!$B$9=19,'Daten A6'!X11,IF(Options!$B$9=20,'Daten A6'!X17,IF(Options!$B$9=21,'Daten A6'!X23,IF(Options!$B$9=22,'Daten A6'!X29,IF(Options!$B$9=23,'Daten A6'!X35,IF(Options!$B$9=24,'Daten A6'!X41,)))))))))))))))))))))))) -> 0% | BM34: =IF(Options!$B$9=1,'Daten A6'!$J$4,IF(Options!$B$9=2,'Daten A6'!$J$10,IF(Options!$B$9=3,'Daten A6'!$J$16,IF(Options!$B$9=4,'Daten A6'!$J$22,IF(Options!$B$9=5,'Daten A6'!$J$28,IF(Options!$B$9=6,'Daten A6'!$J$34,IF(Options!$B$9=7,'Daten A6'!$J$40,IF(Options!$B$9=8,'Daten A6'!$J$46,IF(Options!$B$9=9,'Daten A6'!$J$52,IF(Options!$B$9=10,'Daten A6'!$J$58,IF(Options!$B$9=11,'Daten A6'!$J$64,IF(Options!$B$9=12,'Daten A6'!$J$70,IF(Options!$B$9=13,'Daten A6'!$J$76,IF(Options!$B$9=14,'Daten A6'!$J$82,IF(Options!$B$9=15,'Daten A6'!$J$88,IF(Options!$B$9=16,'Daten A6'!$J$94,IF(Options!$B$9=17,'Daten A6'!$J$100,IF(Options!$B$9=18,'Daten A6'!$J$106,IF(Options!$B$9=19,'Daten A6'!Y11,IF(Options!$B$9=20,'Daten A6'!Y17,IF(Options!$B$9=21,'Daten A6'!Y23,IF(Options!$B$9=22,'Daten A6'!Y29,IF(Options!$B$9=23,'Daten A6'!Y35,IF(Options!$B$9=24,'Daten A6'!Y41,)))))))))))))))))))))))) -> ---- | BN34: =IF(Options!$B$9=1,'Daten A6'!$K$4,IF(Options!$B$9=2,'Daten A6'!$K$10,IF(Options!$B$9=3,'Daten A6'!$K$16,IF(Options!$B$9=4,'Daten A6'!$K$22,IF(Options!$B$9=5,'Daten A6'!$K$28,IF(Options!$B$9=6,'Daten A6'!$K$34,IF(Options!$B$9=7,'Daten A6'!$K$40,IF(Options!$B$9=8,'Daten A6'!$K$46,IF(Options!$B$9=9,'Daten A6'!$K$52,IF(Options!$B$9=10,'Daten A6'!$K$58,IF(Options!$B$9=11,'Daten A6'!$K$64,IF(Options!$B$9=12,'Daten A6'!$K$70,IF(Options!$B$9=13,'Daten A6'!$K$76,IF(Options!$B$9=14,'Daten A6'!$K$82,IF(Options!$B$9=15,'Daten A6'!$K$88,IF(Options!$B$9=16,'Daten A6'!$K$94,IF(Options!$B$9=17,'Daten A6'!$K$100,IF(Options!$B$9=18,'Daten A6'!$K$106,IF(Options!$B$9=19,'Daten A6'!Z11,IF(Options!$B$9=20,'Daten A6'!Z17,IF(Options!$B$9=21,'Daten A6'!Z23,IF(Options!$B$9=22,'Daten A6'!Z29,IF(Options!$B$9=23,'Daten A6'!Z35,IF(Options!$B$9=24,'Daten A6'!Z41,)))))))))))))))))))))))) -> 0% | BO34: =IF(Options!$B$9=1,'Daten A6'!$L$4,IF(Options!$B$9=2,'Daten A6'!$L$10,IF(Options!$B$9=3,'Daten A6'!$L$16,IF(Options!$B$9=4,'Daten A6'!$L$22,IF(Options!$B$9=5,'Daten A6'!$L$28,IF(Options!$B$9=6,'Daten A6'!$L$34,IF(Options!$B$9=7,'Daten A6'!$L$40,IF(Options!$B$9=8,'Daten A6'!$L$46,IF(Options!$B$9=9,'Daten A6'!$L$52,IF(Options!$B$9=10,'Daten A6'!$L$58,IF(Options!$B$9=11,'Daten A6'!$L$64,IF(Options!$B$9=12,'Daten A6'!$L$70,IF(Options!$B$9=13,'Daten A6'!$L$76,IF(Options!$B$9=14,'Daten A6'!$L$82,IF(Options!$B$9=15,'Daten A6'!$L$88,IF(Options!$B$9=16,'Daten A6'!$L$94,IF(Options!$B$9=17,'Daten A6'!$L$100,IF(Options!$B$9=18,'Daten A6'!$L$106,IF(Options!$B$9=19,'Daten A6'!AA11,IF(Options!$B$9=20,'Daten A6'!AA17,IF(Options!$B$9=21,'Daten A6'!AA23,IF(Options!$B$9=22,'Daten A6'!AA29,IF(Options!$B$9=23,'Daten A6'!AA35,IF(Options!$B$9=24,'Daten A6'!AA41,)))))))))))))))))))))))) -> ---- | BP34: =IF(Options!$B$9=1,'Daten A6'!$M$4,IF(Options!$B$9=2,'Daten A6'!$M$10,IF(Options!$B$9=3,'Daten A6'!$M$16,IF(Options!$B$9=4,'Daten A6'!$M$22,IF(Options!$B$9=5,'Daten A6'!$M$28,IF(Options!$B$9=6,'Daten A6'!$M$34,IF(Options!$B$9=7,'Daten A6'!$M$40,IF(Options!$B$9=8,'Daten A6'!$M$46,IF(Options!$B$9=9,'Daten A6'!$M$52,IF(Options!$B$9=10,'Daten A6'!$M$58,IF(Options!$B$9=11,'Daten A6'!$M$64,IF(Options!$B$9=12,'Daten A6'!$M$70,IF(Options!$B$9=13,'Daten A6'!$M$76,IF(Options!$B$9=14,'Daten A6'!$M$82,IF(Options!$B$9=15,'Daten A6'!$M$88,IF(Options!$B$9=16,'Daten A6'!$M$94,IF(Options!$B$9=17,'Daten A6'!$M$100,IF(Options!$B$9=18,'Daten A6'!$M$106,IF(Options!$B$9=19,'Daten A6'!AB11,IF(Options!$B$9=20,'Daten A6'!AB17,IF(Options!$B$9=21,'Daten A6'!AB23,IF(Options!$B$9=22,'Daten A6'!AB29,IF(Options!$B$9=23,'Daten A6'!AB35,IF(Options!$B$9=24,'Daten A6'!AB41,)))))))))))))))))))))))) -> 0% | BQ34: =IF(Options!$B$9=1,'Daten A6'!$N$4,IF(Options!$B$9=2,'Daten A6'!$N$10,IF(Options!$B$9=3,'Daten A6'!$N$16,IF(Options!$B$9=4,'Daten A6'!$N$22,IF(Options!$B$9=5,'Daten A6'!$N$28,IF(Options!$B$9=6,'Daten A6'!$N$34,IF(Options!$B$9=7,'Daten A6'!$N$40,IF(Options!$B$9=8,'Daten A6'!$N$46,IF(Options!$B$9=9,'Daten A6'!$N$52,IF(Options!$B$9=10,'Daten A6'!$N$58,IF(Options!$B$9=11,'Daten A6'!$N$64,IF(Options!$B$9=12,'Daten A6'!$N$70,IF(Options!$B$9=13,'Daten A6'!$N$76,IF(Options!$B$9=14,'Daten A6'!$N$82,IF(Options!$B$9=15,'Daten A6'!$N$88,IF(Options!$B$9=16,'Daten A6'!$N$94,IF(Options!$B$9=17,'Daten A6'!$N$100,IF(Options!$B$9=18,'Daten A6'!$N$106,IF(Options!$B$9=19,'Daten A6'!AC11,IF(Options!$B$9=20,'Daten A6'!AC17,IF(Options!$B$9=21,'Daten A6'!AC23,IF(Options!$B$9=22,'Daten A6'!AC29,IF(Options!$B$9=23,'Daten A6'!AC35,IF(Options!$B$9=24,'Daten A6'!AC41,)))))))))))))))))))))))) -> ----
AX35: if x then settercall in match schedule | BD35: Pos 3 | BF35: =IF(Options!$B$9=1,'Daten A6'!$C$5,IF(Options!$B$9=2,'Daten A6'!$C$11,IF(Options!$B$9=3,'Daten A6'!$C$17,IF(Options!$B$9=4,'Daten A6'!$C$23,IF(Options!$B$9=5,'Daten A6'!$C$29,IF(Options!$B$9=6,'Daten A6'!$C$35,IF(Options!$B$9=7,'Daten A6'!$C$41,IF(Options!$B$9=8,'Daten A6'!$C$47,IF(Options!$B$9=9,'Daten A6'!$C$53,IF(Options!$B$9=10,'Daten A6'!$C$59,IF(Options!$B$9=11,'Daten A6'!$C$65,IF(Options!$B$9=12,'Daten A6'!$C$71,IF(Options!$B$9=13,'Daten A6'!$C$77,IF(Options!$B$9=14,'Daten A6'!$C$83,IF(Options!$B$9=15,'Daten A6'!$C$89,IF(Options!$B$9=16,'Daten A6'!$C$95,IF(Options!$B$9=17,'Daten A6'!$C$101,IF(Options!$B$9=18,'Daten A6'!$C$107,IF(Options!$B$9=19,'Daten A6'!R12,IF(Options!$B$9=20,'Daten A6'!R18,IF(Options!$B$9=21,'Daten A6'!R24,IF(Options!$B$9=22,'Daten A6'!R30,IF(Options!$B$9=23,'Daten A6'!R36,IF(Options!$B$9=24,'Daten A6'!R42,)))))))))))))))))))))))) -> 0% | BG35: =IF(Options!$B$9=1,'Daten A6'!$D$5,IF(Options!$B$9=2,'Daten A6'!$D$11,IF(Options!$B$9=3,'Daten A6'!$D$17,IF(Options!$B$9=4,'Daten A6'!$D$23,IF(Options!$B$9=5,'Daten A6'!$D$29,IF(Options!$B$9=6,'Daten A6'!$D$35,IF(Options!$B$9=7,'Daten A6'!$D$41,IF(Options!$B$9=8,'Daten A6'!$D$47,IF(Options!$B$9=9,'Daten A6'!$D$53,IF(Options!$B$9=10,'Daten A6'!$D$59,IF(Options!$B$9=11,'Daten A6'!$D$65,IF(Options!$B$9=12,'Daten A6'!$D$71,IF(Options!$B$9=13,'Daten A6'!$D$77,IF(Options!$B$9=14,'Daten A6'!$D$83,IF(Options!$B$9=15,'Daten A6'!$D$89,IF(Options!$B$9=16,'Daten A6'!$D$95,IF(Options!$B$9=17,'Daten A6'!$D$101,IF(Options!$B$9=18,'Daten A6'!$D$107,IF(Options!$B$9=19,'Daten A6'!S12,IF(Options!$B$9=20,'Daten A6'!S18,IF(Options!$B$9=21,'Daten A6'!S24,IF(Options!$B$9=22,'Daten A6'!S30,IF(Options!$B$9=23,'Daten A6'!S36,IF(Options!$B$9=24,'Daten A6'!S42,)))))))))))))))))))))))) -> ---- | BH35: =IF(Options!$B$9=1,'Daten A6'!$E$5,IF(Options!$B$9=2,'Daten A6'!$E$11,IF(Options!$B$9=3,'Daten A6'!$E$17,IF(Options!$B$9=4,'Daten A6'!$E$23,IF(Options!$B$9=5,'Daten A6'!$E$29,IF(Options!$B$9=6,'Daten A6'!$E$35,IF(Options!$B$9=7,'Daten A6'!$E$41,IF(Options!$B$9=8,'Daten A6'!$E$47,IF(Options!$B$9=9,'Daten A6'!$E$53,IF(Options!$B$9=10,'Daten A6'!$E$59,IF(Options!$B$9=11,'Daten A6'!$E$65,IF(Options!$B$9=12,'Daten A6'!$E$71,IF(Options!$B$9=13,'Daten A6'!$E$77,IF(Options!$B$9=14,'Daten A6'!$E$83,IF(Options!$B$9=15,'Daten A6'!$E$89,IF(Options!$B$9=16,'Daten A6'!$E$95,IF(Options!$B$9=17,'Daten A6'!$E$101,IF(Options!$B$9=18,'Daten A6'!$E$107,IF(Options!$B$9=19,'Daten A6'!T12,IF(Options!$B$9=20,'Daten A6'!T18,IF(Options!$B$9=21,'Daten A6'!T24,IF(Options!$B$9=22,'Daten A6'!T30,IF(Options!$B$9=23,'Daten A6'!T36,IF(Options!$B$9=24,'Daten A6'!T42,)))))))))))))))))))))))) -> 100% | BI35: =IF(Options!$B$9=1,'Daten A6'!$F$5,IF(Options!$B$9=2,'Daten A6'!$F$11,IF(Options!$B$9=3,'Daten A6'!$F$17,IF(Options!$B$9=4,'Daten A6'!$F$23,IF(Options!$B$9=5,'Daten A6'!$F$29,IF(Options!$B$9=6,'Daten A6'!$F$35,IF(Options!$B$9=7,'Daten A6'!$F$41,IF(Options!$B$9=8,'Daten A6'!$F$47,IF(Options!$B$9=9,'Daten A6'!$F$53,IF(Options!$B$9=10,'Daten A6'!$F$59,IF(Options!$B$9=11,'Daten A6'!$F$65,IF(Options!$B$9=12,'Daten A6'!$F$71,IF(Options!$B$9=13,'Daten A6'!$F$77,IF(Options!$B$9=14,'Daten A6'!$F$83,IF(Options!$B$9=15,'Daten A6'!$F$89,IF(Options!$B$9=16,'Daten A6'!$F$95,IF(Options!$B$9=17,'Daten A6'!$F$101,IF(Options!$B$9=18,'Daten A6'!$F$107,IF(Options!$B$9=19,'Daten A6'!U12,IF(Options!$B$9=20,'Daten A6'!U18,IF(Options!$B$9=21,'Daten A6'!U24,IF(Options!$B$9=22,'Daten A6'!U30,IF(Options!$B$9=23,'Daten A6'!U36,IF(Options!$B$9=24,'Daten A6'!U42,)))))))))))))))))))))))) -> 100% | BJ35: =IF(Options!$B$9=1,'Daten A6'!$G$5,IF(Options!$B$9=2,'Daten A6'!$G$11,IF(Options!$B$9=3,'Daten A6'!$G$17,IF(Options!$B$9=4,'Daten A6'!$G$23,IF(Options!$B$9=5,'Daten A6'!$G$29,IF(Options!$B$9=6,'Daten A6'!$G$35,IF(Options!$B$9=7,'Daten A6'!$G$41,IF(Options!$B$9=8,'Daten A6'!$G$47,IF(Options!$B$9=9,'Daten A6'!$G$53,IF(Options!$B$9=10,'Daten A6'!$G$59,IF(Options!$B$9=11,'Daten A6'!$G$65,IF(Options!$B$9=12,'Daten A6'!$G$71,IF(Options!$B$9=13,'Daten A6'!$G$77,IF(Options!$B$9=14,'Daten A6'!$G$83,IF(Options!$B$9=15,'Daten A6'!$G$89,IF(Options!$B$9=16,'Daten A6'!$G$95,IF(Options!$B$9=17,'Daten A6'!$G$101,IF(Options!$B$9=18,'Daten A6'!$G$107,IF(Options!$B$9=19,'Daten A6'!V12,IF(Options!$B$9=20,'Daten A6'!V18,IF(Options!$B$9=21,'Daten A6'!V24,IF(Options!$B$9=22,'Daten A6'!V30,IF(Options!$B$9=23,'Daten A6'!V36,IF(Options!$B$9=24,'Daten A6'!V42,)))))))))))))))))))))))) -> 0% | BK35: =IF(Options!$B$9=1,'Daten A6'!$H$5,IF(Options!$B$9=2,'Daten A6'!$H$11,IF(Options!$B$9=3,'Daten A6'!$H$17,IF(Options!$B$9=4,'Daten A6'!$H$23,IF(Options!$B$9=5,'Daten A6'!$H$29,IF(Options!$B$9=6,'Daten A6'!$H$35,IF(Options!$B$9=7,'Daten A6'!$H$41,IF(Options!$B$9=8,'Daten A6'!$H$47,IF(Options!$B$9=9,'Daten A6'!$H$53,IF(Options!$B$9=10,'Daten A6'!$H$59,IF(Options!$B$9=11,'Daten A6'!$H$65,IF(Options!$B$9=12,'Daten A6'!$H$71,IF(Options!$B$9=13,'Daten A6'!$H$77,IF(Options!$B$9=14,'Daten A6'!$H$83,IF(Options!$B$9=15,'Daten A6'!$H$89,IF(Options!$B$9=16,'Daten A6'!$H$95,IF(Options!$B$9=17,'Daten A6'!$H$101,IF(Options!$B$9=18,'Daten A6'!$H$107,IF(Options!$B$9=19,'Daten A6'!W12,IF(Options!$B$9=20,'Daten A6'!W18,IF(Options!$B$9=21,'Daten A6'!W24,IF(Options!$B$9=22,'Daten A6'!W30,IF(Options!$B$9=23,'Daten A6'!W36,IF(Options!$B$9=24,'Daten A6'!W42,)))))))))))))))))))))))) -> ---- | BL35: =IF(Options!$B$9=1,'Daten A6'!$I$5,IF(Options!$B$9=2,'Daten A6'!$I$11,IF(Options!$B$9=3,'Daten A6'!$I$17,IF(Options!$B$9=4,'Daten A6'!$I$23,IF(Options!$B$9=5,'Daten A6'!$I$29,IF(Options!$B$9=6,'Daten A6'!$I$35,IF(Options!$B$9=7,'Daten A6'!$I$41,IF(Options!$B$9=8,'Daten A6'!$I$47,IF(Options!$B$9=9,'Daten A6'!$I$53,IF(Options!$B$9=10,'Daten A6'!$I$59,IF(Options!$B$9=11,'Daten A6'!$I$65,IF(Options!$B$9=12,'Daten A6'!$I$71,IF(Options!$B$9=13,'Daten A6'!$I$77,IF(Options!$B$9=14,'Daten A6'!$I$83,IF(Options!$B$9=15,'Daten A6'!$I$89,IF(Options!$B$9=16,'Daten A6'!$I$95,IF(Options!$B$9=17,'Daten A6'!$I$101,IF(Options!$B$9=18,'Daten A6'!$I$107,IF(Options!$B$9=19,'Daten A6'!X12,IF(Options!$B$9=20,'Daten A6'!X18,IF(Options!$B$9=21,'Daten A6'!X24,IF(Options!$B$9=22,'Daten A6'!X30,IF(Options!$B$9=23,'Daten A6'!X36,IF(Options!$B$9=24,'Daten A6'!X42,)))))))))))))))))))))))) -> 0% | BM35: =IF(Options!$B$9=1,'Daten A6'!$J$5,IF(Options!$B$9=2,'Daten A6'!$J$11,IF(Options!$B$9=3,'Daten A6'!$J$17,IF(Options!$B$9=4,'Daten A6'!$J$23,IF(Options!$B$9=5,'Daten A6'!$J$29,IF(Options!$B$9=6,'Daten A6'!$J$35,IF(Options!$B$9=7,'Daten A6'!$J$41,IF(Options!$B$9=8,'Daten A6'!$J$47,IF(Options!$B$9=9,'Daten A6'!$J$53,IF(Options!$B$9=10,'Daten A6'!$J$59,IF(Options!$B$9=11,'Daten A6'!$J$65,IF(Options!$B$9=12,'Daten A6'!$J$71,IF(Options!$B$9=13,'Daten A6'!$J$77,IF(Options!$B$9=14,'Daten A6'!$J$83,IF(Options!$B$9=15,'Daten A6'!$J$89,IF(Options!$B$9=16,'Daten A6'!$J$95,IF(Options!$B$9=17,'Daten A6'!$J$101,IF(Options!$B$9=18,'Daten A6'!$J$107,IF(Options!$B$9=19,'Daten A6'!Y12,IF(Options!$B$9=20,'Daten A6'!Y18,IF(Options!$B$9=21,'Daten A6'!Y24,IF(Options!$B$9=22,'Daten A6'!Y30,IF(Options!$B$9=23,'Daten A6'!Y36,IF(Options!$B$9=24,'Daten A6'!Y42,)))))))))))))))))))))))) -> ---- | BN35: =IF(Options!$B$9=1,'Daten A6'!$K$5,IF(Options!$B$9=2,'Daten A6'!$K$11,IF(Options!$B$9=3,'Daten A6'!$K$17,IF(Options!$B$9=4,'Daten A6'!$K$23,IF(Options!$B$9=5,'Daten A6'!$K$29,IF(Options!$B$9=6,'Daten A6'!$K$35,IF(Options!$B$9=7,'Daten A6'!$K$41,IF(Options!$B$9=8,'Daten A6'!$K$47,IF(Options!$B$9=9,'Daten A6'!$K$53,IF(Options!$B$9=10,'Daten A6'!$K$59,IF(Options!$B$9=11,'Daten A6'!$K$65,IF(Options!$B$9=12,'Daten A6'!$K$71,IF(Options!$B$9=13,'Daten A6'!$K$77,IF(Options!$B$9=14,'Daten A6'!$K$83,IF(Options!$B$9=15,'Daten A6'!$K$89,IF(Options!$B$9=16,'Daten A6'!$K$95,IF(Options!$B$9=17,'Daten A6'!$K$101,IF(Options!$B$9=18,'Daten A6'!$K$107,IF(Options!$B$9=19,'Daten A6'!Z12,IF(Options!$B$9=20,'Daten A6'!Z18,IF(Options!$B$9=21,'Daten A6'!Z24,IF(Options!$B$9=22,'Daten A6'!Z30,IF(Options!$B$9=23,'Daten A6'!Z36,IF(Options!$B$9=24,'Daten A6'!Z42,)))))))))))))))))))))))) -> 0% | BO35: =IF(Options!$B$9=1,'Daten A6'!$L$5,IF(Options!$B$9=2,'Daten A6'!$L$11,IF(Options!$B$9=3,'Daten A6'!$L$17,IF(Options!$B$9=4,'Daten A6'!$L$23,IF(Options!$B$9=5,'Daten A6'!$L$29,IF(Options!$B$9=6,'Daten A6'!$L$35,IF(Options!$B$9=7,'Daten A6'!$L$41,IF(Options!$B$9=8,'Daten A6'!$L$47,IF(Options!$B$9=9,'Daten A6'!$L$53,IF(Options!$B$9=10,'Daten A6'!$L$59,IF(Options!$B$9=11,'Daten A6'!$L$65,IF(Options!$B$9=12,'Daten A6'!$L$71,IF(Options!$B$9=13,'Daten A6'!$L$77,IF(Options!$B$9=14,'Daten A6'!$L$83,IF(Options!$B$9=15,'Daten A6'!$L$89,IF(Options!$B$9=16,'Daten A6'!$L$95,IF(Options!$B$9=17,'Daten A6'!$L$101,IF(Options!$B$9=18,'Daten A6'!$L$107,IF(Options!$B$9=19,'Daten A6'!AA12,IF(Options!$B$9=20,'Daten A6'!AA18,IF(Options!$B$9=21,'Daten A6'!AA24,IF(Options!$B$9=22,'Daten A6'!AA30,IF(Options!$B$9=23,'Daten A6'!AA36,IF(Options!$B$9=24,'Daten A6'!AA42,)))))))))))))))))))))))) -> ---- | BP35: =IF(Options!$B$9=1,'Daten A6'!$M$5,IF(Options!$B$9=2,'Daten A6'!$M$11,IF(Options!$B$9=3,'Daten A6'!$M$17,IF(Options!$B$9=4,'Daten A6'!$M$23,IF(Options!$B$9=5,'Daten A6'!$M$29,IF(Options!$B$9=6,'Daten A6'!$M$35,IF(Options!$B$9=7,'Daten A6'!$M$41,IF(Options!$B$9=8,'Daten A6'!$M$47,IF(Options!$B$9=9,'Daten A6'!$M$53,IF(Options!$B$9=10,'Daten A6'!$M$59,IF(Options!$B$9=11,'Daten A6'!$M$65,IF(Options!$B$9=12,'Daten A6'!$M$71,IF(Options!$B$9=13,'Daten A6'!$M$77,IF(Options!$B$9=14,'Daten A6'!$M$83,IF(Options!$B$9=15,'Daten A6'!$M$89,IF(Options!$B$9=16,'Daten A6'!$M$95,IF(Options!$B$9=17,'Daten A6'!$M$101,IF(Options!$B$9=18,'Daten A6'!$M$107,IF(Options!$B$9=19,'Daten A6'!AB12,IF(Options!$B$9=20,'Daten A6'!AB18,IF(Options!$B$9=21,'Daten A6'!AB24,IF(Options!$B$9=22,'Daten A6'!AB30,IF(Options!$B$9=23,'Daten A6'!AB36,IF(Options!$B$9=24,'Daten A6'!AB42,)))))))))))))))))))))))) -> 0% | BQ35: =IF(Options!$B$9=1,'Daten A6'!$N$5,IF(Options!$B$9=2,'Daten A6'!$N$11,IF(Options!$B$9=3,'Daten A6'!$N$17,IF(Options!$B$9=4,'Daten A6'!$N$23,IF(Options!$B$9=5,'Daten A6'!$N$29,IF(Options!$B$9=6,'Daten A6'!$N$35,IF(Options!$B$9=7,'Daten A6'!$N$41,IF(Options!$B$9=8,'Daten A6'!$N$47,IF(Options!$B$9=9,'Daten A6'!$N$53,IF(Options!$B$9=10,'Daten A6'!$N$59,IF(Options!$B$9=11,'Daten A6'!$N$65,IF(Options!$B$9=12,'Daten A6'!$N$71,IF(Options!$B$9=13,'Daten A6'!$N$77,IF(Options!$B$9=14,'Daten A6'!$N$83,IF(Options!$B$9=15,'Daten A6'!$N$89,IF(Options!$B$9=16,'Daten A6'!$N$95,IF(Options!$B$9=17,'Daten A6'!$N$101,IF(Options!$B$9=18,'Daten A6'!$N$107,IF(Options!$B$9=19,'Daten A6'!AC12,IF(Options!$B$9=20,'Daten A6'!AC18,IF(Options!$B$9=21,'Daten A6'!AC24,IF(Options!$B$9=22,'Daten A6'!AC30,IF(Options!$B$9=23,'Daten A6'!AC36,IF(Options!$B$9=24,'Daten A6'!AC42,)))))))))))))))))))))))) -> 0%
B36: =IF(OR($BP$27=0,$BQ$27=0),"",CONCATENATE($BP$27,$BD$26,$BQ$27)) ->  | E36: =IF(OR($BP$28=0,$BQ$28=0),"",CONCATENATE($BP$28,$BD$26,$BQ$28)) -> 25% / 1 | H36: =IF(OR($BP$29=0,$BQ$29=0),"",CONCATENATE($BP$29,$BD$26,$BQ$29)) -> 75% / 3 | M36: =IF(OR($BN$27=0,$BO$27=0),"",CONCATENATE($BN$27,$BD$26,$BO$27)) ->  | P36: =IF(OR($BN$28=0,$BO$28=0),"",CONCATENATE($BN$28,$BD$26,$BO$28)) ->  | S36: =IF(OR($BN$29=0,$BO$29=0),"",CONCATENATE($BN$29,$BD$26,$BO$29)) ->  | X36: =IF(OR($BL$27=0,$BM$27=0),"",CONCATENATE($BL$27,$BD$26,$BM$27)) ->  | AA36: =IF(OR($BL$28=0,$BM$28=0),"",CONCATENATE($BL$28,$BD$26,$BM$28)) ->  | AD36: =IF(OR($BL$29=0,$BM$29=0),"",CONCATENATE($BL$29,$BD$26,$BM$29)) -> 100% / 1 | BD36: Pos 4 | BF36: =IF(Options!$B$9=1,'Daten A6'!$C$6,IF(Options!$B$9=2,'Daten A6'!$C$12,IF(Options!$B$9=3,'Daten A6'!$C$18,IF(Options!$B$9=4,'Daten A6'!$C$24,IF(Options!$B$9=5,'Daten A6'!$C$30,IF(Options!$B$9=6,'Daten A6'!$C$36,IF(Options!$B$9=7,'Daten A6'!$C$42,IF(Options!$B$9=8,'Daten A6'!$C$48,IF(Options!$B$9=9,'Daten A6'!$C$54,IF(Options!$B$9=10,'Daten A6'!$C$60,IF(Options!$B$9=11,'Daten A6'!$C$66,IF(Options!$B$9=12,'Daten A6'!$C$72,IF(Options!$B$9=13,'Daten A6'!$C$78,IF(Options!$B$9=14,'Daten A6'!$C$84,IF(Options!$B$9=15,'Daten A6'!$C$90,IF(Options!$B$9=16,'Daten A6'!$C$96,IF(Options!$B$9=17,'Daten A6'!$C$102,IF(Options!$B$9=18,'Daten A6'!$C$108,IF(Options!$B$9=19,'Daten A6'!R13,IF(Options!$B$9=20,'Daten A6'!R19,IF(Options!$B$9=21,'Daten A6'!R25,IF(Options!$B$9=22,'Daten A6'!R31,IF(Options!$B$9=23,'Daten A6'!R37,IF(Options!$B$9=24,'Daten A6'!R43,)))))))))))))))))))))))) -> -25% | BG36: =IF(Options!$B$9=1,'Daten A6'!$D$6,IF(Options!$B$9=2,'Daten A6'!$D$12,IF(Options!$B$9=3,'Daten A6'!$D$18,IF(Options!$B$9=4,'Daten A6'!$D$24,IF(Options!$B$9=5,'Daten A6'!$D$30,IF(Options!$B$9=6,'Daten A6'!$D$36,IF(Options!$B$9=7,'Daten A6'!$D$42,IF(Options!$B$9=8,'Daten A6'!$D$48,IF(Options!$B$9=9,'Daten A6'!$D$54,IF(Options!$B$9=10,'Daten A6'!$D$60,IF(Options!$B$9=11,'Daten A6'!$D$66,IF(Options!$B$9=12,'Daten A6'!$D$72,IF(Options!$B$9=13,'Daten A6'!$D$78,IF(Options!$B$9=14,'Daten A6'!$D$84,IF(Options!$B$9=15,'Daten A6'!$D$90,IF(Options!$B$9=16,'Daten A6'!$D$96,IF(Options!$B$9=17,'Daten A6'!$D$102,IF(Options!$B$9=18,'Daten A6'!$D$108,IF(Options!$B$9=19,'Daten A6'!S13,IF(Options!$B$9=20,'Daten A6'!S19,IF(Options!$B$9=21,'Daten A6'!S25,IF(Options!$B$9=22,'Daten A6'!S31,IF(Options!$B$9=23,'Daten A6'!S37,IF(Options!$B$9=24,'Daten A6'!S43,)))))))))))))))))))))))) -> 25% | BH36: =IF(Options!$B$9=1,'Daten A6'!$E$6,IF(Options!$B$9=2,'Daten A6'!$E$12,IF(Options!$B$9=3,'Daten A6'!$E$18,IF(Options!$B$9=4,'Daten A6'!$E$24,IF(Options!$B$9=5,'Daten A6'!$E$30,IF(Options!$B$9=6,'Daten A6'!$E$36,IF(Options!$B$9=7,'Daten A6'!$E$42,IF(Options!$B$9=8,'Daten A6'!$E$48,IF(Options!$B$9=9,'Daten A6'!$E$54,IF(Options!$B$9=10,'Daten A6'!$E$60,IF(Options!$B$9=11,'Daten A6'!$E$66,IF(Options!$B$9=12,'Daten A6'!$E$72,IF(Options!$B$9=13,'Daten A6'!$E$78,IF(Options!$B$9=14,'Daten A6'!$E$84,IF(Options!$B$9=15,'Daten A6'!$E$90,IF(Options!$B$9=16,'Daten A6'!$E$96,IF(Options!$B$9=17,'Daten A6'!$E$102,IF(Options!$B$9=18,'Daten A6'!$E$108,IF(Options!$B$9=19,'Daten A6'!T13,IF(Options!$B$9=20,'Daten A6'!T19,IF(Options!$B$9=21,'Daten A6'!T25,IF(Options!$B$9=22,'Daten A6'!T31,IF(Options!$B$9=23,'Daten A6'!T37,IF(Options!$B$9=24,'Daten A6'!T43,)))))))))))))))))))))))) -> -100% | BI36: =IF(Options!$B$9=1,'Daten A6'!$F$6,IF(Options!$B$9=2,'Daten A6'!$F$12,IF(Options!$B$9=3,'Daten A6'!$F$18,IF(Options!$B$9=4,'Daten A6'!$F$24,IF(Options!$B$9=5,'Daten A6'!$F$30,IF(Options!$B$9=6,'Daten A6'!$F$36,IF(Options!$B$9=7,'Daten A6'!$F$42,IF(Options!$B$9=8,'Daten A6'!$F$48,IF(Options!$B$9=9,'Daten A6'!$F$54,IF(Options!$B$9=10,'Daten A6'!$F$60,IF(Options!$B$9=11,'Daten A6'!$F$66,IF(Options!$B$9=12,'Daten A6'!$F$72,IF(Options!$B$9=13,'Daten A6'!$F$78,IF(Options!$B$9=14,'Daten A6'!$F$84,IF(Options!$B$9=15,'Daten A6'!$F$90,IF(Options!$B$9=16,'Daten A6'!$F$96,IF(Options!$B$9=17,'Daten A6'!$F$102,IF(Options!$B$9=18,'Daten A6'!$F$108,IF(Options!$B$9=19,'Daten A6'!U13,IF(Options!$B$9=20,'Daten A6'!U19,IF(Options!$B$9=21,'Daten A6'!U25,IF(Options!$B$9=22,'Daten A6'!U31,IF(Options!$B$9=23,'Daten A6'!U37,IF(Options!$B$9=24,'Daten A6'!U43,)))))))))))))))))))))))) -> 0% | BJ36: =IF(Options!$B$9=1,'Daten A6'!$G$6,IF(Options!$B$9=2,'Daten A6'!$G$12,IF(Options!$B$9=3,'Daten A6'!$G$18,IF(Options!$B$9=4,'Daten A6'!$G$24,IF(Options!$B$9=5,'Daten A6'!$G$30,IF(Options!$B$9=6,'Daten A6'!$G$36,IF(Options!$B$9=7,'Daten A6'!$G$42,IF(Options!$B$9=8,'Daten A6'!$G$48,IF(Options!$B$9=9,'Daten A6'!$G$54,IF(Options!$B$9=10,'Daten A6'!$G$60,IF(Options!$B$9=11,'Daten A6'!$G$66,IF(Options!$B$9=12,'Daten A6'!$G$72,IF(Options!$B$9=13,'Daten A6'!$G$78,IF(Options!$B$9=14,'Daten A6'!$G$84,IF(Options!$B$9=15,'Daten A6'!$G$90,IF(Options!$B$9=16,'Daten A6'!$G$96,IF(Options!$B$9=17,'Daten A6'!$G$102,IF(Options!$B$9=18,'Daten A6'!$G$108,IF(Options!$B$9=19,'Daten A6'!V13,IF(Options!$B$9=20,'Daten A6'!V19,IF(Options!$B$9=21,'Daten A6'!V25,IF(Options!$B$9=22,'Daten A6'!V31,IF(Options!$B$9=23,'Daten A6'!V37,IF(Options!$B$9=24,'Daten A6'!V43,)))))))))))))))))))))))) -> 50% | BK36: =IF(Options!$B$9=1,'Daten A6'!$H$6,IF(Options!$B$9=2,'Daten A6'!$H$12,IF(Options!$B$9=3,'Daten A6'!$H$18,IF(Options!$B$9=4,'Daten A6'!$H$24,IF(Options!$B$9=5,'Daten A6'!$H$30,IF(Options!$B$9=6,'Daten A6'!$H$36,IF(Options!$B$9=7,'Daten A6'!$H$42,IF(Options!$B$9=8,'Daten A6'!$H$48,IF(Options!$B$9=9,'Daten A6'!$H$54,IF(Options!$B$9=10,'Daten A6'!$H$60,IF(Options!$B$9=11,'Daten A6'!$H$66,IF(Options!$B$9=12,'Daten A6'!$H$72,IF(Options!$B$9=13,'Daten A6'!$H$78,IF(Options!$B$9=14,'Daten A6'!$H$84,IF(Options!$B$9=15,'Daten A6'!$H$90,IF(Options!$B$9=16,'Daten A6'!$H$96,IF(Options!$B$9=17,'Daten A6'!$H$102,IF(Options!$B$9=18,'Daten A6'!$H$108,IF(Options!$B$9=19,'Daten A6'!W13,IF(Options!$B$9=20,'Daten A6'!W19,IF(Options!$B$9=21,'Daten A6'!W25,IF(Options!$B$9=22,'Daten A6'!W31,IF(Options!$B$9=23,'Daten A6'!W37,IF(Options!$B$9=24,'Daten A6'!W43,)))))))))))))))))))))))) -> 50% | BL36: =IF(Options!$B$9=1,'Daten A6'!$I$6,IF(Options!$B$9=2,'Daten A6'!$I$12,IF(Options!$B$9=3,'Daten A6'!$I$18,IF(Options!$B$9=4,'Daten A6'!$I$24,IF(Options!$B$9=5,'Daten A6'!$I$30,IF(Options!$B$9=6,'Daten A6'!$I$36,IF(Options!$B$9=7,'Daten A6'!$I$42,IF(Options!$B$9=8,'Daten A6'!$I$48,IF(Options!$B$9=9,'Daten A6'!$I$54,IF(Options!$B$9=10,'Daten A6'!$I$60,IF(Options!$B$9=11,'Daten A6'!$I$66,IF(Options!$B$9=12,'Daten A6'!$I$72,IF(Options!$B$9=13,'Daten A6'!$I$78,IF(Options!$B$9=14,'Daten A6'!$I$84,IF(Options!$B$9=15,'Daten A6'!$I$90,IF(Options!$B$9=16,'Daten A6'!$I$96,IF(Options!$B$9=17,'Daten A6'!$I$102,IF(Options!$B$9=18,'Daten A6'!$I$108,IF(Options!$B$9=19,'Daten A6'!X13,IF(Options!$B$9=20,'Daten A6'!X19,IF(Options!$B$9=21,'Daten A6'!X25,IF(Options!$B$9=22,'Daten A6'!X31,IF(Options!$B$9=23,'Daten A6'!X37,IF(Options!$B$9=24,'Daten A6'!X43,)))))))))))))))))))))))) -> -100% | BM36: =IF(Options!$B$9=1,'Daten A6'!$J$6,IF(Options!$B$9=2,'Daten A6'!$J$12,IF(Options!$B$9=3,'Daten A6'!$J$18,IF(Options!$B$9=4,'Daten A6'!$J$24,IF(Options!$B$9=5,'Daten A6'!$J$30,IF(Options!$B$9=6,'Daten A6'!$J$36,IF(Options!$B$9=7,'Daten A6'!$J$42,IF(Options!$B$9=8,'Daten A6'!$J$48,IF(Options!$B$9=9,'Daten A6'!$J$54,IF(Options!$B$9=10,'Daten A6'!$J$60,IF(Options!$B$9=11,'Daten A6'!$J$66,IF(Options!$B$9=12,'Daten A6'!$J$72,IF(Options!$B$9=13,'Daten A6'!$J$78,IF(Options!$B$9=14,'Daten A6'!$J$84,IF(Options!$B$9=15,'Daten A6'!$J$90,IF(Options!$B$9=16,'Daten A6'!$J$96,IF(Options!$B$9=17,'Daten A6'!$J$102,IF(Options!$B$9=18,'Daten A6'!$J$108,IF(Options!$B$9=19,'Daten A6'!Y13,IF(Options!$B$9=20,'Daten A6'!Y19,IF(Options!$B$9=21,'Daten A6'!Y25,IF(Options!$B$9=22,'Daten A6'!Y31,IF(Options!$B$9=23,'Daten A6'!Y37,IF(Options!$B$9=24,'Daten A6'!Y43,)))))))))))))))))))))))) -> 0% | BN36: =IF(Options!$B$9=1,'Daten A6'!$K$6,IF(Options!$B$9=2,'Daten A6'!$K$12,IF(Options!$B$9=3,'Daten A6'!$K$18,IF(Options!$B$9=4,'Daten A6'!$K$24,IF(Options!$B$9=5,'Daten A6'!$K$30,IF(Options!$B$9=6,'Daten A6'!$K$36,IF(Options!$B$9=7,'Daten A6'!$K$42,IF(Options!$B$9=8,'Daten A6'!$K$48,IF(Options!$B$9=9,'Daten A6'!$K$54,IF(Options!$B$9=10,'Daten A6'!$K$60,IF(Options!$B$9=11,'Daten A6'!$K$66,IF(Options!$B$9=12,'Daten A6'!$K$72,IF(Options!$B$9=13,'Daten A6'!$K$78,IF(Options!$B$9=14,'Daten A6'!$K$84,IF(Options!$B$9=15,'Daten A6'!$K$90,IF(Options!$B$9=16,'Daten A6'!$K$96,IF(Options!$B$9=17,'Daten A6'!$K$102,IF(Options!$B$9=18,'Daten A6'!$K$108,IF(Options!$B$9=19,'Daten A6'!Z13,IF(Options!$B$9=20,'Daten A6'!Z19,IF(Options!$B$9=21,'Daten A6'!Z25,IF(Options!$B$9=22,'Daten A6'!Z31,IF(Options!$B$9=23,'Daten A6'!Z37,IF(Options!$B$9=24,'Daten A6'!Z43,)))))))))))))))))))))))) -> 0% | BO36: =IF(Options!$B$9=1,'Daten A6'!$L$6,IF(Options!$B$9=2,'Daten A6'!$L$12,IF(Options!$B$9=3,'Daten A6'!$L$18,IF(Options!$B$9=4,'Daten A6'!$L$24,IF(Options!$B$9=5,'Daten A6'!$L$30,IF(Options!$B$9=6,'Daten A6'!$L$36,IF(Options!$B$9=7,'Daten A6'!$L$42,IF(Options!$B$9=8,'Daten A6'!$L$48,IF(Options!$B$9=9,'Daten A6'!$L$54,IF(Options!$B$9=10,'Daten A6'!$L$60,IF(Options!$B$9=11,'Daten A6'!$L$66,IF(Options!$B$9=12,'Daten A6'!$L$72,IF(Options!$B$9=13,'Daten A6'!$L$78,IF(Options!$B$9=14,'Daten A6'!$L$84,IF(Options!$B$9=15,'Daten A6'!$L$90,IF(Options!$B$9=16,'Daten A6'!$L$96,IF(Options!$B$9=17,'Daten A6'!$L$102,IF(Options!$B$9=18,'Daten A6'!$L$108,IF(Options!$B$9=19,'Daten A6'!AA13,IF(Options!$B$9=20,'Daten A6'!AA19,IF(Options!$B$9=21,'Daten A6'!AA25,IF(Options!$B$9=22,'Daten A6'!AA31,IF(Options!$B$9=23,'Daten A6'!AA37,IF(Options!$B$9=24,'Daten A6'!AA43,)))))))))))))))))))))))) -> ---- | BP36: =IF(Options!$B$9=1,'Daten A6'!$M$6,IF(Options!$B$9=2,'Daten A6'!$M$12,IF(Options!$B$9=3,'Daten A6'!$M$18,IF(Options!$B$9=4,'Daten A6'!$M$24,IF(Options!$B$9=5,'Daten A6'!$M$30,IF(Options!$B$9=6,'Daten A6'!$M$36,IF(Options!$B$9=7,'Daten A6'!$M$42,IF(Options!$B$9=8,'Daten A6'!$M$48,IF(Options!$B$9=9,'Daten A6'!$M$54,IF(Options!$B$9=10,'Daten A6'!$M$60,IF(Options!$B$9=11,'Daten A6'!$M$66,IF(Options!$B$9=12,'Daten A6'!$M$72,IF(Options!$B$9=13,'Daten A6'!$M$78,IF(Options!$B$9=14,'Daten A6'!$M$84,IF(Options!$B$9=15,'Daten A6'!$M$90,IF(Options!$B$9=16,'Daten A6'!$M$96,IF(Options!$B$9=17,'Daten A6'!$M$102,IF(Options!$B$9=18,'Daten A6'!$M$108,IF(Options!$B$9=19,'Daten A6'!AB13,IF(Options!$B$9=20,'Daten A6'!AB19,IF(Options!$B$9=21,'Daten A6'!AB25,IF(Options!$B$9=22,'Daten A6'!AB31,IF(Options!$B$9=23,'Daten A6'!AB37,IF(Options!$B$9=24,'Daten A6'!AB43,)))))))))))))))))))))))) -> 67% | BQ36: =IF(Options!$B$9=1,'Daten A6'!$N$6,IF(Options!$B$9=2,'Daten A6'!$N$12,IF(Options!$B$9=3,'Daten A6'!$N$18,IF(Options!$B$9=4,'Daten A6'!$N$24,IF(Options!$B$9=5,'Daten A6'!$N$30,IF(Options!$B$9=6,'Daten A6'!$N$36,IF(Options!$B$9=7,'Daten A6'!$N$42,IF(Options!$B$9=8,'Daten A6'!$N$48,IF(Options!$B$9=9,'Daten A6'!$N$54,IF(Options!$B$9=10,'Daten A6'!$N$60,IF(Options!$B$9=11,'Daten A6'!$N$66,IF(Options!$B$9=12,'Daten A6'!$N$72,IF(Options!$B$9=13,'Daten A6'!$N$78,IF(Options!$B$9=14,'Daten A6'!$N$84,IF(Options!$B$9=15,'Daten A6'!$N$90,IF(Options!$B$9=16,'Daten A6'!$N$96,IF(Options!$B$9=17,'Daten A6'!$N$102,IF(Options!$B$9=18,'Daten A6'!$N$108,IF(Options!$B$9=19,'Daten A6'!AC13,IF(Options!$B$9=20,'Daten A6'!AC19,IF(Options!$B$9=21,'Daten A6'!AC25,IF(Options!$B$9=22,'Daten A6'!AC31,IF(Options!$B$9=23,'Daten A6'!AC37,IF(Options!$B$9=24,'Daten A6'!AC43,)))))))))))))))))))))))) -> 67%
B37: =IF(OR($BP$27=0,$BQ$27=0),"",CONCATENATE($BP$34,$BD$26,$BQ$34)) ->  | E37: =IF(OR($BP$28=0,$BQ$28=0),"",CONCATENATE($BP$35,$BD$26,$BQ$35)) -> 0% / 0% | H37: =IF(OR($BP$29=0,$BQ$29=0),"",CONCATENATE($BP$36,$BD$26,$BQ$36)) -> 67% / 67% | M37: =IF(OR($BN$27=0,$BO$27=0),"",CONCATENATE($BN$34,$BD$26,$BO$34)) ->  | P37: =IF(OR($BN$28=0,$BO$28=0),"",CONCATENATE($BN$35,$BD$26,$BO$35)) ->  | S37: =IF(OR($BN$29=0,$BO$29=0),"",CONCATENATE($BN$36,$BD$26,$BO$36)) ->  | X37: =IF(OR($BL$27=0,$BM$27=0),"",CONCATENATE($BL$34,$BD$26,$BM$34)) ->  | AA37: =IF(OR($BL$28=0,$BM$28=0),"",CONCATENATE($BL$35,$BD$26,$BM$35)) ->  | AD37: =IF(OR($BL$29=0,$BM$29=0),"",CONCATENATE($BL$36,$BD$26,$BM$36)) -> -100% / 0% | BD37: Pos 8 | BF37: =IF(Options!$B$9=1,'Daten A6'!$C$7,IF(Options!$B$9=2,'Daten A6'!$C$13,IF(Options!$B$9=3,'Daten A6'!$C$19,IF(Options!$B$9=4,'Daten A6'!$C$25,IF(Options!$B$9=5,'Daten A6'!$C$31,IF(Options!$B$9=6,'Daten A6'!$C$37,IF(Options!$B$9=7,'Daten A6'!$C$43,IF(Options!$B$9=8,'Daten A6'!$C$49,IF(Options!$B$9=9,'Daten A6'!$C$55,IF(Options!$B$9=10,'Daten A6'!$C$61,IF(Options!$B$9=11,'Daten A6'!$C$67,IF(Options!$B$9=12,'Daten A6'!$C$73,IF(Options!$B$9=13,'Daten A6'!$C$79,IF(Options!$B$9=14,'Daten A6'!$C$85,IF(Options!$B$9=15,'Daten A6'!$C$91,IF(Options!$B$9=16,'Daten A6'!$C$97,IF(Options!$B$9=17,'Daten A6'!$C$103,IF(Options!$B$9=18,'Daten A6'!$C$109,IF(Options!$B$9=19,'Daten A6'!R14,IF(Options!$B$9=20,'Daten A6'!R20,IF(Options!$B$9=21,'Daten A6'!R26,IF(Options!$B$9=22,'Daten A6'!R32,IF(Options!$B$9=23,'Daten A6'!R38,IF(Options!$B$9=24,'Daten A6'!R44,)))))))))))))))))))))))) -> 0% | BG37: =IF(Options!$B$9=1,'Daten A6'!$D$7,IF(Options!$B$9=2,'Daten A6'!$D$13,IF(Options!$B$9=3,'Daten A6'!$D$19,IF(Options!$B$9=4,'Daten A6'!$D$25,IF(Options!$B$9=5,'Daten A6'!$D$31,IF(Options!$B$9=6,'Daten A6'!$D$37,IF(Options!$B$9=7,'Daten A6'!$D$43,IF(Options!$B$9=8,'Daten A6'!$D$49,IF(Options!$B$9=9,'Daten A6'!$D$55,IF(Options!$B$9=10,'Daten A6'!$D$61,IF(Options!$B$9=11,'Daten A6'!$D$67,IF(Options!$B$9=12,'Daten A6'!$D$73,IF(Options!$B$9=13,'Daten A6'!$D$79,IF(Options!$B$9=14,'Daten A6'!$D$85,IF(Options!$B$9=15,'Daten A6'!$D$91,IF(Options!$B$9=16,'Daten A6'!$D$97,IF(Options!$B$9=17,'Daten A6'!$D$103,IF(Options!$B$9=18,'Daten A6'!$D$109,IF(Options!$B$9=19,'Daten A6'!S14,IF(Options!$B$9=20,'Daten A6'!S20,IF(Options!$B$9=21,'Daten A6'!S26,IF(Options!$B$9=22,'Daten A6'!S32,IF(Options!$B$9=23,'Daten A6'!S38,IF(Options!$B$9=24,'Daten A6'!S44,)))))))))))))))))))))))) -> ---- | BH37: =IF(Options!$B$9=1,'Daten A6'!$E$7,IF(Options!$B$9=2,'Daten A6'!$E$13,IF(Options!$B$9=3,'Daten A6'!$E$19,IF(Options!$B$9=4,'Daten A6'!$E$25,IF(Options!$B$9=5,'Daten A6'!$E$31,IF(Options!$B$9=6,'Daten A6'!$E$37,IF(Options!$B$9=7,'Daten A6'!$E$43,IF(Options!$B$9=8,'Daten A6'!$E$49,IF(Options!$B$9=9,'Daten A6'!$E$55,IF(Options!$B$9=10,'Daten A6'!$E$61,IF(Options!$B$9=11,'Daten A6'!$E$67,IF(Options!$B$9=12,'Daten A6'!$E$73,IF(Options!$B$9=13,'Daten A6'!$E$79,IF(Options!$B$9=14,'Daten A6'!$E$85,IF(Options!$B$9=15,'Daten A6'!$E$91,IF(Options!$B$9=16,'Daten A6'!$E$97,IF(Options!$B$9=17,'Daten A6'!$E$103,IF(Options!$B$9=18,'Daten A6'!$E$109,IF(Options!$B$9=19,'Daten A6'!T14,IF(Options!$B$9=20,'Daten A6'!T20,IF(Options!$B$9=21,'Daten A6'!T26,IF(Options!$B$9=22,'Daten A6'!T32,IF(Options!$B$9=23,'Daten A6'!T38,IF(Options!$B$9=24,'Daten A6'!T44,)))))))))))))))))))))))) -> 0% | BI37: =IF(Options!$B$9=1,'Daten A6'!$F$7,IF(Options!$B$9=2,'Daten A6'!$F$13,IF(Options!$B$9=3,'Daten A6'!$F$19,IF(Options!$B$9=4,'Daten A6'!$F$25,IF(Options!$B$9=5,'Daten A6'!$F$31,IF(Options!$B$9=6,'Daten A6'!$F$37,IF(Options!$B$9=7,'Daten A6'!$F$43,IF(Options!$B$9=8,'Daten A6'!$F$49,IF(Options!$B$9=9,'Daten A6'!$F$55,IF(Options!$B$9=10,'Daten A6'!$F$61,IF(Options!$B$9=11,'Daten A6'!$F$67,IF(Options!$B$9=12,'Daten A6'!$F$73,IF(Options!$B$9=13,'Daten A6'!$F$79,IF(Options!$B$9=14,'Daten A6'!$F$85,IF(Options!$B$9=15,'Daten A6'!$F$91,IF(Options!$B$9=16,'Daten A6'!$F$97,IF(Options!$B$9=17,'Daten A6'!$F$103,IF(Options!$B$9=18,'Daten A6'!$F$109,IF(Options!$B$9=19,'Daten A6'!U14,IF(Options!$B$9=20,'Daten A6'!U20,IF(Options!$B$9=21,'Daten A6'!U26,IF(Options!$B$9=22,'Daten A6'!U32,IF(Options!$B$9=23,'Daten A6'!U38,IF(Options!$B$9=24,'Daten A6'!U44,)))))))))))))))))))))))) -> ---- | BJ37: =IF(Options!$B$9=1,'Daten A6'!$G$7,IF(Options!$B$9=2,'Daten A6'!$G$13,IF(Options!$B$9=3,'Daten A6'!$G$19,IF(Options!$B$9=4,'Daten A6'!$G$25,IF(Options!$B$9=5,'Daten A6'!$G$31,IF(Options!$B$9=6,'Daten A6'!$G$37,IF(Options!$B$9=7,'Daten A6'!$G$43,IF(Options!$B$9=8,'Daten A6'!$G$49,IF(Options!$B$9=9,'Daten A6'!$G$55,IF(Options!$B$9=10,'Daten A6'!$G$61,IF(Options!$B$9=11,'Daten A6'!$G$67,IF(Options!$B$9=12,'Daten A6'!$G$73,IF(Options!$B$9=13,'Daten A6'!$G$79,IF(Options!$B$9=14,'Daten A6'!$G$85,IF(Options!$B$9=15,'Daten A6'!$G$91,IF(Options!$B$9=16,'Daten A6'!$G$97,IF(Options!$B$9=17,'Daten A6'!$G$103,IF(Options!$B$9=18,'Daten A6'!$G$109,IF(Options!$B$9=19,'Daten A6'!V14,IF(Options!$B$9=20,'Daten A6'!V20,IF(Options!$B$9=21,'Daten A6'!V26,IF(Options!$B$9=22,'Daten A6'!V32,IF(Options!$B$9=23,'Daten A6'!V38,IF(Options!$B$9=24,'Daten A6'!V44,)))))))))))))))))))))))) -> 100% | BK37: =IF(Options!$B$9=1,'Daten A6'!$H$7,IF(Options!$B$9=2,'Daten A6'!$H$13,IF(Options!$B$9=3,'Daten A6'!$H$19,IF(Options!$B$9=4,'Daten A6'!$H$25,IF(Options!$B$9=5,'Daten A6'!$H$31,IF(Options!$B$9=6,'Daten A6'!$H$37,IF(Options!$B$9=7,'Daten A6'!$H$43,IF(Options!$B$9=8,'Daten A6'!$H$49,IF(Options!$B$9=9,'Daten A6'!$H$55,IF(Options!$B$9=10,'Daten A6'!$H$61,IF(Options!$B$9=11,'Daten A6'!$H$67,IF(Options!$B$9=12,'Daten A6'!$H$73,IF(Options!$B$9=13,'Daten A6'!$H$79,IF(Options!$B$9=14,'Daten A6'!$H$85,IF(Options!$B$9=15,'Daten A6'!$H$91,IF(Options!$B$9=16,'Daten A6'!$H$97,IF(Options!$B$9=17,'Daten A6'!$H$103,IF(Options!$B$9=18,'Daten A6'!$H$109,IF(Options!$B$9=19,'Daten A6'!W14,IF(Options!$B$9=20,'Daten A6'!W20,IF(Options!$B$9=21,'Daten A6'!W26,IF(Options!$B$9=22,'Daten A6'!W32,IF(Options!$B$9=23,'Daten A6'!W38,IF(Options!$B$9=24,'Daten A6'!W44,)))))))))))))))))))))))) -> 100% | BL37: =IF(Options!$B$9=1,'Daten A6'!$I$7,IF(Options!$B$9=2,'Daten A6'!$I$13,IF(Options!$B$9=3,'Daten A6'!$I$19,IF(Options!$B$9=4,'Daten A6'!$I$25,IF(Options!$B$9=5,'Daten A6'!$I$31,IF(Options!$B$9=6,'Daten A6'!$I$37,IF(Options!$B$9=7,'Daten A6'!$I$43,IF(Options!$B$9=8,'Daten A6'!$I$49,IF(Options!$B$9=9,'Daten A6'!$I$55,IF(Options!$B$9=10,'Daten A6'!$I$61,IF(Options!$B$9=11,'Daten A6'!$I$67,IF(Options!$B$9=12,'Daten A6'!$I$73,IF(Options!$B$9=13,'Daten A6'!$I$79,IF(Options!$B$9=14,'Daten A6'!$I$85,IF(Options!$B$9=15,'Daten A6'!$I$91,IF(Options!$B$9=16,'Daten A6'!$I$97,IF(Options!$B$9=17,'Daten A6'!$I$103,IF(Options!$B$9=18,'Daten A6'!$I$109,IF(Options!$B$9=19,'Daten A6'!X14,IF(Options!$B$9=20,'Daten A6'!X20,IF(Options!$B$9=21,'Daten A6'!X26,IF(Options!$B$9=22,'Daten A6'!X32,IF(Options!$B$9=23,'Daten A6'!X38,IF(Options!$B$9=24,'Daten A6'!X44,)))))))))))))))))))))))) -> 0% | BM37: =IF(Options!$B$9=1,'Daten A6'!$J$7,IF(Options!$B$9=2,'Daten A6'!$J$13,IF(Options!$B$9=3,'Daten A6'!$J$19,IF(Options!$B$9=4,'Daten A6'!$J$25,IF(Options!$B$9=5,'Daten A6'!$J$31,IF(Options!$B$9=6,'Daten A6'!$J$37,IF(Options!$B$9=7,'Daten A6'!$J$43,IF(Options!$B$9=8,'Daten A6'!$J$49,IF(Options!$B$9=9,'Daten A6'!$J$55,IF(Options!$B$9=10,'Daten A6'!$J$61,IF(Options!$B$9=11,'Daten A6'!$J$67,IF(Options!$B$9=12,'Daten A6'!$J$73,IF(Options!$B$9=13,'Daten A6'!$J$79,IF(Options!$B$9=14,'Daten A6'!$J$85,IF(Options!$B$9=15,'Daten A6'!$J$91,IF(Options!$B$9=16,'Daten A6'!$J$97,IF(Options!$B$9=17,'Daten A6'!$J$103,IF(Options!$B$9=18,'Daten A6'!$J$109,IF(Options!$B$9=19,'Daten A6'!Y14,IF(Options!$B$9=20,'Daten A6'!Y20,IF(Options!$B$9=21,'Daten A6'!Y26,IF(Options!$B$9=22,'Daten A6'!Y32,IF(Options!$B$9=23,'Daten A6'!Y38,IF(Options!$B$9=24,'Daten A6'!Y44,)))))))))))))))))))))))) -> ---- | BN37: =IF(Options!$B$9=1,'Daten A6'!$K$7,IF(Options!$B$9=2,'Daten A6'!$K$13,IF(Options!$B$9=3,'Daten A6'!$K$19,IF(Options!$B$9=4,'Daten A6'!$K$25,IF(Options!$B$9=5,'Daten A6'!$K$31,IF(Options!$B$9=6,'Daten A6'!$K$37,IF(Options!$B$9=7,'Daten A6'!$K$43,IF(Options!$B$9=8,'Daten A6'!$K$49,IF(Options!$B$9=9,'Daten A6'!$K$55,IF(Options!$B$9=10,'Daten A6'!$K$61,IF(Options!$B$9=11,'Daten A6'!$K$67,IF(Options!$B$9=12,'Daten A6'!$K$73,IF(Options!$B$9=13,'Daten A6'!$K$79,IF(Options!$B$9=14,'Daten A6'!$K$85,IF(Options!$B$9=15,'Daten A6'!$K$91,IF(Options!$B$9=16,'Daten A6'!$K$97,IF(Options!$B$9=17,'Daten A6'!$K$103,IF(Options!$B$9=18,'Daten A6'!$K$109,IF(Options!$B$9=19,'Daten A6'!Z14,IF(Options!$B$9=20,'Daten A6'!Z20,IF(Options!$B$9=21,'Daten A6'!Z26,IF(Options!$B$9=22,'Daten A6'!Z32,IF(Options!$B$9=23,'Daten A6'!Z38,IF(Options!$B$9=24,'Daten A6'!Z44,)))))))))))))))))))))))) -> 0% | BO37: =IF(Options!$B$9=1,'Daten A6'!$L$7,IF(Options!$B$9=2,'Daten A6'!$L$13,IF(Options!$B$9=3,'Daten A6'!$L$19,IF(Options!$B$9=4,'Daten A6'!$L$25,IF(Options!$B$9=5,'Daten A6'!$L$31,IF(Options!$B$9=6,'Daten A6'!$L$37,IF(Options!$B$9=7,'Daten A6'!$L$43,IF(Options!$B$9=8,'Daten A6'!$L$49,IF(Options!$B$9=9,'Daten A6'!$L$55,IF(Options!$B$9=10,'Daten A6'!$L$61,IF(Options!$B$9=11,'Daten A6'!$L$67,IF(Options!$B$9=12,'Daten A6'!$L$73,IF(Options!$B$9=13,'Daten A6'!$L$79,IF(Options!$B$9=14,'Daten A6'!$L$85,IF(Options!$B$9=15,'Daten A6'!$L$91,IF(Options!$B$9=16,'Daten A6'!$L$97,IF(Options!$B$9=17,'Daten A6'!$L$103,IF(Options!$B$9=18,'Daten A6'!$L$109,IF(Options!$B$9=19,'Daten A6'!AA14,IF(Options!$B$9=20,'Daten A6'!AA20,IF(Options!$B$9=21,'Daten A6'!AA26,IF(Options!$B$9=22,'Daten A6'!AA32,IF(Options!$B$9=23,'Daten A6'!AA38,IF(Options!$B$9=24,'Daten A6'!AA44,)))))))))))))))))))))))) -> ---- | BP37: =IF(Options!$B$9=1,'Daten A6'!$M$7,IF(Options!$B$9=2,'Daten A6'!$M$13,IF(Options!$B$9=3,'Daten A6'!$M$19,IF(Options!$B$9=4,'Daten A6'!$M$25,IF(Options!$B$9=5,'Daten A6'!$M$31,IF(Options!$B$9=6,'Daten A6'!$M$37,IF(Options!$B$9=7,'Daten A6'!$M$43,IF(Options!$B$9=8,'Daten A6'!$M$49,IF(Options!$B$9=9,'Daten A6'!$M$55,IF(Options!$B$9=10,'Daten A6'!$M$61,IF(Options!$B$9=11,'Daten A6'!$M$67,IF(Options!$B$9=12,'Daten A6'!$M$73,IF(Options!$B$9=13,'Daten A6'!$M$79,IF(Options!$B$9=14,'Daten A6'!$M$85,IF(Options!$B$9=15,'Daten A6'!$M$91,IF(Options!$B$9=16,'Daten A6'!$M$97,IF(Options!$B$9=17,'Daten A6'!$M$103,IF(Options!$B$9=18,'Daten A6'!$M$109,IF(Options!$B$9=19,'Daten A6'!AB14,IF(Options!$B$9=20,'Daten A6'!AB20,IF(Options!$B$9=21,'Daten A6'!AB26,IF(Options!$B$9=22,'Daten A6'!AB32,IF(Options!$B$9=23,'Daten A6'!AB38,IF(Options!$B$9=24,'Daten A6'!AB44,)))))))))))))))))))))))) -> 0% | BQ37: =IF(Options!$B$9=1,'Daten A6'!$N$7,IF(Options!$B$9=2,'Daten A6'!$N$13,IF(Options!$B$9=3,'Daten A6'!$N$19,IF(Options!$B$9=4,'Daten A6'!$N$25,IF(Options!$B$9=5,'Daten A6'!$N$31,IF(Options!$B$9=6,'Daten A6'!$N$37,IF(Options!$B$9=7,'Daten A6'!$N$43,IF(Options!$B$9=8,'Daten A6'!$N$49,IF(Options!$B$9=9,'Daten A6'!$N$55,IF(Options!$B$9=10,'Daten A6'!$N$61,IF(Options!$B$9=11,'Daten A6'!$N$67,IF(Options!$B$9=12,'Daten A6'!$N$73,IF(Options!$B$9=13,'Daten A6'!$N$79,IF(Options!$B$9=14,'Daten A6'!$N$85,IF(Options!$B$9=15,'Daten A6'!$N$91,IF(Options!$B$9=16,'Daten A6'!$N$97,IF(Options!$B$9=17,'Daten A6'!$N$103,IF(Options!$B$9=18,'Daten A6'!$N$109,IF(Options!$B$9=19,'Daten A6'!AC14,IF(Options!$B$9=20,'Daten A6'!AC20,IF(Options!$B$9=21,'Daten A6'!AC26,IF(Options!$B$9=22,'Daten A6'!AC32,IF(Options!$B$9=23,'Daten A6'!AC38,IF(Options!$B$9=24,'Daten A6'!AC44,)))))))))))))))))))))))) -> ----
BD38: Pos 9 | BF38: =IF(Options!$B$9=1,'Daten A6'!$C$8,IF(Options!$B$9=2,'Daten A6'!$C$14,IF(Options!$B$9=3,'Daten A6'!$C$20,IF(Options!$B$9=4,'Daten A6'!$C$26,IF(Options!$B$9=5,'Daten A6'!$C$32,IF(Options!$B$9=6,'Daten A6'!$C$38,IF(Options!$B$9=7,'Daten A6'!$C$44,IF(Options!$B$9=8,'Daten A6'!$C$50,IF(Options!$B$9=9,'Daten A6'!$C$56,IF(Options!$B$9=10,'Daten A6'!$C$62,IF(Options!$B$9=11,'Daten A6'!$C$68,IF(Options!$B$9=12,'Daten A6'!$C$74,IF(Options!$B$9=13,'Daten A6'!$C$80,IF(Options!$B$9=14,'Daten A6'!$C$86,IF(Options!$B$9=15,'Daten A6'!$C$92,IF(Options!$B$9=16,'Daten A6'!$C$98,IF(Options!$B$9=17,'Daten A6'!$C$104,IF(Options!$B$9=18,'Daten A6'!$C$110,IF(Options!$B$9=19,'Daten A6'!R15,IF(Options!$B$9=20,'Daten A6'!R21,IF(Options!$B$9=21,'Daten A6'!R27,IF(Options!$B$9=22,'Daten A6'!R33,IF(Options!$B$9=23,'Daten A6'!R39,IF(Options!$B$9=24,'Daten A6'!R45,)))))))))))))))))))))))) -> 0% | BG38: =IF(Options!$B$9=1,'Daten A6'!$D$8,IF(Options!$B$9=2,'Daten A6'!$D$14,IF(Options!$B$9=3,'Daten A6'!$D$20,IF(Options!$B$9=4,'Daten A6'!$D$26,IF(Options!$B$9=5,'Daten A6'!$D$32,IF(Options!$B$9=6,'Daten A6'!$D$38,IF(Options!$B$9=7,'Daten A6'!$D$44,IF(Options!$B$9=8,'Daten A6'!$D$50,IF(Options!$B$9=9,'Daten A6'!$D$56,IF(Options!$B$9=10,'Daten A6'!$D$62,IF(Options!$B$9=11,'Daten A6'!$D$68,IF(Options!$B$9=12,'Daten A6'!$D$74,IF(Options!$B$9=13,'Daten A6'!$D$80,IF(Options!$B$9=14,'Daten A6'!$D$86,IF(Options!$B$9=15,'Daten A6'!$D$92,IF(Options!$B$9=16,'Daten A6'!$D$98,IF(Options!$B$9=17,'Daten A6'!$D$104,IF(Options!$B$9=18,'Daten A6'!$D$110,IF(Options!$B$9=19,'Daten A6'!S15,IF(Options!$B$9=20,'Daten A6'!S21,IF(Options!$B$9=21,'Daten A6'!S27,IF(Options!$B$9=22,'Daten A6'!S33,IF(Options!$B$9=23,'Daten A6'!S39,IF(Options!$B$9=24,'Daten A6'!S45,)))))))))))))))))))))))) -> ---- | BH38: =IF(Options!$B$9=1,'Daten A6'!$E$8,IF(Options!$B$9=2,'Daten A6'!$E$14,IF(Options!$B$9=3,'Daten A6'!$E$20,IF(Options!$B$9=4,'Daten A6'!$E$26,IF(Options!$B$9=5,'Daten A6'!$E$32,IF(Options!$B$9=6,'Daten A6'!$E$38,IF(Options!$B$9=7,'Daten A6'!$E$44,IF(Options!$B$9=8,'Daten A6'!$E$50,IF(Options!$B$9=9,'Daten A6'!$E$56,IF(Options!$B$9=10,'Daten A6'!$E$62,IF(Options!$B$9=11,'Daten A6'!$E$68,IF(Options!$B$9=12,'Daten A6'!$E$74,IF(Options!$B$9=13,'Daten A6'!$E$80,IF(Options!$B$9=14,'Daten A6'!$E$86,IF(Options!$B$9=15,'Daten A6'!$E$92,IF(Options!$B$9=16,'Daten A6'!$E$98,IF(Options!$B$9=17,'Daten A6'!$E$104,IF(Options!$B$9=18,'Daten A6'!$E$110,IF(Options!$B$9=19,'Daten A6'!T15,IF(Options!$B$9=20,'Daten A6'!T21,IF(Options!$B$9=21,'Daten A6'!T27,IF(Options!$B$9=22,'Daten A6'!T33,IF(Options!$B$9=23,'Daten A6'!T39,IF(Options!$B$9=24,'Daten A6'!T45,)))))))))))))))))))))))) -> 0% | BI38: =IF(Options!$B$9=1,'Daten A6'!$F$8,IF(Options!$B$9=2,'Daten A6'!$F$14,IF(Options!$B$9=3,'Daten A6'!$F$20,IF(Options!$B$9=4,'Daten A6'!$F$26,IF(Options!$B$9=5,'Daten A6'!$F$32,IF(Options!$B$9=6,'Daten A6'!$F$38,IF(Options!$B$9=7,'Daten A6'!$F$44,IF(Options!$B$9=8,'Daten A6'!$F$50,IF(Options!$B$9=9,'Daten A6'!$F$56,IF(Options!$B$9=10,'Daten A6'!$F$62,IF(Options!$B$9=11,'Daten A6'!$F$68,IF(Options!$B$9=12,'Daten A6'!$F$74,IF(Options!$B$9=13,'Daten A6'!$F$80,IF(Options!$B$9=14,'Daten A6'!$F$86,IF(Options!$B$9=15,'Daten A6'!$F$92,IF(Options!$B$9=16,'Daten A6'!$F$98,IF(Options!$B$9=17,'Daten A6'!$F$104,IF(Options!$B$9=18,'Daten A6'!$F$110,IF(Options!$B$9=19,'Daten A6'!U15,IF(Options!$B$9=20,'Daten A6'!U21,IF(Options!$B$9=21,'Daten A6'!U27,IF(Options!$B$9=22,'Daten A6'!U33,IF(Options!$B$9=23,'Daten A6'!U39,IF(Options!$B$9=24,'Daten A6'!U45,)))))))))))))))))))))))) -> ---- | BJ38: =IF(Options!$B$9=1,'Daten A6'!$G$8,IF(Options!$B$9=2,'Daten A6'!$G$14,IF(Options!$B$9=3,'Daten A6'!$G$20,IF(Options!$B$9=4,'Daten A6'!$G$26,IF(Options!$B$9=5,'Daten A6'!$G$32,IF(Options!$B$9=6,'Daten A6'!$G$38,IF(Options!$B$9=7,'Daten A6'!$G$44,IF(Options!$B$9=8,'Daten A6'!$G$50,IF(Options!$B$9=9,'Daten A6'!$G$56,IF(Options!$B$9=10,'Daten A6'!$G$62,IF(Options!$B$9=11,'Daten A6'!$G$68,IF(Options!$B$9=12,'Daten A6'!$G$74,IF(Options!$B$9=13,'Daten A6'!$G$80,IF(Options!$B$9=14,'Daten A6'!$G$86,IF(Options!$B$9=15,'Daten A6'!$G$92,IF(Options!$B$9=16,'Daten A6'!$G$98,IF(Options!$B$9=17,'Daten A6'!$G$104,IF(Options!$B$9=18,'Daten A6'!$G$110,IF(Options!$B$9=19,'Daten A6'!V15,IF(Options!$B$9=20,'Daten A6'!V21,IF(Options!$B$9=21,'Daten A6'!V27,IF(Options!$B$9=22,'Daten A6'!V33,IF(Options!$B$9=23,'Daten A6'!V39,IF(Options!$B$9=24,'Daten A6'!V45,)))))))))))))))))))))))) -> 0% | BK38: =IF(Options!$B$9=1,'Daten A6'!$H$8,IF(Options!$B$9=2,'Daten A6'!$H$14,IF(Options!$B$9=3,'Daten A6'!$H$20,IF(Options!$B$9=4,'Daten A6'!$H$26,IF(Options!$B$9=5,'Daten A6'!$H$32,IF(Options!$B$9=6,'Daten A6'!$H$38,IF(Options!$B$9=7,'Daten A6'!$H$44,IF(Options!$B$9=8,'Daten A6'!$H$50,IF(Options!$B$9=9,'Daten A6'!$H$56,IF(Options!$B$9=10,'Daten A6'!$H$62,IF(Options!$B$9=11,'Daten A6'!$H$68,IF(Options!$B$9=12,'Daten A6'!$H$74,IF(Options!$B$9=13,'Daten A6'!$H$80,IF(Options!$B$9=14,'Daten A6'!$H$86,IF(Options!$B$9=15,'Daten A6'!$H$92,IF(Options!$B$9=16,'Daten A6'!$H$98,IF(Options!$B$9=17,'Daten A6'!$H$104,IF(Options!$B$9=18,'Daten A6'!$H$110,IF(Options!$B$9=19,'Daten A6'!W15,IF(Options!$B$9=20,'Daten A6'!W21,IF(Options!$B$9=21,'Daten A6'!W27,IF(Options!$B$9=22,'Daten A6'!W33,IF(Options!$B$9=23,'Daten A6'!W39,IF(Options!$B$9=24,'Daten A6'!W45,)))))))))))))))))))))))) -> ---- | BL38: =IF(Options!$B$9=1,'Daten A6'!$I$8,IF(Options!$B$9=2,'Daten A6'!$I$14,IF(Options!$B$9=3,'Daten A6'!$I$20,IF(Options!$B$9=4,'Daten A6'!$I$26,IF(Options!$B$9=5,'Daten A6'!$I$32,IF(Options!$B$9=6,'Daten A6'!$I$38,IF(Options!$B$9=7,'Daten A6'!$I$44,IF(Options!$B$9=8,'Daten A6'!$I$50,IF(Options!$B$9=9,'Daten A6'!$I$56,IF(Options!$B$9=10,'Daten A6'!$I$62,IF(Options!$B$9=11,'Daten A6'!$I$68,IF(Options!$B$9=12,'Daten A6'!$I$74,IF(Options!$B$9=13,'Daten A6'!$I$80,IF(Options!$B$9=14,'Daten A6'!$I$86,IF(Options!$B$9=15,'Daten A6'!$I$92,IF(Options!$B$9=16,'Daten A6'!$I$98,IF(Options!$B$9=17,'Daten A6'!$I$104,IF(Options!$B$9=18,'Daten A6'!$I$110,IF(Options!$B$9=19,'Daten A6'!X15,IF(Options!$B$9=20,'Daten A6'!X21,IF(Options!$B$9=21,'Daten A6'!X27,IF(Options!$B$9=22,'Daten A6'!X33,IF(Options!$B$9=23,'Daten A6'!X39,IF(Options!$B$9=24,'Daten A6'!X45,)))))))))))))))))))))))) -> 0% | BM38: =IF(Options!$B$9=1,'Daten A6'!$J$8,IF(Options!$B$9=2,'Daten A6'!$J$14,IF(Options!$B$9=3,'Daten A6'!$J$20,IF(Options!$B$9=4,'Daten A6'!$J$26,IF(Options!$B$9=5,'Daten A6'!$J$32,IF(Options!$B$9=6,'Daten A6'!$J$38,IF(Options!$B$9=7,'Daten A6'!$J$44,IF(Options!$B$9=8,'Daten A6'!$J$50,IF(Options!$B$9=9,'Daten A6'!$J$56,IF(Options!$B$9=10,'Daten A6'!$J$62,IF(Options!$B$9=11,'Daten A6'!$J$68,IF(Options!$B$9=12,'Daten A6'!$J$74,IF(Options!$B$9=13,'Daten A6'!$J$80,IF(Options!$B$9=14,'Daten A6'!$J$86,IF(Options!$B$9=15,'Daten A6'!$J$92,IF(Options!$B$9=16,'Daten A6'!$J$98,IF(Options!$B$9=17,'Daten A6'!$J$104,IF(Options!$B$9=18,'Daten A6'!$J$110,IF(Options!$B$9=19,'Daten A6'!Y15,IF(Options!$B$9=20,'Daten A6'!Y21,IF(Options!$B$9=21,'Daten A6'!Y27,IF(Options!$B$9=22,'Daten A6'!Y33,IF(Options!$B$9=23,'Daten A6'!Y39,IF(Options!$B$9=24,'Daten A6'!Y45,)))))))))))))))))))))))) -> ---- | BN38: =IF(Options!$B$9=1,'Daten A6'!$K$8,IF(Options!$B$9=2,'Daten A6'!$K$14,IF(Options!$B$9=3,'Daten A6'!$K$20,IF(Options!$B$9=4,'Daten A6'!$K$26,IF(Options!$B$9=5,'Daten A6'!$K$32,IF(Options!$B$9=6,'Daten A6'!$K$38,IF(Options!$B$9=7,'Daten A6'!$K$44,IF(Options!$B$9=8,'Daten A6'!$K$50,IF(Options!$B$9=9,'Daten A6'!$K$56,IF(Options!$B$9=10,'Daten A6'!$K$62,IF(Options!$B$9=11,'Daten A6'!$K$68,IF(Options!$B$9=12,'Daten A6'!$K$74,IF(Options!$B$9=13,'Daten A6'!$K$80,IF(Options!$B$9=14,'Daten A6'!$K$86,IF(Options!$B$9=15,'Daten A6'!$K$92,IF(Options!$B$9=16,'Daten A6'!$K$98,IF(Options!$B$9=17,'Daten A6'!$K$104,IF(Options!$B$9=18,'Daten A6'!$K$110,IF(Options!$B$9=19,'Daten A6'!Z15,IF(Options!$B$9=20,'Daten A6'!Z21,IF(Options!$B$9=21,'Daten A6'!Z27,IF(Options!$B$9=22,'Daten A6'!Z33,IF(Options!$B$9=23,'Daten A6'!Z39,IF(Options!$B$9=24,'Daten A6'!Z45,)))))))))))))))))))))))) -> 0% | BO38: =IF(Options!$B$9=1,'Daten A6'!$L$8,IF(Options!$B$9=2,'Daten A6'!$L$14,IF(Options!$B$9=3,'Daten A6'!$L$20,IF(Options!$B$9=4,'Daten A6'!$L$26,IF(Options!$B$9=5,'Daten A6'!$L$32,IF(Options!$B$9=6,'Daten A6'!$L$38,IF(Options!$B$9=7,'Daten A6'!$L$44,IF(Options!$B$9=8,'Daten A6'!$L$50,IF(Options!$B$9=9,'Daten A6'!$L$56,IF(Options!$B$9=10,'Daten A6'!$L$62,IF(Options!$B$9=11,'Daten A6'!$L$68,IF(Options!$B$9=12,'Daten A6'!$L$74,IF(Options!$B$9=13,'Daten A6'!$L$80,IF(Options!$B$9=14,'Daten A6'!$L$86,IF(Options!$B$9=15,'Daten A6'!$L$92,IF(Options!$B$9=16,'Daten A6'!$L$98,IF(Options!$B$9=17,'Daten A6'!$L$104,IF(Options!$B$9=18,'Daten A6'!$L$110,IF(Options!$B$9=19,'Daten A6'!AA15,IF(Options!$B$9=20,'Daten A6'!AA21,IF(Options!$B$9=21,'Daten A6'!AA27,IF(Options!$B$9=22,'Daten A6'!AA33,IF(Options!$B$9=23,'Daten A6'!AA39,IF(Options!$B$9=24,'Daten A6'!AA45,)))))))))))))))))))))))) -> ---- | BP38: =IF(Options!$B$9=1,'Daten A6'!$M$8,IF(Options!$B$9=2,'Daten A6'!$M$14,IF(Options!$B$9=3,'Daten A6'!$M$20,IF(Options!$B$9=4,'Daten A6'!$M$26,IF(Options!$B$9=5,'Daten A6'!$M$32,IF(Options!$B$9=6,'Daten A6'!$M$38,IF(Options!$B$9=7,'Daten A6'!$M$44,IF(Options!$B$9=8,'Daten A6'!$M$50,IF(Options!$B$9=9,'Daten A6'!$M$56,IF(Options!$B$9=10,'Daten A6'!$M$62,IF(Options!$B$9=11,'Daten A6'!$M$68,IF(Options!$B$9=12,'Daten A6'!$M$74,IF(Options!$B$9=13,'Daten A6'!$M$80,IF(Options!$B$9=14,'Daten A6'!$M$86,IF(Options!$B$9=15,'Daten A6'!$M$92,IF(Options!$B$9=16,'Daten A6'!$M$98,IF(Options!$B$9=17,'Daten A6'!$M$104,IF(Options!$B$9=18,'Daten A6'!$M$110,IF(Options!$B$9=19,'Daten A6'!AB15,IF(Options!$B$9=20,'Daten A6'!AB21,IF(Options!$B$9=21,'Daten A6'!AB27,IF(Options!$B$9=22,'Daten A6'!AB33,IF(Options!$B$9=23,'Daten A6'!AB39,IF(Options!$B$9=24,'Daten A6'!AB45,)))))))))))))))))))))))) -> 0% | BQ38: =IF(Options!$B$9=1,'Daten A6'!$N$8,IF(Options!$B$9=2,'Daten A6'!$N$14,IF(Options!$B$9=3,'Daten A6'!$N$20,IF(Options!$B$9=4,'Daten A6'!$N$26,IF(Options!$B$9=5,'Daten A6'!$N$32,IF(Options!$B$9=6,'Daten A6'!$N$38,IF(Options!$B$9=7,'Daten A6'!$N$44,IF(Options!$B$9=8,'Daten A6'!$N$50,IF(Options!$B$9=9,'Daten A6'!$N$56,IF(Options!$B$9=10,'Daten A6'!$N$62,IF(Options!$B$9=11,'Daten A6'!$N$68,IF(Options!$B$9=12,'Daten A6'!$N$74,IF(Options!$B$9=13,'Daten A6'!$N$80,IF(Options!$B$9=14,'Daten A6'!$N$86,IF(Options!$B$9=15,'Daten A6'!$N$92,IF(Options!$B$9=16,'Daten A6'!$N$98,IF(Options!$B$9=17,'Daten A6'!$N$104,IF(Options!$B$9=18,'Daten A6'!$N$110,IF(Options!$B$9=19,'Daten A6'!AC15,IF(Options!$B$9=20,'Daten A6'!AC21,IF(Options!$B$9=21,'Daten A6'!AC27,IF(Options!$B$9=22,'Daten A6'!AC33,IF(Options!$B$9=23,'Daten A6'!AC39,IF(Options!$B$9=24,'Daten A6'!AC45,)))))))))))))))))))))))) -> ----
B39: =IF($AW$35="x",BA33,"") ->  | E39: =IF($AW$35="x",AX33,"") ->  | M39: =IF($AW$35="x",BA32,"") ->  | P39: =IF($AW$35="x",AX32,"") ->  | X39: =IF($AW$35="x",BA31,"") ->  | AA39: =IF($AW$35="x",AX31,"") -> 
C40: =IF($AW$35="x",AY33,"") ->  | F40: =IF($AW$35="x",AZ33,"") ->  | N40: =IF($AW$35="x",AY32,"") ->  | Q40: =IF($AW$35="x",AZ32,"") ->  | Y40: =IF($AW$35="x",AY31,"") ->  | AB40: =IF($AW$35="x",AZ31,"") -> 
B45: S2 | M45: S3 | X45: S4

Sheet Matchplan (empty)
B2: Roster | I2: =Options!B1&" "&AZ3&" - "&TEXT(AZ4,"tt.MM.jjjj") -> KOREA - | AZ2: =Options!B1 -> KOREA
B3: =Berechnung!I27 -> 1 | C3: =Berechnung!J27 -> SONG | G3: =Berechnung!L27 -> Out | AZ3: =IF(Options!D3="","",Options!D3) -> 
B4: =Berechnung!I28 -> 4 | C4: =Berechnung!J28 -> SHIN | G4: =Berechnung!L28 -> MB | AZ4: =IF(Options!D2="","",Options!D2) -> 
B5: =Berechnung!I29 -> 6 | C5: =Berechnung!J29 -> LEE | G5: =Berechnung!L29 -> Set
B6: =Berechnung!I30 -> 8 | C6: =Berechnung!J30 -> PARK | G6: =Berechnung!L30 -> MB | AZ6: LineUp:
B7: =Berechnung!I31 -> 9 | C7: =Berechnung!J31 -> KWAK | G7: =Berechnung!L31 -> Out | AZ7: Pos 1 | BA7: Pos 2 | BB7: Pos 3 | BC7: Pos 4 | BD7: Pos 5 | BE7: Pos 6 | BF7: L
B8: =Berechnung!I32 -> 11 | C8: =Berechnung!J32 -> CHOI | G8: =Berechnung!L32 -> MB | AY8: 1. | AZ8: =IF(Options!B9="","",TEXT(Options!B9,"##")) -> 6 | BA8: =IF(Options!C9="","",TEXT(Options!C9,"##")) -> 1 | BB8: =IF(Options!D9="","",TEXT(Options!D9,"##")) -> 11 | BC8: =IF(Options!E9="","",TEXT(Options!E9,"##")) -> 17 | BD8: =IF(Options!F9="","",TEXT(Options!F9,"##")) -> 9 | BE8: =IF(Options!G9="","",TEXT(Options!G9,"##")) -> 4 | BF8: =IF(Options!H9="","",TEXT(Options!H9,"##")) -> 19
B9: =Berechnung!I33 -> 12 | C9: =Berechnung!J33 -> JEON | G9: =Berechnung!L33 -> Out | AY9: 2. | AZ9: =IF(Options!B10="","",TEXT(Options!B10,"##")) -> 22 | BA9: =IF(Options!C10="","",TEXT(Options!C10,"##")) ->  | BB9: =IF(Options!D10="","",TEXT(Options!D10,"##")) -> 8 | BC9: =IF(Options!E10="","",TEXT(Options!E10,"##")) ->  | BD9: =IF(Options!F10="","",TEXT(Options!F10,"##")) -> 14 | BE9: =IF(Options!G10="","",TEXT(Options!G10,"##")) ->  | BF9: =IF(Options!H10="","",TEXT(Options!H10,"##")) -> 25
B10: =Berechnung!I34 -> 14 | C10: =Berechnung!J34 -> SONG | G10: =Berechnung!L34 -> Out | AY10: ∑ | AZ10: =IF(Options!B11="","",Options!B11) -> 6/22 | BA10: =IF(Options!C11="","",Options!C11) -> 1 | BB10: =IF(Options!D11="","",Options!D11) -> 11/8 | BC10: =IF(Options!E11="","",Options!E11) -> 17 | BD10: =IF(Options!F11="","",Options!F11) -> 9/14 | BE10: =IF(Options!G11="","",Options!G11) -> 4 | BF10: =IF(Options!H11="","",Options!H11) -> 19/25
B11: =Berechnung!I35 -> 16 | C11: =Berechnung!J35 -> CHOI | G11: =Berechnung!L35 -> Opp
B12: =Berechnung!I36 -> 17 | C12: =Berechnung!J36 -> SEO | G12: =Berechnung!L36 -> Opp
B13: =Berechnung!I37 -> 19 | C13: =Berechnung!J37 -> JEONG | G13: =Berechnung!L37 -> Lib
B14: =Berechnung!I38 -> 20 | C14: =Berechnung!J38 -> JI | G14: =Berechnung!L38 -> MB
B15: =Berechnung!I39 -> 22 | C15: =Berechnung!J39 -> YOU | G15: =Berechnung!L39 -> Set
B16: =Berechnung!I40 -> 25 | C16: =Berechnung!J40 -> OH | G16: =Berechnung!L40 -> Lib
B17: =Berechnung!I41 ->  | C17: =Berechnung!J41 ->  | G17: =Berechnung!L41 -> 
B18: =Berechnung!I42 ->  | C18: =Berechnung!J42 ->  | G18: =Berechnung!L42 -> 
B19: =Berechnung!I43 ->  | C19: =Berechnung!J43 ->  | G19: =Berechnung!L43 -> 
B20: =Berechnung!I44 ->  | C20: =Berechnung!J44 ->  | G20: =Berechnung!L44 -> 
B21: =Berechnung!I45 ->  | C21: =Berechnung!J45 ->  | G21: =Berechnung!L45 -> 
B22: =Berechnung!I46 ->  | C22: =Berechnung!J46 ->  | G22: =Berechnung!L46 -> 
I23: S1 | T23: S6 | AE23: S5
C25: Starting Lineup:
I45: S2 | T45: S3 | AE45: S4

Sheet AttackDir
C1: =AZ5&" - Analysis of the attack directions" -> KOREA - Analysis of the attack directions
C4: =AZ8 -> 6 LEE | M4: =AZ17 -> 20 JI | W4: =AZ18 -> 22 YOU | AG4: =AZ7 -> 4 SHIN | AQ4: =AZ15 -> 17 SEO | BA4: sum | BB4: perc | BC4: eff | BD4: # | BE4: #%
D5: MB | AZ5: =Berechnung!BT26 -> KOREA | BA5: =Berechnung!BU26 -> 101 | BC5: =Berechnung!CA26 -> 27% | BD5: =Berechnung!BY26 -> 53 | BE5: =Berechnung!BZ26 -> 0.5247524752
AZ6: =TRIM(BI6&" "&BJ6) -> 1 SONG | BA6: =Berechnung!BU27 -> 30 | BB6: =Berechnung!BV27 -> 30% | BC6: =Berechnung!CA27 -> 17% | BD6: =Berechnung!BY27 -> 15 | BE6: =Berechnung!BZ27 -> 50% | BI6: =Berechnung!BS27 -> 1 | BJ6: =Berechnung!BT27 -> SONG | BK6: =Berechnung!L27 -> Out
AZ7: 4 SHIN | BA7: =Berechnung!BU28 -> 11 | BB7: =Berechnung!BV28 -> 11% | BC7: =Berechnung!CA28 -> 73% | BD7: =Berechnung!BY28 -> 8 | BE7: =Berechnung!BZ28 -> 73% | BI7: =Berechnung!BS28 -> 4 | BJ7: =Berechnung!BT28 -> SHIN | BK7: =Berechnung!L28 -> MB
AZ8: 6 LEE | BA8: =Berechnung!BU29 -> 0 | BB8: =Berechnung!BV29 -> 0% | BC8: =Berechnung!CA29 -> 0% | BD8: =Berechnung!BY29 -> 0 | BE8: =Berechnung!BZ29 -> 0% | BI8: =Berechnung!BS29 -> 6 | BJ8: =Berechnung!BT29 -> LEE | BK8: =Berechnung!L29 -> Set
AZ9: 8 PARK | BA9: =Berechnung!BU30 -> 5 | BB9: =Berechnung!BV30 -> 5% | BC9: =Berechnung!CA30 -> -40% | BD9: =Berechnung!BY30 -> 1 | BE9: =Berechnung!BZ30 -> 20% | BI9: =Berechnung!BS30 -> 8 | BJ9: =Berechnung!BT30 -> PARK | BK9: =Berechnung!L30 -> MB
AZ10: 9 KWAK | BA10: =Berechnung!BU31 -> 7 | BB10: =Berechnung!BV31 -> 7% | BC10: =Berechnung!CA31 -> 29% | BD10: =Berechnung!BY31 -> 4 | BE10: =Berechnung!BZ31 -> 57% | BI10: =Berechnung!BS31 -> 9 | BJ10: =Berechnung!BT31 -> KWAK | BK10: =Berechnung!L31 -> Out
AZ11: 11 CHOI | BA11: =Berechnung!BU32 -> 8 | BB11: =Berechnung!BV32 -> 8% | BC11: =Berechnung!CA32 -> 50% | BD11: =Berechnung!BY32 -> 4 | BE11: =Berechnung!BZ32 -> 50% | BI11: =Berechnung!BS32 -> 11 | BJ11: =Berechnung!BT32 -> CHOI | BK11: =Berechnung!L32 -> MB
AZ12: 12 JEON | BA12: =Berechnung!BU33 -> 0 | BB12: =Berechnung!BV33 -> 0% | BC12: =Berechnung!CA33 -> 0% | BD12: =Berechnung!BY33 -> 0 | BE12: =Berechnung!BZ33 -> 0% | BI12: =Berechnung!BS33 -> 12 | BJ12: =Berechnung!BT33 -> JEON | BK12: =Berechnung!L33 -> Out
AZ13: 14 SONG | BA13: =Berechnung!BU34 -> 5 | BB13: =Berechnung!BV34 -> 5% | BC13: =Berechnung!CA34 -> 0% | BD13: =Berechnung!BY34 -> 1 | BE13: =Berechnung!BZ34 -> 20% | BI13: =Berechnung!BS34 -> 14 | BJ13: =Berechnung!BT34 -> SONG | BK13: =Berechnung!L34 -> Out
AZ14: 16 CHOI | BA14: =Berechnung!BU35 -> 15 | BB14: =Berechnung!BV35 -> 15% | BC14: =Berechnung!CA35 -> 40% | BD14: =Berechnung!BY35 -> 9 | BE14: =Berechnung!BZ35 -> 60% | BI14: =Berechnung!BS35 -> 16 | BJ14: =Berechnung!BT35 -> CHOI | BK14: =Berechnung!L35 -> Opp
AZ15: 17 SEO | BA15: =Berechnung!BU36 -> 20 | BB15: =Berechnung!BV36 -> 20% | BC15: =Berechnung!CA36 -> 20% | BD15: =Berechnung!BY36 -> 11 | BE15: =Berechnung!BZ36 -> 55% | BI15: =Berechnung!BS36 -> 17 | BJ15: =Berechnung!BT36 -> SEO | BK15: =Berechnung!L36 -> Opp
AZ16: 19 JEONG | BA16: =Berechnung!BU37 -> 0 | BB16: =Berechnung!BV37 -> 0% | BC16: =Berechnung!CA37 -> 0% | BD16: =Berechnung!BY37 -> 0 | BE16: =Berechnung!BZ37 -> 0% | BI16: =Berechnung!BS37 -> 19 | BJ16: =Berechnung!BT37 -> JEONG | BK16: =Berechnung!L37 -> Lib
AZ17: 20 JI | BA17: =Berechnung!BU38 -> 0 | BB17: =Berechnung!BV38 -> 0% | BC17: =Berechnung!CA38 -> 0% | BD17: =Berechnung!BY38 -> 0 | BE17: =Berechnung!BZ38 -> 0% | BI17: =Berechnung!BS38 -> 20 | BJ17: =Berechnung!BT38 -> JI | BK17: =Berechnung!L38 -> MB
AZ18: 22 YOU | BA18: =Berechnung!BU39 -> 0 | BB18: =Berechnung!BV39 -> 0% | BC18: =Berechnung!CA39 -> 0% | BD18: =Berechnung!BY39 -> 0 | BE18: =Berechnung!BZ39 -> 0% | BI18: =Berechnung!BS39 -> 22 | BJ18: =Berechnung!BT39 -> YOU | BK18: =Berechnung!L39 -> Set
AZ19: 25 OH | BA19: =Berechnung!BU40 -> 0 | BB19: =Berechnung!BV40 -> 0% | BC19: =Berechnung!CA40 -> 0% | BD19: =Berechnung!BY40 -> 0 | BE19: =Berechnung!BZ40 -> 0% | BI19: =Berechnung!BS40 -> 25 | BJ19: =Berechnung!BT40 -> OH | BK19: =Berechnung!L40 -> Lib
C20: =AZ6 -> 1 SONG | M20: =AZ11 -> 11 CHOI | W20: =AZ12 -> 12 JEON | AG20: =AZ13 -> 14 SONG | AQ20: =AZ16 -> 19 JEONG | BA20: =Berechnung!BU41 ->  | BB20: =Berechnung!BV41 ->  | BC20: =Berechnung!CA41 ->  | BD20: =Berechnung!BY41 ->  | BE20: =Berechnung!BZ41 ->  | BI20: =Berechnung!BS41 ->  | BJ20: =Berechnung!BT41 ->  | BK20: =Berechnung!L41 -> 
BA21: =Berechnung!BU42 ->  | BB21: =Berechnung!BV42 ->  | BC21: =Berechnung!CA42 ->  | BD21: =Berechnung!BY42 ->  | BE21: =Berechnung!BZ42 ->  | BI21: =Berechnung!BS42 ->  | BJ21: =Berechnung!BT42 ->  | BK21: =Berechnung!L42 -> 
BA22: =Berechnung!BU43 ->  | BB22: =Berechnung!BV43 ->  | BC22: =Berechnung!CA43 ->  | BD22: =Berechnung!BY43 ->  | BE22: =Berechnung!BZ43 ->  | BI22: =Berechnung!BS43 ->  | BJ22: =Berechnung!BT43 ->  | BK22: =Berechnung!L43 -> 
BA23: =Berechnung!BU44 ->  | BB23: =Berechnung!BV44 ->  | BC23: =Berechnung!CA44 ->  | BD23: =Berechnung!BY44 ->  | BE23: =Berechnung!BZ44 ->  | BI23: =Berechnung!BS44 ->  | BJ23: =Berechnung!BT44 ->  | BK23: =Berechnung!L44 -> 
BA24: =Berechnung!BU45 ->  | BB24: =Berechnung!BV45 ->  | BC24: =Berechnung!CA45 ->  | BD24: =Berechnung!BY45 ->  | BE24: =Berechnung!BZ45 ->  | BI24: =Berechnung!BS45 ->  | BJ24: =Berechnung!BT45 ->  | BK24: =Berechnung!L45 -> 
BA25: =Berechnung!BU46 ->  | BB25: =Berechnung!BV46 ->  | BC25: =Berechnung!CA46 ->  | BD25: =Berechnung!BY46 ->  | BE25: =Berechnung!BZ46 ->  | BI25: =Berechnung!BS46 ->  | BJ25: =Berechnung!BT46 ->  | BK25: =Berechnung!L46 -> 
AZ27: sum: | BA27: sum of all attacks of player
AZ28: perc: | BA28: value in percent of team
AZ29: eff: | BA29: effiziency
AZ30: #: | BA30: kills
AZ31: #%: | BA31: kills in percent

Sheet Stats allg
B2: =Options!B1&" - all Statistics" -> KOREA - all Statistics
E4: pld Set | F4: =Berechnung!O2 -> Points | K4: =Berechnung!T2 -> Serve | S4: =Berechnung!AB2 -> Reception | AD4: =Berechnung!AM2 -> Attack
F5: =Berechnung!O3 -> pts | G5: =Berechnung!P3 -> P/s | H5: =Berechnung!Q3 -> easy= | I5: =Berechnung!R3 -> all= | J5: =Berechnung!S3 -> W-L | K5: ∑ | L5: =Berechnung!U3 -> = | M5: =Berechnung!V3 -> - | N5: =Berechnung!W3 -> + | O5: =Berechnung!X3 -> # | P5: =Berechnung!Y3 -> =% | Q5: =Berechnung!Z3 -> #% | R5: =Berechnung!AA3 -> eff% | S5: ∑ | T5: in % | U5: =Berechnung!AD3 -> = | V5: =Berechnung!AE3 -> / | W5: =Berechnung!AF3 -> - | X5: =Berechnung!AG3 -> + | Y5: =Berechnung!AH3 -> # | Z5: =Berechnung!AI3 -> =/% | AA5: =Berechnung!AJ3 -> +#% | AB5: =Berechnung!AK3 -> #% | AC5: =Berechnung!AL3 -> eff% | AD5: ∑ | AE5: in % | AF5: =Berechnung!AO3 -> = | AG5: =Berechnung!AP3 -> / | AH5: =Berechnung!AQ3 -> ! | AI5: =Berechnung!AR3 -> + | AJ5: =Berechnung!AS3 -> # | AK5: =Berechnung!AT3 -> =/% | AL5: =Berechnung!AU3 -> #% | AM5: =Berechnung!AV3 -> eff%
C6: =Berechnung!J26 -> KOREA | E6: =Berechnung!N26 -> 5 | F6: =Berechnung!O26 -> 66 | G6: =Berechnung!P26 -> 13.2 | H6: =IF($F6=0,"",Berechnung!Q26) -> 26 | I6: =IF($F6=0,"",Berechnung!R26) -> 78 | J6: =Berechnung!S26 -> -12 | K6: =Berechnung!T26 -> 101 | L6: =Berechnung!U26 -> 11 | M6: =Berechnung!V26 -> 56 | N6: =Berechnung!W26 -> 32 | O6: =Berechnung!X26 -> 2 | P6: =Berechnung!Y26 -> 0.1089108911 | Q6: =Berechnung!Z26 -> 0.0198019802 | R6: =Berechnung!AA26 -> 23% | S6: =Berechnung!AB26 -> 82 | U6: =Berechnung!AD26 -> 1 | V6: =Berechnung!AE26 -> 1 | W6: =Berechnung!AF26 -> 29 | X6: =Berechnung!AG26 -> 29 | Y6: =Berechnung!AH26 -> 22 | Z6: =Berechnung!AI26 -> 0.0243902439 | AA6: =Berechnung!AJ26 -> 62% | AB6: =Berechnung!AK26 -> 27% | AC6: =Berechnung!AL26 -> 60% | AD6: =Berechnung!AM26 -> 104 | AF6: =Berechnung!AO26 -> 12 | AG6: =Berechnung!AP26 -> 15 | AH6: =Berechnung!AQ26 -> 3 | AI6: =Berechnung!AR26 -> 9 | AJ6: =Berechnung!AS26 -> 54 | AK6: =Berechnung!AT26 -> 0.2596153846 | AL6: =Berechnung!AU26 -> 52% | AM6: =Berechnung!AV26 -> 26%
B7: =Berechnung!I27 -> 1 | C7: =Berechnung!J27 -> SONG | E7: =Berechnung!N27 -> 5 | F7: =Berechnung!O27 -> 18 | G7: =IF($F7=0,"",Berechnung!P27) -> 3.6 | H7: =IF(Berechnung!Q27=0,"",Berechnung!Q27) -> 11 | I7: =IF(Berechnung!R27=0,"",Berechnung!R27) -> 19 | J7: =Berechnung!S27 -> -1 | K7: =Berechnung!T27 -> 16 | L7: =IF($K7=0,"",Berechnung!U27) -> 4 | M7: =IF($K7=0,"",Berechnung!V27) -> 7 | N7: =IF($K7=0,"",Berechnung!W27) -> 4 | O7: =IF($K7=0,"",Berechnung!X27) -> 1 | P7: =IF($K7=0,"",Berechnung!Y27) -> 0.25 | Q7: =IF($K7=0,"",Berechnung!Z27) -> 0.0625 | R7: =IF($K7=0,"",Berechnung!AA27) -> 6% | S7: =Berechnung!AB27 -> 7 | T7: =IF($S7=0,"",Berechnung!AC27) -> 0.08536585366 | U7: =IF($S7=0,"",Berechnung!AD27) -> 1 | V7: =IF($S7=0,"",Berechnung!AE27) -> 0 | W7: =IF($S7=0,"",Berechnung!AF27) -> 1 | X7: =IF($S7=0,"",Berechnung!AG27) -> 4 | Y7: =IF($S7=0,"",Berechnung!AH27) -> 1 | Z7: =IF($S7=0,"",Berechnung!AI27) -> 0.1428571429 | AA7: =IF($S7=0,"",Berechnung!AJ27) -> 71% | AB7: =IF($S7=0,"",Berechnung!AK27) -> 14% | AC7: =IF($S7=0,"",Berechnung!AL27) -> 57% | AD7: =Berechnung!AM27 -> 30 | AE7: =IF($AD7=0,"",Berechnung!AN27) -> 0.2884615385 | AF7: =IF($AD7=0,"",Berechnung!AO27) -> 6 | AG7: =IF($AD7=0,"",Berechnung!AP27) -> 4 | AH7: =IF($AD7=0,"",Berechnung!AQ27) -> 0 | AI7: =IF($AD7=0,"",Berechnung!AR27) -> 4 | AJ7: =IF($AD7=0,"",Berechnung!AS27) -> 15 | AK7: =IF($AD7=0,"",Berechnung!AT27) -> 0.3333333333 | AL7: =IF($AD7=0,"",Berechnung!AU27) -> 50% | AM7: =IF($AD7=0,"",Berechnung!AV27) -> 17%
B8: =Berechnung!I28 -> 4 | C8: =Berechnung!J28 -> SHIN | E8: =Berechnung!N28 -> 5 | F8: =Berechnung!O28 -> 11 | G8: =IF($F8=0,"",Berechnung!P28) -> 2.2 | H8: =IF(Berechnung!Q28=0,"",Berechnung!Q28) -> 2 | I8: =IF(Berechnung!R28=0,"",Berechnung!R28) -> 6 | J8: =Berechnung!S28 -> 5 | K8: =Berechnung!T28 -> 14 | L8: =IF($K8=0,"",Berechnung!U28) -> 1 | M8: =IF($K8=0,"",Berechnung!V28) -> 10 | N8: =IF($K8=0,"",Berechnung!W28) -> 3 | O8: =IF($K8=0,"",Berechnung!X28) -> 0 | P8: =IF($K8=0,"",Berechnung!Y28) -> 0.07142857143 | Q8: =IF($K8=0,"",Berechnung!Z28) -> 0 | R8: =IF($K8=0,"",Berechnung!AA28) -> 14% | S8: =Berechnung!AB28 -> 0 | T8: =IF($S8=0,"",Berechnung!AC28) ->  | U8: =IF($S8=0,"",Berechnung!AD28) ->  | V8: =IF($S8=0,"",Berechnung!AE28) ->  | W8: =IF($S8=0,"",Berechnung!AF28) ->  | X8: =IF($S8=0,"",Berechnung!AG28) ->  | Y8: =IF($S8=0,"",Berechnung!AH28) ->  | Z8: =IF($S8=0,"",Berechnung!AI28) ->  | AA8: =IF($S8=0,"",Berechnung!AJ28) ->  | AB8: =IF($S8=0,"",Berechnung!AK28) ->  | AC8: =IF($S8=0,"",Berechnung!AL28) ->  | AD8: =Berechnung!AM28 -> 11 | AE8: =IF($AD8=0,"",Berechnung!AN28) -> 0.1057692308 | AF8: =IF($AD8=0,"",Berechnung!AO28) -> 0 | AG8: =IF($AD8=0,"",Berechnung!AP28) -> 0 | AH8: =IF($AD8=0,"",Berechnung!AQ28) -> 0 | AI8: =IF($AD8=0,"",Berechnung!AR28) -> 1 | AJ8: =IF($AD8=0,"",Berechnung!AS28) -> 8 | AK8: =IF($AD8=0,"",Berechnung!AT28) -> 0 | AL8: =IF($AD8=0,"",Berechnung!AU28) -> 73% | AM8: =IF($AD8=0,"",Berechnung!AV28) -> 73%
B9: =Berechnung!I29 -> 6 | C9: =Berechnung!J29 -> LEE | E9: =Berechnung!N29 -> 5 | F9: =Berechnung!O29 -> 2 | G9: =IF($F9=0,"",Berechnung!P29) -> 0.4 | H9: =IF(Berechnung!Q29=0,"",Berechnung!Q29) -> 1 | I9: =IF(Berechnung!R29=0,"",Berechnung!R29) -> 6 | J9: =Berechnung!S29 -> -4 | K9: =Berechnung!T29 -> 6 | L9: =IF($K9=0,"",Berechnung!U29) -> 0 | M9: =IF($K9=0,"",Berechnung!V29) -> 4 | N9: =IF($K9=0,"",Berechnung!W29) -> 2 | O9: =IF($K9=0,"",Berechnung!X29) -> 0 | P9: =IF($K9=0,"",Berechnung!Y29) -> 0 | Q9: =IF($K9=0,"",Berechnung!Z29) -> 0 | R9: =IF($K9=0,"",Berechnung!AA29) -> 33% | S9: =Berechnung!AB29 -> 0 | T9: =IF($S9=0,"",Berechnung!AC29) ->  | U9: =IF($S9=0,"",Berechnung!AD29) ->  | V9: =IF($S9=0,"",Berechnung!AE29) ->  | W9: =IF($S9=0,"",Berechnung!AF29) ->  | X9: =IF($S9=0,"",Berechnung!AG29) ->  | Y9: =IF($S9=0,"",Berechnung!AH29) ->  | Z9: =IF($S9=0,"",Berechnung!AI29) ->  | AA9: =IF($S9=0,"",Berechnung!AJ29) ->  | AB9: =IF($S9=0,"",Berechnung!AK29) ->  | AC9: =IF($S9=0,"",Berechnung!AL29) ->  | AD9: =Berechnung!AM29 -> 2 | AE9: =IF($AD9=0,"",Berechnung!AN29) -> 0.01923076923 | AF9: =IF($AD9=0,"",Berechnung!AO29) -> 1 | AG9: =IF($AD9=0,"",Berechnung!AP29) -> 0 | AH9: =IF($AD9=0,"",Berechnung!AQ29) -> 0 | AI9: =IF($AD9=0,"",Berechnung!AR29) -> 0 | AJ9: =IF($AD9=0,"",Berechnung!AS29) -> 1 | AK9: =IF($AD9=0,"",Berechnung!AT29) -> 0.5 | AL9: =IF($AD9=0,"",Berechnung!AU29) -> 50% | AM9: =IF($AD9=0,"",Berechnung!AV29) -> 0%
B10: =Berechnung!I30 -> 8 | C10: =Berechnung!J30 -> PARK | E10: =Berechnung!N30 -> 3 | F10: =Berechnung!O30 -> 1 | G10: =IF($F10=0,"",Berechnung!P30) -> 0.3333333333 | H10: =IF(Berechnung!Q30=0,"",Berechnung!Q30) -> 1 | I10: =IF(Berechnung!R30=0,"",Berechnung!R30) -> 6 | J10: =Berechnung!S30 -> -5 | K10: =Berechnung!T30 -> 2 | L10: =IF($K10=0,"",Berechnung!U30) -> 0 | M10: =IF($K10=0,"",Berechnung!V30) -> 2 | N10: =IF($K10=0,"",Berechnung!W30) -> 0 | O10: =IF($K10=0,"",Berechnung!X30) -> 0 | P10: =IF($K10=0,"",Berechnung!Y30) -> 0 | Q10: =IF($K10=0,"",Berechnung!Z30) -> 0 | R10: =IF($K10=0,"",Berechnung!AA30) -> 0% | S10: =Berechnung!AB30 -> 0 | T10: =IF($S10=0,"",Berechnung!AC30) ->  | U10: =IF($S10=0,"",Berechnung!AD30) ->  | V10: =IF($S10=0,"",Berechnung!AE30) ->  | W10: =IF($S10=0,"",Berechnung!AF30) ->  | X10: =IF($S10=0,"",Berechnung!AG30) ->  | Y10: =IF($S10=0,"",Berechnung!AH30) ->  | Z10: =IF($S10=0,"",Berechnung!AI30) ->  | AA10: =IF($S10=0,"",Berechnung!AJ30) ->  | AB10: =IF($S10=0,"",Berechnung!AK30) ->  | AC10: =IF($S10=0,"",Berechnung!AL30) ->  | AD10: =Berechnung!AM30 -> 5 | AE10: =IF($AD10=0,"",Berechnung!AN30) -> 0.04807692308 | AF10: =IF($AD10=0,"",Berechnung!AO30) -> 1 | AG10: =IF($AD10=0,"",Berechnung!AP30) -> 2 | AH10: =IF($AD10=0,"",Berechnung!AQ30) -> 0 | AI10: =IF($AD10=0,"",Berechnung!AR30) -> 0 | AJ10: =IF($AD10=0,"",Berechnung!AS30) -> 1 | AK10: =IF($AD10=0,"",Berechnung!AT30) -> 0.6 | AL10: =IF($AD10=0,"",Berechnung!AU30) -> 20% | AM10: =IF($AD10=0,"",Berechnung!AV30) -> -40%
B11: =Berechnung!I31 -> 9 | C11: =Berechnung!J31 -> KWAK | E11: =Berechnung!N31 -> 5 | F11: =Berechnung!O31 -> 4 | G11: =IF($F11=0,"",Berechnung!P31) -> 0.8 | H11: =IF(Berechnung!Q31=0,"",Berechnung!Q31) -> 2 | I11: =IF(Berechnung!R31=0,"",Berechnung!R31) -> 8 | J11: =Berechnung!S31 -> -4 | K11: =Berechnung!T31 -> 15 | L11: =IF($K11=0,"",Berechnung!U31) -> 1 | M11: =IF($K11=0,"",Berechnung!V31) -> 12 | N11: =IF($K11=0,"",Berechnung!W31) -> 2 | O11: =IF($K11=0,"",Berechnung!X31) -> 0 | P11: =IF($K11=0,"",Berechnung!Y31) -> 0.06666666667 | Q11: =IF($K11=0,"",Berechnung!Z31) -> 0 | R11: =IF($K11=0,"",Berechnung!AA31) -> 7% | S11: =Berechnung!AB31 -> 29 | T11: =IF($S11=0,"",Berechnung!AC31) -> 0.3536585366 | U11: =IF($S11=0,"",Berechnung!AD31) -> 0 | V11: =IF($S11=0,"",Berechnung!AE31) -> 0 | W11: =IF($S11=0,"",Berechnung!AF31) -> 13 | X11: =IF($S11=0,"",Berechnung!AG31) -> 11 | Y11: =IF($S11=0,"",Berechnung!AH31) -> 5 | Z11: =IF($S11=0,"",Berechnung!AI31) -> 0 | AA11: =IF($S11=0,"",Berechnung!AJ31) -> 55% | AB11: =IF($S11=0,"",Berechnung!AK31) -> 17% | AC11: =IF($S11=0,"",Berechnung!AL31) -> 55% | AD11: =Berechnung!AM31 -> 7 | AE11: =IF($AD11=0,"",Berechnung!AN31) -> 0.06730769231 | AF11: =IF($AD11=0,"",Berechnung!AO31) -> 1 | AG11: =IF($AD11=0,"",Berechnung!AP31) -> 1 | AH11: =IF($AD11=0,"",Berechnung!AQ31) -> 0 | AI11: =IF($AD11=0,"",Berechnung!AR31) -> 0 | AJ11: =IF($AD11=0,"",Berechnung!AS31) -> 4 | AK11: =IF($AD11=0,"",Berechnung!AT31) -> 0.2857142857 | AL11: =IF($AD11=0,"",Berechnung!AU31) -> 57% | AM11: =IF($AD11=0,"",Berechnung!AV31) -> 29%
B12: =Berechnung!I32 -> 11 | C12: =Berechnung!J32 -> CHOI | E12: =Berechnung!N32 -> 4 | F12: =Berechnung!O32 -> 7 | G12: =IF($F12=0,"",Berechnung!P32) -> 1.75 | H12: =IF(Berechnung!Q32=0,"",Berechnung!Q32) -> 1 | I12: =IF(Berechnung!R32=0,"",Berechnung!R32) -> 5 | J12: =Berechnung!S32 -> 2 | K12: =Berechnung!T32 -> 18 | L12: =IF($K12=0,"",Berechnung!U32) -> 1 | M12: =IF($K12=0,"",Berechnung!V32) -> 7 | N12: =IF($K12=0,"",Berechnung!W32) -> 9 | O12: =IF($K12=0,"",Berechnung!X32) -> 1 | P12: =IF($K12=0,"",Berechnung!Y32) -> 0.05555555556 | Q12: =IF($K12=0,"",Berechnung!Z32) -> 0.05555555556 | R12: =IF($K12=0,"",Berechnung!AA32) -> 50% | S12: =Berechnung!AB32 -> 0 | T12: =IF($S12=0,"",Berechnung!AC32) ->  | U12: =IF($S12=0,"",Berechnung!AD32) ->  | V12: =IF($S12=0,"",Berechnung!AE32) ->  | W12: =IF($S12=0,"",Berechnung!AF32) ->  | X12: =IF($S12=0,"",Berechnung!AG32) ->  | Y12: =IF($S12=0,"",Berechnung!AH32) ->  | Z12: =IF($S12=0,"",Berechnung!AI32) ->  | AA12: =IF($S12=0,"",Berechnung!AJ32) ->  | AB12: =IF($S12=0,"",Berechnung!AK32) ->  | AC12: =IF($S12=0,"",Berechnung!AL32) ->  | AD12: =Berechnung!AM32 -> 8 | AE12: =IF($AD12=0,"",Berechnung!AN32) -> 0.07692307692 | AF12: =IF($AD12=0,"",Berechnung!AO32) -> 0 | AG12: =IF($AD12=0,"",Berechnung!AP32) -> 0 | AH12: =IF($AD12=0,"",Berechnung!AQ32) -> 0 | AI12: =IF($AD12=0,"",Berechnung!AR32) -> 2 | AJ12: =IF($AD12=0,"",Berechnung!AS32) -> 4 | AK12: =IF($AD12=0,"",Berechnung!AT32) -> 0 | AL12: =IF($AD12=0,"",Berechnung!AU32) -> 50% | AM12: =IF($AD12=0,"",Berechnung!AV32) -> 50%
B13: =Berechnung!I33 -> 12 | C13: =Berechnung!J33 -> JEON | E13: =Berechnung!N33 -> 0 | F13: =Berechnung!O33 -> 0 | G13: =IF($F13=0,"",Berechnung!P33) ->  | H13: =IF(Berechnung!Q33=0,"",Berechnung!Q33) ->  | I13: =IF(Berechnung!R33=0,"",Berechnung!R33) ->  | J13: =Berechnung!S33 -> 0 | K13: =Berechnung!T33 -> 0 | L13: =IF($K13=0,"",Berechnung!U33) ->  | M13: =IF($K13=0,"",Berechnung!V33) ->  | N13: =IF($K13=0,"",Berechnung!W33) ->  | O13: =IF($K13=0,"",Berechnung!X33) ->  | P13: =IF($K13=0,"",Berechnung!Y33) ->  | Q13: =IF($K13=0,"",Berechnung!Z33) ->  | R13: =IF($K13=0,"",Berechnung!AA33) ->  | S13: =Berechnung!AB33 -> 0 | T13: =IF($S13=0,"",Berechnung!AC33) ->  | U13: =IF($S13=0,"",Berechnung!AD33) ->  | V13: =IF($S13=0,"",Berechnung!AE33) ->  | W13: =IF($S13=0,"",Berechnung!AF33) ->  | X13: =IF($S13=0,"",Berechnung!AG33) ->  | Y13: =IF($S13=0,"",Berechnung!AH33) ->  | Z13: =IF($S13=0,"",Berechnung!AI33) ->  | AA13: =IF($S13=0,"",Berechnung!AJ33) ->  | AB13: =IF($S13=0,"",Berechnung!AK33) ->  | AC13: =IF($S13=0,"",Berechnung!AL33) ->  | AD13: =Berechnung!AM33 -> 0 | AE13: =IF($AD13=0,"",Berechnung!AN33) ->  | AF13: =IF($AD13=0,"",Berechnung!AO33) ->  | AG13: =IF($AD13=0,"",Berechnung!AP33) ->  | AH13: =IF($AD13=0,"",Berechnung!AQ33) ->  | AI13: =IF($AD13=0,"",Berechnung!AR33) ->  | AJ13: =IF($AD13=0,"",Berechnung!AS33) ->  | AK13: =IF($AD13=0,"",Berechnung!AT33) ->  | AL13: =IF($AD13=0,"",Berechnung!AU33) ->  | AM13: =IF($AD13=0,"",Berechnung!AV33) -> 
B14: =Berechnung!I34 -> 14 | C14: =Berechnung!J34 -> SONG | E14: =Berechnung!N34 -> 2 | F14: =Berechnung!O34 -> 1 | G14: =IF($F14=0,"",Berechnung!P34) -> 0.5 | H14: =IF(Berechnung!Q34=0,"",Berechnung!Q34) -> 2 | I14: =IF(Berechnung!R34=0,"",Berechnung!R34) -> 4 | J14: =Berechnung!S34 -> -3 | K14: =Berechnung!T34 -> 5 | L14: =IF($K14=0,"",Berechnung!U34) -> 2 | M14: =IF($K14=0,"",Berechnung!V34) -> 1 | N14: =IF($K14=0,"",Berechnung!W34) -> 2 | O14: =IF($K14=0,"",Berechnung!X34) -> 0 | P14: =IF($K14=0,"",Berechnung!Y34) -> 0.4 | Q14: =IF($K14=0,"",Berechnung!Z34) -> 0 | R14: =IF($K14=0,"",Berechnung!AA34) -> 0% | S14: =Berechnung!AB34 -> 11 | T14: =IF($S14=0,"",Berechnung!AC34) -> 0.1341463415 | U14: =IF($S14=0,"",Berechnung!AD34) -> 0 | V14: =IF($S14=0,"",Berechnung!AE34) -> 0 | W14: =IF($S14=0,"",Berechnung!AF34) -> 4 | X14: =IF($S14=0,"",Berechnung!AG34) -> 2 | Y14: =IF($S14=0,"",Berechnung!AH34) -> 5 | Z14: =IF($S14=0,"",Berechnung!AI34) -> 0 | AA14: =IF($S14=0,"",Berechnung!AJ34) -> 63% | AB14: =IF($S14=0,"",Berechnung!AK34) -> 45% | AC14: =IF($S14=0,"",Berechnung!AL34) -> 64% | AD14: =Berechnung!AM34 -> 5 | AE14: =IF($AD14=0,"",Berechnung!AN34) -> 0.04807692308 | AF14: =IF($AD14=0,"",Berechnung!AO34) -> 0 | AG14: =IF($AD14=0,"",Berechnung!AP34) -> 1 | AH14: =IF($AD14=0,"",Berechnung!AQ34) -> 1 | AI14: =IF($AD14=0,"",Berechnung!AR34) -> 0 | AJ14: =IF($AD14=0,"",Berechnung!AS34) -> 1 | AK14: =IF($AD14=0,"",Berechnung!AT34) -> 0.2 | AL14: =IF($AD14=0,"",Berechnung!AU34) -> 20% | AM14: =IF($AD14=0,"",Berechnung!AV34) -> 0%
B15: =Berechnung!I35 -> 16 | C15: =Berechnung!J35 -> CHOI | E15: =Berechnung!N35 -> 5 | F15: =Berechnung!O35 -> 10 | G15: =IF($F15=0,"",Berechnung!P35) -> 2 | H15: =IF(Berechnung!Q35=0,"",Berechnung!Q35) -> 2 | I15: =IF(Berechnung!R35=0,"",Berechnung!R35) -> 5 | J15: =Berechnung!S35 -> 5 | K15: =Berechnung!T35 -> 3 | L15: =IF($K15=0,"",Berechnung!U35) -> 1 | M15: =IF($K15=0,"",Berechnung!V35) -> 2 | N15: =IF($K15=0,"",Berechnung!W35) -> 0 | O15: =IF($K15=0,"",Berechnung!X35) -> 0 | P15: =IF($K15=0,"",Berechnung!Y35) -> 0.3333333333 | Q15: =IF($K15=0,"",Berechnung!Z35) -> 0 | R15: =IF($K15=0,"",Berechnung!AA35) -> -33% | S15: =Berechnung!AB35 -> 0 | T15: =IF($S15=0,"",Berechnung!AC35) ->  | U15: =IF($S15=0,"",Berechnung!AD35) ->  | V15: =IF($S15=0,"",Berechnung!AE35) ->  | W15: =IF($S15=0,"",Berechnung!AF35) ->  | X15: =IF($S15=0,"",Berechnung!AG35) ->  | Y15: =IF($S15=0,"",Berechnung!AH35) ->  | Z15: =IF($S15=0,"",Berechnung!AI35) ->  | AA15: =IF($S15=0,"",Berechnung!AJ35) ->  | AB15: =IF($S15=0,"",Berechnung!AK35) ->  | AC15: =IF($S15=0,"",Berechnung!AL35) ->  | AD15: =Berechnung!AM35 -> 15 | AE15: =IF($AD15=0,"",Berechnung!AN35) -> 0.1442307692 | AF15: =IF($AD15=0,"",Berechnung!AO35) -> 1 | AG15: =IF($AD15=0,"",Berechnung!AP35) -> 2 | AH15: =IF($AD15=0,"",Berechnung!AQ35) -> 0 | AI15: =IF($AD15=0,"",Berechnung!AR35) -> 1 | AJ15: =IF($AD15=0,"",Berechnung!AS35) -> 9 | AK15: =IF($AD15=0,"",Berechnung!AT35) -> 0.2 | AL15: =IF($AD15=0,"",Berechnung!AU35) -> 60% | AM15: =IF($AD15=0,"",Berechnung!AV35) -> 40%
B16: =Berechnung!I36 -> 17 | C16: =Berechnung!J36 -> SEO | E16: =Berechnung!N36 -> 4 | F16: =Berechnung!O36 -> 11 | G16: =IF($F16=0,"",Berechnung!P36) -> 2.75 | H16: =IF(Berechnung!Q36=0,"",Berechnung!Q36) -> 3 | I16: =IF(Berechnung!R36=0,"",Berechnung!R36) -> 12 | J16: =Berechnung!S36 -> -1 | K16: =Berechnung!T36 -> 10 | L16: =IF($K16=0,"",Berechnung!U36) -> 1 | M16: =IF($K16=0,"",Berechnung!V36) -> 3 | N16: =IF($K16=0,"",Berechnung!W36) -> 6 | O16: =IF($K16=0,"",Berechnung!X36) -> 0 | P16: =IF($K16=0,"",Berechnung!Y36) -> 0.1 | Q16: =IF($K16=0,"",Berechnung!Z36) -> 0 | R16: =IF($K16=0,"",Berechnung!AA36) -> 50% | S16: =Berechnung!AB36 -> 2 | T16: =IF($S16=0,"",Berechnung!AC36) -> 0.0243902439 | U16: =IF($S16=0,"",Berechnung!AD36) -> 0 | V16: =IF($S16=0,"",Berechnung!AE36) -> 0 | W16: =IF($S16=0,"",Berechnung!AF36) -> 1 | X16: =IF($S16=0,"",Berechnung!AG36) -> 0 | Y16: =IF($S16=0,"",Berechnung!AH36) -> 1 | Z16: =IF($S16=0,"",Berechnung!AI36) -> 0 | AA16: =IF($S16=0,"",Berechnung!AJ36) -> 50% | AB16: =IF($S16=0,"",Berechnung!AK36) -> 50% | AC16: =IF($S16=0,"",Berechnung!AL36) -> 50% | AD16: =Berechnung!AM36 -> 20 | AE16: =IF($AD16=0,"",Berechnung!AN36) -> 0.1923076923 | AF16: =IF($AD16=0,"",Berechnung!AO36) -> 2 | AG16: =IF($AD16=0,"",Berechnung!AP36) -> 5 | AH16: =IF($AD16=0,"",Berechnung!AQ36) -> 1 | AI16: =IF($AD16=0,"",Berechnung!AR36) -> 1 | AJ16: =IF($AD16=0,"",Berechnung!AS36) -> 11 | AK16: =IF($AD16=0,"",Berechnung!AT36) -> 0.35 | AL16: =IF($AD16=0,"",Berechnung!AU36) -> 55% | AM16: =IF($AD16=0,"",Berechnung!AV36) -> 20%
B17: =Berechnung!I37 -> 19 | C17: =Berechnung!J37 -> JEONG | E17: =Berechnung!N37 -> 5 | F17: =Berechnung!O37 -> 0 | G17: =IF($F17=0,"",Berechnung!P37) ->  | H17: =IF(Berechnung!Q37=0,"",Berechnung!Q37) ->  | I17: =IF(Berechnung!R37=0,"",Berechnung!R37) -> 4 | J17: =Berechnung!S37 -> -4 | K17: =Berechnung!T37 -> 0 | L17: =IF($K17=0,"",Berechnung!U37) ->  | M17: =IF($K17=0,"",Berechnung!V37) ->  | N17: =IF($K17=0,"",Berechnung!W37) ->  | O17: =IF($K17=0,"",Berechnung!X37) ->  | P17: =IF($K17=0,"",Berechnung!Y37) ->  | Q17: =IF($K17=0,"",Berechnung!Z37) ->  | R17: =IF($K17=0,"",Berechnung!AA37) ->  | S17: =Berechnung!AB37 -> 33 | T17: =IF($S17=0,"",Berechnung!AC37) -> 0.4024390244 | U17: =IF($S17=0,"",Berechnung!AD37) -> 0 | V17: =IF($S17=0,"",Berechnung!AE37) -> 1 | W17: =IF($S17=0,"",Berechnung!AF37) -> 10 | X17: =IF($S17=0,"",Berechnung!AG37) -> 12 | Y17: =IF($S17=0,"",Berechnung!AH37) -> 10 | Z17: =IF($S17=0,"",Berechnung!AI37) -> 0.0303030303 | AA17: =IF($S17=0,"",Berechnung!AJ37) -> 66% | AB17: =IF($S17=0,"",Berechnung!AK37) -> 30% | AC17: =IF($S17=0,"",Berechnung!AL37) -> 64% | AD17: =Berechnung!AM37 -> 0 | AE17: =IF($AD17=0,"",Berechnung!AN37) ->  | AF17: =IF($AD17=0,"",Berechnung!AO37) ->  | AG17: =IF($AD17=0,"",Berechnung!AP37) ->  | AH17: =IF($AD17=0,"",Berechnung!AQ37) ->  | AI17: =IF($AD17=0,"",Berechnung!AR37) ->  | AJ17: =IF($AD17=0,"",Berechnung!AS37) ->  | AK17: =IF($AD17=0,"",Berechnung!AT37) ->  | AL17: =IF($AD17=0,"",Berechnung!AU37) ->  | AM17: =IF($AD17=0,"",Berechnung!AV37) -> 
B18: =Berechnung!I38 -> 20 | C18: =Berechnung!J38 -> JI | E18: =Berechnung!N38 -> 0 | F18: =Berechnung!O38 -> 0 | G18: =IF($F18=0,"",Berechnung!P38) ->  | H18: =IF(Berechnung!Q38=0,"",Berechnung!Q38) ->  | I18: =IF(Berechnung!R38=0,"",Berechnung!R38) ->  | J18: =Berechnung!S38 -> 0 | K18: =Berechnung!T38 -> 0 | L18: =IF($K18=0,"",Berechnung!U38) ->  | M18: =IF($K18=0,"",Berechnung!V38) ->  | N18: =IF($K18=0,"",Berechnung!W38) ->  | O18: =IF($K18=0,"",Berechnung!X38) ->  | P18: =IF($K18=0,"",Berechnung!Y38) ->  | Q18: =IF($K18=0,"",Berechnung!Z38) ->  | R18: =IF($K18=0,"",Berechnung!AA38) ->  | S18: =Berechnung!AB38 -> 0 | T18: =IF($S18=0,"",Berechnung!AC38) ->  | U18: =IF($S18=0,"",Berechnung!AD38) ->  | V18: =IF($S18=0,"",Berechnung!AE38) ->  | W18: =IF($S18=0,"",Berechnung!AF38) ->  | X18: =IF($S18=0,"",Berechnung!AG38) ->  | Y18: =IF($S18=0,"",Berechnung!AH38) ->  | Z18: =IF($S18=0,"",Berechnung!AI38) ->  | AA18: =IF($S18=0,"",Berechnung!AJ38) ->  | AB18: =IF($S18=0,"",Berechnung!AK38) ->  | AC18: =IF($S18=0,"",Berechnung!AL38) ->  | AD18: =Berechnung!AM38 -> 0 | AE18: =IF($AD18=0,"",Berechnung!AN38) ->  | AF18: =IF($AD18=0,"",Berechnung!AO38) ->  | AG18: =IF($AD18=0,"",Berechnung!AP38) ->  | AH18: =IF($AD18=0,"",Berechnung!AQ38) ->  | AI18: =IF($AD18=0,"",Berechnung!AR38) ->  | AJ18: =IF($AD18=0,"",Berechnung!AS38) ->  | AK18: =IF($AD18=0,"",Berechnung!AT38) ->  | AL18: =IF($AD18=0,"",Berechnung!AU38) ->  | AM18: =IF($AD18=0,"",Berechnung!AV38) -> 
B19: =Berechnung!I39 -> 22 | C19: =Berechnung!J39 -> YOU | E19: =Berechnung!N39 -> 5 | F19: =Berechnung!O39 -> 1 | G19: =IF($F19=0,"",Berechnung!P39) -> 0.2 | H19: =IF(Berechnung!Q39=0,"",Berechnung!Q39) -> 1 | I19: =IF(Berechnung!R39=0,"",Berechnung!R39) -> 3 | J19: =Berechnung!S39 -> -2 | K19: =Berechnung!T39 -> 12 | L19: =IF($K19=0,"",Berechnung!U39) -> 0 | M19: =IF($K19=0,"",Berechnung!V39) -> 8 | N19: =IF($K19=0,"",Berechnung!W39) -> 4 | O19: =IF($K19=0,"",Berechnung!X39) -> 0 | P19: =IF($K19=0,"",Berechnung!Y39) -> 0 | Q19: =IF($K19=0,"",Berechnung!Z39) -> 0 | R19: =IF($K19=0,"",Berechnung!AA39) -> 33% | S19: =Berechnung!AB39 -> 0 | T19: =IF($S19=0,"",Berechnung!AC39) ->  | U19: =IF($S19=0,"",Berechnung!AD39) ->  | V19: =IF($S19=0,"",Berechnung!AE39) ->  | W19: =IF($S19=0,"",Berechnung!AF39) ->  | X19: =IF($S19=0,"",Berechnung!AG39) ->  | Y19: =IF($S19=0,"",Berechnung!AH39) ->  | Z19: =IF($S19=0,"",Berechnung!AI39) ->  | AA19: =IF($S19=0,"",Berechnung!AJ39) ->  | AB19: =IF($S19=0,"",Berechnung!AK39) ->  | AC19: =IF($S19=0,"",Berechnung!AL39) ->  | AD19: =Berechnung!AM39 -> 1 | AE19: =IF($AD19=0,"",Berechnung!AN39) -> 0.009615384615 | AF19: =IF($AD19=0,"",Berechnung!AO39) -> 0 | AG19: =IF($AD19=0,"",Berechnung!AP39) -> 0 | AH19: =IF($AD19=0,"",Berechnung!AQ39) -> 1 | AI19: =IF($AD19=0,"",Berechnung!AR39) -> 0 | AJ19: =IF($AD19=0,"",Berechnung!AS39) -> 0 | AK19: =IF($AD19=0,"",Berechnung!AT39) -> 0 | AL19: =IF($AD19=0,"",Berechnung!AU39) -> 0% | AM19: =IF($AD19=0,"",Berechnung!AV39) -> 0%
B20: =Berechnung!I40 -> 25 | C20: =Berechnung!J40 -> OH | E20: =Berechnung!N40 -> 1 | F20: =Berechnung!O40 -> 0 | G20: =IF($F20=0,"",Berechnung!P40) ->  | H20: =IF(Berechnung!Q40=0,"",Berechnung!Q40) ->  | I20: =IF(Berechnung!R40=0,"",Berechnung!R40) ->  | J20: =Berechnung!S40 -> 0 | K20: =Berechnung!T40 -> 0 | L20: =IF($K20=0,"",Berechnung!U40) ->  | M20: =IF($K20=0,"",Berechnung!V40) ->  | N20: =IF($K20=0,"",Berechnung!W40) ->  | O20: =IF($K20=0,"",Berechnung!X40) ->  | P20: =IF($K20=0,"",Berechnung!Y40) ->  | Q20: =IF($K20=0,"",Berechnung!Z40) ->  | R20: =IF($K20=0,"",Berechnung!AA40) ->  | S20: =Berechnung!AB40 -> 0 | T20: =IF($S20=0,"",Berechnung!AC40) ->  | U20: =IF($S20=0,"",Berechnung!AD40) ->  | V20: =IF($S20=0,"",Berechnung!AE40) ->  | W20: =IF($S20=0,"",Berechnung!AF40) ->  | X20: =IF($S20=0,"",Berechnung!AG40) ->  | Y20: =IF($S20=0,"",Berechnung!AH40) ->  | Z20: =IF($S20=0,"",Berechnung!AI40) ->  | AA20: =IF($S20=0,"",Berechnung!AJ40) ->  | AB20: =IF($S20=0,"",Berechnung!AK40) ->  | AC20: =IF($S20=0,"",Berechnung!AL40) ->  | AD20: =Berechnung!AM40 -> 0 | AE20: =IF($AD20=0,"",Berechnung!AN40) ->  | AF20: =IF($AD20=0,"",Berechnung!AO40) ->  | AG20: =IF($AD20=0,"",Berechnung!AP40) ->  | AH20: =IF($AD20=0,"",Berechnung!AQ40) ->  | AI20: =IF($AD20=0,"",Berechnung!AR40) ->  | AJ20: =IF($AD20=0,"",Berechnung!AS40) ->  | AK20: =IF($AD20=0,"",Berechnung!AT40) ->  | AL20: =IF($AD20=0,"",Berechnung!AU40) ->  | AM20: =IF($AD20=0,"",Berechnung!AV40) -> 
B21: =Berechnung!I41 ->  | C21: =Berechnung!J41 ->  | E21: =Berechnung!N41 ->  | F21: =Berechnung!O41 ->  | G21: =IF($F21=0,"",Berechnung!P41) ->  | H21: =IF(Berechnung!Q41=0,"",Berechnung!Q41) ->  | I21: =IF(Berechnung!R41=0,"",Berechnung!R41) ->  | J21: =Berechnung!S41 ->  | K21: =Berechnung!T41 ->  | L21: =IF($K21=0,"",Berechnung!U41) ->  | M21: =IF($K21=0,"",Berechnung!V41) ->  | N21: =IF($K21=0,"",Berechnung!W41) ->  | O21: =IF($K21=0,"",Berechnung!X41) ->  | P21: =IF($K21=0,"",Berechnung!Y41) ->  | Q21: =IF($K21=0,"",Berechnung!Z41) ->  | R21: =IF($K21=0,"",Berechnung!AA41) ->  | S21: =Berechnung!AB41 ->  | T21: =IF($S21=0,"",Berechnung!AC41) ->  | U21: =IF($S21=0,"",Berechnung!AD41) ->  | V21: =IF($S21=0,"",Berechnung!AE41) ->  | W21: =IF($S21=0,"",Berechnung!AF41) ->  | X21: =IF($S21=0,"",Berechnung!AG41) ->  | Y21: =IF($S21=0,"",Berechnung!AH41) ->  | Z21: =IF($S21=0,"",Berechnung!AI41) ->  | AA21: =IF($S21=0,"",Berechnung!AJ41) ->  | AB21: =IF($S21=0,"",Berechnung!AK41) ->  | AC21: =IF($S21=0,"",Berechnung!AL41) ->  | AD21: =Berechnung!AM41 ->  | AE21: =IF($AD21=0,"",Berechnung!AN41) ->  | AF21: =IF($AD21=0,"",Berechnung!AO41) ->  | AG21: =IF($AD21=0,"",Berechnung!AP41) ->  | AH21: =IF($AD21=0,"",Berechnung!AQ41) ->  | AI21: =IF($AD21=0,"",Berechnung!AR41) ->  | AJ21: =IF($AD21=0,"",Berechnung!AS41) ->  | AK21: =IF($AD21=0,"",Berechnung!AT41) ->  | AL21: =IF($AD21=0,"",Berechnung!AU41) ->  | AM21: =IF($AD21=0,"",Berechnung!AV41) -> 
B22: =Berechnung!I42 ->  | C22: =Berechnung!J42 ->  | E22: =Berechnung!N42 ->  | F22: =Berechnung!O42 ->  | G22: =IF($F22=0,"",Berechnung!P42) ->  | H22: =IF(Berechnung!Q42=0,"",Berechnung!Q42) ->  | I22: =IF(Berechnung!R42=0,"",Berechnung!R42) ->  | J22: =Berechnung!S42 ->  | K22: =Berechnung!T42 ->  | L22: =IF($K22=0,"",Berechnung!U42) ->  | M22: =IF($K22=0,"",Berechnung!V42) ->  | N22: =IF($K22=0,"",Berechnung!W42) ->  | O22: =IF($K22=0,"",Berechnung!X42) ->  | P22: =IF($K22=0,"",Berechnung!Y42) ->  | Q22: =IF($K22=0,"",Berechnung!Z42) ->  | R22: =IF($K22=0,"",Berechnung!AA42) ->  | S22: =Berechnung!AB42 ->  | T22: =IF($S22=0,"",Berechnung!AC42) ->  | U22: =IF($S22=0,"",Berechnung!AD42) ->  | V22: =IF($S22=0,"",Berechnung!AE42) ->  | W22: =IF($S22=0,"",Berechnung!AF42) ->  | X22: =IF($S22=0,"",Berechnung!AG42) ->  | Y22: =IF($S22=0,"",Berechnung!AH42) ->  | Z22: =IF($S22=0,"",Berechnung!AI42) ->  | AA22: =IF($S22=0,"",Berechnung!AJ42) ->  | AB22: =IF($S22=0,"",Berechnung!AK42) ->  | AC22: =IF($S22=0,"",Berechnung!AL42) ->  | AD22: =Berechnung!AM42 ->  | AE22: =IF($AD22=0,"",Berechnung!AN42) ->  | AF22: =IF($AD22=0,"",Berechnung!AO42) ->  | AG22: =IF($AD22=0,"",Berechnung!AP42) ->  | AH22: =IF($AD22=0,"",Berechnung!AQ42) ->  | AI22: =IF($AD22=0,"",Berechnung!AR42) ->  | AJ22: =IF($AD22=0,"",Berechnung!AS42) ->  | AK22: =IF($AD22=0,"",Berechnung!AT42) ->  | AL22: =IF($AD22=0,"",Berechnung!AU42) ->  | AM22: =IF($AD22=0,"",Berechnung!AV42) -> 
B23: =Berechnung!I43 ->  | C23: =Berechnung!J43 ->  | E23: =Berechnung!N43 ->  | F23: =Berechnung!O43 ->  | G23: =IF($F23=0,"",Berechnung!P43) ->  | H23: =IF(Berechnung!Q43=0,"",Berechnung!Q43) ->  | I23: =IF(Berechnung!R43=0,"",Berechnung!R43) ->  | J23: =Berechnung!S43 ->  | K23: =Berechnung!T43 ->  | L23: =IF($K23=0,"",Berechnung!U43) ->  | M23: =IF($K23=0,"",Berechnung!V43) ->  | N23: =IF($K23=0,"",Berechnung!W43) ->  | O23: =IF($K23=0,"",Berechnung!X43) ->  | P23: =IF($K23=0,"",Berechnung!Y43) ->  | Q23: =IF($K23=0,"",Berechnung!Z43) ->  | R23: =IF($K23=0,"",Berechnung!AA43) ->  | S23: =Berechnung!AB43 ->  | T23: =IF($S23=0,"",Berechnung!AC43) ->  | U23: =IF($S23=0,"",Berechnung!AD43) ->  | V23: =IF($S23=0,"",Berechnung!AE43) ->  | W23: =IF($S23=0,"",Berechnung!AF43) ->  | X23: =IF($S23=0,"",Berechnung!AG43) ->  | Y23: =IF($S23=0,"",Berechnung!AH43) ->  | Z23: =IF($S23=0,"",Berechnung!AI43) ->  | AA23: =IF($S23=0,"",Berechnung!AJ43) ->  | AB23: =IF($S23=0,"",Berechnung!AK43) ->  | AC23: =IF($S23=0,"",Berechnung!AL43) ->  | AD23: =Berechnung!AM43 ->  | AE23: =IF($AD23=0,"",Berechnung!AN43) ->  | AF23: =IF($AD23=0,"",Berechnung!AO43) ->  | AG23: =IF($AD23=0,"",Berechnung!AP43) ->  | AH23: =IF($AD23=0,"",Berechnung!AQ43) ->  | AI23: =IF($AD23=0,"",Berechnung!AR43) ->  | AJ23: =IF($AD23=0,"",Berechnung!AS43) ->  | AK23: =IF($AD23=0,"",Berechnung!AT43) ->  | AL23: =IF($AD23=0,"",Berechnung!AU43) ->  | AM23: =IF($AD23=0,"",Berechnung!AV43) -> 
